Workbook

Sheet START

Sheet Instructions
D2: 2020
X4: Yes
X5: No
W7: Type of Entities Range:
X8: Parent Municipality
X9: Consolidated Information
F14: START
F15: Instructions
F16: Template names
F17: Lookup and lists | W17: MTREF Range: | X17: 2013
F18: Org structure | X18: 2014
F19: Contacts | X19: 2015
F20: A1-Sum | X20: 2016
F21: A2-FinPerf SC | X21: 2017
F22: A2A | X22: 2018
F23: A3-FinPerf V | X23: 2019
F24: A3A | X24: 2020
F25: A4-FinPerf RE | X25: 2021
F26: A5-Capex | X26: 2022
F27: A5A | X27: 2023
F28: A6-FinPos | X28: 2024
F29: A7-CFlow | X29: 2025
F30: A8-ResRecon | X30: 2026
F31: A9-Asset | X31: 2027
F32: A10-SerDel
F33: SA1 | W33: MTREF Linked: | X33: 10
F34: SA2 | W34: MTREF: | X34: =INDEX(X17:X26,X33,1) -> 2022
F35: SA3
F36: SA4 | W36: Fin Year: | X36: =MTREF&"/"&RIGHT(MTREF,2)+1 -> 2022/23
F37: SA5
F38: SA6
F39: SA7
F40: SA8
F41: SA9
F42: SA10
F43: SA11
F44: SA12a
F45: SA12b
F46: SA13a
F47: SA13b
F48: SA14
F49: SA15
F50: SA16
F51: SA17
F52: SA18
F53: SA19
F54: SA20
F55: SA21
F56: SA22
F57: SA23
F58: SA24
F59: SA25
F60: SA26
F61: SA27
F62: SA28
F63: SA29
F64: SA30
F65: SA31
F66: SA32
F67: SA33
F68: SA34a
F69: SA34b
F70: SA34c
F71: SA34d
F72: SA34e
F73: SA35
F74: SA36
F75: SA37
F76: SA38
F77: LGDB_EXPORT

Sheet Template names (hidden)
A1: Common sheet headings
A2: Head1 | B2: =HLOOKUP(MTREF,Headings,2) -> 2020/21 | C2: Prior year -1
A3: Head1A | B3: =HLOOKUP(MTREF,Headings,3) -> 2019/20 | C3: Prior year -2
A4: Head1B | B4: =HLOOKUP(MTREF,Headings,4) -> 2018/19 | C4: Prior year -3
A5: Head2 | B5: =HLOOKUP(MTREF,Headings,5) -> Current Year 2021/22 | C5: Year in which budget is being prepared
A6: Head2A | B6: =HLOOKUP(MTREF,Headings,6) -> 2021/22 | C6: Year in which budget is being prepared
A7: Head3 | B7: =HLOOKUP(MTREF,Headings,7) -> 2022/23 Medium Term Revenue & Expenditure Framework | C7: MTREF name
A8: Head4 | B8: LTFS | C8: Long term financial strategy
A9: Head5 | B9: Audited Outcome
A10: Head5A | B10: Outcome
A11: Head5B | B11: Pre-audit outcome
A12: Head6 | B12: Original Budget
A13: Head7 | B13: Adjusted Budget
A14: Head8 | B14: Full Year Forecast
A15: Head9 | B15: =HLOOKUP(MTREF,Headings,8) -> Budget Year 2022/23 | C15: 1st year of MTREF | D15: Year1
A16: Head10 | B16: =HLOOKUP(MTREF,Headings,9) -> Budget Year +1 2023/24 | C16: 2nd year of MTREF | D16: Year2
A17: Head11 | B17: =HLOOKUP(MTREF,Headings,10) -> Budget Year +2 2024/25 | C17: 3rd year of MTREF | D17: Year3
A18: Head12 | B18: =HLOOKUP(MTREF,Headings,11) -> Forecast 2025/26 | C18: 1st yr of long term forecast | D18: Year4
A19: Head13 | B19: =HLOOKUP(MTREF,Headings,12) -> Forecast 2026/27 | C19: Next yr of long term forecast | D19: Year5
A20: Head14 | B20: =HLOOKUP(MTREF,Headings,13) -> Forecast 2027/28 | C20: Next yr of long term forecast | D20: Year6
A21: Head15 | B21: =HLOOKUP(MTREF,Headings,14) -> Forecast 2028/29 | C21: Next yr of long term forecast | D21: Year7
A22: Head16 | B22: =HLOOKUP(MTREF,Headings,15) -> Forecast 2029/30 | C22: Next yr of long term forecast | D22: Year8
A23: Head17 | B23: =HLOOKUP(MTREF,Headings,16) -> Forecast 2030/31 | C23: Next yr of long term forecast | D23: Year9
A24: Head18 | B24: =HLOOKUP(MTREF,Headings,17) -> Forecast 2031/32 | C24: Next yr of long term forecast | D24: Year10
A25: Head19 | B25: =HLOOKUP(MTREF,Headings,18) -> Forecast 2032/33 | C25: Next yr of long term forecast | D25: Year11
A26: Head20 | B26: =HLOOKUP(MTREF,Headings,19) -> Forecast 2033/34 | C26: Next yr of long term forecast | D26: Year12
A27: Head21 | B27: =HLOOKUP(MTREF,Headings,20) -> Forecast 2034/35 | C27: Next yr of long term forecast | D27: Year13
A28: Head22 | B28: =HLOOKUP(MTREF,Headings,21) -> Forecast 2035/36 | C28: Next yr of long term forecast | D28: Year14
A29: Head23 | B29: =HLOOKUP(MTREF,Headings,22) -> Forecast 2036/37 | C29: Next yr of long term forecast | D29: Year15
A30: Head24 | B30: Description
A31: Head25
A32: Head26 | B32: Vote Description
A33: Head27 | B33: Ref
A34: Head27a | B34: References
A35: Head28 | B35: Surplus/(Deficit) for the year | D35: Result
A36: Head29 | B36: =HLOOKUP(MTREF,Headings,23) -> Annual target 2022/23
A37: Head30 | B37: =HLOOKUP(MTREF,Headings,24) -> Revised target 2022/23
A38: Head31 | B38: Quarter ended 30 September
A39: Head32 | B39: Quarter ended 31 December
A40: Head33 | B40: Quarter ended 31 March
A41: Head34 | B41: Quarter ended 30 June
A42: Head35 | B42: Variance explanation
A43: Head36 | B43: YTD Actual 31 Dec
A44: Head37 | B44: YTD Budget 31 Dec
A45: Head38 | B45: Monthly actual
A46: Head39 | B46: YTD actual
A47: Head40 | B47: YTD budget
A48: Head41 | B48: YTD variance
A49: Head42 | B49: Surplus/ (Deficit) for the yr/period
A50: Head43 | B50: =Head3&" Summary" -> 2022/23 Medium Term Revenue & Expenditure Framework Summary
A51: Head44 | B51: 2001 Census
A52: Head45 | B52: 2011 Census
A53: Head46 | B53: - Adjustments Budget - January 2007
A54: Head47 | B54: Previous target year to complete
A55: Head48 | B55: Present value
A56: Head49
A57: Head50 | B57: Other Adjusts.
A58: Head51 | B58: Accum. Funds
A59: Head52 | B59: Multi-year capital
A60: Head53 | B60: Unfore. Unavoid.
A61: Head54 | B61: Prior Adjusted
A62: Head55 | B62: Nat. or Prov. Govt
A63: Head56 | B63: Total Adjusts.
A64: SFPerf1 | B64: Budgeted Financial Performance
A65: SFPerf2 | B65: Forecast Financial Performance
A66: SFPos1 | B66: Budgeted Financial Position
A67: SFPos2 | B67: Forecast Financial Position
A68: Cash1 | B68: Budget Cash Flow
A69: Cash2 | B69: Forecast Cash Flow
A70: RandM | B70: Expenditure includes repairs & maintenance of R'000
A71: Depart1 | B71: Department 1 - | D71: DEP1
A72: Depart2 | B72: Department 2 - | D72: DEP2
A73: Depart3 | B73: Department 3 - | D73: DEP3
A74: Depart4 | B74: Department 4 - | D74: DEP4
A75: Depart5 | B75: Department 5 - | D75: DEP5
A76: Depart6 | B76: Department 6 - | D76: DEP6
A77: Depart7 | B77: Department 7 - | D77: DEP7
A78: Depart8 | B78: Department 8 - | D78: DEP8
A79: Depart9 | B79: Department 9 - | D79: DEP9
A80: Depart10 | B80: Department 10 - | D80: DEP10
A81: Depart11 | B81: Department 11 - | D81: DEP11
A82: Depart12 | B82: Department 12 - | D82: DEP12
A83: Depart13 | B83: Department 13 - | D83: DEP13
A84: Depart14 | B84: Department 14 - | D84: DEP14
A87: Base year of forecast column selection names
A88: Choose | B88: ACT
B89: APP
B90: ADJ
A92: Standard nomenclature
A93: Muni | B93: ='Lookup and lists'!B28 -> KZN225 Msunduzi
A94: Municipal Entities | B94: 1 | C94: Type of report: | D94: 2
A95: =IF((MuniEntities=1)*(MuniType=2),"YES","NO") -> YES | B95: Does this municipality have entities (consolidated budget and entity budgets required)? YES/NO
A96: Entity 1 | B96: (Pty) Ltd Example 1 - Municipal entity - | D96: Ent1
A97: Entity 2 | B97: (Pty) Ltd Example 2 - Municipal entity - | D97: Ent2
A98: Entity 3 | B98: Municipal Entity Example 3 | D98: Ent3
A99: Budget approval tables | C99: Chart x-ref | D99: Sch/Tab/Ch | E99: Alternative for municipalities without entities | F99: Alternative for municipalities without entities
B100: =IF(Consolques="YES",E100,F100) -> Table A1 Consolidated Budget Summary | D100: Table A1 | E100: =D100&"Consolidated Budget Summary" -> Table A1 Consolidated Budget Summary | F100: =D100&"Budget Summary" -> Table A1 Budget Summary
B101: Table A2 Consolidated Budgeted Financial Performance (revenue and expenditure by functional classification) | C101: Charts 5, 6 | D101: Table A2 | E101: =D101&"Consolidated Budgeted Financial Performance (revenue and expenditure by functional classification)" -> Table A2 Consolidated Budgeted Financial Performance (revenue and expenditure by functional classification) | F101: =D101&"Budgeted Financial Performance (revenue and expenditure by functional classification)" -> Table A2 Budgeted Financial Performance (revenue and expenditure by functional classification)
B102: Table A3 Consolidated Budgeted Financial Performance (revenue and expenditure by municipal vote) | D102: Table A3 | E102: =D102&"Consolidated Budgeted Financial Performance (revenue and expenditure by municipal vote)" -> Table A3 Consolidated Budgeted Financial Performance (revenue and expenditure by municipal vote) | F102: =D102&"Budgeted Financial Performance (revenue and expenditure by municipal vote)" -> Table A3 Budgeted Financial Performance (revenue and expenditure by municipal vote)
B103: Table A4 Consolidated Budgeted Financial Performance (revenue and expenditure) | C103: Charts 1, 2, 3, 4 | D103: Table A4 | E103: =D103&"Consolidated Budgeted Financial Performance (revenue and expenditure)" -> Table A4 Consolidated Budgeted Financial Performance (revenue and expenditure) | F103: =D103&"Budgeted Financial Performance (revenue and expenditure)" -> Table A4 Budgeted Financial Performance (revenue and expenditure)
B104: Table A5 Consolidated Budgeted Capital Expenditure by vote, functional classification and funding | C104: Charts 7, 8, 9, 10, 20 | D104: Table A5 | E104: =D104&"Consolidated Budgeted Capital Expenditure by vote, functional classification and funding" -> Table A5 Consolidated Budgeted Capital Expenditure by vote, functional classification and funding | F104: =D104&"Budgeted Capital Expenditure by vote, functional classification and funding" -> Table A5 Budgeted Capital Expenditure by vote, functional classification and funding
B105: Table A6 Consolidated Budgeted Financial Position | D105: Table A6 | E105: =D105&"Consolidated Budgeted Financial Position" -> Table A6 Consolidated Budgeted Financial Position | F105: =D105&"Budgeted Financial Position" -> Table A6 Budgeted Financial Position
B106: Table A7 Consolidated Budgeted Cash Flows | D106: Table A7 | E106: =D106&"Consolidated Budgeted Cash Flows" -> Table A7 Consolidated Budgeted Cash Flows | F106: =D106&"Budgeted Cash Flows" -> Table A7 Budgeted Cash Flows
B107: Table A8 Consolidated Cash backed reserves/accumulated surplus reconciliation | D107: Table A8 | E107: =D107&"Consolidated Cash backed reserves/accumulated surplus reconciliation" -> Table A8 Consolidated Cash backed reserves/accumulated surplus reconciliation | F107: =D107&"Cash backed reserves/accumulated surplus reconciliation" -> Table A8 Cash backed reserves/accumulated surplus reconciliation
B108: Table A9 Consolidated Asset Management | D108: Table A9 | E108: =D108&"Consolidated Asset Management" -> Table A9 Consolidated Asset Management | F108: =D108&"Asset Management" -> Table A9 Asset Management
B109: Table A10 Consolidated basic service delivery measurement | D109: Table A10 | E109: =D109&"Consolidated basic service delivery measurement" -> Table A10 Consolidated basic service delivery measurement | F109: =D109&"Basic service delivery measurement" -> Table A10 Basic service delivery measurement
A110: Supportinging Tables to the Budget Approval Tables | C110: =$C$99 -> Chart x-ref | D110: =$D$99 -> Sch/Tab/Ch
A111: Supporting Table SA1 | B111: =A111&" Supportinging detail to 'Budgeted Financial Performance'" -> Supporting Table SA1 Supportinging detail to 'Budgeted Financial Performance'
A112: Supporting Table SA2 | B112: =IF(Consolques="YES",E112,F112) -> Supporting Table SA2 Consolidated Matrix Financial Performance Budget (revenue source/expenditure type & dept.) | E112: =A112&"Consolidated Matrix Financial Performance Budget (revenue source/expenditure type & dept.)" -> Supporting Table SA2 Consolidated Matrix Financial Performance Budget (revenue source/expenditure type & dept.) | F112: =A112&"Matrix Financial Performance Budget (revenue source/expenditure type and dept.)" -> Supporting Table SA2 Matrix Financial Performance Budget (revenue source/expenditure type and dept.)
A113: Supporting Table SA3 | B113: =A113&"Supportinging detail to 'Budgeted Financial Position'" -> Supporting Table SA3 Supportinging detail to 'Budgeted Financial Position'
A114: Supporting Table SA4 | B114: =A114&"Reconciliation of IDP strategic objectives and budget (revenue)" -> Supporting Table SA4 Reconciliation of IDP strategic objectives and budget (revenue) | C114: Chart 11
A115: Supporting Table SA5 | B115: =A115&"Reconciliation of IDP strategic objectives and budget (operating expenditure)" -> Supporting Table SA5 Reconciliation of IDP strategic objectives and budget (operating expenditure) | C115: Chart 12
A116: Supporting Table SA6 | B116: =A116&"Reconciliation of IDP strategic objectives and budget (capital expenditure)" -> Supporting Table SA6 Reconciliation of IDP strategic objectives and budget (capital expenditure) | C116: Chart 13
A117: Supporting Table SA7 | B117: =A117&" Measureable performance objectives" -> Supporting Table SA7 Measureable performance objectives
A118: Supporting Table SA8 | B118: =A118&" Performance indicators and benchmarks" -> Supporting Table SA8 Performance indicators and benchmarks | C118: Chts 15-19
A119: Supporting Table SA9 | B119: =A119&" Social, economic and demographic statistics and assumptions" -> Supporting Table SA9 Social, economic and demographic statistics and assumptions
A120: Supporting Table SA10 | B120: =A120&" Funding measurement" -> Supporting Table SA10 Funding measurement | C120: Chart 14
A121: Supporting Table SA11 | B121: =A121&" Property rates summary" -> Supporting Table SA11 Property rates summary
A122: Supporting Table SA12a | B122: =A122&" Property rates by category (current year)" -> Supporting Table SA12a Property rates by category (current year)
A123: Supporting Table SA12b | B123: =A123&" Property rates by category (budget year)" -> Supporting Table SA12b Property rates by category (budget year)
A124: Supporting Table SA13a | B124: =A124&" Service Tariffs by category" -> Supporting Table SA13a Service Tariffs by category
A125: Supporting Table SA13b | B125: =A125&" Service Tariffs by category - explanatory" -> Supporting Table SA13b Service Tariffs by category - explanatory
A126: Supporting Table SA14 | B126: =A126&" Household bills" -> Supporting Table SA14 Household bills
A127: Supporting Table SA15 | B127: =A127&" Investment particulars by type" -> Supporting Table SA15 Investment particulars by type
A128: Supporting Table SA16 | B128: =A128&" Investment particulars by maturity" -> Supporting Table SA16 Investment particulars by maturity
A129: Supporting Table SA17 | B129: =A129&" Borrowing" -> Supporting Table SA17 Borrowing
A130: Supporting Table SA18 | B130: =A130&" Transfers and grant receipts" -> Supporting Table SA18 Transfers and grant receipts
A131: Supporting Table SA19 | B131: =A131&" Expenditure on transfers and grant programme" -> Supporting Table SA19 Expenditure on transfers and grant programme
A132: Supporting Table SA20 | B132: =A132&" Reconciliation of transfers, grant receipts and unspent funds" -> Supporting Table SA20 Reconciliation of transfers, grant receipts and unspent funds
A133: Supporting Table SA21 | B133: =A133&" Transfers and grants made by the municipality" -> Supporting Table SA21 Transfers and grants made by the municipality
A134: Supporting Table SA22 | B134: =A134&" Summary councillor and staff benefits" -> Supporting Table SA22 Summary councillor and staff benefits
A135: Supporting Table SA23 | B135: =A135&" Salaries, allowances & benefits (political office bearers/councillors/senior managers)" -> Supporting Table SA23 Salaries, allowances & benefits (political office bearers/councillors/senior managers)
A136: Supporting Table SA24 | B136: =A136&" Summary of personnel numbers" -> Supporting Table SA24 Summary of personnel numbers
A137: Supporting Table SA25 | B137: =IF(Consolques="YES",E137,F137) -> Supporting Table SA25 Consolidated budgeted monthly revenue and expenditure | E137: =A137&" Consolidated budgeted monthly revenue and expenditure" -> Supporting Table SA25 Consolidated budgeted monthly revenue and expenditure | F137: =A137&" Budgeted monthly revenue and expenditure" -> Supporting Table SA25 Budgeted monthly revenue and expenditure
A138: Supporting Table SA26 | B138: Supporting Table SA26 Consolidated budgeted monthly revenue and expenditure (municipal vote) | E138: =A138&" Consolidated budgeted monthly revenue and expenditure (municipal vote)" -> Supporting Table SA26 Consolidated budgeted monthly revenue and expenditure (municipal vote) | F138: =A138&" Budgeted monthly revenue and expenditure (municipal vote)" -> Supporting Table SA26 Budgeted monthly revenue and expenditure (municipal vote)
A139: Supporting Table SA27 | B139: Supporting Table SA27 Consolidated budgeted monthly revenue and expenditure (functional classification) | E139: =A139&" Consolidated budgeted monthly revenue and expenditure (functional classification)" -> Supporting Table SA27 Consolidated budgeted monthly revenue and expenditure (functional classification) | F139: =A139&" Budgeted monthly revenue and expenditure (functional classification)" -> Supporting Table SA27 Budgeted monthly revenue and expenditure (functional classification)
A140: Supporting Table SA28 | B140: Supporting Table SA28 Consolidated budgeted monthly capital expenditure (municipal vote) | E140: =A140&" Consolidated budgeted monthly capital expenditure (municipal vote)" -> Supporting Table SA28 Consolidated budgeted monthly capital expenditure (municipal vote) | F140: =A140&" Budgeted monthly capital expenditure (municipal vote)" -> Supporting Table SA28 Budgeted monthly capital expenditure (municipal vote)
A141: Supporting Table SA29 | B141: Supporting Table SA29 Consolidated budgeted monthly capital expenditure (functional classification) | E141: =A141&" Consolidated budgeted monthly capital expenditure (functional classification)" -> Supporting Table SA29 Consolidated budgeted monthly capital expenditure (functional classification) | F141: =A141&" Budgeted monthly capital expenditure (functional classification)" -> Supporting Table SA29 Budgeted monthly capital expenditure (functional classification)
A142: Supporting Table SA30 | B142: Supporting Table SA30 Consolidated budgeted monthly cash flow | E142: =A142&" Consolidated budgeted monthly cash flow" -> Supporting Table SA30 Consolidated budgeted monthly cash flow | F142: =A142&" Budgeted monthly cash flow" -> Supporting Table SA30 Budgeted monthly cash flow
A143: Supporting Table SA31 | B143: Supporting Table SA31 Aggregated entity budget | E143: =A143&" Aggregated entity budget" -> Supporting Table SA31 Aggregated entity budget | F143: NOT REQUIRED - municipality does not have entities
A144: Supporting Table SA32 | B144: =A144&" List of external mechanisms" -> Supporting Table SA32 List of external mechanisms
A145: Supporting Table SA33 | B145: =A145&" Contracts having future budgetary implications" -> Supporting Table SA33 Contracts having future budgetary implications
A146: Supporting Table SA34a | B146: =IF(Consolques="YES",E146,F146) -> Supporting Table SA34a Consolidated capital expenditure on new assets by asset class | E146: =A146&" Consolidated capital expenditure on new assets by asset class" -> Supporting Table SA34a Consolidated capital expenditure on new assets by asset class | F146: =A146&" Capital expenditure on new assets by asset class" -> Supporting Table SA34a Capital expenditure on new assets by asset class
A147: Supporting Table SA34b | B147: Supporting Table SA34b Consolidated capital expenditure on the renewal of existing assets by asset class | E147: =A147&" Consolidated capital expenditure on the renewal of existing assets by asset class" -> Supporting Table SA34b Consolidated capital expenditure on the renewal of existing assets by asset class | F147: =A147&" Capital expenditure on the renewal of existing assets by asset class" -> Supporting Table SA34b Capital expenditure on the renewal of existing assets by asset class
A148: Supporting Table SA34c | B148: Supporting Table SA34c Consolidated repairs and maintenance by asset class | E148: =A148&" Consolidated repairs and maintenance by asset class" -> Supporting Table SA34c Consolidated repairs and maintenance by asset class | F148: =A148&" Repairs and maintenance expenditure by asset class" -> Supporting Table SA34c Repairs and maintenance expenditure by asset class
A149: Supporting Table SA34d | B149: =IF(Consolques="YES",E149,F149) -> Supporting Table SA34d Consolidated Depreciation by asset class | E149: =A149&" Consolidated Depreciation by asset class" -> Supporting Table SA34d Consolidated Depreciation by asset class | F149: =A149&" Depreciation by asset class" -> Supporting Table SA34d Depreciation by asset class
A150: Supporting Table SA34e | B150: =IF(Consolques="YES",E150,F150) -> Supporting Table SA34e Consolidated capital expenditure on the upgrading of existing assets by asset class | E150: =A150&" Consolidated capital expenditure on the upgrading of existing assets by asset class" -> Supporting Table SA34e Consolidated capital expenditure on the upgrading of existing assets by asset class | F150: =A150&" Capital expenditure on the upgrading of existing assets by asset class" -> Supporting Table SA34e Capital expenditure on the upgrading of existing assets by asset class
A151: Supporting Table SA35 | B151: Supporting Table SA35 Consolidated future financial implications of the capital budget | E151: =A151&" Consolidated future financial implications of the capital budget" -> Supporting Table SA35 Consolidated future financial implications of the capital budget | F151: =A151& " Future financial implications of the capital budget" -> Supporting Table SA35 Future financial implications of the capital budget
A152: Supporting Table SA36 | B152: Supporting Table SA36 Consolidated detailed capital budget | E152: =A152&" Consolidated detailed capital budget" -> Supporting Table SA36 Consolidated detailed capital budget | F152: =A152& " Detailed capital budget" -> Supporting Table SA36 Detailed capital budget
A153: Supporting Table SA37 | B153: Supporting Table SA37 Consolidated projects delayed from previous financial year/s | E153: =A153&" Consolidated projects delayed from previous financial year/s" -> Supporting Table SA37 Consolidated projects delayed from previous financial year/s | F153: =A153& " Projects delayed from previous financial year/s" -> Supporting Table SA37 Projects delayed from previous financial year/s
A154: Supporting Table SA38 | B154: =IF(Consolques="YES",E154,F154) -> Supporting Table SA38 Consolidated detailed operational projects | E154: =A154&" Consolidated detailed operational projects" -> Supporting Table SA38 Consolidated detailed operational projects | F154: =A154& " Detailed operational projects" -> Supporting Table SA38 Detailed operational projects
A156: Budget Charts | B156: Charts | C156: Cross reference
A157: Chart A1 | B157: =A157&"Revenue by Municipal Vote" -> Chart A1 Revenue by Municipal Vote
A158: Chart A2 | B158: =A158&"Expenditure by Municipal Vote" -> Chart A2 Expenditure by Municipal Vote
A159: Chart A3 | B159: =A159&"Revenue by Standard Classification" -> Chart A3 Revenue by Standard Classification | C159: A2
A160: Chart A4 | B160: =A160&"Expenditure by Standard Classification" -> Chart A4 Expenditure by Standard Classification | C160: A2
A161: Chart A5 | B161: =A161&"Revenue by Major Source (refer 'Minor' source for 'Other Revenue' allocation" -> Chart A5 Revenue by Major Source (refer 'Minor' source for 'Other Revenue' allocation | C161: A3
A162: Chart A6 | B162: =A162&"Revenue by Minor Source (Other)" -> Chart A6 Revenue by Minor Source (Other) | C162: A3
A163: Chart A7 | B163: =A163&"Expenditure by Major Type" -> Chart A7 Expenditure by Major Type | C163: A3
A164: Chart A8 | B164: =A164&"Expenditure by Minor Type (Other)" -> Chart A8 Expenditure by Minor Type (Other) | C164: A3
A165: Chart A9 | B165: =A165&"Capital Expenditure by Municipal Vote/Appropriation (Major)" -> Chart A9 Capital Expenditure by Municipal Vote/Appropriation (Major) | C165: A5
A166: Chart A10 | B166: =A166&"Capital Expenditure by Municipal Vote/Appropriation (Minor)" -> Chart A10 Capital Expenditure by Municipal Vote/Appropriation (Minor) | C166: A5
A167: Chart A11 | B167: =A166&"Capital Expenditure by Standard Classification" -> Chart A10 Capital Expenditure by Standard Classification | C167: A5
A168: Chart A12 | B168: =A168&"Capital expenditure performance trend" -> Chart A12 Capital expenditure performance trend | C168: A5
A169: Chart A13 | B169: =A169&"Capital funding by Source" -> Chart A13 Capital funding by Source | C169: A5
A170: Chart A14 | B170: =A170&"Cash flow trend" -> Chart A14 Cash flow trend | C170: A7
A171: Chart A15 | B171: =A171&"IDP Strategic Objective - Revenue" -> Chart A15 IDP Strategic Objective - Revenue | C171: Table A4
A172: Chart A16 | B172: =A172&"IDP Strategic Objective - Expenditure" -> Chart A16 IDP Strategic Objective - Expenditure | C172: Table A5
A173: Chart A17 | B173: =A173&"IDP Strategic Objective - Capital Expenditure" -> Chart A17 IDP Strategic Objective - Capital Expenditure | C173: Table A6
A174: Chart A18 | B174: =A174&"Debt (borrowing to Total Revenue)" -> Chart A18 Debt (borrowing to Total Revenue) | C174: Table A8
A175: Chart A19 | B175: =A175&"Debtors' trend analysis" -> Chart A19 Debtors' trend analysis | C175: Table A8
A176: Chart A20 | B176: =A176&"Distribution losses" -> Chart A20 Distribution losses | C176: Table A8
A177: Chart A21 | B177: =A177&"Borrowed funding of capital expenditure" -> Chart A21 Borrowed funding of capital expenditure | C177: Table A8
A178: Chart A22 | B178: =A178&"Expenditure analysis (% of Revenue)" -> Chart A22 Expenditure analysis (% of Revenue) | C178: Table A8
A179: Chart A23 | B179: =A179&"Increases in service charges" -> Chart A23 Increases in service charges | C179: Table A10

Sheet Lookup and lists (hidden)
A1: Description | B1: 2013 | C1: 2014 | D1: 2015 | E1: 2016 | F1: 2017 | G1: 2018 | H1: 2019 | I1: 2020 | J1: 2021 | K1: 2022 | L1: 2023 | M1: 2024 | N1: 2025 | O1: 2026 | Q1: Lists | Y1: Grants: | Z1: National - opex | AA1: Provincial - opex | AB1: National - capex | AC1: Provincial - capex
A2: ='Template names'!C2 -> Prior year -1 | B2: =B1-2&"/"&RIGHT(B1,2)-1 -> 2011/12 | C2: 2012/13 | D2: 2013/14 | E2: 2014/15 | F2: 2015/16 | G2: 2016/17 | H2: 2017/18 | I2: 2018/19 | J2: =J1-2&"/"&RIGHT(J1,2)-1 -> 2019/20 | K2: 2020/21 | L2: 2021/22 | M2: 2022/23 | N2: 2023/24 | O2: 2024/25 | Q2: Yes | R2: <1 | S2: <4 | T2: Market | U2: Land & impr. | V2: Yes | W2: Uniform | X2: Yrs | Z2: Local Government Equitable Share | AA2: Health subsidy | AB2: Municipal Infrastructure Grant (MIG) | AC2: Agriculture
A3: ='Template names'!C3 -> Prior year -2 | B3: =B1-3&"/"&RIGHT(B1,2)-2 -> 2010/11 | C3: 2011/12 | D3: 2012/13 | E3: 2013/14 | F3: 2014/15 | G3: 2015/16 | H3: 2016/17 | I3: 2017/18 | J3: =J1-3&"/"&RIGHT(J1,2)-2 -> 2018/19 | K3: 2019/20 | L3: 2020/21 | M3: 2021/22 | N3: 2022/23 | O3: 2023/24 | Q3: No | R3: 1 | S3: 4 | T3: Dep.Replace | U3: Land only | V3: No | W3: Variable | X3: Mths | Z3: RSC Levy Replacement | AA3: Ambulance subsidy | AB3: Public Transport and Systems | AC3: Education
A4: ='Template names'!C4 -> Prior year -3 | B4: =B1-4&"/"&RIGHT(B1,2)-3 -> 2009/10 | C4: 2010/11 | D4: 2011/12 | E4: 2012/13 | F4: 2013/14 | G4: 2014/15 | H4: 2015/16 | I4: 2016/17 | J4: =J1-4&"/"&RIGHT(J1,2)-3 -> 2017/18 | K4: 2018/19 | L4: 2019/20 | M4: 2020/21 | N4: 2021/22 | O4: 2022/23 | R4: 2 | S4: 5 | T4: Other | U4: Other | Z4: Finance Management | AA4: Housing | AB4: Rural Transport Services and Infrastructure | AC4: Health
A5: ='Template names'!C5 -> Year in which budget is being prepared | B5: ="Current Year "& B1-1&"/"&RIGHT(B1,2) -> Current Year 2012/13 | C5: Current Year 2013/14 | D5: Current Year 2014/15 | E5: Current Year 2015/16 | F5: Current Year 2016/17 | G5: Current Year 2017/18 | H5: Current Year 2018/19 | I5: Current Year 2019/20 | J5: ="Current Year "& J1-1&"/"&RIGHT(J1,2) -> Current Year 2020/21 | K5: Current Year 2021/22 | L5: Current Year 2022/23 | M5: Current Year 2023/24 | N5: Current Year 2024/25 | O5: Current Year 2025/26 | R5: 3 | S5: 6 | Z5: Municipal Systems Improvement | AA5: Sport and Recreation | AB5: Regional Bulk Infrastructure | AC5: Housing and Local Government
A6: ='Template names'!C6 -> Year in which budget is being prepared | B6: =B1-1&"/"&RIGHT(B1,2) -> 2012/13 | C6: 2013/14 | D6: 2014/15 | E6: 2015/16 | F6: 2016/17 | G6: 2017/18 | H6: 2018/19 | I6: 2019/20 | J6: =J1-1&"/"&RIGHT(J1,2) -> 2020/21 | K6: 2021/22 | L6: 2022/23 | M6: 2023/24 | N6: 2024/25 | O6: 2025/26 | R6: 4 | S6: 6-10 | Z6: Water Services Operating Subsidy | AB6: Rural Households Infrastructure | AC6: Other Departments
A7: ='Template names'!C7 -> MTREF name | B7: =B1&"/"&RIGHT(B1,2)+1&" Medium Term Revenue & Expenditure Framework" -> 2013/14 Medium Term Revenue & Expenditure Framework | C7: 2014/15 Medium Term Revenue & Expenditure Framework | D7: 2015/16 Medium Term Revenue & Expenditure Framework | E7: 2016/17 Medium Term Revenue & Expenditure Framework | F7: 2017/18 Medium Term Revenue & Expenditure Framework | G7: 2018/19 Medium Term Revenue & Expenditure Framework | H7: 2019/20 Medium Term Revenue & Expenditure Framework | I7: 2020/21 Medium Term Revenue & Expenditure Framework | J7: =J1&"/"&RIGHT(J1,2)+1&" Medium Term Revenue & Expenditure Framework" -> 2021/22 Medium Term Revenue & Expenditure Framework | K7: 2022/23 Medium Term Revenue & Expenditure Framework | L7: 2023/24 Medium Term Revenue & Expenditure Framework | M7: 2024/25 Medium Term Revenue & Expenditure Framework | N7: 2025/26 Medium Term Revenue & Expenditure Framework | O7: 2026/27 Medium Term Revenue & Expenditure Framework | R7: 5 | S7: >10 | Z7: Energy Efficiency and Demand Management | AB7: Neighbourhood Development Partnership | AC7: Public Works, Roads, Transport
A8: ='Template names'!C15 -> 1st year of MTREF | B8: ="Budget Year "&B1&"/"&RIGHT(B1,2)+1 -> Budget Year 2013/14 | C8: Budget Year 2014/15 | D8: Budget Year 2015/16 | E8: Budget Year 2016/17 | F8: Budget Year 2017/18 | G8: Budget Year 2018/19 | H8: Budget Year 2019/20 | I8: Budget Year 2020/21 | J8: ="Budget Year "&J1&"/"&RIGHT(J1,2)+1 -> Budget Year 2021/22 | K8: Budget Year 2022/23 | L8: Budget Year 2023/24 | M8: Budget Year 2024/25 | N8: Budget Year 2025/26 | O8: Budget Year 2026/27 | R8: >5 | Z8: Integrated National Electrification Programme | AB8: 2010 FIFA World Cup Stadiums Development | AC8: Sport and Recreation
A9: ='Template names'!C16 -> 2nd year of MTREF | B9: ="Budget Year +1 "&B1+1&"/"&RIGHT(B1,2)+2 -> Budget Year +1 2014/15 | C9: Budget Year +1 2015/16 | D9: Budget Year +1 2016/17 | E9: Budget Year +1 2017/18 | F9: Budget Year +1 2018/19 | G9: Budget Year +1 2019/20 | H9: Budget Year +1 2020/21 | I9: Budget Year +1 2021/22 | J9: ="Budget Year +1 "&J1+1&"/"&RIGHT(J1,2)+2 -> Budget Year +1 2022/23 | K9: Budget Year +1 2023/24 | L9: Budget Year +1 2024/25 | M9: Budget Year +1 2025/26 | N9: Budget Year +1 2026/27 | O9: Budget Year +1 2027/28 | Z9: Municipal Drought Relief
A10: ='Template names'!C17 -> 3rd year of MTREF | B10: ="Budget Year +2 "&B1+2&"/"&RIGHT(B1,2)+3 -> Budget Year +2 2015/16 | C10: Budget Year +2 2016/17 | D10: Budget Year +2 2017/18 | E10: Budget Year +2 2018/19 | F10: Budget Year +2 2019/20 | G10: Budget Year +2 2020/21 | H10: Budget Year +2 2021/22 | I10: Budget Year +2 2022/23 | J10: ="Budget Year +2 "&J1+2&"/"&RIGHT(J1,2)+3 -> Budget Year +2 2023/24 | K10: Budget Year +2 2024/25 | L10: Budget Year +2 2025/26 | M10: Budget Year +2 2026/27 | N10: Budget Year +2 2027/28 | O10: Budget Year +2 2028/29 | Z10: 2010 FIFA World Cup Operating
A11: ='Template names'!C18 -> 1st yr of long term forecast | B11: ="Forecast "&B1+3&"/"&RIGHT(B1,2)+4 -> Forecast 2016/17 | C11: Forecast 2017/18 | D11: Forecast 2018/19 | E11: Forecast 2019/20 | F11: Forecast 2020/21 | G11: Forecast 2021/22 | H11: Forecast 2022/23 | I11: Forecast 2023/24 | J11: ="Forecast "&J1+3&"/"&RIGHT(J1,2)+4 -> Forecast 2024/25 | K11: Forecast 2025/26 | L11: Forecast 2026/27 | M11: Forecast 2027/28 | N11: Forecast 2028/29 | O11: Forecast 2029/30 | Z11: Electricity Demand Side Management
A12: ='Template names'!C19 -> Next yr of long term forecast | B12: ="Forecast "&B1+4&"/"&RIGHT(B1,2)+5 -> Forecast 2017/18 | C12: Forecast 2018/19 | D12: Forecast 2019/20 | E12: Forecast 2020/21 | F12: Forecast 2021/22 | G12: Forecast 2022/23 | H12: Forecast 2023/24 | I12: Forecast 2024/25 | J12: ="Forecast "&J1+4&"/"&RIGHT(J1,2)+5 -> Forecast 2025/26 | K12: Forecast 2026/27 | L12: Forecast 2027/28 | M12: Forecast 2028/29 | N12: Forecast 2029/30 | O12: Forecast 2030/31 | Z12: EPWP Incentive
A13: ='Template names'!C20 -> Next yr of long term forecast | B13: ="Forecast "&B1+5&"/"&RIGHT(B1,2)+6 -> Forecast 2018/19 | C13: Forecast 2019/20 | D13: Forecast 2020/21 | E13: Forecast 2021/22 | F13: Forecast 2022/23 | G13: Forecast 2023/24 | H13: Forecast 2024/25 | I13: Forecast 2025/26 | J13: ="Forecast "&J1+5&"/"&RIGHT(J1,2)+6 -> Forecast 2026/27 | K13: Forecast 2027/28 | L13: Forecast 2028/29 | M13: Forecast 2029/30 | N13: Forecast 2030/31 | O13: Forecast 2031/32
A14: ='Template names'!C21 -> Next yr of long term forecast | B14: ="Forecast "&B1+6&"/"&RIGHT(B1,2)+7 -> Forecast 2019/20 | C14: Forecast 2020/21 | D14: Forecast 2021/22 | E14: Forecast 2022/23 | F14: Forecast 2023/24 | G14: Forecast 2024/25 | H14: Forecast 2025/26 | I14: Forecast 2026/27 | J14: ="Forecast "&J1+6&"/"&RIGHT(J1,2)+7 -> Forecast 2027/28 | K14: Forecast 2028/29 | L14: Forecast 2029/30 | M14: Forecast 2030/31 | N14: Forecast 2031/32 | O14: Forecast 2032/33 | Z14: Asset Class | AA14: Asset sub-class old | AB14: Asset sub-class | AC14: IUDF | AD14: MTSF
A15: ='Template names'!C22 -> Next yr of long term forecast | B15: ="Forecast "&B1+7&"/"&RIGHT(B1,2)+8 -> Forecast 2020/21 | C15: Forecast 2021/22 | D15: Forecast 2022/23 | E15: Forecast 2023/24 | F15: Forecast 2024/25 | G15: Forecast 2025/26 | H15: Forecast 2026/27 | I15: Forecast 2027/28 | J15: ="Forecast "&J1+7&"/"&RIGHT(J1,2)+8 -> Forecast 2028/29 | K15: Forecast 2029/30 | L15: Forecast 2030/31 | M15: Forecast 2031/32 | N15: Forecast 2032/33 | O15: Forecast 2033/34
A16: ='Template names'!C23 -> Next yr of long term forecast | B16: ="Forecast "&B1+8&"/"&RIGHT(B1,2)+9 -> Forecast 2021/22 | C16: Forecast 2022/23 | D16: Forecast 2023/24 | E16: Forecast 2024/25 | F16: Forecast 2025/26 | G16: Forecast 2026/27 | H16: Forecast 2027/28 | I16: Forecast 2028/29 | J16: ="Forecast "&J1+8&"/"&RIGHT(J1,2)+9 -> Forecast 2029/30 | K16: Forecast 2030/31 | L16: Forecast 2031/32 | M16: Forecast 2032/33 | N16: Forecast 2033/34 | O16: Forecast 2034/35 | Z16: Roads Infrastructure | AA16: Roads, Pavements & Bridges | AB16: Roads | AC16: Spatial integration | AD16: Quality basic education
A17: ='Template names'!C24 -> Next yr of long term forecast | B17: ="Forecast "&B1+9&"/"&RIGHT(B1,2)+10 -> Forecast 2022/23 | C17: Forecast 2023/24 | D17: Forecast 2024/25 | E17: Forecast 2025/26 | F17: Forecast 2026/27 | G17: Forecast 2027/28 | H17: Forecast 2028/29 | I17: Forecast 2029/30 | J17: ="Forecast "&J1+9&"/"&RIGHT(J1,2)+10 -> Forecast 2030/31 | K17: Forecast 2031/32 | L17: Forecast 2032/33 | M17: Forecast 2033/34 | N17: Forecast 2034/35 | O17: Forecast 2035/36 | Z17: Storm water Infrastructure | AA17: Storm water | AB17: Road Structures | AC17: Inclusion and access | AD17: A long and healthy life for all South Africans
A18: ='Template names'!C25 -> Next yr of long term forecast | B18: ="Forecast "&B1+10&"/"&RIGHT(B1,2)+11 -> Forecast 2023/24 | C18: Forecast 2024/25 | D18: Forecast 2025/26 | E18: Forecast 2026/27 | F18: Forecast 2027/28 | G18: Forecast 2028/29 | H18: Forecast 2029/30 | I18: Forecast 2030/31 | J18: ="Forecast "&J1+10&"/"&RIGHT(J1,2)+11 -> Forecast 2031/32 | K18: Forecast 2032/33 | L18: Forecast 2033/34 | M18: Forecast 2034/35 | N18: Forecast 2035/36 | O18: Forecast 2036/37 | Z18: Electrical Infrastructure | AA18: Generation | AB18: Road Furniture | AC18: Growth | AD18: All people in South Africa are and feel safe
A19: ='Template names'!C26 -> Next yr of long term forecast | B19: ="Forecast "&B1+11&"/"&RIGHT(B1,2)+12 -> Forecast 2024/25 | C19: Forecast 2025/26 | D19: Forecast 2026/27 | E19: Forecast 2027/28 | F19: Forecast 2028/29 | G19: Forecast 2029/30 | H19: Forecast 2030/31 | I19: Forecast 2031/32 | J19: ="Forecast "&J1+11&"/"&RIGHT(J1,2)+12 -> Forecast 2032/33 | K19: Forecast 2033/34 | L19: Forecast 2034/35 | M19: Forecast 2035/36 | N19: Forecast 2036/37 | O19: Forecast 2037/38 | Z19: Water Supply Infrastructure | AA19: Transmission & Reticulation | AB19: Capital Spares | AC19: Governance | AD19: Decent employment through inclusive growth
A20: ='Template names'!C27 -> Next yr of long term forecast | B20: ="Forecast "&B1+12&"/"&RIGHT(B1,2)+13 -> Forecast 2025/26 | C20: Forecast 2026/27 | D20: Forecast 2027/28 | E20: Forecast 2028/29 | F20: Forecast 2029/30 | G20: Forecast 2030/31 | H20: Forecast 2031/32 | I20: Forecast 2032/33 | J20: ="Forecast "&J1+12&"/"&RIGHT(J1,2)+13 -> Forecast 2033/34 | K20: Forecast 2034/35 | L20: Forecast 2035/36 | M20: Forecast 2036/37 | N20: Forecast 2037/38 | O20: Forecast 2038/39 | Z20: Sanitation Infrastructure | AA20: Street Lighting | AB20: Drainage Collection | AD20: A skilled and capable workforce to support an inclusive growth path
A21: ='Template names'!C28 -> Next yr of long term forecast | B21: ="Forecast "&B1+13&"/"&RIGHT(B1,2)+14 -> Forecast 2026/27 | C21: Forecast 2027/28 | D21: Forecast 2028/29 | E21: Forecast 2029/30 | F21: Forecast 2030/31 | G21: Forecast 2031/32 | H21: Forecast 2032/33 | I21: Forecast 2033/34 | J21: ="Forecast "&J1+13&"/"&RIGHT(J1,2)+14 -> Forecast 2034/35 | K21: Forecast 2035/36 | L21: Forecast 2036/37 | M21: Forecast 2037/38 | N21: Forecast 2038/39 | O21: Forecast 2039/40 | Z21: Solid Waste Infrastructure | AA21: Dams & Reservoirs | AB21: Storm water Conveyance | AD21: An efficient, competitive and responsive economic infrastructure network
A22: ='Template names'!C29 -> Next yr of long term forecast | B22: ="Forecast "&B1+14&"/"&RIGHT(B1,2)+15 -> Forecast 2027/28 | C22: Forecast 2028/29 | D22: Forecast 2029/30 | E22: Forecast 2030/31 | F22: Forecast 2031/32 | G22: Forecast 2032/33 | H22: Forecast 2033/34 | I22: Forecast 2034/35 | J22: ="Forecast "&J1+14&"/"&RIGHT(J1,2)+15 -> Forecast 2035/36 | K22: Forecast 2036/37 | L22: Forecast 2037/38 | M22: Forecast 2038/39 | N22: Forecast 2039/40 | O22: Forecast 2040/41 | Z22: Rail Infrastructure | AA22: Water purification | AB22: Attenuation | AD22: Vibrant, equitable, sustainable rural communities contributing towards food security for all
A23: Adjustments Budget | B23: ="Annual target " & B1&"/"&RIGHT(B1,2)+1 -> Annual target 2013/14 | C23: Annual target 2014/15 | D23: Annual target 2015/16 | E23: Annual target 2016/17 | F23: Annual target 2017/18 | G23: Annual target 2018/19 | H23: Annual target 2019/20 | I23: Annual target 2020/21 | J23: ="Annual target " & J1&"/"&RIGHT(J1,2)+1 -> Annual target 2021/22 | K23: Annual target 2022/23 | L23: Annual target 2023/24 | M23: Annual target 2024/25 | N23: Annual target 2025/26 | O23: Annual target 2026/27 | Z23: Coastal Infrastructure | AA23: Reticulation | AB23: Power Plants | AD23: Sustainable human settlements and improved quality of household life
A24: =A23 -> Adjustments Budget | B24: ="Revised target "& B1&"/"&RIGHT(B1,2)+1 -> Revised target 2013/14 | C24: Revised target 2014/15 | D24: Revised target 2015/16 | E24: Revised target 2016/17 | F24: Revised target 2017/18 | G24: Revised target 2018/19 | H24: Revised target 2019/20 | I24: Revised target 2020/21 | J24: ="Revised target "& J1&"/"&RIGHT(J1,2)+1 -> Revised target 2021/22 | K24: Revised target 2022/23 | L24: Revised target 2023/24 | M24: Revised target 2024/25 | N24: Revised target 2025/26 | O24: Revised target 2026/27 | Z24: Information and Communication Infrastructure | AA24: Sewerage purification | AB24: HV Substations | AD24: Responsive, accountable, effective and efficient local government
A25: NOTE: This sheet should not be directly amended - select headings from sheet 'S' | Z25: Community Facilities | AA25: Waste Management | AB25: HV Switching Station | AD25: Protect and enhance our environmental assets and natural resources
Z26: Sport and Recreation Facilities | AA26: Transportation | AB26: HV Transmission Conductors | AD26: Create a better South Africa and contribute to a better Africa and a better world
A27: Name link | B27: 85 | Z27: Heritage assets | AA27: Gas | AB27: MV Substations | AD27: An efficient, effective and development-oriented public service
A28: Name of Muni | B28: =INDEX(B29:B307,B27,1) -> KZN225 Msunduzi | Z28: Revenue Generating | AA28: Parks & gardens | AB28: MV Switching Stations | AD28: A comprehensive, responsive and sustainable social protection system
B29: Choose name from list | C29: Set name on 'Instructions' sheet | Z29: Non-revenue Generating | AA29: Sportsfields & stadia | AB29: MV Networks | AD29: A diverse, socially cohesive society with a common national identity
B30: BUF Buffalo City | C30: EC EASTERN CAPE | Z30: Operational Buildings | AA30: Swimming pools | AB30: LV Networks
B31: NMA Nelson Mandela Bay | C31: EC EASTERN CAPE | Z31: Housing | AA31: Community halls | AB31: Capital Spares
B32: EC101 Dr Beyers Naude | C32: EC EASTERN CAPE | Z32: Biological or Cultivated Assets | AA32: Libraries | AB32: Dams and Weirs
B33: EC102 Blue Crane Route | C33: EC EASTERN CAPE | Z33: Servitudes | AA33: Recreational facilities | AB33: Boreholes
B34: EC104 Makana | C34: EC EASTERN CAPE | Z34: Licences and Rights | AA34: Fire, safety & emergency | AB34: Reservoirs
B35: EC105 Ndlambe | C35: EC EASTERN CAPE | Z35: Computer Equipment | AA35: Security and policing | AB35: Pump Stations
B36: EC106 Sundays River Valley | C36: EC EASTERN CAPE | Z36: Furniture and Office Equipment | AA36: Buses | AB36: Water Treatment Works
B37: EC108 Kouga | C37: EC EASTERN CAPE | Z37: Machinery and Equipment | AA37: Clinics | AB37: Bulk Mains
B38: EC109 Kou-Kamma | C38: EC EASTERN CAPE | Z38: Transport Assets | AA38: Museums & Art Galleries | AB38: Distribution
B39: DC10 Sarah Baartman | C39: EC EASTERN CAPE | Z39: Land | AA39: Cemeteries | AB39: Distribution Points
B40: EC121 Mbhashe | C40: EC EASTERN CAPE | Z40: Zoo's, Marine and Non-biological Animals | AA40: Social rental housing | AB40: PRV Stations
B41: EC122 Mnquma | C41: EC EASTERN CAPE | AA41: Buildings | AB41: Capital Spares
B42: EC123 Great Kei | C42: EC EASTERN CAPE | AA42: Housing development | AB42: Pump Station
B43: EC124 Amahlathi | C43: EC EASTERN CAPE | AA43: General vehicles | AB43: Reticulation
B44: EC126 Ngqushwa | C44: EC EASTERN CAPE | AA44: Specialised vehicles - Refuse | AB44: Waste Water Treatment Works
B45: EC129 Raymond Mhlaba | C45: EC EASTERN CAPE | AA45: Specialised vehicles - Fire | AB45: Outfall Sewers
B46: DC12 Amathole | C46: EC EASTERN CAPE | AA46: Specialised vehicles - Conservancy | AB46: Toilet Facilities
B47: EC131 Inxuba Yethemba | C47: EC EASTERN CAPE | AA47: Specialised vehicles - Ambulances | AB47: Capital Spares
B48: EC135 Intsika Yethu | C48: EC EASTERN CAPE | AA48: Plant & equipment | AB48: Landfill Sites
B49: EC136 Emalahleni (Ec) | C49: EC EASTERN CAPE | AA49: Computers - hardware/equipment | AB49: Waste Transfer Stations
B50: EC137 Engcobo | C50: EC EASTERN CAPE | AA50: Furniture and other office equipment | AB50: Waste Processing Facilities
B51: EC138 Sakhisizwe | C51: EC EASTERN CAPE | AA51: Abattoirs | AB51: Waste Drop-off Points
B52: EC139 Enoch Mgijima | C52: EC EASTERN CAPE | AA52: Markets | AB52: Waste Separation Facilities
B53: DC13 Chris Hani | C53: EC EASTERN CAPE | AA53: Civic Land and Buildings | AB53: Electricity Generation Facilities
B54: EC141 Elundini | C54: EC EASTERN CAPE | AA54: Other Buildings | AB54: Capital Spares
B55: EC142 Senqu | C55: EC EASTERN CAPE | AA55: Other Land | AB55: Rail Lines
B56: EC145 Walter Sisulu | C56: EC EASTERN CAPE | AA56: Surplus Assets - (Investment or Inventory) | AB56: Rail Structures
B57: DC14 Joe Gqabi | C57: EC EASTERN CAPE | AA57: Computers - software & programming | AB57: Rail Furniture
B58: EC153 Ngquza Hills | C58: EC EASTERN CAPE | AA58: Other | AB58: Drainage Collection
B59: EC154 Port St Johns | C59: EC EASTERN CAPE | AB59: Storm water Conveyance
B60: EC155 Nyandeni | C60: EC EASTERN CAPE | Z60: SA16 - Investments | AB60: Attenuation
B61: EC156 Mhlontlo | C61: EC EASTERN CAPE | Z61: Security | AA61: Interest rate | AB61: MV Substations
B62: EC157 King Sabata Dalindyebo | C62: EC EASTERN CAPE | Z62: Yes | AA62: Fixed | AB62: LV Networks
B63: DC15 O .R. Tambo | C63: EC EASTERN CAPE | Z63: No | AA63: Variable | AB63: Capital Spares
B64: EC441 Matatiele | C64: EC EASTERN CAPE | AB64: Sand Pumps
B65: EC442 Umzimvubu | C65: EC EASTERN CAPE | AB65: Piers
B66: EC443 Mbizana | C66: EC EASTERN CAPE | Z66: SA36, SA37 - Capital projects | AB66: Revetments
B67: EC444 Ntabankulu | C67: EC EASTERN CAPE | Z67: Yes | AB67: Promenades
B68: DC44 Alfred Nzo | C68: EC EASTERN CAPE | Z68: No | AB68: Capital Spares
B69: MAN Mangaung | C69: FS FREE STATE | AB69: Data Centres
B70: FS161 Letsemeng | C70: FS FREE STATE | AB70: Core Layers
B71: FS162 Kopanong | C71: FS FREE STATE | AB71: Distribution Layers
B72: FS163 Mohokare | C72: FS FREE STATE | AB72: Capital Spares
B73: DC16 Xhariep | C73: FS FREE STATE | AB73: Halls
B74: FS181 Masilonyana | C74: FS FREE STATE | AB74: Centres
B75: FS182 Tokologo | C75: FS FREE STATE | AB75: Crèches
B76: FS183 Tswelopele | C76: FS FREE STATE | AB76: Clinics/Care Centres
B77: FS184 Matjhabeng | C77: FS FREE STATE | AB77: Fire/Ambulance Stations
B78: FS185 Nala | C78: FS FREE STATE | AB78: Testing Stations
B79: DC18 Lejweleputswa | C79: FS FREE STATE | AB79: Museums
B80: FS191 Setsoto | C80: FS FREE STATE | AB80: Galleries
B81: FS192 Dihlabeng | C81: FS FREE STATE | AB81: Theatres
B82: FS193 Nketoana | C82: FS FREE STATE | AB82: Libraries
B83: FS194 Maluti-a-Phofung | C83: FS FREE STATE | AB83: Cemeteries/Crematoria
B84: FS195 Phumelela | C84: FS FREE STATE | AB84: Police
B85: FS196 Mantsopa | C85: FS FREE STATE | AB85: Purls
B86: DC19 Thabo Mofutsanyana | C86: FS FREE STATE | AB86: Public Open Space
B87: FS201 Moqhaka | C87: FS FREE STATE | AB87: Nature Reserves
B88: FS203 Ngwathe | C88: FS FREE STATE | AB88: Public Ablution Facilities
B89: FS204 Metsimaholo | C89: FS FREE STATE | AB89: Markets
B90: FS205 Mafube | C90: FS FREE STATE | AB90: Stalls
B91: DC20 Fezile Dabi | C91: FS FREE STATE | AB91: Abattoirs
B92: EKU City of Ekurhuleni | C92: GT GAUTENG | AB92: Airports
B93: JHB City Of Johannesburg | C93: GT GAUTENG | AB93: Taxi Ranks/Bus Terminals
B94: TSH City Of Tshwane | C94: GT GAUTENG | AB94: Capital Spares
B95: GT421 Emfuleni | C95: GT GAUTENG | AB95: Indoor Facilities
B96: GT422 Midvaal | C96: GT GAUTENG | AB96: Outdoor Facilities
B97: GT423 Lesedi | C97: GT GAUTENG | AB97: Capital Spares
B98: DC42 Sedibeng | C98: GT GAUTENG | AB98: Monuments
B99: GT481 Mogale City | C99: GT GAUTENG | AB99: Historic Buildings
B100: GT484 Merafong City | C100: GT GAUTENG | AB100: Works of Art
B101: GT485 Rand West City | C101: GT GAUTENG | AB101: Conservation Areas
B102: DC48 West Rand | C102: GT GAUTENG | AB102: Other Heritage
B103: ETH eThekwini | C103: KZN KWAZULU-NATAL | AB103: Improved Property
B104: KZN212 Umdoni | C104: KZN KWAZULU-NATAL | AB104: Unimproved Property
B105: KZN213 Umzumbe | C105: KZN KWAZULU-NATAL | AB105: Municipal Offices
B106: KZN214 uMuziwabantu | C106: KZN KWAZULU-NATAL | AB106: Pay/Enquiry Points
B107: KZN216 Ray Nkonyeni | C107: KZN KWAZULU-NATAL | AB107: Building Plan Offices
B108: DC21 Ugu | C108: KZN KWAZULU-NATAL | AB108: Workshops
B109: KZN221 uMshwathi | C109: KZN KWAZULU-NATAL | AB109: Yards
B110: KZN222 uMngeni | C110: KZN KWAZULU-NATAL | AB110: Stores
B111: KZN223 Mpofana | C111: KZN KWAZULU-NATAL | AB111: Laboratories
B112: KZN224 Impendle | C112: KZN KWAZULU-NATAL | AB112: Training Centres
B113: KZN225 Msunduzi | C113: KZN KWAZULU-NATAL | AB113: Manufacturing Plant
B114: KZN226 Mkhambathini | C114: KZN KWAZULU-NATAL | AB114: Depots
B115: KZN227 Richmond | C115: KZN KWAZULU-NATAL | AB115: Capital Spares
B116: DC22 uMgungundlovu | C116: KZN KWAZULU-NATAL | AB116: Staff Housing
B117: KZN235 Okhahlamba | C117: KZN KWAZULU-NATAL | AB117: Social Housing
B118: KZN237 Inkosi Langalibalele | C118: KZN KWAZULU-NATAL | AB118: Capital Spares
B119: KZN238 Alfred Duma | C119: KZN KWAZULU-NATAL | AB119: Water Rights
B120: DC23 Uthukela | C120: KZN KWAZULU-NATAL | AB120: Effluent Licenses
B121: KZN241 Endumeni | C121: KZN KWAZULU-NATAL | AB121: Solid Waste Licenses
B122: KZN242 Nquthu | C122: KZN KWAZULU-NATAL | AB122: Computer Software and Applications
B123: KZN244 Msinga | C123: KZN KWAZULU-NATAL | AB123: Load Settlement Software Applications
B124: KZN245 Umvoti | C124: KZN KWAZULU-NATAL | AB124: Unspecified
B125: DC24 Umzinyathi | C125: KZN KWAZULU-NATAL
B126: KZN252 Newcastle | C126: KZN KWAZULU-NATAL
B127: KZN253 Emadlangeni | C127: KZN KWAZULU-NATAL
B128: KZN254 Dannhauser | C128: KZN KWAZULU-NATAL
B129: DC25 Amajuba | C129: KZN KWAZULU-NATAL
B130: KZN261 eDumbe | C130: KZN KWAZULU-NATAL
B131: KZN262 uPhongolo | C131: KZN KWAZULU-NATAL
B132: KZN263 Abaqulusi | C132: KZN KWAZULU-NATAL
B133: KZN265 Nongoma | C133: KZN KWAZULU-NATAL
B134: KZN266 Ulundi | C134: KZN KWAZULU-NATAL
B135: DC26 Zululand | C135: KZN KWAZULU-NATAL
B136: KZN271 Umhlabuyalingana | C136: KZN KWAZULU-NATAL
B137: KZN272 Jozini | C137: KZN KWAZULU-NATAL
B138: KZN275 Mtubatuba | C138: KZN KWAZULU-NATAL
B139: KZN276 Hlabisa Big Five | C139: KZN KWAZULU-NATAL
B140: DC27 Umkhanyakude | C140: KZN KWAZULU-NATAL
B141: KZN281 Mfolozi | C141: KZN KWAZULU-NATAL
B142: KZN282 uMhlathuze | C142: KZN KWAZULU-NATAL
B143: KZN284 uMlalazi | C143: KZN KWAZULU-NATAL
B144: KZN285 Mthonjaneni | C144: KZN KWAZULU-NATAL
B145: KZN286 Nkandla | C145: KZN KWAZULU-NATAL
B146: DC28 King Cetshwayo | C146: KZN KWAZULU-NATAL
B147: KZN291 Mandeni | C147: KZN KWAZULU-NATAL
B148: KZN292 KwaDukuza | C148: KZN KWAZULU-NATAL
B149: KZN293 Ndwedwe | C149: KZN KWAZULU-NATAL
B150: KZN294 Maphumulo | C150: KZN KWAZULU-NATAL
B151: DC29 iLembe | C151: KZN KWAZULU-NATAL
B152: KZN433 Greater Kokstad | C152: KZN KWAZULU-NATAL
B153: KZN434 Ubuhlebezwe | C153: KZN KWAZULU-NATAL
B154: KZN435 Umzimkhulu | C154: KZN KWAZULU-NATAL
B155: KZN436 Dr Nkosazana Dlamini Zuma | C155: KZN KWAZULU-NATAL
B156: DC43 Harry Gwala | C156: KZN KWAZULU-NATAL
B157: LIM331 Greater Giyani | C157: LIM LIMPOPO
B158: LIM332 Greater Letaba | C158: LIM LIMPOPO
B159: LIM333 Greater Tzaneen | C159: LIM LIMPOPO
B160: LIM334 Ba-Phalaborwa | C160: LIM LIMPOPO
B161: LIM335 Maruleng | C161: LIM LIMPOPO
B162: DC33 Mopani | C162: LIM LIMPOPO
B163: LIM341 Musina | C163: LIM LIMPOPO
B164: LIM343 Thulamela | C164: LIM LIMPOPO
B165: LIM344 Makhado | C165: LIM LIMPOPO
B166: LIM345 Collins Chabane | C166: LIM LIMPOPO
B167: DC34 Vhembe | C167: LIM LIMPOPO
B168: LIM351 Blouberg | C168: LIM LIMPOPO
B169: LIM353 Molemole | C169: LIM LIMPOPO
B170: LIM354 Polokwane | C170: LIM LIMPOPO
B171: LIM355 Lepelle-Nkumpi | C171: LIM LIMPOPO
B172: DC35 Capricorn | C172: LIM LIMPOPO
B173: LIM361 Thabazimbi | C173: LIM LIMPOPO
B174: LIM362 Lephalale | C174: LIM LIMPOPO
B175: LIM366 Bela Bela | C175: LIM LIMPOPO
B176: LIM367 Mogalakwena | C176: LIM LIMPOPO
B177: LIM368 Modimolle-Mookgopong | C177: LIM LIMPOPO
B178: DC36 Waterberg | C178: LIM LIMPOPO
B179: LIM471 Ephraim Mogale | C179: LIM LIMPOPO
B180: LIM472 Elias Motsoaledi | C180: LIM LIMPOPO
B181: LIM473 Makhuduthamaga | C181: LIM LIMPOPO
B182: LIM476 Tubatse Fetakgomo | C182: LIM LIMPOPO
B183: DC47 Sekhukhune | C183: LIM LIMPOPO
B184: MP301 Albert Luthuli | C184: MP MPUMALANGA
B185: MP302 Msukaligwa | C185: MP MPUMALANGA
B186: MP303 Mkhondo | C186: MP MPUMALANGA
B187: MP304 Pixley Ka Seme (MP) | C187: MP MPUMALANGA
B188: MP305 Lekwa | C188: MP MPUMALANGA
B189: MP306 Dipaleseng | C189: MP MPUMALANGA
B190: MP307 Govan Mbeki | C190: MP MPUMALANGA
B191: DC30 Gert Sibande | C191: MP MPUMALANGA
B192: MP311 Victor Khanye | C192: MP MPUMALANGA
B193: MP312 Emalahleni (Mp) | C193: MP MPUMALANGA
B194: MP313 Steve Tshwete | C194: MP MPUMALANGA
B195: MP314 Emakhazeni | C195: MP MPUMALANGA
B196: MP315 Thembisile Hani | C196: MP MPUMALANGA
B197: MP316 Dr J.S. Moroka | C197: MP MPUMALANGA
B198: DC31 Nkangala | C198: MP MPUMALANGA
B199: MP321 Thaba Chweu | C199: MP MPUMALANGA
B200: MP324 Nkomazi | C200: MP MPUMALANGA
... 87 more rows

Sheet Org structure
A1: Organisational Structure Votes | C1: Organisational Structure Sub-Votes | E1: Display Sub-Votes
A2: =B2&" - "&C2 -> Vote 1 - City Manager | B2: Vote 1 | C2: City Manager
A3: =B13&" - "& C13 -> Vote 2 - City Finance | B3: 1.1 | C3: Internal Audit and Compliance | D3: =CONCATENATE(B3, " - ", C3) -> 1,1 - Internal Audit and Compliance | E3: 1.1 - Internal Audit and Compliance
A4: =B24&" - "&C24 -> Vote 3 - Community Services and Social Equity | B4: 1.2 | C4: Office of the City Manager | D4: 1,2 - Office of the City Manager | E4: 1.2 - Office of the City Manager
A5: =B35&" - "&C35 -> Vote 4 - Corporate Services | B5: 1.3 | C5: Political Support | D5: 1,3 - Political Support | E5: 1.3 - Political Support
A6: =B46&" - "&C46 -> Vote 5 - Infrastructure Services | B6: 1.4 | C6: Strategic Planning | D6: 1,4 - Strategic Planning | E6: 1.4 - Strategic Planning
A7: =B57&" - "&C57 -> Vote 6 - Sustainable Development and City Enterprises | B7: 1.5 | C7: [Name of sub-vote] | D7: 1,5 - [Name of sub-vote]
A8: =B68&" - "&C68 -> Vote 7 - [NAME OF VOTE 7] | B8: 1.6 | C8: [Name of sub-vote] | D8: 1,6 - [Name of sub-vote]
A9: =B79&" - "&C79 -> Vote 8 - [NAME OF VOTE 8] | B9: 1.7 | C9: [Name of sub-vote] | D9: 1,7 - [Name of sub-vote]
A10: =B90&" - "&C90 -> Vote 9 - [NAME OF VOTE 9] | B10: 1.8 | C10: [Name of sub-vote] | D10: 1,8 - [Name of sub-vote]
A11: =B101&" - "&C101 -> Vote 10 - [NAME OF VOTE 10] | B11: 1.9 | C11: [Name of sub-vote] | D11: 1,9 - [Name of sub-vote]
A12: =B112&" - "&C112 -> Vote 11 - [NAME OF VOTE 11] | B12: 1.10 | C12: [Name of sub-vote] | D12: 1.10 - [Name of sub-vote]
A13: =B123&" - "&C123 -> Vote 12 - [NAME OF VOTE 12] | B13: Vote 2 | C13: City Finance
A14: =B134&" - "&C134 -> Vote 13 - [NAME OF VOTE 13] | B14: 2.1 | C14: Asset Management | D14: =CONCATENATE(B14, " - ", C14) -> 2,1 - Asset Management | E14: 2.1 - Asset Management
A15: =B145&" - "&C145 -> Vote 14 - [NAME OF VOTE 14] | B15: 2.2 | C15: Budget and Treasury Management | D15: 2,2 - Budget and Treasury Management | E15: 2.2 - Budget and Treasury Management
A16: =B156&" - "&C156 -> Vote 15 - [NAME OF VOTE 15] | B16: 2.3 | C16: Expenditure Management | D16: 2,3 - Expenditure Management | E16: 2.3 - Expenditure Management
B17: 2.4 | C17: Revenue Management | D17: 2,4 - Revenue Management | E17: 2.4 - Revenue Management
B18: 2.5 | C18: Supply Chain Management | D18: 2,5 - Supply Chain Management | E18: 2.5 - Supply Chain Management
B19: 2.6 | C19: [Name of sub-vote] | D19: 2,6 - [Name of sub-vote]
B20: 2.7 | C20: [Name of sub-vote] | D20: 2,7 - [Name of sub-vote]
B21: 2.8 | C21: [Name of sub-vote] | D21: 2,8 - [Name of sub-vote]
B22: 2.9 | C22: [Name of sub-vote] | D22: 2,9 - [Name of sub-vote]
B23: 2.10 | C23: [Name of sub-vote] | D23: 2.10 - [Name of sub-vote]
B24: Vote 3 | C24: Community Services and Social Equity
B25: 3.1 | C25: Area Based Management | D25: =CONCATENATE(B25, " - ", C25) -> 3,1 - Area Based Management | E25: 3.1 - Area Based Management
B26: 3.2 | C26: Public Safety, Emergency Services and Enforcement | D26: 3,2 - Public Safety, Emergency Services and Enforcement | E26: 3.2 - Public Safety, Emergency Services and Enforcement
B27: 3.3 | C27: Recreation and Facilities | D27: 3,3 - Recreation and Facilities | E27: 3.3 - Recreation and Facilities
B28: 3.4 | C28: Waste Management | D28: 3,4 - Waste Management | E28: 3.4 - Waste Management
B29: 3.5 | C29: [Name of sub-vote] | D29: 3,5 - [Name of sub-vote]
B30: 3.6 | C30: [Name of sub-vote] | D30: 3,6 - [Name of sub-vote]
B31: 3.7 | C31: [Name of sub-vote] | D31: 3,7 - [Name of sub-vote]
B32: 3.8 | C32: [Name of sub-vote] | D32: 3,8 - [Name of sub-vote]
B33: 3.9 | C33: [Name of sub-vote] | D33: 3,9 - [Name of sub-vote]
B34: 3.10 | C34: [Name of sub-vote] | D34: 3.10 - [Name of sub-vote]
B35: Vote 4 | C35: Corporate Services
B36: 4.1 | C36: Human Resources Management | D36: =CONCATENATE(B36, " - ", C36) -> 4,1 - Human Resources Management | E36: 4.1 - Human Resources Management
B37: 4.2 | C37: Information Technology | D37: 4,2 - Information Technology | E37: 4.2 - Information Technology
B38: 4.3 | C38: Legal Services | D38: 4,3 - Legal Services | E38: 4.3 - Legal Services
B39: 4.4 | C39: Secretariat and Auxiliary Services | D39: 4,4 - Secretariat and Auxiliary Services | E39: 4.4 - Secretariat and Auxiliary Services
B40: 4.5 | C40: General Manager: Corporate Service | D40: 4,5 - General Manager: Corporate Service | E40: 4.5 - General Manager: Corporate Service
B41: 4.6 | C41: [Name of sub-vote] | D41: 4,6 - [Name of sub-vote]
B42: 4.7 | C42: [Name of sub-vote] | D42: 4,7 - [Name of sub-vote]
B43: 4.8 | C43: [Name of sub-vote] | D43: 4,8 - [Name of sub-vote]
B44: 4.9 | C44: [Name of sub-vote] | D44: 4,9 - [Name of sub-vote]
B45: 4.10 | C45: [Name of sub-vote] | D45: 4.10 - [Name of sub-vote]
B46: Vote 5 | C46: Infrastructure Services
B47: 5.1 | C47: Electricity | D47: =CONCATENATE(B47, " - ", C47) -> 5,1 - Electricity | E47: 5.1 - Electricity
B48: 5.2 | C48: Project Management Office | D48: 5,2 - Project Management Office | E48: 5.2 - Project Management Office
B49: 5.3 | C49: Roads and Transportation | D49: 5,3 - Roads and Transportation | E49: 5.3 - Roads and Transportation
B50: 5.4 | C50: Water and Sanitation | D50: 5,4 - Water and Sanitation | E50: 5.4 - Water and Sanitation
B51: 5.5 | C51: General Manager: Infrastructure | D51: 5,5 - General Manager: Infrastructure | E51: General Manager: Infrastructure
B52: 5.6 | C52: [Name of sub-vote] | D52: 5,6 - [Name of sub-vote]
B53: 5.7 | C53: [Name of sub-vote] | D53: 5,7 - [Name of sub-vote]
B54: 5.8 | C54: [Name of sub-vote] | D54: 5,8 - [Name of sub-vote]
B55: 5.9 | C55: [Name of sub-vote] | D55: 5,9 - [Name of sub-vote]
B56: 5.10 | C56: [Name of sub-vote] | D56: 5.10 - [Name of sub-vote]
B57: Vote 6 | C57: Sustainable Development and City Enterprises
B58: 6.1 | C58: City Entities | D58: =CONCATENATE(B58, " - ", C58) -> 6,1 - City Entities | E58: 6.1 - City Entities
B59: 6.2 | C59: Development Services | D59: 6,2 - Development Services | E59: 6.2 - Development Services
B60: 6.3 | C60: Human Settlement Development | D60: 6,3 - Human Settlement Development | E60: 6.3 - Human Settlement Development
B61: 6.4 | C61: Town Planning | D61: 6,4 - Town Planning | E61: 6.4 - Town Planning
B62: 6.5 | C62: General Manager: Sustainable Development and City Enterprises | D62: 6,5 - General Manager: Sustainable Development and City Enterprises | E62: 6.5 - General Manager: Sustainable Development and City Enterprises
B63: 6.6 | C63: [Name of sub-vote] | D63: 6,6 - [Name of sub-vote]
B64: 6.7 | C64: [Name of sub-vote] | D64: 6,7 - [Name of sub-vote]
B65: 6.8 | C65: [Name of sub-vote] | D65: 6,8 - [Name of sub-vote]
B66: 6.9 | C66: [Name of sub-vote] | D66: 6,9 - [Name of sub-vote]
B67: 6.10 | C67: [Name of sub-vote] | D67: 6.10 - [Name of sub-vote]
B68: Vote 7 | C68: [NAME OF VOTE 7]
B69: 7.1 | C69: [Name of sub-vote] | D69: =CONCATENATE(B69, " - ", C69) -> 7,1 - [Name of sub-vote] | E69: 7.1 - [Name of sub-vote]
B70: 7.2 | C70: [Name of sub-vote] | D70: 7,2 - [Name of sub-vote]
B71: 7.3 | C71: [Name of sub-vote] | D71: 7,3 - [Name of sub-vote]
B72: 7.4 | C72: [Name of sub-vote] | D72: 7,4 - [Name of sub-vote]
B73: 7.5 | C73: [Name of sub-vote] | D73: 7,5 - [Name of sub-vote]
B74: 7.6 | C74: [Name of sub-vote] | D74: 7,6 - [Name of sub-vote]
B75: 7.7 | C75: [Name of sub-vote] | D75: 7,7 - [Name of sub-vote]
B76: 7.8 | C76: [Name of sub-vote] | D76: 7,8 - [Name of sub-vote]
B77: 7.9 | C77: [Name of sub-vote] | D77: 7,9 - [Name of sub-vote]
B78: 7.10 | C78: [Name of sub-vote] | D78: 7.10 - [Name of sub-vote]
B79: Vote 8 | C79: [NAME OF VOTE 8]
B80: 8.1 | C80: [Name of sub-vote] | D80: =CONCATENATE(B80, " - ", C80) -> 8,1 - [Name of sub-vote] | E80: 8.1 - [Name of sub-vote]
B81: 8.2 | C81: [Name of sub-vote] | D81: 8,2 - [Name of sub-vote]
B82: 8.3 | C82: [Name of sub-vote] | D82: 8,3 - [Name of sub-vote]
B83: 8.4 | C83: [Name of sub-vote] | D83: 8,4 - [Name of sub-vote]
B84: 8.5 | C84: [Name of sub-vote] | D84: 8,5 - [Name of sub-vote]
B85: 8.6 | C85: [Name of sub-vote] | D85: 8,6 - [Name of sub-vote]
B86: 8.7 | C86: [Name of sub-vote] | D86: 8,7 - [Name of sub-vote]
B87: 8.8 | C87: [Name of sub-vote] | D87: 8,8 - [Name of sub-vote]
B88: 8.9 | C88: [Name of sub-vote] | D88: 8,9 - [Name of sub-vote]
B89: 8.10 | C89: [Name of sub-vote] | D89: 8.10 - [Name of sub-vote]
B90: Vote 9 | C90: [NAME OF VOTE 9]
B91: 9.1 | C91: [Name of sub-vote] | D91: =CONCATENATE(B91, " - ", C91) -> 9,1 - [Name of sub-vote] | E91: 9.1 - [Name of sub-vote]
B92: 9.2 | C92: [Name of sub-vote] | D92: 9,2 - [Name of sub-vote]
B93: 9.3 | C93: [Name of sub-vote] | D93: 9,3 - [Name of sub-vote]
B94: 9.4 | C94: [Name of sub-vote] | D94: 9,4 - [Name of sub-vote]
B95: 9.5 | C95: [Name of sub-vote] | D95: 9,5 - [Name of sub-vote]
B96: 9.6 | C96: [Name of sub-vote] | D96: 9,6 - [Name of sub-vote]
B97: 9.7 | C97: [Name of sub-vote] | D97: 9,7 - [Name of sub-vote]
B98: 9.8 | C98: [Name of sub-vote] | D98: 9,8 - [Name of sub-vote]
B99: 9.9 | C99: [Name of sub-vote] | D99: 9,9 - [Name of sub-vote]
B100: 9.10 | C100: [Name of sub-vote] | D100: 9.10 - [Name of sub-vote]
B101: Vote 10 | C101: [NAME OF VOTE 10]
B102: 10.1 | C102: [Name of sub-vote] | D102: =CONCATENATE(B102, " - ", C102) -> 10,1 - [Name of sub-vote] | E102: 10.1 - [Name of sub-vote]
B103: 10.2 | C103: [Name of sub-vote] | D103: 10,2 - [Name of sub-vote]
B104: 10.3 | C104: [Name of sub-vote] | D104: 10,3 - [Name of sub-vote]
B105: 10.4 | C105: [Name of sub-vote] | D105: 10,4 - [Name of sub-vote]
B106: 10.5 | C106: [Name of sub-vote] | D106: 10,5 - [Name of sub-vote]
B107: 10.6 | C107: [Name of sub-vote] | D107: 10,6 - [Name of sub-vote]
B108: 10.7 | C108: [Name of sub-vote] | D108: 10,7 - [Name of sub-vote]
B109: 10.8 | C109: [Name of sub-vote] | D109: 10,8 - [Name of sub-vote]
B110: 10.9 | C110: [Name of sub-vote] | D110: 10,9 - [Name of sub-vote]
B111: 10.10 | C111: [Name of sub-vote] | D111: 10.10 - [Name of sub-vote]
B112: Vote 11 | C112: [NAME OF VOTE 11]
B113: 11.1 | C113: [Name of sub-vote] | D113: =CONCATENATE(B113, " - ", C113) -> 11,1 - [Name of sub-vote] | E113: 11.1 - [Name of sub-vote]
B114: 11.2 | C114: [Name of sub-vote] | D114: 11,2 - [Name of sub-vote]
B115: 11.3 | C115: [Name of sub-vote] | D115: 11,3 - [Name of sub-vote]
B116: 11.4 | C116: [Name of sub-vote] | D116: 11,4 - [Name of sub-vote]
B117: 11.5 | C117: [Name of sub-vote] | D117: 11,5 - [Name of sub-vote]
B118: 11.6 | C118: [Name of sub-vote] | D118: 11,6 - [Name of sub-vote]
B119: 11.7 | C119: [Name of sub-vote] | D119: 11,7 - [Name of sub-vote]
B120: 11.8 | C120: [Name of sub-vote] | D120: 11,8 - [Name of sub-vote]
B121: 11.9 | C121: [Name of sub-vote] | D121: 11,9 - [Name of sub-vote]
B122: 11.10 | C122: [Name of sub-vote] | D122: 11.10 - [Name of sub-vote]
B123: Vote 12 | C123: [NAME OF VOTE 12]
B124: 12.1 | C124: [Name of sub-vote] | D124: =CONCATENATE(B124, " - ", C124) -> 12,1 - [Name of sub-vote] | E124: 12.1 - [Name of sub-vote]
B125: 12.2 | C125: [Name of sub-vote] | D125: 12,2 - [Name of sub-vote]
B126: 12.3 | C126: [Name of sub-vote] | D126: 12,3 - [Name of sub-vote]
B127: 12.4 | C127: [Name of sub-vote] | D127: 12,4 - [Name of sub-vote]
B128: 12.5 | C128: [Name of sub-vote] | D128: 12,5 - [Name of sub-vote]
B129: 12.6 | C129: [Name of sub-vote] | D129: 12,6 - [Name of sub-vote]
B130: 12.7 | C130: [Name of sub-vote] | D130: 12,7 - [Name of sub-vote]
B131: 12.8 | C131: [Name of sub-vote] | D131: 12,8 - [Name of sub-vote]
B132: 12.9 | C132: [Name of sub-vote] | D132: 12,9 - [Name of sub-vote]
B133: 12.10 | C133: [Name of sub-vote] | D133: 12.10 - [Name of sub-vote]
B134: Vote 13 | C134: [NAME OF VOTE 13]
B135: 13.1 | C135: [Name of sub-vote] | D135: =CONCATENATE(B135, " - ", C135) -> 13,1 - [Name of sub-vote] | E135: 13.1 - [Name of sub-vote]
B136: 13.2 | C136: [Name of sub-vote] | D136: 13,2 - [Name of sub-vote]
B137: 13.3 | C137: [Name of sub-vote] | D137: 13,3 - [Name of sub-vote]
B138: 13.4 | C138: [Name of sub-vote] | D138: 13,4 - [Name of sub-vote]
B139: 13.5 | C139: [Name of sub-vote] | D139: 13,5 - [Name of sub-vote]
B140: 13.6 | C140: [Name of sub-vote] | D140: 13,6 - [Name of sub-vote]
B141: 13.7 | C141: [Name of sub-vote] | D141: 13,7 - [Name of sub-vote]
B142: 13.8 | C142: [Name of sub-vote] | D142: 13,8 - [Name of sub-vote]
B143: 13.9 | C143: [Name of sub-vote] | D143: 13,9 - [Name of sub-vote]
B144: 13.10 | C144: [Name of sub-vote] | D144: 13.10 - [Name of sub-vote]
B145: Vote 14 | C145: [NAME OF VOTE 14]
B146: 14.1 | C146: [Name of sub-vote] | D146: =CONCATENATE(B146, " - ", C146) -> 14,1 - [Name of sub-vote] | E146: 14.1 - [Name of sub-vote]
B147: 14.2 | C147: [Name of sub-vote] | D147: 14,2 - [Name of sub-vote]
B148: 14.3 | C148: [Name of sub-vote] | D148: 14,3 - [Name of sub-vote]
B149: 14.4 | C149: [Name of sub-vote] | D149: 14,4 - [Name of sub-vote]
B150: 14.5 | C150: [Name of sub-vote] | D150: 14,5 - [Name of sub-vote]
B151: 14.6 | C151: [Name of sub-vote] | D151: 14,6 - [Name of sub-vote]
B152: 14.7 | C152: [Name of sub-vote] | D152: 14,7 - [Name of sub-vote]
B153: 14.8 | C153: [Name of sub-vote] | D153: 14,8 - [Name of sub-vote]
B154: 14.9 | C154: [Name of sub-vote] | D154: 14,9 - [Name of sub-vote]
B155: 14.10 | C155: [Name of sub-vote] | D155: 14.10 - [Name of sub-vote]
B156: Vote 15 | C156: [NAME OF VOTE 15]
B157: 15.1 | C157: [Name of sub-vote] | D157: =CONCATENATE(B157, " - ", C157) -> 15,1 - [Name of sub-vote] | E157: 15.1 - [Name of sub-vote]
B158: 15.2 | C158: [Name of sub-vote] | D158: 15,2 - [Name of sub-vote]
B159: 15.3 | C159: [Name of sub-vote] | D159: 15,3 - [Name of sub-vote]
B160: 15.4 | C160: [Name of sub-vote] | D160: 15,4 - [Name of sub-vote]
B161: 15.5 | C161: [Name of sub-vote] | D161: 15,5 - [Name of sub-vote]
B162: 15.6 | C162: [Name of sub-vote] | D162: 15,6 - [Name of sub-vote]
B163: 15.7 | C163: [Name of sub-vote] | D163: 15,7 - [Name of sub-vote]
B164: 15.8 | C164: [Name of sub-vote] | D164: 15,8 - [Name of sub-vote]
B165: 15.9 | C165: [Name of sub-vote] | D165: 15,9 - [Name of sub-vote]
B166: 15.10 | C166: [Name of sub-vote] | D166: 15.10 - [Name of sub-vote]

Sheet Contacts
A1: =muni&" - "&" Contact Information" -> KZN225 Msunduzi - Contact Information
A3: A. GENERAL INFORMATION
A4: Municipality | B4: =muni -> KZN225 Msunduzi | C4: =IF(B4="Choose name from List","Set name on 'Instructions' sheet", "") -> 
A6: Grade | C6: 1 Grade in terms of the Remuneration of Public Office Bearers Act.
A8: Province | B8: =IF(B4>" ",VLOOKUP(B4,'Lookup and lists'!B29:C307,2, FALSE)," ") -> KZN KWAZULU-NATAL
A10: Web Address
A12: e-mail Address
A14: B. CONTACT INFORMATION
A15: Postal address:
A16: P.O. Box
A17: City / Town
A18: Postal Code
A20: Street address
A21: Building
A22: Street No. & Name
A23: City / Town
A24: Postal Code
A26: General Contacts
A27: Telephone number
A28: Fax number
A30: C. POLITICAL LEADERSHIP
A31: Speaker: | C31: Secretary/PA to the Speaker:
A32: ID Number | C32: ID Number
A33: Title | C33: Title
A34: Name | C34: Name
A35: Telephone number | C35: Telephone number
A36: Cell number | C36: Cell number
A37: Fax number | C37: Fax number
A38: E-mail address | C38: E-mail address
A40: Mayor/Executive Mayor: | C40: Secretary/PA to the Mayor/Executive Mayor:
A41: ID Number | C41: ID Number
A42: Title | C42: Title
A43: Name | C43: Name
A44: Telephone number | C44: Telephone number
A45: Cell number | C45: Cell number
A46: Fax number | C46: Fax number
A47: E-mail address | C47: E-mail address
A49: Deputy Mayor/Executive Mayor: | C49: Secretary/PA to the Deputy Mayor/Executive Mayor:
A50: ID Number | C50: ID Number
A51: Title | C51: Title
A52: Name | C52: Name
A53: Telephone number | C53: Telephone number
A54: Cell number | C54: Cell number
A55: Fax number | C55: Fax number
A56: E-mail address | C56: E-mail address
A58: D. MANAGEMENT LEADERSHIP
A59: Municipal Manager: | C59: Secretary/PA to the Municipal Manager:
A60: ID Number | C60: ID Number
A61: Title | C61: Title
A62: Name | C62: Name
A63: Telephone number | C63: Telephone number
A64: Cell number | C64: Cell number
A65: Fax number | C65: Fax number
A66: E-mail address | C66: E-mail address
A68: Chief Financial Officer | C68: Secretary/PA to the Chief Financial Officer
A69: ID Number | C69: ID Number
A70: Title | C70: Title
A71: Name | C71: Name
A72: Telephone number | C72: Telephone number
A73: Cell number | C73: Cell number
A74: Fax number | C74: Fax number
A75: E-mail address | C75: E-mail address
A77: Official responsible for submitting financial information | C77: Official responsible for submitting financial information
A78: ID Number | C78: ID Number
A79: Title | C79: Title
A80: Name | C80: Name
A81: Telephone number | C81: Telephone number
A82: Cell number | C82: Cell number
A83: Fax number | C83: Fax number
A84: E-mail address | C84: E-mail address
A85: Official responsible for submitting financial information | C85: Official responsible for submitting financial information
A86: ID Number | C86: ID Number
A87: Title | C87: Title
A88: Name | C88: Name
A89: Telephone number | C89: Telephone number
A90: Cell number | C90: Cell number
A91: Fax number | C91: Fax number
A92: E-mail address | C92: E-mail address
A93: Official responsible for submitting financial information | C93: Official responsible for submitting financial information
A94: ID Number | C94: ID Number
A95: Title | C95: Title
A96: Name | C96: Name
A97: Telephone number | C97: Telephone number
A98: Cell number | C98: Cell number
A99: Fax number | C99: Fax number
A100: E-mail address | C100: E-mail address
A101: Official responsible for submitting financial information | C101: Official responsible for submitting financial information
A102: ID Number | C102: ID Number
A103: Title | C103: Title
A104: Name | C104: Name
A105: Telephone number | C105: Telephone number
A106: Cell number | C106: Cell number
A107: Fax number | C107: Fax number
A108: E-mail address | C108: E-mail address
A109: Official responsible for submitting financial information | C109: Official responsible for submitting financial information
A110: ID Number | C110: ID Number
A111: Title | C111: Title
A112: Name | C112: Name
A113: Telephone number | C113: Telephone number
A114: Cell number | C114: Cell number
A115: Fax number | C115: Fax number
A116: E-mail address | C116: E-mail address
A117: Official responsible for submitting financial information | C117: Official responsible for submitting financial information
A118: ID Number | C118: ID Number
A119: Title | C119: Title
A120: Name | C120: Name
A121: Telephone number | C121: Telephone number
A122: Cell number | C122: Cell number
A123: Fax number | C123: Fax number
A124: E-mail address | C124: E-mail address
A125: Official responsible for submitting financial information | C125: Official responsible for submitting financial information
A126: ID Number | C126: ID Number
A127: Title | C127: Title
A128: Name | C128: Name
A129: Telephone number | C129: Telephone number
A130: Cell number | C130: Cell number
A131: Fax number | C131: Fax number
A132: E-mail address | C132: E-mail address
A133: Official responsible for submitting financial information
A134: ID Number
A135: Title
A136: Name
A137: Telephone number
A138: Cell number
A139: Fax number
A140: E-mail address

Sheet A1-Sum
A1: =muni&" - "&Approve1 -> KZN225 Msunduzi - Table A1 Consolidated Budget Summary
A2: =desc -> Description | B2: =head1b -> 2018/19 | C2: =head1A -> 2019/20 | D2: =Head1 -> 2020/21 | E2: =Head2 -> Current Year 2021/22 | I2: =Head3 -> 2022/23 Medium Term Revenue & Expenditure Framework
A3: R thousands | B3: =Head5 -> Audited Outcome | C3: =Head5 -> Audited Outcome | D3: =Head5 -> Audited Outcome | E3: =Head6 -> Original Budget | F3: =Head7 -> Adjusted Budget | G3: =Head8 -> Full Year Forecast | H3: =Head5b -> Pre-audit outcome | I3: =Head9 -> Budget Year 2022/23 | J3: =Head10 -> Budget Year +1 2023/24 | K3: =Head11 -> Budget Year +2 2024/25
A4: Financial Performance
A5: Property rates | B5: ='A4-FinPerf RE'!C5 -> 930980084.4 | C5: ='A4-FinPerf RE'!D5 -> 1177107606 | D5: ='A4-FinPerf RE'!E5 -> 1204676315 | E5: ='A4-FinPerf RE'!F5 -> 1321378575 | F5: ='A4-FinPerf RE'!G5 -> 1321378575 | G5: ='A4-FinPerf RE'!H5 -> 1321378575 | H5: ='A4-FinPerf RE'!I5 -> 0 | I5: ='A4-FinPerf RE'!J5 -> 1427088861 | J5: ='A4-FinPerf RE'!K5 -> 1512714193 | K5: ='A4-FinPerf RE'!L5 -> 1603477045 | M5: =J5+J6 -> 6071988209 | N5: =K5+K6 -> 6367918391
A6: Service charges | B6: =SUM('A4-FinPerf RE'!C6:C9) -> 2942608164 | C6: =SUM('A4-FinPerf RE'!D6:D9) -> 3104621259 | D6: =SUM('A4-FinPerf RE'!E6:E9) -> 3188294762 | E6: =SUM('A4-FinPerf RE'!F6:F9) -> 4017823674 | F6: =SUM('A4-FinPerf RE'!G6:G9) -> 4017823674 | G6: =SUM('A4-FinPerf RE'!H6:H9) -> 4017823674 | H6: =SUM('A4-FinPerf RE'!I6:I9) -> 0 | I6: =SUM('A4-FinPerf RE'!J6:J9) -> 4367120705 | J6: =SUM('A4-FinPerf RE'!K6:K9) -> 4559274016 | K6: =SUM('A4-FinPerf RE'!L6:L9) -> 4764441347
A7: Investment revenue | B7: ='A4-FinPerf RE'!C12 -> 20378755.26 | C7: ='A4-FinPerf RE'!D12 -> 14116343.54 | D7: ='A4-FinPerf RE'!E12 -> 8455919.18 | E7: ='A4-FinPerf RE'!F12 -> 16076855.03 | F7: ='A4-FinPerf RE'!G12 -> 16076855.03 | G7: ='A4-FinPerf RE'!H12 -> 16076855.03 | H7: ='A4-FinPerf RE'!I12 -> 0 | I7: ='A4-FinPerf RE'!J12 -> 17030212.53 | J7: ='A4-FinPerf RE'!K12 -> 18057134.35 | K7: ='A4-FinPerf RE'!L12 -> 19140562.41
A8: Transfers recognised - operational | B8: ='A4-FinPerf RE'!C18 -> 602210610.4 | C8: ='A4-FinPerf RE'!D18 -> 637128044 | D8: ='A4-FinPerf RE'!E18 -> 757156210 | E8: ='A4-FinPerf RE'!F18 -> 661215834.8 | F8: ='A4-FinPerf RE'!G18 -> 725957048.3 | G8: ='A4-FinPerf RE'!H18 -> 725957048.3 | H8: ='A4-FinPerf RE'!I18 -> 0 | I8: ='A4-FinPerf RE'!J18 -> 855842084.7 | J8: ='A4-FinPerf RE'!K18 -> 828076101.9 | K8: ='A4-FinPerf RE'!L18 -> 888579900.5
A9: Other own revenue | B9: ='A4-FinPerf RE'!C11+'A4-FinPerf RE'!C13+'A4-FinPerf RE'!C14+'A4-FinPerf RE'!C15+'A4-FinPerf RE'!C16+'A4-FinPerf RE'!C17+'A4-FinPerf RE'!C19+'A4-FinPerf RE'!C20 -> 350358281 | C9: ='A4-FinPerf RE'!D11+'A4-FinPerf RE'!D13+'A4-FinPerf RE'!D14+'A4-FinPerf RE'!D15+'A4-FinPerf RE'!D16+'A4-FinPerf RE'!D17+'A4-FinPerf RE'!D19+'A4-FinPerf RE'!D20 -> 585086468.7 | D9: ='A4-FinPerf RE'!E11+'A4-FinPerf RE'!E13+'A4-FinPerf RE'!E14+'A4-FinPerf RE'!E15+'A4-FinPerf RE'!E16+'A4-FinPerf RE'!E17+'A4-FinPerf RE'!E19+'A4-FinPerf RE'!E20 -> 350790453.3 | E9: ='A4-FinPerf RE'!F11+'A4-FinPerf RE'!F13+'A4-FinPerf RE'!F14+'A4-FinPerf RE'!F15+'A4-FinPerf RE'!F16+'A4-FinPerf RE'!F17+'A4-FinPerf RE'!F19+'A4-FinPerf RE'!F20 -> 401919098.5 | F9: ='A4-FinPerf RE'!G11+'A4-FinPerf RE'!G13+'A4-FinPerf RE'!G14+'A4-FinPerf RE'!G15+'A4-FinPerf RE'!G16+'A4-FinPerf RE'!G17+'A4-FinPerf RE'!G19+'A4-FinPerf RE'!G20 -> 401919098.5 | G9: ='A4-FinPerf RE'!H11+'A4-FinPerf RE'!H13+'A4-FinPerf RE'!H14+'A4-FinPerf RE'!H15+'A4-FinPerf RE'!H16+'A4-FinPerf RE'!H17+'A4-FinPerf RE'!H19+'A4-FinPerf RE'!H20 -> 401919098.5 | H9: ='A4-FinPerf RE'!I11+'A4-FinPerf RE'!I13+'A4-FinPerf RE'!I14+'A4-FinPerf RE'!I15+'A4-FinPerf RE'!I16+'A4-FinPerf RE'!I17+'A4-FinPerf RE'!I19+'A4-FinPerf RE'!I20 -> 0 | I9: ='A4-FinPerf RE'!J11+'A4-FinPerf RE'!J13+'A4-FinPerf RE'!J14+'A4-FinPerf RE'!J15+'A4-FinPerf RE'!J16+'A4-FinPerf RE'!J17+'A4-FinPerf RE'!J19+'A4-FinPerf RE'!J20 -> 443971761.5 | J9: ='A4-FinPerf RE'!K11+'A4-FinPerf RE'!K13+'A4-FinPerf RE'!K14+'A4-FinPerf RE'!K15+'A4-FinPerf RE'!K16+'A4-FinPerf RE'!K17+'A4-FinPerf RE'!K19+'A4-FinPerf RE'!K20 -> 466416577 | K9: ='A4-FinPerf RE'!L11+'A4-FinPerf RE'!L13+'A4-FinPerf RE'!L14+'A4-FinPerf RE'!L15+'A4-FinPerf RE'!L16+'A4-FinPerf RE'!L17+'A4-FinPerf RE'!L19+'A4-FinPerf RE'!L20 -> 337457006
A10: ='A4-FinPerf RE'!A21 -> Total Revenue (excluding capital transfers and contributions) | B10: =SUM(B5:B9) -> 4846535895 | C10: 5518059721 | D10: 5509373660 | E10: 6418414037 | F10: 6483155251 | G10: 6483155251 | H10: 0 | I10: 7111053625 | J10: 7384538022 | K10: 7613095860
A11: Employee costs | B11: ='A4-FinPerf RE'!C24 -> 952345628.9 | C11: ='A4-FinPerf RE'!D24 -> 1242959768 | D11: ='A4-FinPerf RE'!E24 -> 1424848869 | E11: ='A4-FinPerf RE'!F24 -> 1538089743 | F11: ='A4-FinPerf RE'!G24 -> 1563391355 | G11: ='A4-FinPerf RE'!H24 -> 1563391355 | H11: ='A4-FinPerf RE'!I24 -> 0 | I11: ='A4-FinPerf RE'!J24 -> 1619699179 | J11: ='A4-FinPerf RE'!K24 -> 1702303837 | K11: ='A4-FinPerf RE'!L24 -> 1777205206
A12: Remuneration of councillors | B12: ='A4-FinPerf RE'!C25 -> 44130680.67 | C12: ='A4-FinPerf RE'!D25 -> 43759323.83 | D12: ='A4-FinPerf RE'!E25 -> 51641247.13 | E12: ='A4-FinPerf RE'!F25 -> 56332921.51 | F12: ='A4-FinPerf RE'!G25 -> 56332921.51 | G12: ='A4-FinPerf RE'!H25 -> 56332921.51 | H12: ='A4-FinPerf RE'!I25 -> 0 | I12: ='A4-FinPerf RE'!J25 -> 59431217.94 | J12: ='A4-FinPerf RE'!K25 -> 62046191.53 | K12: ='A4-FinPerf RE'!L25 -> 64838270.15
A13: Depreciation & asset impairment | B13: ='A4-FinPerf RE'!C27 -> 454389102.6 | C13: ='A4-FinPerf RE'!D27 -> 424311895.3 | D13: ='A4-FinPerf RE'!E27 -> 380262219.5 | E13: ='A4-FinPerf RE'!F27 -> 421872297.6 | F13: ='A4-FinPerf RE'!G27 -> 420917987 | G13: ='A4-FinPerf RE'!H27 -> 420917987 | H13: ='A4-FinPerf RE'!I27 -> 0 | I13: ='A4-FinPerf RE'!J27 -> 441964212.5 | J13: ='A4-FinPerf RE'!K27 -> 465830280 | K13: ='A4-FinPerf RE'!L27 -> 491450945.4
A14: Finance charges | B14: ='A4-FinPerf RE'!C28 -> 54809930.9 | C14: ='A4-FinPerf RE'!D28 -> 50463517.41 | D14: ='A4-FinPerf RE'!E28 -> 42536964.33 | E14: ='A4-FinPerf RE'!F28 -> 34724271.93 | F14: ='A4-FinPerf RE'!G28 -> 34724271.93 | G14: ='A4-FinPerf RE'!H28 -> 34724271.93 | H14: ='A4-FinPerf RE'!I28 -> 0 | I14: ='A4-FinPerf RE'!J28 -> 94217139.02 | J14: ='A4-FinPerf RE'!K28 -> 82398191.72 | K14: ='A4-FinPerf RE'!L28 -> 70192547.65
A15: Inventory consumed and bulk purchases | B15: ='A4-FinPerf RE'!C29+'A4-FinPerf RE'!C30 -> 2188610100 | C15: ='A4-FinPerf RE'!D29+'A4-FinPerf RE'!D30 -> 2548288188 | D15: ='A4-FinPerf RE'!E29+'A4-FinPerf RE'!E30 -> 2717560848 | E15: ='A4-FinPerf RE'!F29+'A4-FinPerf RE'!F30 -> 3015913148 | F15: ='A4-FinPerf RE'!G29+'A4-FinPerf RE'!G30 -> 3023109961 | G15: ='A4-FinPerf RE'!H29+'A4-FinPerf RE'!H30 -> 3023109961 | H15: ='A4-FinPerf RE'!I29+'A4-FinPerf RE'!I30 -> 0 | I15: ='A4-FinPerf RE'!J29+'A4-FinPerf RE'!J30 -> 3291421790 | J15: ='A4-FinPerf RE'!K29+'A4-FinPerf RE'!K30 -> 3428447855 | K15: ='A4-FinPerf RE'!L29+'A4-FinPerf RE'!L30 -> 3586859732
A16: Transfers and grants | B16: ='A4-FinPerf RE'!C32 -> 26090874.31 | C16: ='A4-FinPerf RE'!D32 -> 25306677.32 | D16: ='A4-FinPerf RE'!E32 -> 16870304.99 | E16: ='A4-FinPerf RE'!F32 -> 45862882.85 | F16: ='A4-FinPerf RE'!G32 -> 61219951.94 | G16: ='A4-FinPerf RE'!H32 -> 61219951.94 | H16: ='A4-FinPerf RE'!I32 -> 0 | I16: ='A4-FinPerf RE'!J32 -> 63469171.5 | J16: ='A4-FinPerf RE'!K32 -> 66261815.05 | K16: ='A4-FinPerf RE'!L32 -> 69243596.72
A17: Other expenditure | B17: ='A4-FinPerf RE'!C26+'A4-FinPerf RE'!C31+'A4-FinPerf RE'!C33+'A4-FinPerf RE'!C34 -> 782718891.5 | C17: ='A4-FinPerf RE'!D26+'A4-FinPerf RE'!D31+'A4-FinPerf RE'!D33+'A4-FinPerf RE'!D34 -> 1391669079 | D17: ='A4-FinPerf RE'!E26+'A4-FinPerf RE'!E31+'A4-FinPerf RE'!E33+'A4-FinPerf RE'!E34 -> 1769413028 | E17: ='A4-FinPerf RE'!F26+'A4-FinPerf RE'!F31+'A4-FinPerf RE'!F33+'A4-FinPerf RE'!F34 -> 1005618754 | F17: ='A4-FinPerf RE'!G26+'A4-FinPerf RE'!G31+'A4-FinPerf RE'!G33+'A4-FinPerf RE'!G34 -> 1080826404 | G17: ='A4-FinPerf RE'!H26+'A4-FinPerf RE'!H31+'A4-FinPerf RE'!H33+'A4-FinPerf RE'!H34 -> 1080826404 | H17: ='A4-FinPerf RE'!I26+'A4-FinPerf RE'!I31+'A4-FinPerf RE'!I33+'A4-FinPerf RE'!I34 -> 0 | I17: ='A4-FinPerf RE'!J26+'A4-FinPerf RE'!J31+'A4-FinPerf RE'!J33+'A4-FinPerf RE'!J34 -> 1406621375 | J17: ='A4-FinPerf RE'!K26+'A4-FinPerf RE'!K31+'A4-FinPerf RE'!K33+'A4-FinPerf RE'!K34 -> 1378182373 | K17: ='A4-FinPerf RE'!L26+'A4-FinPerf RE'!L31+'A4-FinPerf RE'!L33+'A4-FinPerf RE'!L34 -> 1462775095
A18: ='A4-FinPerf RE'!A35 -> Total Expenditure | B18: =SUM(B11:B17) -> 4503095209 | C18: =SUM(C11:C17) -> 5726758448 | D18: 6403133482 | E18: 6118414019 | F18: 6240522852 | G18: 6240522852 | H18: 0 | I18: 6976824084 | J18: 7185470543 | K18: 7522565393
A19: ='A4-FinPerf RE'!A37 -> Surplus/(Deficit) | B19: =B10-B18 -> 343440686.3 | C19: -208698727.8 | D19: -893759821.8 | E19: 300000018.7 | F19: 242632398.7 | G19: 242632398.7 | H19: 0 | I19: 134229540.5 | J19: 199067479.5 | K19: 90530466.98
A20: ='A4-FinPerf RE'!A38 -> Transfers and subsidies - capital (monetary allocations) (National / Provincial and District) | B20: ='A4-FinPerf RE'!C38 -> 0 | C20: ='A4-FinPerf RE'!D38 -> 0 | D20: ='A4-FinPerf RE'!E38 -> 0 | E20: ='A4-FinPerf RE'!F38 -> 0 | F20: ='A4-FinPerf RE'!G38 -> 0 | G20: ='A4-FinPerf RE'!H38 -> 0 | H20: ='A4-FinPerf RE'!I38 -> 0 | I20: ='A4-FinPerf RE'!J38 -> 446431108.9 | J20: ='A4-FinPerf RE'!K38 -> 474180000 | K20: ='A4-FinPerf RE'!L38 -> 487416000
A21: ='A4-FinPerf RE'!A39&" & "&'A4-FinPerf RE'!A40 -> Transfers and subsidies - capital (monetary allocations) (National / Provincial Departmental Agencies, Households, Non-profit Institutions, Private Enterprises, Public Corporatons, Higher Educational Institutions) & Transfers and subsidies - capital (in-kind - all) | B21: ='A4-FinPerf RE'!C39+'A4-FinPerf RE'!C40 -> 414431019.8 | C21: ='A4-FinPerf RE'!D39+'A4-FinPerf RE'!D40 -> 431548629.4 | D21: ='A4-FinPerf RE'!E39+'A4-FinPerf RE'!E40 -> 498745626.6 | E21: ='A4-FinPerf RE'!F39+'A4-FinPerf RE'!F40 -> 380796576 | F21: ='A4-FinPerf RE'!G39+'A4-FinPerf RE'!G40 -> 429670814.7 | G21: ='A4-FinPerf RE'!H39+'A4-FinPerf RE'!H40 -> 429670814.7 | H21: ='A4-FinPerf RE'!I39+'A4-FinPerf RE'!I40 -> 0 | I21: ='A4-FinPerf RE'!J39+'A4-FinPerf RE'!J40 -> 0 | J21: ='A4-FinPerf RE'!K39+'A4-FinPerf RE'!K40 -> 0 | K21: ='A4-FinPerf RE'!L39+'A4-FinPerf RE'!L40 -> 0
A22: ='A4-FinPerf RE'!A41 -> Surplus/(Deficit) after capital transfers & contributions | B22: =B19+SUM(B20:B21) -> 757871706.1 | C22: =C19+SUM(C20:C21) -> 222849901.6 | E22: 680796594.7 | F22: 672303213.4 | G22: 672303213.4 | H22: 0 | I22: 580660649.3 | J22: 673247479.5 | K22: 577946467
A23: ='A4-FinPerf RE'!A46 -> Share of surplus/ (deficit) of associate | B23: ='A4-FinPerf RE'!C46 -> 0 | C23: ='A4-FinPerf RE'!D46 -> 0 | D23: ='A4-FinPerf RE'!E46 -> 0 | E23: ='A4-FinPerf RE'!F46 -> 0 | F23: ='A4-FinPerf RE'!G46 -> 0 | G23: ='A4-FinPerf RE'!H46 -> 0 | H23: ='A4-FinPerf RE'!I46 -> 0 | I23: ='A4-FinPerf RE'!J46 -> 0 | J23: ='A4-FinPerf RE'!K46 -> 0 | K23: ='A4-FinPerf RE'!L46 -> 0
A24: ='A4-FinPerf RE'!A47 -> Surplus/(Deficit) for the year | B24: =B22+B23 -> 757871706.1 | C24: =C22+C23 -> 222849901.6 | D24: 0 | E24: 680796594.7 | F24: 672303213.4 | G24: 672303213.4 | H24: 0 | I24: 580660649.3 | J24: 673247479.5 | K24: 577946467
A26: Capital expenditure & funds sources
A27: Capital expenditure | B27: ='A5-Capex'!C63 -> 486193633 | C27: ='A5-Capex'!D63 -> 479854918.8 | D27: ='A5-Capex'!E63 -> 685931270.1 | E27: ='A5-Capex'!F63 -> 576301627 | F27: ='A5-Capex'!G63 -> 655206969 | G27: ='A5-Capex'!H63 -> 655206969 | H27: ='A5-Capex'!I63 -> 655206969 | I27: ='A5-Capex'!J63 -> 897650118.9 | J27: ='A5-Capex'!K63 -> 744795485 | K27: ='A5-Capex'!L63 -> 587260601
A28: Transfers recognised - capital | B28: ='A5-Capex'!C70 -> 366029304 | C28: ='A5-Capex'!D70 -> 389132125 | D28: ='A5-Capex'!E70 -> 563995119.7 | E28: ='A5-Capex'!F70 -> 380796576 | F28: ='A5-Capex'!G70 -> 429670815 | G28: ='A5-Capex'!H70 -> 429670815 | H28: ='A5-Capex'!I70 -> 429670815 | I28: ='A5-Capex'!J70 -> 446431108.9 | J28: ='A5-Capex'!K70 -> 474180000 | K28: ='A5-Capex'!L70 -> 487416000
A30: ='A5-Capex'!A72 -> Borrowing | B30: ='A5-Capex'!C72 -> 47052852 | C30: ='A5-Capex'!D72 -> 4229818.17 | D30: ='A5-Capex'!E72 -> 0 | E30: ='A5-Capex'!F72 -> 100000000 | F30: ='A5-Capex'!G72 -> 100000000 | G30: ='A5-Capex'!H72 -> 100000000 | H30: ='A5-Capex'!I72 -> 100000000 | I30: ='A5-Capex'!J72 -> 300000000 | J30: ='A5-Capex'!K72 -> 200000000 | K30: ='A5-Capex'!L72 -> 0
A31: ='A5-Capex'!A73 -> Internally generated funds | B31: ='A5-Capex'!C73 -> 73111477 | C31: ='A5-Capex'!D73 -> 86493279 | D31: ='A5-Capex'!E73 -> 121936150.4 | E31: ='A5-Capex'!F73 -> 95505050.95 | F31: ='A5-Capex'!G73 -> 125536155 | G31: ='A5-Capex'!H73 -> 125536155 | H31: ='A5-Capex'!I73 -> 125536155 | I31: ='A5-Capex'!J73 -> 151219010 | J31: ='A5-Capex'!K73 -> 70615485 | K31: ='A5-Capex'!L73 -> 99844601
A32: Total sources of capital funds | B32: =+B28+B30+B31 -> 486193633 | C32: =+C28+C30+C31 -> 479855222.2 | D32: 685931270.1 | E32: 576301627 | F32: 655206970 | G32: 655206970 | H32: 655206970 | I32: 897650118.9 | J32: 744795485 | K32: 587260601
A34: Financial position
A35: ='A6-FinPos'!A12 -> Total current assets | B35: ='A6-FinPos'!C12 -> 1073759976 | C35: ='A6-FinPos'!D12 -> 3113382401 | D35: ='A6-FinPos'!E12 -> 2488454538 | E35: ='A6-FinPos'!F12 -> 3808880705 | F35: ='A6-FinPos'!G12 -> 3794980705 | G35: ='A6-FinPos'!H12 -> 3794980705 | H35: ='A6-FinPos'!I12 -> 0 | I35: ='A6-FinPos'!J12 -> 3694282151 | J35: ='A6-FinPos'!K12 -> 3645918699 | K35: ='A6-FinPos'!L12 -> 3600730114
A36: ='A6-FinPos'!A24 -> Total non current assets | B36: ='A6-FinPos'!C24 -> 7822828397 | C36: ='A6-FinPos'!D24 -> 7787361578 | D36: ='A6-FinPos'!E24 -> 8068661579 | E36: ='A6-FinPos'!F24 -> 7969426606 | F36: ='A6-FinPos'!G24 -> 8048331949 | G36: ='A6-FinPos'!H24 -> 8048331949 | H36: ='A6-FinPos'!I24 -> 0 | I36: ='A6-FinPos'!J24 -> 8409501363 | J36: ='A6-FinPos'!K24 -> 8635416568 | K36: ='A6-FinPos'!L24 -> 8677076224
A37: ='A6-FinPos'!A34 -> Total current liabilities | B37: ='A6-FinPos'!C34 -> 1476198845 | C37: ='A6-FinPos'!D34 -> 1893327922 | D37: ='A6-FinPos'!E34 -> 2037745602 | E37: ='A6-FinPos'!F34 -> 1295697302 | F37: ='A6-FinPos'!G34 -> 1475071014 | G37: ='A6-FinPos'!H34 -> 1475071014 | H37: ='A6-FinPos'!I34 -> 0 | I37: ='A6-FinPos'!J34 -> 1676745193 | J37: ='A6-FinPos'!K34 -> 1649394054 | K37: ='A6-FinPos'!L34 -> 1617703646
A38: ='A6-FinPos'!A39 -> Total non current liabilities | B38: ='A6-FinPos'!C39 -> 991034435 | C38: ='A6-FinPos'!D39 -> 816497835.6 | D38: ='A6-FinPos'!E39 -> 814494100 | E38: ='A6-FinPos'!F39 -> 1187237456 | F38: ='A6-FinPos'!G39 -> 1187237456 | G38: ='A6-FinPos'!H39 -> 1187237456 | H38: ='A6-FinPos'!I39 -> 0 | I38: ='A6-FinPos'!J39 -> 809779414.9 | J38: ='A6-FinPos'!K39 -> 809779414.9 | K38: ='A6-FinPos'!L39 -> 809779414.9
A39: Community wealth/Equity | B39: ='A6-FinPos'!C48 -> 7707963744 | C39: ='A6-FinPos'!D48 -> 7939404541 | D39: ='A6-FinPos'!E48 -> 7704876415 | E39: ='A6-FinPos'!F48 -> 9295372552 | F39: ='A6-FinPos'!G48 -> 9181004183 | G39: ='A6-FinPos'!H48 -> 9181004183 | H39: ='A6-FinPos'!I48 -> 0 | I39: ='A6-FinPos'!J48 -> 9617258907 | J39: ='A6-FinPos'!K48 -> 9822161798 | K39: ='A6-FinPos'!L48 -> 9850323277
A41: Cash flows
A42: Net cash from (used) operating | B42: ='A7-CFlow'!C17 -> 371007216 | C42: ='A7-CFlow'!D17 -> 717519771 | D42: ='A7-CFlow'!E17 -> 588460200 | E42: ='A7-CFlow'!F17 -> 636907927.5 | F42: ='A7-CFlow'!G17 -> 628537882.7 | G42: ='A7-CFlow'!H17 -> 628537882.7 | H42: ='A7-CFlow'!I17 -> 0 | I42: ='A7-CFlow'!J17 -> 519479949 | J42: ='A7-CFlow'!K17 -> 615615237.8 | K42: ='A7-CFlow'!L17 -> 520177505.9
A43: Net cash from (used) investing | B43: ='A7-CFlow'!C27 -> -480467911 | C43: ='A7-CFlow'!D27 -> -423137538 | D43: ='A7-CFlow'!E27 -> -632698178 | E43: ='A7-CFlow'!F27 -> -576301627 | F43: ='A7-CFlow'!G27 -> -655206970 | G43: ='A7-CFlow'!H27 -> -655206970 | H43: ='A7-CFlow'!I27 -> 0 | I43: ='A7-CFlow'!J27 -> -897650118.9 | J43: ='A7-CFlow'!K27 -> -744795485 | K43: ='A7-CFlow'!L27 -> -587260601
A44: Net cash from (used) financing | B44: ='A7-CFlow'!C36 -> -94966367 | C44: ='A7-CFlow'!D36 -> -83600511 | D44: ='A7-CFlow'!E36 -> -113418258 | E44: ='A7-CFlow'!F36 -> 8362465.853 | F44: ='A7-CFlow'!G36 -> 8362465.853 | G44: ='A7-CFlow'!H36 -> 8362465.853 | H44: ='A7-CFlow'!I36 -> 0 | I44: ='A7-CFlow'!J36 -> 276393968.3 | J44: ='A7-CFlow'!K36 -> 172648861.6 | K44: ='A7-CFlow'!L36 -> -31690407.88
A45: =LEFT('A7-CFlow'!A40,37) -> Cash/cash equivalents at the year end | B45: ='A7-CFlow'!C40 -> 308195245 | C45: ='A7-CFlow'!D40 -> 518976967 | D45: ='A7-CFlow'!E40 -> 361320731 | E45: ='A7-CFlow'!F40 -> 355836461.2 | F45: ='A7-CFlow'!G40 -> 343014109.6 | G45: ='A7-CFlow'!H40 -> 343014109.6 | H45: ='A7-CFlow'!I40 -> 0 | I45: ='A7-CFlow'!J40 -> 241237908 | J45: ='A7-CFlow'!K40 -> 284706522.4 | K45: ='A7-CFlow'!L40 -> 185933019.4
A47: Cash backing/surplus reconciliation
A48: ='A8-ResRecon'!A4 -> Cash and investments available | B48: ='A8-ResRecon'!C8 -> 310838242 | C48: ='A8-ResRecon'!D8 -> 518976967 | D48: ='A8-ResRecon'!E8 -> 393632165 | E48: ='A8-ResRecon'!F8 -> 355836461.2 | F48: ='A8-ResRecon'!G8 -> 341936461.2 | G48: ='A8-ResRecon'!H8 -> 341936461.2 | H48: ='A8-ResRecon'!I8 -> 0 | I48: ='A8-ResRecon'!J8 -> 241237908 | J48: ='A8-ResRecon'!K8 -> 104706522.4 | K48: ='A8-ResRecon'!L8 -> 5933019.441
A49: ='A8-ResRecon'!A10 -> Application of cash and investments | B49: ='A8-ResRecon'!C18 -> 709892783 | C49: ='A8-ResRecon'!D18 -> -402621686 | D49: ='A8-ResRecon'!E18 -> -1518249000 | E49: ='A8-ResRecon'!F18 -> -2748913000 | F49: ='A8-ResRecon'!G18 -> -2748913000 | G49: ='A8-ResRecon'!H18 -> -2805963000 | H49: ='A8-ResRecon'!I18 -> 0 | I49: ='A8-ResRecon'!J18 -> -2741738000 | J49: ='A8-ResRecon'!K18 -> -2814946000 | K49: ='A8-ResRecon'!L18 -> -2924429000
A50: Balance - surplus (shortfall) | B50: =B48-B49 -> -399054541 | C50: =C48-C49 -> 921598653 | D50: 1911881165 | E50: 3104749461 | F50: 3090849461 | G50: 3147899461 | H50: 0 | I50: 2982975908 | J50: 2919652522 | K50: 2930362019
A52: Asset management
A53: Asset register summary (WDV) | B53: ='A9-Asset'!C165 -> 7343364292 | C53: ='A9-Asset'!D165 -> 8114943436 | D53: ='A9-Asset'!E165 -> 7776759066 | E53: ='A9-Asset'!F165 -> 8299932731 | F53: ='A9-Asset'!G165 -> 7330583369 | G53: ='A9-Asset'!H165 -> 7278296220 | H53: ='A9-Asset'!H165 -> 7278296220 | I53: ='A9-Asset'!I165 -> 7195684086 | J53: ='A9-Asset'!J165 -> 7421599291 | K53: ='A9-Asset'!K165 -> 7463258947
A54: ='A9-Asset'!A168 -> Depreciation | B54: ='A9-Asset'!C168 -> 460955083 | C54: ='A9-Asset'!D168 -> 302561252.5 | D54: ='A9-Asset'!E168 -> 380262219.5 | E54: ='A9-Asset'!F168 -> 421872297.6 | F54: ='A9-Asset'!G168 -> 420917987 | G54: ='A9-Asset'!H168 -> 420917987 | H54: ='A9-Asset'!H168 -> 420917987 | I54: ='A9-Asset'!I168 -> 441964212.5 | J54: ='A9-Asset'!J168 -> 465830280 | K54: ='A9-Asset'!K168 -> 491450945.4
A55: Renewal and Upgrading of Existing Assets | B55: ='A9-Asset'!C37+'A9-Asset'!C69 -> 427389635.9 | C55: ='A9-Asset'!D37+'A9-Asset'!D69 -> 458747088.1 | D55: ='A9-Asset'!E37+'A9-Asset'!E69 -> 277988495.2 | E55: ='A9-Asset'!F37+'A9-Asset'!F69 -> 373119775 | F55: ='A9-Asset'!G37+'A9-Asset'!G69 -> 373119775 | G55: ='A9-Asset'!H37+'A9-Asset'!H69 -> 373119775 | H55: ='A9-Asset'!H37+'A9-Asset'!H69 -> 373119775 | I55: ='A9-Asset'!I37+'A9-Asset'!I69 -> 582972596.5 | J55: ='A9-Asset'!J37+'A9-Asset'!J69 -> 557370000 | K55: ='A9-Asset'!K37+'A9-Asset'!K69 -> 240984860.6
A56: Repairs and Maintenance | B56: ='A9-Asset'!C169 -> 0 | C56: ='A9-Asset'!D169 -> 57161591 | D56: ='A9-Asset'!E169 -> 111339565.8 | E56: ='A9-Asset'!F169 -> 405336559.7 | F56: ='A9-Asset'!G169 -> 320271559.7 | G56: ='A9-Asset'!H169 -> 320271559.7 | H56: ='A9-Asset'!H169 -> 320271559.7 | I56: ='A9-Asset'!I169 -> 590967086.1 | J56: ='A9-Asset'!J169 -> 615125638.6 | K56: ='A9-Asset'!K169 -> 645187098.3
A58: Free services
A59: Cost of Free Basic Services provided | B59: ='A10-SerDel'!C60 -> 1837233.571 | C59: ='A10-SerDel'!D60 -> 0 | D59: ='A10-SerDel'!E60 -> 0 | E59: ='A10-SerDel'!F60 -> 214698464.2 | F59: ='A10-SerDel'!G60 -> 214698464.2 | G59: ='A10-SerDel'!H60 -> 214698464.2 | H59: ='A10-SerDel'!I60 -> 228088786.1 | I59: ='A10-SerDel'!I60 -> 228088786.1 | J59: ='A10-SerDel'!J60 -> 242071343.7 | K59: ='A10-SerDel'!K60 -> 256929502.1
A60: Revenue cost of free services provided | B60: ='A10-SerDel'!C79 -> 411553371 | C60: ='A10-SerDel'!D79 -> 15000 | D60: ='A10-SerDel'!E79 -> 0 | E60: ='A10-SerDel'!F79 -> 105677918 | F60: ='A10-SerDel'!G79 -> 105677918 | G60: ='A10-SerDel'!H79 -> 105677918 | H60: ='A10-SerDel'!I79 -> 337222591.1 | I60: ='A10-SerDel'!I79 -> 337222591.1 | J60: ='A10-SerDel'!J79 -> 356006376.1 | K60: ='A10-SerDel'!K79 -> 375990936
A61: Households below minimum service level
A62: ='A10-SerDel'!A5 -> Water: | B62: ='A10-SerDel'!C14 -> 8505.0944 | C62: ='A10-SerDel'!D14 -> 8505.0944 | D62: ='A10-SerDel'!E14 -> 8505.0944 | E62: ='A10-SerDel'!F14 -> 8505.0944 | F62: ='A10-SerDel'!G14 -> 8505.0944 | G62: ='A10-SerDel'!H14 -> 8505.0944 | H62: ='A10-SerDel'!I14 -> 8505.0944 | I62: ='A10-SerDel'!I14 -> 8505.0944 | J62: ='A10-SerDel'!J14 -> 8505.0944 | K62: ='A10-SerDel'!K14 -> 8505.0944
A63: ='A10-SerDel'!A16 -> Sanitation/sewerage: | B63: ='A10-SerDel'!C26 -> 1184.4888 | C63: ='A10-SerDel'!D26 -> 1184.4888 | D63: ='A10-SerDel'!E26 -> 1184.4888 | E63: ='A10-SerDel'!F26 -> 1184.4888 | F63: ='A10-SerDel'!G26 -> 1184.4888 | G63: ='A10-SerDel'!H26 -> 1184.4888 | H63: ='A10-SerDel'!I26 -> 1184.4888 | I63: ='A10-SerDel'!I26 -> 1184.4888 | J63: ='A10-SerDel'!J26 -> 1184.4888 | K63: ='A10-SerDel'!K26 -> 1184.4888
A64: ='A10-SerDel'!A28 -> Energy: | B64: ='A10-SerDel'!C35 -> 8000 | C64: ='A10-SerDel'!D35 -> 8000 | D64: ='A10-SerDel'!E35 -> 8000 | E64: ='A10-SerDel'!F35 -> 8000 | F64: ='A10-SerDel'!G35 -> 8000 | G64: ='A10-SerDel'!H35 -> 8000 | H64: ='A10-SerDel'!I35 -> 8000 | I64: ='A10-SerDel'!I35 -> 8000 | J64: ='A10-SerDel'!J35 -> 8000 | K64: ='A10-SerDel'!K35 -> 8000
A65: ='A10-SerDel'!A37 -> Refuse: | B65: ='A10-SerDel'!C45 -> 40770.3172 | C65: ='A10-SerDel'!D45 -> 40770.3172 | D65: ='A10-SerDel'!E45 -> 40770.3172 | E65: ='A10-SerDel'!F45 -> 40770.3172 | F65: ='A10-SerDel'!G45 -> 40770.3172 | G65: ='A10-SerDel'!H45 -> 40770.3172 | H65: ='A10-SerDel'!I45 -> 40770.3172 | I65: ='A10-SerDel'!I45 -> 40770.3172 | J65: ='A10-SerDel'!J45 -> 40770.3172 | K65: ='A10-SerDel'!K45 -> 40770.3172

Sheet A2-FinPerf SC
A1: =muni&" - "&Approve3 -> KZN225 Msunduzi - Table A2 Consolidated Budgeted Financial Performance (revenue and expenditure by functional classification)
A2: ="Functional Classification "&desc -> Functional Classification Description | B2: =head27 -> Ref | C2: =head1b -> 2018/19 | D2: =head1A -> 2019/20 | E2: =Head1 -> 2020/21 | F2: =Head2 -> Current Year 2021/22 | I2: =Head3 -> 2022/23 Medium Term Revenue & Expenditure Framework
A3: R thousand | B3: 1 | C3: =Head5 -> Audited Outcome | D3: =Head5 -> Audited Outcome | E3: =Head5 -> Audited Outcome | F3: =Head6 -> Original Budget | G3: =Head7 -> Adjusted Budget | H3: =Head8 -> Full Year Forecast | I3: =Head9 -> Budget Year 2022/23 | J3: =Head10 -> Budget Year +1 2023/24 | K3: =Head11 -> Budget Year +2 2024/25
A4: Revenue - Functional
A5: Governance and administration | C5: =SUM(C6:C8) -> 1356370636 | D5: =SUM(D6:D8) -> 1655378012 | E5: 1685956768 | F5: 1981018743 | G5: 1977515316 | H5: 1977515316 | I5: 2124738194 | J5: 2211904591 | K5: 2346436479
A6: Executive and council | C6: =A2A!C6 -> 2880224.32 | D6: =A2A!D6 -> 4200350.03 | E6: =A2A!E6 -> 3935419.51 | F6: =A2A!F6 -> 3578714.869 | G6: =A2A!G6 -> 3578714.869 | H6: =A2A!H6 -> 3578714.869 | I6: =A2A!I6 -> 5297070.115 | J6: =A2A!J6 -> 68977.19966 | K6: =A2A!K6 -> 72081.17364
A7: Finance and administration | C7: =A2A!C9 -> 1353490626 | D7: =A2A!D9 -> 1651177627 | E7: =A2A!E9 -> 1682018698 | F7: =A2A!F9 -> 1977440028 | G7: =A2A!G9 -> 1973936601 | H7: =A2A!H9 -> 1973936601 | I7: =A2A!I9 -> 2119441124 | J7: =A2A!J9 -> 2211835614 | K7: =A2A!K9 -> 2346364398
A8: Internal audit | C8: =A2A!C23 -> -214.2 | D8: =A2A!D23 -> 34.9 | E8: =A2A!E23 -> 2649.84 | F8: =A2A!F23 -> 0 | G8: =A2A!G23 -> 0 | H8: =A2A!H23 -> 0 | I8: =A2A!I23 -> 0 | J8: =A2A!J23 -> 0 | K8: =A2A!K23 -> 0
A9: Community and public safety | C9: =SUM(C10:C14) -> 111047176.2 | D9: =SUM(D10:D14) -> 234248834.7 | E9: 187149779.2 | F9: 130529800.2 | G9: 207794444 | H9: 207794444 | I9: 261951149.4 | J9: 218589975.4 | K9: 221865244.7
A10: Community and social services | C10: =A2A!C26 -> 38383158.22 | D10: =A2A!D26 -> 38829586.05 | E10: =A2A!E26 -> 24279484.79 | F10: =A2A!F26 -> 21601427.47 | G10: =A2A!G26 -> 26275427.47 | H10: =A2A!H26 -> 26275427.47 | I10: =A2A!I26 -> 21317576.9 | J10: =A2A!J26 -> 20578158.95 | K10: =A2A!K26 -> 21443267.68
A11: Sport and recreation | C11: =A2A!C48 -> 3231701.88 | D11: =A2A!D48 -> 863612.67 | E11: =A2A!E48 -> 523912.59 | F11: =A2A!F48 -> 291935.3701 | G11: =A2A!G48 -> 291935.3701 | H11: =A2A!H48 -> 291935.3701 | I11: =A2A!I48 -> 307553.9124 | J11: =A2A!J48 -> 321086.2846 | K11: =A2A!K48 -> 335535.1674
A12: Public safety | C12: =A2A!C54 -> 15287740.37 | D12: =A2A!D54 -> 15024987.17 | E12: =A2A!E54 -> 19851967.14 | F12: =A2A!F54 -> 3970362.811 | G12: =A2A!G54 -> 3970362.811 | H12: =A2A!H54 -> 3970362.811 | I12: =A2A!I54 -> 4191499.138 | J12: =A2A!J54 -> 4377070.441 | K12: =A2A!K54 -> 4574418.005
A13: Housing | C13: =A2A!C63 -> 54144575.78 | D13: =A2A!D63 -> 179530648.8 | E13: =A2A!E63 -> 142494414.7 | F13: =A2A!F63 -> 104666074.6 | G13: =A2A!G63 -> 177256718.3 | H13: =A2A!H63 -> 177256718.3 | I13: =A2A!I63 -> 236134519.5 | J13: =A2A!J63 -> 193313659.8 | K13: =A2A!K63 -> 195512023.9
A14: Health | C14: =A2A!C66 -> 0 | D14: =A2A!D66 -> 0 | E14: =A2A!E66 -> 0 | F14: =A2A!F66 -> 0 | G14: =A2A!G66 -> 0 | H14: =A2A!H66 -> 0 | I14: =A2A!I66 -> 0 | J14: =A2A!J66 -> 0 | K14: =A2A!K66 -> 0
A15: Economic and environmental services | C15: =SUM(C16:C18) -> 320772487.6 | D15: =SUM(D16:D18) -> 279315022.3 | E15: 272510272.7 | F15: 38298488.01 | G15: 93545442.74 | H15: 93545442.74 | I15: 64129389.03 | J15: 56537082.15 | K15: 57506250.85
A16: Planning and development | C16: =A2A!C75 -> 24478556.5 | D16: =A2A!D75 -> 33595749.05 | E16: =A2A!E75 -> 37507188.98 | F16: =A2A!F75 -> 38298488.01 | G16: =A2A!G75 -> 42985219.53 | H16: =A2A!H75 -> 42985219.53 | I16: =A2A!I75 -> 56730916.81 | J16: =A2A!J75 -> 48813077.15 | K16: =A2A!K75 -> 49434665.62
A17: Road transport | C17: =A2A!C86 -> 296222237.5 | D17: =A2A!D86 -> 245675268.4 | E17: =A2A!E86 -> 234900487.5 | F17: =A2A!F86 -> 0 | G17: =A2A!G86 -> 50446079.16 | H17: =A2A!H86 -> 50446079.16 | I17: =A2A!I86 -> 0 | J17: =A2A!J86 -> 0 | K17: =A2A!K86 -> 0
A18: Environmental protection | C18: =A2A!C91 -> 71693.55 | D18: =A2A!D91 -> 44004.88 | E18: =A2A!E91 -> 102596.2 | F18: =A2A!F91 -> 0 | G18: =A2A!G91 -> 114144.0492 | H18: =A2A!H91 -> 114144.0492 | I18: =A2A!I91 -> 7398472.228 | J18: =A2A!J91 -> 7724005.006 | K18: =A2A!K91 -> 8071585.231
A19: Trading services | C19: =SUM(C20:C23) -> 3440385279 | D19: =SUM(D20:D23) -> 3747985280 | E19: 3813440521 | F19: 4904764744 | G19: 4889486173 | H19: 4889486173 | I19: 5375761264 | J19: =SUM(J20:J23) -> 5655127538 | K19: 5774995130
A20: Energy sources | C20: =A2A!C99 -> 2078572477 | D20: =A2A!D99 -> 2241860229 | E20: =A2A!E99 -> 2196596746 | F20: =A2A!F99 -> 3038086189 | G20: =A2A!G99 -> 3038086189 | H20: =A2A!H99 -> 3038086189 | I20: =A2A!I99 -> 3366081726 | J20: =A2A!J99 -> 3546496090 | K20: =A2A!K99 -> 3699519889
A21: Water management | C21: =A2A!C103 -> 986973532 | D21: =A2A!D103 -> 1068639662 | E21: =A2A!E103 -> 1173377413 | F21: =A2A!F103 -> 1476594054 | G21: =A2A!G103 -> 1461315483 | H21: =A2A!H103 -> 1461315483 | I21: =A2A!I103 -> 1590735259 | J21: =A2A!J103 -> 1672237437 | K21: =A2A!K103 -> 1640407415
A22: Waste water management | C22: =A2A!C107 -> 240156178.2 | D22: =A2A!D107 -> 261156393.5 | E22: =A2A!E107 -> 288947747.1 | F22: =A2A!F107 -> 213394622.9 | G22: =A2A!G107 -> 213394622.9 | H22: =A2A!H107 -> 213394622.9 | I22: =A2A!I107 -> 231533141.2 | J22: =A2A!J107 -> 241947002.8 | K22: =A2A!K107 -> 230325880.8
A23: Waste management | C23: =A2A!C112 -> 134683091.7 | D23: =A2A!D112 -> 176328995.6 | E23: =A2A!E112 -> 154518614.7 | F23: =A2A!F112 -> 176689878.4 | G23: =A2A!G112 -> 176689878.4 | H23: =A2A!H112 -> 176689878.4 | I23: =A2A!I112 -> 187411138.4 | J23: =A2A!J112 -> 194447008.7 | K23: =A2A!K112 -> 204741945.9
A24: Other | B24: 4 | C24: =A2A!C117 -> 32391336.33 | D24: =A2A!D117 -> 32681201.35 | E24: =A2A!E117 -> 49061946.32 | F24: =A2A!F117 -> 64846075.39 | G24: =A2A!G117 -> 64846075.39 | H24: =A2A!H117 -> 64846075.39 | I24: =A2A!I117 -> 77598492.33 | J24: =A2A!J117 -> 81012825.99 | K24: =A2A!K117 -> 84658403.16
A25: ="Total "&A4 -> Total Revenue - Functional | B25: 2 | C25: =C5+C9+C15+C19+C24 -> 5260966915 | D25: =D5+D9+D15+D19+D24 -> 5949608350 | E25: =E5+E9+E15+E19+E24 -> 6008119286 | F25: 7119457851 | G25: 7233187451 | H25: 7233187451 | I25: =I5+I9+I15+I19+I24 -> 7904178489 | J25: 8223172013 | K25: 8485461508
A27: Expenditure - Functional
A28: Governance and administration | C28: =SUM(C29:C31) -> 818801719.6 | D28: =SUM(D29:D31) -> 1038362185 | E28: 1520817442 | F28: 1194463607 | G28: 1224607561 | H28: 1224607561 | I28: 1540690921 | J28: 1592486586 | K28: 1691041855
A29: Executive and council | C29: =A2A!C128 -> 137388195.8 | D29: =A2A!D128 -> 120747650.1 | E29: =A2A!E128 -> 117397847.6 | F29: =A2A!F128 -> 117003171.7 | G29: =A2A!G128 -> 126397378 | H29: =A2A!H128 -> 126397378 | I29: =A2A!I128 -> 127241905.2 | J29: =A2A!J128 -> 146201565.8 | K29: =A2A!K128 -> 153505000.7
A30: Finance and administration | C30: =A2A!C131 -> 650387245.6 | D30: =A2A!D131 -> 898976596.4 | E30: =A2A!E131 -> 1386457371 | F30: =A2A!F131 -> 1077460435 | G30: =A2A!G131 -> 1098210183 | H30: =A2A!H131 -> 1098210183 | I30: =A2A!I131 -> 1384009425 | J30: =A2A!J131 -> 1412785024 | K30: =A2A!K131 -> 1500439139
A31: Internal audit | C31: =A2A!C145 -> 31026278.23 | D31: =A2A!D145 -> 18637938.28 | E31: =A2A!E145 -> 16962222.89 | F31: =A2A!F145 -> 0 | G31: =A2A!G145 -> 0 | H31: =A2A!H145 -> 0 | I31: =A2A!I145 -> 29439590.82 | J31: =A2A!J145 -> 33499996.52 | K31: =A2A!K145 -> 37097715.02
A32: Community and public safety | C32: =SUM(C33:C37) -> 481268795.3 | D32: =SUM(D33:D37) -> 551807727.3 | E32: 551498800.6 | F32: 549083301.6 | G32: 601750011.3 | H32: 601750011.3 | I32: 660710277.8 | J32: 619691408.8 | K32: 646613647.7
A33: Community and social services | C33: =A2A!C148 -> 115379193.8 | D33: =A2A!D148 -> 113716805.4 | E33: =A2A!E148 -> 149092712.5 | F33: =A2A!F148 -> 138323594.9 | G33: =A2A!G148 -> 121773362 | H33: =A2A!H148 -> 121773362 | I33: =A2A!I148 -> 125042664 | J33: =A2A!J148 -> 135105939.2 | K33: =A2A!K148 -> 141263300.6
A34: Sport and recreation | C34: =A2A!C170 -> 141231777.1 | D34: =A2A!D170 -> 102539647.3 | E34: =A2A!E170 -> 121244913.6 | F34: =A2A!F170 -> 133116283.9 | G34: =A2A!G170 -> 146879207 | H34: =A2A!H170 -> 146879207 | I34: =A2A!I170 -> 153549379.2 | J34: =A2A!J170 -> 160464835.5 | K34: =A2A!K170 -> 167853637.9
A35: Public safety | C35: =A2A!C176 -> 165957697.4 | D35: =A2A!D176 -> 193214425.3 | E35: =A2A!E176 -> 196809242.2 | F35: =A2A!F176 -> 211547136.6 | G35: =A2A!G176 -> 231926410 | H35: =A2A!H176 -> 231926410 | I35: =A2A!I176 -> 219074354.1 | J35: =A2A!J176 -> 228736879.7 | K35: =A2A!K176 -> 239054549
A36: Housing | C36: =A2A!C185 -> 53147535.25 | D36: =A2A!D185 -> 136867613.7 | E36: =A2A!E185 -> 74912129 | F36: =A2A!F185 -> 50925986.88 | G36: =A2A!G185 -> 89116012.3 | H36: =A2A!H185 -> 89116012.3 | I36: =A2A!I185 -> 150164972.4 | J36: =A2A!J185 -> 81938174.4 | K36: =A2A!K185 -> 84391528.94
A37: Health | C37: =A2A!C188 -> 5552591.7 | D37: =A2A!D188 -> 5469235.54 | E37: =A2A!E188 -> 9439803.22 | F37: =A2A!F188 -> 15170299.41 | G37: =A2A!G188 -> 12055020 | H37: =A2A!H188 -> 12055020 | I37: =A2A!I188 -> 12878908.15 | J37: =A2A!J188 -> 13445580.11 | K37: =A2A!K188 -> 14050631.22
A38: Economic and environmental services | C38: =SUM(C39:C41) -> 377347346.8 | D38: =SUM(D39:D41) -> 332744460.6 | E38: 313304803.3 | F38: 421022081.1 | G38: 403576432.4 | H38: 403576432.4 | I38: 405827717 | J38: 423665315.6 | K38: 443317694.9
A39: Planning and development | C39: =A2A!C197 -> 71022853.18 | D39: =A2A!D197 -> 83509759.39 | E39: =A2A!E197 -> 69071779.38 | F39: =A2A!F197 -> 73618014.47 | G39: =A2A!G197 -> 76603372.41 | H39: =A2A!H197 -> 76603372.41 | I39: =A2A!I197 -> 80924439.48 | J39: =A2A!J197 -> 84419004.97 | K39: =A2A!K197 -> 88604374.72
A40: Road transport | C40: =A2A!C208 -> 286108350.3 | D40: =A2A!D208 -> 228801221.2 | E40: =A2A!E208 -> 223381413.3 | F40: =A2A!F208 -> 321529184.4 | G40: =A2A!G208 -> 302588292 | H40: =A2A!H208 -> 302588292 | I40: =A2A!I208 -> 298840068.3 | J40: =A2A!J208 -> 312032901.4 | K40: =A2A!K208 -> 326271704
A41: Environmental protection | C41: =A2A!C213 -> 20216143.31 | D41: =A2A!D213 -> 20433480.06 | E41: =A2A!E213 -> 20851610.65 | F41: =A2A!F213 -> 25874882.14 | G41: =A2A!G213 -> 24384768 | H41: =A2A!H213 -> 24384768 | I41: =A2A!I213 -> 26063209.23 | J41: =A2A!J213 -> 27213409.3 | K41: =A2A!K213 -> 28441616.2
A42: Trading services | C42: =SUM(C43:C46) -> 2929768589 | D42: =SUM(D43:D46) -> 3726987414 | E42: 3951388059 | F42: =SUM(F43:F46) -> 4189944597 | G42: 4248508329 | H42: 4248508329 | I42: 4650418654 | J42: 4843365518 | K42: =SUM(K43:K46) -> 5049705981
A43: Energy sources | C43: =A2A!C221 -> 1856577339 | D43: =A2A!D221 -> 2095935638 | E43: =A2A!E221 -> 2126230124 | F43: =A2A!F221 -> 2660033713 | G43: =A2A!G221 -> 2670935409 | H43: =A2A!H221 -> 2670935409 | I43: =A2A!I221 -> 2998365056 | J43: =A2A!J221 -> 3120437004 | K43: =A2A!K221 -> 3250799132
A44: Water management | C44: =A2A!C225 -> 731238683.2 | D44: =A2A!D225 -> 1216151983 | E44: =A2A!E225 -> 1382222234 | F44: =A2A!F225 -> 1127189124 | G44: =A2A!G225 -> 1147009167 | H44: =A2A!H225 -> 1147009167 | I44: =A2A!I225 -> 1198571090 | J44: =A2A!J225 -> 1250454089 | K44: =A2A!K225 -> 1305993489
A45: Waste water management | C45: =A2A!C229 -> 221475815.2 | D45: =A2A!D229 -> 259564356.7 | E45: =A2A!E229 -> 294864459.8 | F45: =A2A!F229 -> 287545278.3 | G45: =A2A!G229 -> 307977432 | H45: =A2A!H229 -> 307977432 | I45: =A2A!I229 -> 302374702.1 | J45: =A2A!J229 -> 314540474.2 | K45: =A2A!K229 -> 327639283.9
A46: Waste management | C46: =A2A!C234 -> 120476752.2 | D46: =A2A!D234 -> 155335436 | E46: =A2A!E234 -> 148071241.3 | F46: =A2A!F234 -> 115176481.1 | G46: =A2A!G234 -> 122586321 | H46: =A2A!H234 -> 122586321 | I46: =A2A!I234 -> 151107806.3 | J46: =A2A!J234 -> 157933950.6 | K46: =A2A!K234 -> 165274076.9
A47: Other | B47: 4 | C47: =A2A!C239 -> 70986130.12 | D47: =A2A!D239 -> 76856662.09 | E47: =A2A!E239 -> 66124376.69 | F47: =A2A!F239 -> 62486356.9 | G47: =A2A!G239 -> 59667319 | H47: =A2A!H239 -> 59667319 | I47: =A2A!I239 -> 64362345.73 | J47: =A2A!J239 -> 67321072.68 | K47: =A2A!K239 -> 70484151.02
A48: ="Total "&A27 -> Total Expenditure - Functional | B48: 3 | C48: =C28+C32+C38+C42+C47 -> 4678172581 | D48: =D28+D32+D38+D42+D47 -> 5726758448 | E48: =E28+E32+E38+E42+E47 -> 6403133482 | F48: =F28+F32+F38+F42+F47 -> 6416999943 | G48: 6538109653 | H48: 6538109653 | I48: 7322009915 | J48: 7546529901 | K48: 7901163330
A49: =result -> Surplus/(Deficit) for the year | C49: =C25-C48 -> 582794333.8 | D49: =D25-D48 -> 222849901.8 | E49: -395014195.2 | F49: 702457908.4 | G49: 695077797.9 | H49: 695077797.9 | I49: 582168573.9 | J49: 676642111.7 | K49: 584298178.2
A50: =head27a -> References
A51: 1. Government Finance Statistics Functions and Sub-functions are standardised to assist the compilation of national and international accounts for comparison purposes
A52: 2. Total Revenue by functional classification must reconcile to Total Operating Revenue shown in Budgeted Financial Performance (revenue and expenditure)
A53: 3. Total Expenditure by Functional Classification must reconcile to Total Operating Expenditure shown in Budgeted Financial Performance (revenue and expenditure)
A54: 4. All amounts must be classified under a functional classification . The GFS function 'Other' is only for Abbatoirs, Air Transport, Forestry, Licensing and Regulation, Markets and Tourism - and if used must be supported by footnotes. Nothing else may be placed under 'Other'. Assign associate share to relevant classification.
A57: check oprev balance | C57: =C25-'A4-FinPerf RE'!C59 -> 0 | D57: =D25-'A4-FinPerf RE'!D59 -> 0.1399993896 | E57: =E25-'A4-FinPerf RE'!E59 -> 0 | F57: =F25-'A4-FinPerf RE'!F59 -> 320247238.2 | G57: =G25-'A4-FinPerf RE'!G59 -> 320361385.2 | H57: =H25-'A4-FinPerf RE'!H59 -> 320361385.2 | I57: =I25-'A4-FinPerf RE'!J59 -> 346693755.5 | J57: =J25-'A4-FinPerf RE'!K59 -> 364453990.6 | K57: =K25-'A4-FinPerf RE'!L59 -> 384949647.8
A58: check opexp balance | C58: =C48-'A4-FinPerf RE'!C35 -> 175077372.3 | D58: =D48-'A4-FinPerf RE'!D35 -> 0 | E58: =E48-'A4-FinPerf RE'!E35 -> 0 | F58: =F48-'A4-FinPerf RE'!F35 -> 298585924.5 | G58: =G48-'A4-FinPerf RE'!G35 -> 297586800.6 | H58: =H48-'A4-FinPerf RE'!H35 -> 297586800.6 | I58: =I48-'A4-FinPerf RE'!J35 -> 345185830.9 | J58: =J48-'A4-FinPerf RE'!K35 -> 361059358.3 | K58: =K48-'A4-FinPerf RE'!L35 -> 378597936.6

Sheet A2A
A1: =muni&" - "&Approve3 -> KZN225 Msunduzi - Table A2 Consolidated Budgeted Financial Performance (revenue and expenditure by functional classification)
A2: ="Functional Classification "&desc -> Functional Classification Description | B2: =head27 -> Ref | C2: =head1b -> 2018/19 | D2: =head1A -> 2019/20 | E2: =Head1 -> 2020/21 | F2: =Head2 -> Current Year 2021/22 | I2: =Head3 -> 2022/23 Medium Term Revenue & Expenditure Framework
A3: R thousand | B3: 1 | C3: =Head5 -> Audited Outcome | D3: =Head5 -> Audited Outcome | E3: =Head5 -> Audited Outcome | F3: =Head6 -> Original Budget | G3: =Head7 -> Adjusted Budget | H3: =Head8 -> Full Year Forecast | I3: =Head9 -> Budget Year 2022/23 | J3: =Head10 -> Budget Year +1 2023/24 | K3: =Head11 -> Budget Year +2 2024/25
A4: Revenue - Functional | N4: Sum of 2023/24 | O4: Sum of 2024/25
A5: Municipal governance and administration | C5: =C6+C9+C23 -> 1356370636 | D5: 1655378012 | E5: 1685956768 | F5: 1981018743 | G5: 1977515316 | H5: 1977515316 | I5: 2124738194 | J5: 2211904591 | K5: 2346436479
A6: Executive and council | C6: =SUM(C7:C8) -> 2880224.32 | D6: =SUM(D7:D8) -> 4200350.03 | E6: 3935419.51 | F6: 3578714.869 | G6: 3578714.869 | H6: 3578714.869 | I6: 5297070.115 | J6: 68977.19966 | K6: 72081.17364
A7: Mayor and Council | C7: -5346.85 | D7: -128873.71 | E7: 12674.79 | F7: 3578714.869 | G7: 3578714.869 | H7: 3578714.869
A8: Municipal Manager, Town Secretary and Chief Executive | C8: 2885571.17 | D8: 4329223.74 | E8: 3922744.72 | G8: 0 | H8: 0 | I8: 5297070.115 | J8: 68977.19966 | K8: 72081.17364
A9: Finance and administration | C9: =SUM(C10:C22) -> 1353490626 | D9: 1651177627 | E9: 1682018698 | F9: 1977440028 | G9: 1973936601 | H9: 1973936601 | I9: 2119441124 | J9: 2211835614 | K9: 2346364398
A10: Administrative and Corporate Support | C10: -8274.37 | D10: 442.16 | E10: 12307.09 | G10: 0 | H10: 0
A11: Asset Management | C11: 649425.9 | D11: 1356895.9 | E11: 1587023.03 | F11: 11713700.32 | G11: 11713700.32 | H11: 11713700.32 | I11: 12341486.85 | J11: 12887797.55 | K11: 13244426.77
A12: Finance | C12: 1336970601 | D12: 1600339337 | E12: 1665539963 | F12: 1939216554 | G12: 1939216554 | H12: 1939216554 | I12: 2080569938 | J12: 2180827329 | K12: 2314184061
A13: Fleet Management | D13: 0 | E13: 0 | G13: 0 | H13: 0
A14: Human Resources | C14: 10188079.77 | D14: 9291052.94 | E14: 8063480.46 | F14: 12339543.78 | G14: 8836116 | H14: 8836116 | I14: 11601353.69 | J14: 2535295.209 | K14: 2649383.493
A15: Information Technology | C15: -276934.15 | D15: 616.54 | E15: 22555.09 | F15: 2123.870749 | G15: 2123.870749 | H15: 2123.870749 | I15: 2237.497834 | J15: 2335.947739 | K15: 2441.065387
A16: Legal Services | C16: 77204.31 | D16: 135.57 | E16: 2567.63 | F16: 270861.2043 | G16: 270861.2043 | H16: 270861.2043 | I16: 285352.2787 | J16: 297907.779 | K16: 311313.629
A17: Marketing, Customer Relations, Publicity and Media Co-ordination | C17: -33.94 | D17: 13.04 | E17: 1362.34 | G17: 0 | H17: 0
A18: Property Services | C18: 5818554.88 | D18: 40108986.5 | E18: 6676492.88 | F18: 13602002.3 | G18: 13602002.3 | H18: 13602002.3 | I18: 14329709.42 | J18: 14960216.63 | K18: 15633426.38
A19: Risk Management | D19: 0 | E19: 0 | G19: 0 | H19: 0
A20: Security Services | C20: -1639.48 | D20: 173.73 | E20: 3256.51 | G20: 0 | H20: 0
A21: Supply Chain Management | C21: 73641.73 | D21: 79973.34 | E21: 109689.85 | F21: 295242.5403 | G21: 295242.5403 | H21: 295242.5403 | I21: 311045.9568 | J21: 324731.9789 | K21: 339344.918
A22: Valuation Service | D22: 0 | G22: 0 | H22: 0
A23: Internal audit | C23: =SUM(C24:C24) -> -214.2 | D23: 34.9 | E23: 2649.84 | F23: 0 | G23: 0 | H23: 0 | I23: 0 | J23: 0 | K23: 0
A24: Governance Function | C24: -214.2 | D24: 34.9 | E24: 2649.84
A25: Community and public safety | C25: =C26+C48+C54+C63+C66 -> 111047176.2 | D25: 234248834.7 | E25: 187149779.2 | F25: 130529800.2 | G25: 207794444 | H25: 207794444 | I25: 261951149.4 | J25: 218589975.4 | K25: 221865244.7
A26: Community and social services | C26: =SUM(C27:C47) -> 38383158.22 | D26: =SUM(D27:D47) -> 38829586.05 | E26: 24279484.79 | F26: 21601427.47 | G26: 26275427.47 | H26: 26275427.47 | I26: 21317576.9 | J26: 20578158.95 | K26: 21443267.68
A27: Aged Care | C27: -11.56 | D27: 63 | G27: 0 | H27: 0
A28: Agricultural | D28: 0 | G28: 0 | H28: 0
A29: Animal Care and Diseases | D29: 0 | G29: 0 | H29: 0 | N29: 321086.2846 | O29: 335535.1674
A30: Cemeteries, Funeral Parlours and Crematoriums | C30: 3442480.76 | D30: 2698963.34 | E30: 5208007.31 | F30: 3711678.855 | G30: 3711678.855 | H30: 3711678.855 | I30: 3910259.72 | J30: 4082317.421 | K30: 4266023.782 | N30: 39572415.82 | O30: 42738209.09
A31: Child Care Facilities | D31: 0 | E31: 0 | G31: 0 | H31: 0 | N31: 154874592.9 | O31: 162003736.8
A32: Community Halls and Facilities | C32: 20687391.79 | D32: 6685882.14 | E32: 2902948.82 | F32: 1101748.615 | G32: 1101748.615 | H32: 1101748.615 | I32: 1160697.177 | J32: 1211767.852 | K32: 1266297.406 | N32: 241947002.8 | O32: 230325880.8
A33: Consumer Protection | D33: 0 | E33: 0 | G33: 0 | H33: 0 | N33: 1368557437 | O33: 1320895415
A34: Cultural Matters | D34: 0 | E34: 0 | G34: 0 | H34: 0
A35: Disaster Management | D35: 0 | E35: 0 | G35: 0 | H35: 0 | N35: 7750492013 | O35: 7999545508
A36: Education | D36: 0 | E36: 0 | G36: 0 | H36: 0
A37: Indigenous and Customary Law | D37: 0 | E37: 0 | G37: 0 | H37: 0
A38: Industrial Promotion | D38: 0 | E38: 0 | G38: 0 | H38: 0
A39: Language Policy | D39: 0 | E39: 0 | G39: 0 | H39: 0
A40: Libraries and Archives | C40: 13316692.03 | D40: 28731129.23 | E40: 15205234.72 | F40: 16363000 | G40: 21231000 | H40: 21231000 | I40: 15438000 | J40: 14438000 | K40: 15035000
A41: Literacy Programmes | D41: 0 | E41: 0 | G41: 0 | H41: 0
A42: Media Services | D42: 0 | E42: 0 | G42: 0 | H42: 0
A43: Museums and Art Galleries | C43: 938629.27 | D43: 713369.28 | E43: 953550.37 | F43: 425000 | G43: 231000 | H43: 231000 | I43: 808620 | J43: 846073.68 | K43: 875946.4956
A44: Population Development | C44: -2024.07 | D44: 179.06 | E44: 9743.57 | G44: 0 | H44: 0
A45: Provincial Cultural Matters | G45: 0 | H45: 0
A46: Theatres | G46: 0 | H46: 0
A47: Zoo's | G47: 0 | H47: 0
A48: Sport and recreation | C48: =SUM(C49:C53) -> 3231701.88 | D48: =SUM(D49:D53) -> 863612.67 | E48: 523912.59 | F48: 291935.3701 | G48: 291935.3701 | H48: 291935.3701 | I48: 307553.9124 | J48: 321086.2846 | K48: 335535.1674
A49: Beaches and Jetties
A50: Casinos, Racing, Gambling, Wagering
A51: Community Parks (including Nurseries) | C51: -3855.34 | D51: 527.86 | E51: 4738.68
A52: Recreational Facilities | C52: 3235557.22 | D52: 863084.81 | E52: 519173.91 | F52: 291935.3701 | G52: 291935.3701 | H52: 291935.3701 | I52: 307553.9124 | J52: 321086.2846 | K52: 335535.1674
A53: Sports Grounds and Stadiums
A54: Public safety | C54: =SUM(C55:C62) -> 15287740.37 | D54: 15024987.17 | E54: 19851967.14 | F54: 3970362.811 | G54: 3970362.811 | H54: 3970362.811 | I54: 4191499.138 | J54: 4377070.441 | K54: 4574418.005
A55: Civil Defence | C55: -1461.53 | D55: -814.29 | E55: 1199482.64
A56: Cleansing | D56: 0 | E56: 0
A57: Control of Public Nuisances | D57: 0 | E57: 0
A58: Fencing and Fences | D58: 0 | E58: 0
A59: Fire Fighting and Protection | C59: 132929.82 | D59: 216610.23 | E59: 310842.79 | F59: 352152.9407 | G59: 352152.9407 | H59: 352152.9407 | I59: 371030.9203 | J59: 387395.4984 | K59: 404841.2867
A60: Licensing and Control of Animals | D60: 0 | E60: 0
A61: Police Forces, Traffic and Street Parking Control | C61: 15156272.08 | D61: 14809191.23 | E61: 18341641.71 | F61: 3618209.871 | G61: 3618209.871 | H61: 3618209.871 | I61: 3820468.217 | J61: 3989674.943 | K61: 4169576.718
A62: Pounds
A63: Housing | C63: =SUM(C64:C65) -> 54144575.78 | D63: =SUM(D64:D65) -> 179530648.8 | E63: 142494414.7 | F63: 104666074.6 | G63: 177256718.3 | H63: 177256718.3 | I63: 236134519.5 | J63: 193313659.8 | K63: 195512023.9
A64: Housing | C64: 54144575.78 | D64: 179530648.8 | E64: 142494414.7 | F64: 104666074.6 | G64: 177256718.3 | H64: 177256718.3 | I64: 140337500.6 | J64: 71313659.76 | K64: 73512023.89
A65: Informal Settlements | I65: 95797018.87 | J65: 122000000 | K65: 122000000
A66: Health | C66: =SUM(C67:C73) -> 0 | D66: =SUM(D67:D73) -> 0 | E66: 0 | F66: 0 | G66: 0 | H66: 0 | I66: 0 | J66: 0 | K66: 0
A67: Ambulance
A68: Health Services
A69: Laboratory Services
A70: Food Control
A71: Health Surveillance and Prevention of Communicable Diseases including immunizations
A72: Vector Control
A73: Chemical Safety
A74: Economic and environmental services | C74: =C75+C86+C91 -> 320772487.6 | D74: 279315022.3 | E74: 272510272.7 | F74: 38298488.01 | G74: 93545442.74 | H74: 93545442.74 | I74: 64129389.03 | J74: 56537082.15 | K74: 57506250.85
A75: Planning and development | C75: =SUM(C76:C85) -> 24478556.5 | D75: =SUM(D76:D85) -> 33595749.05 | E75: 37507188.98 | F75: 38298488.01 | G75: 42985219.53 | H75: 42985219.53 | I75: 56730916.81 | J75: 48813077.15 | K75: 49434665.62
A76: Billboards | G76: 0 | H76: 0
A77: Corporate Wide Strategic Planning (IDPs, LEDs) | C77: -303.31 | D77: 13.78 | E77: 300065.51 | G77: 0 | H77: 0
A78: Central City Improvement District | D78: 0 | E78: 0 | G78: 0 | H78: 0
A79: Development Facilitation | D79: 0 | E79: 0 | G79: 0 | H79: 0
A80: Economic Development/Planning | C80: -159.55 | D80: 23.95 | E80: 364155.19 | G80: 3686731.53 | H80: 3686731.53 | I80: 43500000 | J80: 35000000 | K80: 35000000
A81: Regional Planning and Development | D81: 0 | E81: 0 | G81: 0 | H81: 0 | I81: 13230916.81 | J81: 13813077.15 | K81: 14434665.62
A82: Town Planning, Building Regulations and Enforcement, and City Engineer | C82: 24479019.36 | D82: 33595711.32 | E82: 36842968.28 | F82: 38298488.01 | G82: 39298488 | H82: 39298488
A83: Project Management Unit | G83: 0 | H83: 0
A84: Provincial Planning | G84: 0 | H84: 0
A85: Support to Local Municipalities | G85: 0 | H85: 0
A86: Road transport | C86: =SUM(C87:C90) -> 296222237.5 | D86: 245675268.4 | E86: 234900487.5 | F86: 0 | G86: 50446079.16 | H86: 50446079.16 | I86: 0 | J86: 0 | K86: 0
A87: Public Transport | C87: 203207782.3 | D87: 135535047.3 | E87: 178133714.4 | G87: 50446079.16 | H87: 50446079.16
A88: Road and Traffic Regulation | D88: 0 | E88: 0 | G88: 0 | H88: 0
A89: Roads | C89: 93014455.21 | D89: 110140221.1 | E89: 56766426.26 | G89: 0 | H89: 0
A90: Taxi Ranks | E90: 346.84 | G90: 0 | H90: 0
A91: Environmental protection | C91: =SUM(C92:C97) -> 71693.55 | D91: =SUM(D92:D97) -> 44004.88 | E91: 102596.2 | F91: 0 | G91: 114144.0492 | H91: 114144.0492 | I91: 7398472.228 | J91: 7724005.006 | K91: 8071585.231
A92: Biodiversity and Landscape | G92: 0 | H92: 0
A93: Coastal Protection | G93: 0 | H93: 0
A94: Indigenous Forests | G94: 0 | H94: 0
A95: Nature Conservation | G95: 0 | H95: 0
A96: Pollution Control | C96: 71693.55 | D96: 44004.88 | E96: 102596.2 | G96: 114144.0492 | H96: 114144.0492 | I96: 7398472.228 | J96: 7724005.006 | K96: 8071585.231
A97: Soil Conservation | G97: 0 | H97: 0
A98: Trading services | C98: =C99+C103+C107+C112 -> 3440385279 | D98: =D99+D103+D107+D112 -> 3747985280 | E98: 3813440521 | F98: 4904764744 | G98: 4889486173 | H98: 4889486173 | I98: 5375761264 | J98: 5655127538 | K98: =K99+K103+K107+K112 -> 5774995130
A99: Energy sources | C99: =SUM(C100:C102) -> 2078572477 | D99: =SUM(D100:D102) -> 2241860229 | E99: 2196596746 | F99: 3038086189 | G99: 3038086189 | H99: 3038086189 | I99: 3366081726 | J99: 3546496090 | K99: 3699519889
A100: Electricity | C100: 2078572477 | D100: 2240942829 | E100: 2196596746 | F100: 3038086189 | G100: 3038086189 | H100: 3038086189 | I100: 3336927726 | J100: 3534496090 | K100: 3690115889
A101: Street Lighting and Signal Systems | D101: 917400.07 | G101: 0 | H101: 0 | I101: 29154000 | J101: 12000000 | K101: 9404000
A102: Nonelectric Energy | G102: 0 | H102: 0 | N102: 39572415.82 | O102: 42738209.09
A103: Water management | C103: =SUM(C104:C106) -> 986973532 | D103: =SUM(D104:D106) -> 1068639662 | E103: 1173377413 | F103: 1476594054 | G103: 1461315483 | H103: 1461315483 | I103: 1590735259 | J103: 1672237437 | K103: 1640407415 | N103: 154874592.9 | O103: 162003736.8
A104: Water Treatment | G104: 0 | H104: 0 | N104: 241947002.8 | O104: 230325880.8
A105: Water Distribution | C105: 986973532 | D105: 1068639662 | E105: 1173377413 | F105: 1476594054 | G105: 1461315483 | H105: 1461315483 | I105: 1312755169 | J105: 1368557437 | K105: 1320895415 | N105: 1368557437 | O105: 1320895415
A106: Water Storage | G106: 0 | H106: 0 | I106: 277980090 | J106: 303680000 | K106: 319512000
A107: Waste water management | C107: =SUM(C108:C111) -> 240156178.2 | D107: =SUM(D108:D111) -> 261156393.5 | E107: 288947747.1 | F107: 213394622.9 | G107: 213394622.9 | H107: 213394622.9 | I107: 231533141.2 | J107: 241947002.8 | K107: 230325880.8
A108: Public Toilets | D108: 7 | E108: 39.55
A109: Sewerage | C109: 236359161.6 | D109: 261154067.6 | E109: 288947597 | F109: 213394622.9 | G109: 213394622.9 | H109: 213394622.9 | I109: 231533141.2 | J109: 241947002.8 | K109: 230325880.8
A110: Storm Water Management | C110: 3797016.59 | D110: 2318.9 | E110: 110.56
A111: Waste Water Treatment
A112: Waste management | C112: =SUM(C113:C116) -> 134683091.7 | D112: =SUM(D113:D116) -> 176328995.6 | E112: 154518614.7 | F112: 176689878.4 | G112: 176689878.4 | H112: 176689878.4 | I112: 187411138.4 | J112: 194447008.7 | K112: 204741945.9
A113: Recycling
A114: Solid Waste Disposal (Landfill Sites) | C114: 18758238.32 | D114: 54317150.46 | E114: 39354941.57 | F114: 36843731.06 | G114: 36843731.06 | H114: 36843731.06 | I114: 39331060.45 | J114: 39572415.82 | K114: 42738209.09
A115: Solid Waste Removal | C115: 115924853.4 | D115: 122011845.2 | E115: 115163673.2 | F115: 139846147.4 | G115: 139846147.4 | H115: 139846147.4 | I115: 148080077.9 | J115: 154874592.9 | K115: 162003736.8
A116: Street Cleaning
A117: Other | C117: =SUM(C118:C123) -> 32391336.33 | D117: =SUM(D118:D123) -> 32681201.35 | E117: 49061946.32 | F117: 64846075.39 | G117: 64846075.39 | H117: 64846075.39 | I117: 77598492.33 | J117: 81012825.99 | K117: 84658403.16
A118: Abattoirs | I118: 12413491.87 | J118: 12959685.51 | K118: 13542871.36
A119: Air Transport | C119: 10407494.53 | D119: 7386267.73 | E119: 6456463.56 | F119: 10525223.09 | G119: 10525223.09 | H119: 10525223.09 | I119: 9687813.765 | J119: 10114077.57 | K119: 10569211.06
A120: Forestry | C120: 75711.33 | D120: 4347826.09 | E120: 21904865.39 | F120: 8073178.138 | G120: 8073178.138 | H120: 8073178.138 | I120: 558867.5302 | J120: 583457.7016 | K120: 609713.2981
A121: Licensing and Regulation | C121: 214997.59 | D121: 103515.5 | E121: 243272.99 | F121: 465741.516 | G121: 465741.516 | H121: 465741.516 | I121: 54938319.17 | J121: 57355605.21 | K121: 59936607.45
A122: Markets | C122: 21693132.88 | D122: 20843579.62 | E122: 20456577.8 | F122: 45781932.64 | G122: 45781932.64 | H122: 45781932.64
A123: Tourism | D123: 12.41 | E123: 766.58
A124: ="Total "&A4 -> Total Revenue - Functional | B124: 2 | C124: =C5+C25+C74+C98+C117 -> 5260966915 | D124: 5949608350 | E124: 6008119286 | F124: 7119457851 | G124: 7233187451 | H124: 7233187451 | I124: 7904178489 | J124: 8223172013 | K124: 8485461508
A126: Expenditure - Functional
A127: =A5 -> Municipal governance and administration | C127: =C128+C131+C145 -> 818801719.6 | D127: 1038362185 | E127: 1520817442 | F127: 1194463607 | G127: 1224607561 | H127: 1224607561 | I127: 1540690921 | J127: 1592486586 | K127: 1691041855
A128: Executive and council | C128: =SUM(C129:C130) -> 137388195.8 | D128: 120747650.1 | E128: 117397847.6 | F128: 117003171.7 | G128: 126397378 | H128: 126397378 | I128: 127241905.2 | J128: 146201565.8 | K128: 153505000.7 | N128: Sum of 2022/23 | O128: Sum of 2023/24 | P128: Sum of 2024/25
A129: Mayor and Council | C129: 81996424.29 | D129: 78987084.48 | E129: 76667592.01 | F129: 81937773.72 | G129: 94525624 | H129: 94525624 | I129: 93099462.34 | J129: 97907655.73 | K129: 103668871
A130: Municipal Manager, Town Secretary and Chief Executive | C130: 55391771.54 | D130: 41760565.63 | E130: 40730255.64 | F130: 35065398.01 | G130: 31871754 | H130: 31871754 | I130: 34142442.88 | J130: 48293910.03 | K130: 49836129.69
A131: Finance and administration | C131: =SUM(C132:C144) -> 650387245.6 | D131: 898976596.4 | E131: 1386457371 | F131: 1077460435 | G131: 1098210183 | H131: 1098210183 | I131: 1384009425 | J131: 1412785024 | K131: 1500439139
A132: Administrative and Corporate Support | C132: 45605364.54 | D132: 46763894.56 | E132: 48520851.24 | F132: 60503138.97 | G132: 55352704 | H132: 55352704 | I132: 58617969.96 | J132: 61199296.11 | K132: 63955515.21
A133: Asset Management | C133: 59686302.83 | D133: 61292864.67 | E133: 62056116.67 | F133: 64914782.56 | G133: 67334696 | H133: 67334696 | I133: 76580645.91 | J133: 79117090.82 | K133: 86310331.67
A134: Finance | C134: 123956322.3 | D134: 349092055.4 | E134: 810749316.7 | F134: 541319059.7 | G134: 574898078 | H134: 574898078 | I134: 760755988.3 | J134: 782118385.7 | K134: 834824269.5
A135: Fleet Management | E135: 0 | G135: 0 | H135: 0
A136: Human Resources | C136: 78437677.91 | D136: 78526261.1 | E136: 78065597.33 | F136: 120049117.5 | G136: 83147794 | H136: 83147794 | I136: 100999995.2 | J136: 95876856.67 | K136: 100201201.5
A137: Information Technology | C137: 37798958.89 | D137: 39378015.42 | E137: 41373957.4 | F137: 32962041.95 | G137: 42814950 | H137: 42814950 | I137: 54699390.5 | J137: 56808390.9 | K137: 59062478.51
A138: Legal Services | C138: 14691075.27 | D138: 14770253.19 | E138: 13829269.89 | F138: 16293851.43 | G138: 17784474 | H138: 17784474 | I138: 18733791.78 | J138: 19558570.25 | K138: 20439224.09
A139: Marketing, Customer Relations, Publicity and Media Co-ordination | C139: 14958507.97 | D139: 15603502.73 | E139: 16349277.73 | F139: 14978962.98 | G139: 16956797 | H139: 16956797 | I139: 17753994.79 | J139: 18535199.1 | K139: 19369312.26
A140: Property Services | C140: 65354566.82 | D140: 75555808.52 | E140: 66799138.26 | F140: 59734838.36 | G140: 50805709 | H140: 50805709 | I140: 62963650.27 | J140: 55079585.26 | K140: 60143513.59
A141: Risk Management | E141: 0 | G141: 0 | H141: 0
A142: Security Services | C142: 148065942.5 | D142: 154812636.4 | E142: 184663244.6 | F142: 120933820.1 | G142: 125016232 | H142: 125016232 | I142: 163804125.8 | J142: 171012240.1 | K142: 178708563.2
A143: Supply Chain Management | C143: 61832526.53 | D143: 63181304.39 | E143: 64050601.54 | F143: 45770821.54 | G143: 64098749 | H143: 64098749 | I143: 69099872.09 | J143: 73479409.28 | K143: 77424729.42
A144: Valuation Service | E144: 0 | G144: 0 | H144: 0
A145: Internal audit | C145: =SUM(C146:C146) -> 31026278.23 | D145: 18637938.28 | E145: 16962222.89 | F145: 0 | G145: 0 | H145: 0 | I145: 29439590.82 | J145: 33499996.52 | K145: 37097715.02
A146: Governance Function | C146: 31026278.23 | D146: 18637938.28 | E146: 16962222.89 | I146: 29439590.82 | J146: 33499996.52 | K146: 37097715.02
A147: Community and public safety | C147: =C148+C170+C176+C185+C188 -> 481268795.3 | D147: 551807727.3 | E147: 551498800.6 | F147: 549083301.6 | G147: 601750011.3 | H147: 601750011.3 | I147: 660710277.8 | J147: 619691408.8 | K147: 646613647.7
A148: Community and social services | C148: =SUM(C149:C169) -> 115379193.8 | D148: =SUM(D149:D169) -> 113716805.4 | E148: 149092712.5 | F148: 138323594.9 | G148: 121773362 | H148: 121773362 | I148: 125042664 | J148: 135105939.2 | K148: 141263300.6
A149: Aged Care | C149: 40580.41 | D149: 28650.61 | E149: 556.83 | F149: 16610.15 | G149: 6609 | H149: 6609 | I149: 42557.7495 | J149: 44435.86797 | K149: 46441.36071
A150: Agricultural | E150: 0 | G150: 0 | H150: 0
A151: Animal Care and Diseases | C151: 1248394.08 | D151: 1322049.36 | E151: 1400050.2 | F151: 1482653.13 | G151: 1482653 | H151: 1482653 | I151: 1570129.68 | J151: 1639215.386 | K151: 1712980.078
A152: Cemeteries, Funeral Parlours and Crematoriums | C152: 26659866.68 | D152: 25987108.46 | E152: 26495873.82 | F152: 28695970.24 | G152: 28749333 | H152: 28749333 | I152: 30129423.07 | J152: 31460107.15 | K152: 32881070.88
A153: Child Care Facilities | E153: 0 | G153: 0 | H153: 0
A154: Community Halls and Facilities | C154: 15162401.66 | D154: 15253772.86 | E154: 45190957.96 | F154: 15871751.88 | G154: 13058600 | H154: 13058600 | I154: 15113189.35 | J154: 15923112.21 | K154: 16745880.81
A155: Consumer Protection | E155: 0 | G155: 0 | H155: 0
A156: Cultural Matters | E156: 0 | G156: 0 | H156: 0
A157: Disaster Management | E157: 0 | G157: 0 | H157: 0
A158: Education | E158: 0 | G158: 0 | H158: 0
A159: =A37 -> Indigenous and Customary Law | E159: 0
A160: Industrial Promotion | E160: 0 | G160: 0 | H160: 0
A161: Language Policy | E161: 0 | G161: 0 | H161: 0
A162: Libraries and Archives | C162: 60079823.96 | D162: 59331929.19 | E162: 63852761.41 | F162: 76962358.47 | G162: 66921314 | H162: 66921314 | I162: 66893102.21 | J162: 74232850.09 | K162: 77533785.84
A163: Literacy Programmes | E163: 0 | G163: 0 | H163: 0
A164: Media Services | E164: 0 | G164: 0 | H164: 0
A165: Museums and Art Galleries | C165: 7502590.81 | D165: 6707807.71 | E165: 7430643.27 | F165: 6232282.659 | G165: 6381471 | H165: 6381471 | I165: 6068299.6 | J165: 6340545.494 | K165: 6621217.635
A166: Population Development | C166: 4679088.37 | D166: 5079039.34 | E166: 4714883.87 | F166: 9061968.331 | G166: 5173382 | H166: 5173382 | I166: 5225962.34 | J166: 5465672.957 | K166: 5721924.001
A167: Provincial Cultural Matters | E167: 0 | G167: 0 | H167: 0
A168: Theatres | C168: 6447.81 | D168: 6447.84 | E168: 6985.16 | G168: 0 | H168: 0
A169: Zoo's | G169: 0 | H169: 0
A170: Sport and recreation | C170: =SUM(C171:C175) -> 141231777.1 | D170: 102539647.3 | E170: 121244913.6 | F170: 133116283.9 | G170: 146879207 | H170: 146879207 | I170: 153549379.2 | J170: 160464835.5 | K170: 167853637.9 | N170: 2959382400 | O170: 3079681314 | P170: 3208148519
A171: Beaches and Jetties | G171: 0 | H171: 0 | N171: 38982656.48 | O171: 40755689.74 | P171: 42650613.14
A172: Casinos, Racing, Gambling, Wagering | G172: 0 | H172: 0 | N172: 6576686.531 | O172: 6866063.279 | P172: 7175038.805
A173: Community Parks (including Nurseries) | C173: 56034491.64 | D173: 45310937.11 | E173: 49055094.57 | F173: 57138463.6 | G173: 68466358 | H173: 68466358 | I173: 69746307.74 | J173: 72870128.76 | K173: 76207237.14 | N173: 19486522.7 | O173: 20347346.02 | P173: 21266577.4
A174: Recreational Facilities | C174: 85197285.51 | D174: 57228710.21 | E174: 72189819.07 | F174: 75977820.29 | G174: 76976845 | H174: 76976845 | I174: 27305982.3 | J174: 28507445.52 | K174: 29790280.57 | N174: 93099462.34 | O174: 97907655.73 | P174: 103668871
A175: Sports Grounds and Stadiums | G175: 1436004 | H175: 1436004 | I175: 56497089.16 | J175: 59087261.18 | K175: 61856120.24 | N175: 34142442.88 | O175: 48293910.03 | P175: 49836129.69
A176: Public safety | C176: =SUM(C177:C184) -> 165957697.4 | D176: 193214425.3 | E176: 196809242.2 | F176: 211547136.6 | G176: 231926410 | H176: 231926410 | I176: 219074354.1 | J176: 228736879.7 | K176: 239054549 | N176: 12878908.15 | O176: 13445580.11 | P176: 14050631.22
A177: Civil Defence | C177: 11879146.48 | D177: 13908466.71 | E177: 14573432.22 | F177: 9112937.443 | G177: 18750340 | H177: 18750340 | I177: 18109375.25 | J177: 18906620.78 | K177: 19757875.11 | N177: 150164972.4 | O177: 81938174.4 | P177: 84391528.94
A178: Cleansing | E178: 0 | G178: 0 | H178: 0 | I178: 108540071.1 | J178: 113330149.8 | K178: 118445095.2 | N178: 29439590.82 | O178: 33499996.52 | P178: 37097715.02
A179: =A57 -> Control of Public Nuisances | E179: 0 | G179: 0 | H179: 0 | I179: 92424907.69 | J179: 96500109.07 | K179: 100851578.7 | N179: 26366475.55 | O179: 27586236.61 | P179: 28890473.74
A180: Fencing and Fences | E180: 0 | G180: 0 | H180: 0 | N180: 4345414.991 | O180: 4537667.401 | P180: 4742973.508
A181: Fire Fighting and Protection | C181: 89856022.19 | D181: 98385793.12 | E181: 95656656.36 | F181: 97784309.23 | G181: 128617813 | H181: 128617813 | N181: 5402033.569 | O181: 5639784.187 | P181: 5893638.919
A182: Licensing and Control of Animals | E182: 0 | G182: 0 | H182: 0 | N182: 25556874.37 | O182: 26746800.58 | P182: 28019363.22
A183: Police Forces, Traffic and Street Parking Control | C183: 64222528.73 | D183: 80920165.51 | E183: 86579153.62 | F183: 104649889.9 | G183: 84558257 | H183: 84558257 | N183: 2691547.243 | O183: 2810583.904 | P183: 2937701.626
A184: Pounds | G184: 0 | H184: 0 | N184: 8080982.362 | O184: 8328814.727 | P184: 9046257.375
A185: =A63 -> Housing | C185: =SUM(C186:C187) -> 53147535.25 | D185: 136867613.7 | E185: 74912129 | F185: 50925986.88 | G185: 89116012.3 | H185: 89116012.3 | I185: 150164972.4 | J185: 81938174.4 | K185: 84391528.94 | N185: 11360662.32 | O185: 11872178.18 | P185: 12418701.85
A186: Housing | C186: 53147535.25 | D186: 136867613.7 | E186: 74912129 | F186: 50925986.88 | G186: 89116012.3 | H186: 89116012.3 | I186: 150164972.4 | J186: 81938174.4 | K186: 84391528.94 | N186: 61482794.8 | O186: 64218012.05 | P186: 67139415.49
A187: Informal Settlements | N187: 18109375.25 | O187: 18906620.78 | P187: 19757875.11
A188: Health | C188: =SUM(C189:C195) -> 5552591.7 | D188: =SUM(D189:D195) -> 5469235.54 | E188: 9439803.22 | F188: 15170299.41 | G188: 12055020 | H188: 12055020 | I188: 12878908.15 | J188: 13445580.11 | K188: 14050631.22 | N188: 108540071.1 | O188: 113330149.8 | P188: 118445095.2
A189: Ambulance | G189: 0 | H189: 0 | I189: 12878908.15 | J189: 13445580.11 | K189: 14050631.22 | N189: 92424907.69 | O189: 96500109.07 | P189: 100851578.7
A190: Health Services | C190: 5552591.7 | D190: 5469235.54 | E190: 9439803.22 | F190: 15170299.41 | G190: 12055020 | H190: 12055020 | N190: 6447637.541 | O190: 6754745.451 | P190: 7083385.096
A191: Laboratory Services | G191: 0 | H191: 0 | N191: 290659713.9 | O191: 303458274.5 | P191: 317275027.9
A192: Food Control | G192: 0 | H192: 0 | N192: 1732716.816 | O192: 1819881.374 | P192: 1913291.005
A193: Health Surveillance and Prevention of Communicable Diseases including immunizations | G193: 0 | H193: 0 | N193: 69746307.74 | O193: 72870128.76 | P193: 76207237.14
A194: Vector Control | G194: 0 | H194: 0 | N194: 27305982.3 | O194: 28507445.52 | P194: 29790280.57
A195: Chemical Safety | G195: 0 | H195: 0 | N195: 56497089.16 | O195: 59087261.18 | P195: 61856120.24
A196: Economic and environmental services | C196: =C197+C208+C213 -> 377347346.8 | D196: 332744460.6 | E196: 313304803.3 | F196: 421022081.1 | G196: 403576432.4 | H196: 403576432.4 | I196: 405827717 | J196: 423665315.6 | K196: 443317694.9 | N196: 18369604.37 | O196: 19209811.67 | P196: 20108365.72
A197: Planning and development | C197: =SUM(C198:C207) -> 71022853.18 | D197: =SUM(D198:D207) -> 83509759.39 | E197: 69071779.38 | F197: 73618014.47 | G197: =SUM(G198:G207) -> 76603372.41 | H197: 76603372.41 | I197: 80924439.48 | J197: 84419004.97 | K197: 88604374.72 | N197: 132738201.9 | O197: 138724138.9 | P197: 145165711.1
A198: Billboards | G198: 0 | H198: 0 | N198: 3712385.153 | O198: 3875791.275 | P198: 4050266.361
A199: Corporate Wide Strategic Planning (IDPs, LEDs) | C199: 8448469.17 | D199: 5500706.73 | E199: 6772978.5 | F199: 7512024.147 | G199: 7833974 | H199: 7833974 | I199: 8080982.362 | J199: 8328814.727 | K199: 9046257.375 | N199: 264011732.8 | O199: 274489350.6 | P199: 285785666.3
A200: Central City Improvement District | E200: 0 | G200: 0 | H200: 0 | N200: 34650584.15 | O200: 36175332.25 | P200: 37803351.21
A201: Development Facilitation | E201: 0 | G201: 0 | H201: 0 | N201: 1198571090 | O201: 1250454089 | P201: 1305993489
... 53 more rows

Sheet A3-FinPerf V
A1: =muni&" - "&Approve2 -> KZN225 Msunduzi - Table A3 Consolidated Budgeted Financial Performance (revenue and expenditure by municipal vote)
A2: =Vdesc -> Vote Description | B2: =head27 -> Ref | C2: =head1b -> 2018/19 | D2: =head1A -> 2019/20 | E2: =Head1 -> 2020/21 | F2: =Head2 -> Current Year 2021/22 | I2: =Head3 -> 2022/23 Medium Term Revenue & Expenditure Framework | L2: =Head4 -> LTFS
A3: R thousand | C3: =Head5 -> Audited Outcome | D3: =Head5 -> Audited Outcome | E3: =Head5 -> Audited Outcome | F3: =Head6 -> Original Budget | G3: =Head7 -> Adjusted Budget | H3: =Head8 -> Full Year Forecast | I3: =Head9 -> Budget Year 2022/23 | J3: =Head10 -> Budget Year +1 2023/24 | K3: =Head11 -> Budget Year +2 2024/25 | L3: =Head12 -> Forecast 2025/26 | M3: =Head13 -> Forecast 2026/27 | N3: =Head14 -> Forecast 2027/28 | O3: =Head15 -> Forecast 2028/29 | P3: =Head16 -> Forecast 2029/30 | Q3: =Head17 -> Forecast 2030/31 | R3: =Head18 -> Forecast 2031/32 | S3: =Head19 -> Forecast 2032/33 | T3: =Head20 -> Forecast 2033/34 | U3: =Head21 -> Forecast 2034/35 | V3: =Head22 -> Forecast 2035/36 | W3: =Head23 -> Forecast 2036/37
A4: Revenue by Vote | B4: 1
A5: =A3A!A5 -> Vote 1 - City Manager | C5: =A3A!C5 -> -9997.49 | D5: =A3A!D5 -> -325.94 | E5: =A3A!E5 -> 316680.28 | F5: =A3A!F5 -> 62714.86912 | G5: =A3A!G5 -> 62714.86912 | H5: =A3A!H5 -> 62714.86912 | I5: =A3A!I5 -> 66070.11461 | J5: =A3A!J5 -> 68977.19966 | K5: =A3A!K5 -> 72081.17364
A6: =A3A!A16 -> Vote 2 - City Finance | C6: =A3A!C16 -> 1338180962 | D6: =A3A!D16 -> -1641524016 | E6: =A3A!E16 -> 1673384926 | F6: =A3A!F16 -> 1955891051 | G6: =A3A!G16 -> 1955891051 | H6: =A3A!H16 -> 1955891051 | I6: =A3A!I16 -> 2098136528 | J6: =A3A!J16 -> 2199166849 | K6: =A3A!K16 -> 2333348860
A7: =A3A!A27 -> Vote 3 - Community Services and Social Equity | C7: =A3A!C27 -> 195694378.5 | D7: =A3A!D27 -> -233840786.7 | E7: =A3A!E27 -> 198749941.6 | F7: =A3A!F27 -> 210662798.7 | G7: =A3A!G27 -> 215530797.8 | H7: =A3A!H27 -> 215530797.8 | I7: =A3A!I27 -> 221409922.4 | J7: =A3A!J27 -> 228263618.8 | K7: =A3A!K27 -> 240027974.9
A8: =A3A!A38 -> Vote 4 - Corporate Services | C8: =A3A!C38 -> 5406360.37 | D8: =A3A!D38 -> -7220330.27 | E8: =A3A!E38 -> 5947908.75 | F8: =A3A!F38 -> 6094104.853 | G8: =A3A!G38 -> 6094104.853 | H8: =A3A!H38 -> 6094104.853 | I8: =A3A!I38 -> 7947033.463 | J8: =A3A!J38 -> 2835538.935 | K8: =A3A!K38 -> 2963138.187
A9: =A3A!A49 -> Vote 5 - Infrastructure Services | C9: =A3A!C49 -> 3609668183 | D9: =A3A!D49 -> -3823603732 | E9: =A3A!E49 -> 3899901539 | F9: =A3A!F49 -> 4738511544 | G9: =A3A!G49 -> 4770175624 | H9: =A3A!H49 -> 4770175624 | I9: =A3A!I49 -> 5197947914 | J9: =A3A!J49 -> 5461127387 | K9: =A3A!K49 -> 5570496830
A10: =A3A!A60 -> Vote 6 - Sustainable Development and City Enterprises | C10: =A3A!C60 -> 112027028.5 | D10: =A3A!D60 -> -243419159.2 | E10: =A3A!E60 -> 229818291.3 | F10: =A3A!F60 -> 208349782 | G10: =A3A!G60 -> 285433158.8 | H10: =A3A!H60 -> 285433158.8 | I10: =A3A!I60 -> 378671020.8 | J10: =A3A!J60 -> 331709641.6 | K10: =A3A!K60 -> 338552624.4
A11: Total Revenue by Vote | B11: 2 | C11: =SUM(C5:C10) -> 5260966915 | D11: -5949608350 | E11: 6008119286 | F11: 7119571995 | G11: 7233187451 | H11: 7233187451 | I11: 7904178489 | J11: 8223172013 | K11: 8485461508
A13: Expenditure by Vote to be appropriated | B13: 1
A14: =A3A!A165 -> Vote 1 - City Manager | C14: =A3A!C165 -> 182373986 | D14: =A3A!D165 -> 156568923.9 | E14: =A3A!E165 -> 144293564.4 | F14: =A3A!F165 -> 149906309.9 | G14: =A3A!G165 -> 166544366 | H14: =A3A!H165 -> 166544366 | I14: =A3A!I165 -> 179557604.4 | J14: =A3A!J165 -> 191422412.4 | K14: =A3A!K165 -> 203586740.9
A15: =A3A!A176 -> Vote 2 - City Finance | C15: =A3A!C176 -> 254282263.3 | D15: =A3A!D176 -> 489928288.8 | E15: =A3A!E176 -> 951383518.4 | F15: =A3A!F176 -> 646309781.6 | G15: =A3A!G176 -> 701273610 | H15: =A3A!H176 -> 701273610 | I15: =A3A!I176 -> 904504915.6 | J15: =A3A!J176 -> 921919780 | K15: =A3A!K176 -> 987643033.4
A16: =A3A!A187 -> Vote 3 - Community Services and Social Equity | C16: =A3A!C187 -> 738583816.2 | D16: =A3A!D187 -> 768775615.6 | E16: =A3A!E187 -> 848301582.7 | F16: =A3A!F187 -> 785013601.5 | G16: =A3A!G187 -> 799093791 | H16: =A3A!H187 -> 799093791 | I16: =A3A!I187 -> 872207635.6 | J16: =A3A!J187 -> 915631284 | K16: =A3A!K187 -> 957479890.8
A17: =A3A!A198 -> Vote 4 - Corporate Services | C17: =A3A!C198 -> 158331322.3 | D17: =A3A!D198 -> 152421237 | E17: =A3A!E198 -> 161898503.3 | F17: =A3A!F198 -> 195537113.7 | G17: =A3A!G198 -> 167132195 | H17: =A3A!H198 -> 167132195 | I17: =A3A!I198 -> 183450527.6 | J17: =A3A!J198 -> 203287271.1 | K17: =A3A!K198 -> 211748898.7
A18: =A3A!A209 -> Vote 5 - Infrastructure Services | C18: =A3A!C209 -> 3121015551 | D18: =A3A!D209 -> 3829476784 | E18: =A3A!E209 -> 4054928137 | F18: =A3A!F209 -> 4437107376 | G18: =A3A!G209 -> 4465095563 | H18: =A3A!H209 -> 4465095563 | I18: =A3A!I209 -> 4849241291 | J18: =A3A!J209 -> 5041232051 | K18: =A3A!K209 -> 5256446793
A19: =A3A!A220 -> Vote 6 - Sustainable Development and City Enterprises | C19: =A3A!C220 -> 223585642.1 | D19: =A3A!D220 -> 329587599 | E19: =A3A!E220 -> 242328175.9 | F19: =A3A!F220 -> 224901217.9 | G19: =A3A!G220 -> 261744691.7 | H19: =A3A!H220 -> 261744691.7 | I19: =A3A!I220 -> 333047940.9 | J19: =A3A!J220 -> 273037102.3 | K19: =A3A!K220 -> 284257973.2
A20: Total Expenditure by Vote | B20: 2 | C20: =SUM(C14:C19) -> 4678172581 | D20: 5726758448 | E20: 6403133482 | F20: 6438775401 | G20: 6560884217 | H20: 6560884217 | I20: 7322009915 | J20: 7546529901 | K20: 7901163330 | L20: 0 | M20: 0 | N20: 0 | O20: 0 | P20: 0 | Q20: 0 | R20: 0 | S20: 0 | T20: 0 | U20: 0 | V20: 0 | W20: 0
A21: =result -> Surplus/(Deficit) for the year | B21: 2 | C21: =C11-C20 -> 582794333.8 | D21: -1.16763668e+10 | E21: -395014195.2 | F21: 680796594.7 | G21: 672303234.3 | H21: 672303234.3 | I21: 582168573.9 | J21: 676642111.7 | K21: 584298178.2 | L21: 0 | M21: 0 | N21: 0 | O21: 0 | P21: 0 | Q21: 0 | R21: 0 | S21: 0 | T21: 0 | U21: 0 | V21: 0 | W21: 0
A22: =head27a -> References
A23: 1. Insert 'Vote'; e.g. department, if different to functional classification structure
A24: 2. Must reconcile to Budgeted Financial Performance (revenue and expenditure)
A25: 3. Assign share in 'associate' to relevant Vote
A27: ="check "&A21 -> check Surplus/(Deficit) for the year | C27: =C21-A3A!C332 -> 0 | D27: =D21-A3A!D332 -> 0 | E27: =E21-A3A!E332 -> 0 | F27: =F21-A3A!F332 -> 0 | G27: =G21-A3A!G332 -> 0 | H27: =H21-A3A!H332 -> 0 | I27: =I21-A3A!I332 -> 0 | J27: =J21-A3A!J332 -> 0 | K27: =K21-A3A!K332 -> 0

Sheet A3A
A1: =muni&" - "&Approve2&"A" -> KZN225 Msunduzi - Table A3 Consolidated Budgeted Financial Performance (revenue and expenditure by municipal vote)A
A2: =Vdesc -> Vote Description | B2: =head27 -> Ref | C2: =head1b -> 2018/19 | D2: =head1A -> 2019/20 | E2: =Head1 -> 2020/21 | F2: =Head2 -> Current Year 2021/22 | I2: =Head3 -> 2022/23 Medium Term Revenue & Expenditure Framework | L2: =Head4 -> LTFS
A3: R thousand | C3: =Head5 -> Audited Outcome | D3: =Head5 -> Audited Outcome | E3: =Head5 -> Audited Outcome | F3: =Head6 -> Original Budget | G3: =Head7 -> Adjusted Budget | H3: =Head8 -> Full Year Forecast | I3: =Head9 -> Budget Year 2022/23 | J3: =Head10 -> Budget Year +1 2023/24 | K3: =Head11 -> Budget Year +2 2024/25 | L3: =Head12 -> Forecast 2025/26 | M3: =Head13 -> Forecast 2026/27 | N3: =Head14 -> Forecast 2027/28 | O3: =Head15 -> Forecast 2028/29 | P3: =Head16 -> Forecast 2029/30 | Q3: =Head17 -> Forecast 2030/31 | R3: =Head18 -> Forecast 2031/32 | S3: =Head19 -> Forecast 2032/33 | T3: =Head20 -> Forecast 2033/34 | U3: =Head21 -> Forecast 2034/35 | V3: =Head22 -> Forecast 2035/36 | W3: =Head23 -> Forecast 2036/37
A4: Revenue by Vote | B4: 1
A5: ='Org structure'!A2 -> Vote 1 - City Manager | C5: =SUM(C6:C15) -> -9997.49 | D5: =SUM(D6:D15) -> -325.94 | E5: 316680.28 | F5: 62714.86912 | G5: 62714.86912 | H5: 62714.86912 | I5: 66070.11461 | J5: 68977.19966 | K5: 72081.17364
A6: ='Org structure'!E3 -> 1.1 - Internal Audit and Compliance | C6: -214.2 | D6: -34.9 | E6: 2649.84 | I6: 66070.11461 | J6: 68977.19966 | K6: 72081.17364
A7: ='Org structure'!E4 -> 1.2 - Office of the City Manager | C7: -4133.13 | D7: -129164.97 | E7: 1290.14 | F7: 62714.86912 | G7: 62714.86912 | H7: 62714.86912
A8: ='Org structure'!E5 -> 1.3 - Political Support | C8: -5346.85 | D8: 128887.71 | E8: 12674.79
A9: ='Org structure'!E6 -> 1.4 - Strategic Planning | C9: -303.31 | D9: -13.78 | E9: 300065.51
A10: ='Org structure'!E7 -> 0
A11: ='Org structure'!E8 -> 0
A12: ='Org structure'!E9 -> 0
A13: ='Org structure'!E10 -> 0
A14: ='Org structure'!E11 -> 0
A15: ='Org structure'!E12 -> 0
A16: ='Org structure'!A3 -> Vote 2 - City Finance | C16: =SUM(C17:C26) -> 1338180962 | D16: =SUM(D17:D26) -> -1641524016 | E16: 1673384926 | F16: 1955891051 | G16: 1955891051 | H16: 1955891051 | I16: 2098136528 | J16: 2199166849 | K16: 2333348860
A17: ='Org structure'!E14 -> 2.1 - Asset Management | C17: 3570024.99 | D17: -41427851.56 | E17: 7754458.16 | F17: 16379253.87 | G17: 16379253.87 | H17: 16379253.87 | I17: 17255543.96 | J17: 18014787.89 | K17: 18825453.34
A18: ='Org structure'!E15 -> 2.2 - Budget and Treasury Management | C18: 296031042.7 | D18: -314420414.7 | E18: 385609372.7 | F18: 384922702.2 | G18: 384922702.2 | H18: 384922702.2 | I18: 410698664.6 | J18: 414129369.8 | K18: 444778296.7
A19: ='Org structure'!E16 -> 2.3 - Expenditure Management | C19: 100116.89 | D19: -264.31 | E19: 1233.72 | F19: 353276.725 | G19: 353276.725 | H19: 353276.725 | I19: 372177.0298 | J19: 388552.8192 | K19: 406037.696
A20: ='Org structure'!E17 -> 2.4 - Revenue Management | C20: 1038406136 | D20: -1285595512 | E20: 1279910171 | F20: 1553940576 | G20: 1553940576 | H20: 1553940576 | I20: 1669499097 | J20: 1766309406 | K20: 1868999727
A21: ='Org structure'!E18 -> 2.5 - Supply Chain Management | C21: 73641.73 | D21: -79973.34 | E21: 109689.85 | F21: 295242.5403 | G21: 295242.5403 | H21: 295242.5403 | I21: 311045.9568 | J21: 324731.9789 | K21: 339344.918
A22: ='Org structure'!E19 -> 0
A23: ='Org structure'!E20 -> 0
A24: ='Org structure'!E21 -> 0
A25: ='Org structure'!E22 -> 0
A26: ='Org structure'!E23 -> 0
A27: ='Org structure'!A4 -> Vote 3 - Community Services and Social Equity | C27: =SUM(C28:C37) -> 195694378.5 | D27: -233840786.7 | E27: 198749941.6 | F27: 210662798.7 | G27: 215530797.8 | H27: 215530797.8 | I27: 221409922.4 | J27: 228263618.8 | K27: 240027974.9
A28: ='Org structure'!E25 -> 3.1 - Area Based Management | C28: 515427.15 | D28: -790002.4 | E28: 185977.7 | F28: 1070442.527 | G28: 1070442.527 | H28: 1070442.527 | I28: 1127716.213 | J28: 1177335.726 | K28: 1230315.834
A29: ='Org structure'!E26 -> 3.2 - Public Safety, Emergency Services and Enforcement | C29: 15286100.89 | D29: -15025160.9 | E29: 19855223.65 | F29: 3970362.811 | G29: 3970362.811 | H29: 3970362.811 | I29: 4191499.138 | J29: 4377070.441 | K29: 4574418.005
A30: ='Org structure'!E27 -> 3.3 - Recreation and Facilities | C30: 45209758.77 | D30: -41696620.73 | E30: 24190086.01 | F30: 28932114.94 | G30: 33800114 | H30: 33800114 | I30: 28679568.63 | J30: 28262203.93 | K30: 29481295.18
A31: ='Org structure'!E28 -> 3.4 - Waste Management | C31: 134683091.7 | D31: -176329002.6 | E31: 154518654.3 | F31: 176689878.4 | G31: 176689878.4 | H31: 176689878.4 | I31: 187411138.4 | J31: 194447008.7 | K31: 204741945.9
A32: ='Org structure'!E29 -> 0
A33: ='Org structure'!E30 -> 0
A34: ='Org structure'!E31 -> 0
A35: ='Org structure'!E32 -> 0
A36: ='Org structure'!E33 -> 0
A37: ='Org structure'!E34 -> 0
A38: ='Org structure'!A5 -> Vote 4 - Corporate Services | C38: =SUM(C39:C48) -> 5406360.37 | D38: -7220330.27 | E38: 5947908.75 | F38: 6094104.853 | G38: 6094104.853 | H38: 6094104.853 | I38: 7947033.463 | J38: 2835538.935 | K38: 2963138.187
A39: ='Org structure'!E36 -> 4.1 - Human Resources Management | C39: 2724660.28 | D39: -3019089.68 | E39: 1989201.6 | F39: 2305119.778 | G39: 2305119.778 | H39: 2305119.778 | I39: 2428443.686 | J39: 2535295.209 | K39: 2649383.493
A40: ='Org structure'!E37 -> 4.2 - Information Technology | C40: -276934.15 | D40: -616.54 | E40: 22555.09 | F40: 2123.870749 | G40: 2123.870749 | H40: 2123.870749 | I40: 2237.497834 | J40: 2335.947739 | K40: 2441.065387
A41: ='Org structure'!E38 -> 4.3 - Legal Services | C41: 77204.31 | D41: -135.57 | E41: 2567.63 | F41: 270861.2043 | G41: 270861.2043 | H41: 270861.2043 | I41: 285352.2787 | J41: 297907.779 | K41: 311313.629
A42: ='Org structure'!E39 -> 4.4 - Secretariat and Auxiliary Services | C42: -8274.37 | D42: -442.16 | E42: 12247.85 | G42: 0 | H42: 0 | I42: 5231000 | J42: 0 | K42: 0
A43: ='Org structure'!E40 -> 4.5 - General Manager: Corporate Service | C43: 2889704.3 | D43: -4200046.32 | E43: 3921336.58 | F43: 3516000 | G43: 3516000 | H43: 3516000
A44: ='Org structure'!E41 -> 0
A45: ='Org structure'!E42 -> 0
A46: ='Org structure'!E43 -> 0
A47: ='Org structure'!E44 -> 0
A48: ='Org structure'!E45 -> 0
A49: ='Org structure'!A6 -> Vote 5 - Infrastructure Services | C49: =SUM(C50:C59) -> 3609668183 | D49: =SUM(D50:D59) -> -3823603732 | E49: 3899901539 | F49: 4738511544 | G49: 4770175624 | H49: 4770175624 | I49: 5197947914 | J49: 5461127387 | K49: 5570496830
A50: ='Org structure'!E47 -> 5.1 - Electricity | C50: 2078565897 | D50: -2241860377 | E50: 2196601261 | F50: 3038086189 | G50: 3038086189 | H50: 3038086189 | I50: 3366081726 | J50: 3546496090 | K50: 3699519889
A51: ='Org structure'!E48 -> 5.2 - Project Management Office | C51: 7463370.43 | D51: -6272011.53 | E51: 6074552.06 | F51: 10034424 | G51: 6530996 | H51: 6530996 | I51: 9172910
A52: ='Org structure'!E49 -> 5.3 - Roads and Transportation | C52: 300306221.7 | D52: -245677587.3 | E52: 234900598 | F52: 402254.1181 | G52: 50848333.16 | H52: 50848333.16 | I52: 424878.2706 | J52: 446858.2023 | K52: 243645.1505
A53: ='Org structure'!E50 -> 5.4 - Water and Sanitation | C53: 1223332694 | D53: -1329793729 | E53: 1462325010 | F53: 1689988677 | G53: 1674710106 | H53: 1674710106 | I53: 1822268400 | J53: 1914184439 | K53: 1870733296
A54: ='Org structure'!E51 -> General Manager: Infrastructure | C54: 0 | D54: -26.45 | E54: 118
A55: ='Org structure'!E52 -> 0
A56: ='Org structure'!E53 -> 0
A57: ='Org structure'!E54 -> 0
A58: ='Org structure'!E55 -> 0
A59: ='Org structure'!E56 -> 0
A60: ='Org structure'!A7 -> Vote 6 - Sustainable Development and City Enterprises | C60: =SUM(C61:C70) -> 112027028.5 | D60: =SUM(D61:D70) -> -243419159.2 | E60: 229818291.3 | F60: 208349782 | G60: 285433158.8 | H60: 285433158.8 | I60: 378671020.8 | J60: 331709641.6 | K60: 338552624.4
A61: ='Org structure'!E58 -> 6.1 - City Entities | C61: 33114968.01 | D61: -33291054.99 | E61: 49772223.7 | F61: 64805333.87 | G61: 64611335 | H61: 64611335 | I61: 77848244.8 | J61: 81275441.97 | K61: 84924636.36
A62: ='Org structure'!E59 -> 6.2 - Development Services | C62: 214838.04 | D62: -103539.45 | E62: 607428.18 | F62: 465741.516 | G62: 4152473.53 | H62: 4152473.53 | I62: 558867.5302 | J62: 583457.7016 | K62: 609713.2981
A63: ='Org structure'!E60 -> 6.3 - Human Settlement Development | C63: 54144575.78 | D63: -176384852.8 | E63: 142494414.7 | F63: 104666074.6 | G63: 177256718.3 | H63: 177256718.3 | I63: 142337500.6 | J63: 71313659.76 | K63: 73512023.89
A64: ='Org structure'!E61 -> 6.4 - Town Planning | C64: 24552646.66 | D64: -33639711.94 | E64: 36944224.7 | F64: 38412632.05 | G64: 39412632 | H64: 39412632 | I64: 55129389.03 | J64: 56537082.15 | K64: 57506250.85
A65: ='Org structure'!E62 -> 6.5 - General Manager: Sustainable Development and City Enterprises | E65: 0 | I65: 102797018.9 | J65: 122000000 | K65: 122000000
A66: ='Org structure'!E63 -> 0
A67: ='Org structure'!E64 -> 0
A68: ='Org structure'!E65 -> 0
A69: ='Org structure'!E66 -> 0
A70: ='Org structure'!E67 -> 0
A71: ='Org structure'!A8 -> Vote 7 - [NAME OF VOTE 7] | C71: =SUM(C72:C81) -> 0 | D71: 0 | E71: 0 | F71: 0 | G71: 0 | H71: 0 | I71: 0 | J71: 0 | K71: 0
A72: ='Org structure'!E69 -> 7.1 - [Name of sub-vote]
A73: ='Org structure'!E70 -> 0
A74: ='Org structure'!E71 -> 0
A75: ='Org structure'!E72 -> 0
A76: ='Org structure'!E73 -> 0
A77: ='Org structure'!E74 -> 0
A78: ='Org structure'!E75 -> 0
A79: ='Org structure'!E76 -> 0
A80: ='Org structure'!E77 -> 0
A81: ='Org structure'!E78 -> 0
A82: ='Org structure'!A9 -> Vote 8 - [NAME OF VOTE 8] | C82: =SUM(C83:C92) -> 0 | D82: =SUM(D83:D92) -> 0 | E82: 0 | F82: 0 | G82: 0 | H82: 0 | I82: 0 | J82: 0 | K82: 0
A83: ='Org structure'!E80 -> 8.1 - [Name of sub-vote]
A84: ='Org structure'!E81 -> 0
A85: ='Org structure'!E82 -> 0
A86: ='Org structure'!E83 -> 0
A87: ='Org structure'!E84 -> 0
A88: ='Org structure'!E85 -> 0
A89: ='Org structure'!E86 -> 0
A90: ='Org structure'!E87 -> 0
A91: ='Org structure'!E88 -> 0
A92: ='Org structure'!E89 -> 0
A93: ='Org structure'!A10 -> Vote 9 - [NAME OF VOTE 9] | C93: =SUM(C94:C103) -> 0 | D93: =SUM(D94:D103) -> 0 | E93: 0 | F93: 0 | G93: 0 | H93: 0 | I93: 0 | J93: 0 | K93: 0
A94: ='Org structure'!E91 -> 9.1 - [Name of sub-vote]
A95: ='Org structure'!E92 -> 0
A96: ='Org structure'!E93 -> 0
A97: ='Org structure'!E94 -> 0
A98: ='Org structure'!E95 -> 0
A99: ='Org structure'!E96 -> 0
A100: ='Org structure'!E97 -> 0
A101: ='Org structure'!E98 -> 0
A102: ='Org structure'!E99 -> 0
A103: ='Org structure'!E100 -> 0
A104: ='Org structure'!A11 -> Vote 10 - [NAME OF VOTE 10] | C104: =SUM(C105:C114) -> 0 | D104: =SUM(D105:D114) -> 0 | E104: 0 | F104: 0 | G104: 0 | H104: 0 | I104: 0 | J104: 0 | K104: 0
A105: ='Org structure'!E102 -> 10.1 - [Name of sub-vote]
A106: ='Org structure'!E103 -> 0
A107: ='Org structure'!E104 -> 0
A108: ='Org structure'!E105 -> 0
A109: ='Org structure'!E106 -> 0
A110: ='Org structure'!E107 -> 0
A111: ='Org structure'!E108 -> 0
A112: ='Org structure'!E109 -> 0
A113: ='Org structure'!E110 -> 0
A114: ='Org structure'!E111 -> 0
A115: ='Org structure'!A12 -> Vote 11 - [NAME OF VOTE 11] | C115: =SUM(C116:C125) -> 0 | D115: =SUM(D116:D125) -> 0 | E115: 0 | F115: 0 | G115: 0 | H115: 0 | I115: 0 | J115: 0 | K115: 0
A116: ='Org structure'!E113 -> 11.1 - [Name of sub-vote]
A117: ='Org structure'!E114 -> 0
A118: ='Org structure'!E115 -> 0
A119: ='Org structure'!E116 -> 0
A120: ='Org structure'!E117 -> 0
A121: ='Org structure'!E118 -> 0
A122: ='Org structure'!E119 -> 0
A123: ='Org structure'!E120 -> 0
A124: ='Org structure'!E121 -> 0
A125: ='Org structure'!E122 -> 0
A126: ='Org structure'!A13 -> Vote 12 - [NAME OF VOTE 12] | C126: =SUM(C127:C136) -> 0 | D126: =SUM(D127:D136) -> 0 | E126: 0 | F126: 0 | G126: 0 | H126: 0 | I126: 0 | J126: 0 | K126: 0
A127: ='Org structure'!E124 -> 12.1 - [Name of sub-vote]
A128: ='Org structure'!E125 -> 0
A129: ='Org structure'!E126 -> 0
A130: ='Org structure'!E127 -> 0
A131: ='Org structure'!E128 -> 0
A132: ='Org structure'!E129 -> 0
A133: ='Org structure'!E130 -> 0
A134: ='Org structure'!E131 -> 0
A135: ='Org structure'!E132 -> 0
A136: ='Org structure'!E133 -> 0
A137: ='Org structure'!A14 -> Vote 13 - [NAME OF VOTE 13] | C137: =SUM(C138:C147) -> 0 | D137: =SUM(D138:D147) -> 0 | E137: 0 | F137: 0 | G137: 0 | H137: 0 | I137: 0 | J137: 0 | K137: 0
A138: ='Org structure'!E135 -> 13.1 - [Name of sub-vote]
A139: ='Org structure'!E136 -> 0
A140: ='Org structure'!E137 -> 0
A141: ='Org structure'!E138 -> 0
A142: ='Org structure'!E139 -> 0
A143: ='Org structure'!E140 -> 0
A144: ='Org structure'!E141 -> 0
A145: ='Org structure'!E142 -> 0
A146: ='Org structure'!E143 -> 0
A147: ='Org structure'!E144 -> 0
A148: ='Org structure'!A15 -> Vote 14 - [NAME OF VOTE 14] | C148: =SUM(C149:C158) -> 0 | D148: =SUM(D149:D158) -> 0 | E148: 0 | F148: 0 | G148: 0 | H148: 0 | I148: 0 | J148: 0 | K148: 0
A149: ='Org structure'!E146 -> 14.1 - [Name of sub-vote]
A150: ='Org structure'!E147 -> 0
A151: ='Org structure'!E148 -> 0
A152: ='Org structure'!E149 -> 0
A153: ='Org structure'!E150 -> 0
A154: ='Org structure'!E151 -> 0
A155: ='Org structure'!E152 -> 0
A156: ='Org structure'!E153 -> 0
A157: ='Org structure'!E154 -> 0
A158: ='Org structure'!E155 -> 0
A159: ='Org structure'!A16 -> Vote 15 - [NAME OF VOTE 15] | C159: =SUM(C160:C161) -> 0 | D159: 0 | E159: 0 | F159: 0 | G159: 0 | H159: 0 | I159: 0 | J159: 0 | K159: 0
A160: ='Org structure'!E157 -> 15.1 - [Name of sub-vote]
A161: ='Org structure'!E166 -> 0
A162: Total Revenue by Vote | B162: 2 | C162: =C5+C16+C27+C38+C49+C60+C71+C82+C93+C104+C115+C126+C137+C148+C159 -> 5260966915 | D162: -5949608350 | E162: 6008119286 | F162: 7119571995 | G162: 7233187451 | H162: 7233187451 | I162: 7904178489 | J162: 8223172013 | K162: 8485461508 | L162: =SUM(L78:L81) -> 0 | M162: 0 | N162: 0 | O162: 0 | P162: 0 | Q162: 0 | R162: 0 | S162: 0 | T162: 0 | U162: 0 | V162: 0 | W162: 0
A164: Expenditure by Vote | B164: 1
A165: =A5 -> Vote 1 - City Manager | C165: =SUM(C166:C175) -> 182373986 | D165: 156568923.9 | E165: 144293564.4 | F165: 149906309.9 | G165: 166544366 | H165: 166544366 | I165: =SUM(I166:I169) -> 179557604.4 | J165: =SUM(J166:J169) -> 191422412.4 | K165: =SUM(K166:K169) -> 203586740.9
A166: 1.1 - Internal Audit and Compliance | C166: 31026278.23 | D166: 18637938.28 | E166: 16962222.89 | F166: 21775457.74 | G166: 22774564 | H166: 22774564 | I166: 29439590.82 | J166: 33499996.52 | K166: 37097715.02
A167: 1.2 - Office of the City Manager | C167: 62820545.36 | D167: 54540594.46 | E167: 40195404.76 | F167: 29733213.96 | G167: 31596319 | H167: 31596319 | I167: 39169448.09 | J167: 40906678.32 | K167: 42680175.64
A168: 1.3 - Political Support | C168: 80078693.28 | D168: 77889684.47 | E168: 80362958.21 | F168: 90885614.01 | G168: 104339509 | H168: 104339509 | I168: 102867583.1 | J168: 108686922.8 | K168: 114762592.9
A169: 1.4 - Strategic Planning | C169: 8448469.17 | D169: 5500706.73 | E169: 6772978.5 | F169: 7512024.147 | G169: 7833974 | H169: 7833974 | I169: 8080982.362 | J169: 8328814.727 | K169: 9046257.375
A170: 0
A171: 0
A172: 0
A173: 0
A174: 0
A175: 0
A176: Vote 2 - City Finance | C176: =SUM(C177:C186) -> 254282263.3 | D176: =SUM(D177:D186) -> 489928288.8 | E176: =SUM(E177:E186) -> 951383518.4 | F176: 646309781.6 | G176: 701273610 | H176: 701273610 | I176: 904504915.6 | J176: 921919780 | K176: 987643033.4
A177: 2.1 - Asset Management | C177: 67942719.34 | D177: 75352789.68 | E177: 74248458.53 | F177: 72457420.13 | G177: 74095467 | H177: 74095467 | I177: 85451849.6 | J177: 79599823.74 | K177: 90791898.19
A178: 2.2 - Budget and Treasury Management | C178: -23164188.13 | D178: 27419381.87 | E178: 130822583.2 | F178: 122871191.4 | G178: 133471152 | H178: 133471152 | I178: 158615522.1 | J178: 154023478.9 | K178: 169523128.8
A179: 2.3 - Expenditure Management | C179: 42749726.53 | D179: 63846097.97 | E179: 44830103.27 | F179: 31427404.01 | G179: 41127253 | H179: 41127253 | I179: 44888665.7 | J179: 39796798.71 | K179: 40605237.46
A180: 2.4 - Revenue Management | C180: 104921479.1 | D180: 260128714.9 | E180: 637431771.8 | F180: 373782944.5 | G180: 388480989 | H180: 388480989 | I180: 546449006.1 | J180: 575020269.4 | K180: 609298039.6
A181: 2.5 - Supply Chain Management | C181: 61832526.53 | D181: 63181304.39 | E181: 64050601.54 | F181: 45770821.54 | G181: 64098749 | H181: 64098749 | I181: 69099872.09 | J181: 73479409.28 | K181: 77424729.42
A182: 0
A183: 0
A184: 0
A185: 0
A186: 0
A187: Vote 3 - Community Services and Social Equity | C187: =SUM(C188:C197) -> 738583816.2 | D187: 768775615.6 | E187: 848301582.7 | F187: 785013601.5 | G187: 799093791 | H187: 799093791 | I187: 872207635.6 | J187: 915631284 | K187: 957479890.8
A188: 3.1 - Area Based Management | C188: 30898113.95 | D188: 32379250.3 | E188: 36359677.5 | F188: 51984820.22 | G188: 42632269 | H188: 42632269 | I188: 47746035.98 | J188: 49857339.53 | K188: 52111963.59
A189: 3.2 - Public Safety, Emergency Services and Enforcement | C189: 303752555.7 | D189: 336647862.6 | E189: 369678652.9 | F189: 317247534.2 | G189: 341709220 | H189: 341709220 | I189: 367234706.5 | J189: 383417020.3 | K189: 400696068.3
A190: 3.3 - Recreation and Facilities | C190: 281169402.8 | D190: 241438476.6 | E190: 291026819.5 | F190: 299705258.3 | G190: 291353678 | H190: 291353678 | I190: 302406701.7 | J190: 320547182.3 | K190: 335347515.7
A191: 3.4 - Waste Management | C191: 122763743.8 | D191: 158310026.1 | E191: 151236432.9 | F191: 116075988.7 | G191: 123398624 | H191: 123398624 | I191: 154820191.5 | J191: 161809741.9 | K191: 169324343.2
A192: 0
A193: 0
A194: 0
A195: 0
A196: 0
A197: =A37 -> 0
A198: Vote 4 - Corporate Services | C198: =SUM(C199:C208) -> 158331322.3 | D198: 152421237 | E198: 161898503.3 | F198: 195537113.7 | G198: 167132195 | H198: 167132195 | I198: 183450527.6 | J198: 203287271.1 | K198: 211748898.7
A199: 4.1 - Human Resources Management | C199: 76891149.55 | D199: 74348104.3 | E199: 72060818.34 | F199: 109467447.1 | G199: 75563532 | H199: 75563532 | I199: 81949343.53 | J199: 85561184.49 | K199: 89417835.42
A200: 4.2 - Information Technology | C200: 30653194.95 | D200: 32974505.65 | E200: 33578160.71 | F200: 32777666.07 | G200: 40232525 | H200: 40232525 | I200: 46284340.83 | J200: 48392690.54 | K200: 50646079.63
A201: 4.3 - Legal Services | C201: 14691075.27 | D201: 14770253.19 | E201: 13829269.89 | F201: 16293851.43 | G201: 17784474 | H201: 17784474 | I201: 18733791.78 | J201: 19558570.25 | K201: 20439224.09
... 134 more rows

Sheet A4-FinPerf RE
A1: =muni&" - "&Approve4 -> KZN225 Msunduzi - Table A4 Consolidated Budgeted Financial Performance (revenue and expenditure)
A2: =desc -> Description | B2: =head27 -> Ref | C2: =head1b -> 2018/19 | D2: =head1A -> 2019/20 | E2: =Head1 -> 2020/21 | F2: =Head2 -> Current Year 2021/22 | J2: =Head3 -> 2022/23 Medium Term Revenue & Expenditure Framework | M2: =Head4 -> LTFS
A3: R thousand | B3: 1 | C3: =Head5 -> Audited Outcome | D3: =Head5 -> Audited Outcome | E3: =Head5 -> Audited Outcome | F3: =Head6 -> Original Budget | G3: =Head7 -> Adjusted Budget | H3: =Head8 -> Full Year Forecast | I3: =Head5b -> Pre-audit outcome | J3: =Head9 -> Budget Year 2022/23 | K3: =Head10 -> Budget Year +1 2023/24 | L3: =Head11 -> Budget Year +2 2024/25 | M3: =Head12 -> Forecast 2025/26 | N3: =Head13 -> Forecast 2026/27 | O3: =Head14 -> Forecast 2027/28 | P3: =Head15 -> Forecast 2028/29 | Q3: =Head16 -> Forecast 2029/30 | R3: =Head17 -> Forecast 2030/31 | S3: =Head18 -> Forecast 2031/32 | T3: =Head19 -> Forecast 2032/33 | U3: =Head20 -> Forecast 2033/34 | V3: =Head21 -> Forecast 2034/35 | W3: =Head22 -> Forecast 2035/36 | X3: =Head23 -> Forecast 2036/37
A4: Revenue By Source
A5: Property rates | B5: 2 | C5: 930980084.4 | D5: ='SA1'!D9 -> 1177107606 | E5: ='SA1'!E9 -> 1204676315 | F5: ='SA1'!F9 -> 1321378575 | G5: ='SA1'!G9 -> 1321378575 | H5: ='SA1'!H9 -> 1321378575 | I5: ='SA1'!I9 -> 0 | J5: ='SA1'!J9 -> 1427088861 | K5: ='SA1'!K9 -> 1512714193 | L5: ='SA1'!L9 -> 1603477045
A6: Service charges - electricity revenue | B6: 2 | C6: ='SA1'!C15 -> 2032237677 | D6: ='SA1'!D15 -> 2159912320 | E6: ='SA1'!E15 -> 2149844095 | F6: ='SA1'!F15 -> 2961894448 | G6: ='SA1'!G15 -> 2961894448 | H6: ='SA1'!H15 -> 2961894448 | I6: ='SA1'!I15 -> 0 | J6: ='SA1'!J15 -> 3243276192 | K6: ='SA1'!K15 -> 3385980345 | L6: ='SA1'!L15 -> 3538349460
A7: Service charges - water revenue | B7: 2 | C7: ='SA1'!C21 -> 649733747 | D7: ='SA1'!D21 -> 662849315.4 | E7: ='SA1'!E21 -> 765357790 | F7: ='SA1'!F21 -> 773217411.5 | G7: ='SA1'!G21 -> 773217411.5 | H7: ='SA1'!H21 -> 773217411.5 | I7: ='SA1'!I21 -> 0 | J7: ='SA1'!J21 -> 819610456.1 | K7: ='SA1'!K21 -> 855673316.2 | L7: ='SA1'!L21 -> 894178615.4
A8: Service charges - sanitation revenue | B8: 2 | C8: ='SA1'!C27 -> 161144633.1 | D8: ='SA1'!D27 -> 172220501.9 | E8: ='SA1'!E27 -> 164794393.9 | F8: ='SA1'!F27 -> 160154913 | G8: ='SA1'!G27 -> 160154913 | H8: ='SA1'!H27 -> 160154913 | I8: ='SA1'!I27 -> 0 | J8: ='SA1'!J27 -> 174568855.1 | K8: ='SA1'!K27 -> 182249884.7 | L8: ='SA1'!L27 -> 190451129.6
A9: Service charges - refuse revenue | B9: 2 | C9: ='SA1'!C34 -> 99492106.96 | D9: ='SA1'!D34 -> 109639121 | E9: ='SA1'!E34 -> 108298483 | F9: ='SA1'!F34 -> 122556900.8 | G9: ='SA1'!G34 -> 122556900.8 | H9: ='SA1'!H34 -> 122556900.8 | I9: ='SA1'!I34 -> 0 | J9: ='SA1'!J34 -> 129665201 | K9: ='SA1'!K34 -> 135370469.9 | L9: ='SA1'!L34 -> 141462141
A11: Rental of facilities and equipment | C11: 20617909.75 | D11: 43597285.39 | E11: 14558911.4 | F11: 30634513.3 | G11: 30634513.3 | H11: 30634513.3 | J11: 37424363.21 | K11: 39071035.19 | L11: 40829231.77
A12: Interest earned - external investments | C12: 20378755.26 | D12: 14116343.54 | E12: 8455919.18 | F12: 16076855.03 | G12: 16076855.03 | H12: 16076855.03 | J12: 17030212.53 | K12: 18057134.35 | L12: 19140562.41
A13: Interest earned - outstanding debtors | C13: 218926060 | D13: 292253612.1 | E13: 188635158.3 | F13: 213289285.9 | G13: 213289285.9 | H13: 213289285.9 | J13: 225217621.3 | K13: 238037254.6 | L13: 98800614.09
A14: Dividends received
A15: Fines, penalties and forfeits | C15: 12557144.09 | D15: 13272582.05 | E15: 16062034.75 | F15: 1894773.946 | G15: 1894773.946 | H15: 1894773.946 | J15: 2004874.365 | K15: 2093088.837 | L15: 2187277.834
A16: Licences and permits | C16: 829643.12 | D16: 604456.46 | E16: 602789.25 | F16: 1179465.947 | G16: 1179465.947 | H16: 1179465.947 | J16: 1500000.991 | K16: 1566001.035 | L16: 1636471.082
A17: Agency services | C17: 1970390 | D17: 1090372 | E17: 1931382 | F17: 634103.7844 | G17: 634103.7844 | H17: 634103.7844 | J17: 668028.3369 | K17: 697421.5837 | L17: 728805.5549
A18: Transfers and subsidies | C18: 602210610.4 | D18: 637128044 | E18: 757156210 | F18: 661215834.8 | G18: 725957048.3 | H18: 725957048.3 | J18: 855842084.7 | K18: 828076101.9 | L18: 888579900.5
A19: Other revenue | B19: 2 | C19: 95457134.1 | D19: 127202830.8 | E19: ='SA1'!E39 -> 62638819.65 | F19: ='SA1'!F39 -> 154286955.6 | G19: ='SA1'!G39 -> 154286955.6 | H19: ='SA1'!H39 -> 154286955.6 | I19: ='SA1'!I39 -> 0 | J19: ='SA1'!J39 -> 177156873.3 | K19: ='SA1'!K39 -> 184951775.7 | L19: ='SA1'!L39 -> 193274605.7
A20: Gains | C20: -0.05000000017 | D20: 107065329.8 | E20: 66361357.9
A21: Total Revenue (excluding capital transfers and contributions) | C21: =SUM(C5:C9)+SUM(C11:C20) -> 4846535895 | D21: =SUM(D5:D9)+SUM(D11:D20) -> 5518059721 | E21: 5509373660 | F21: 6418414037 | G21: 6483155251 | H21: 6483155251 | I21: 0 | J21: 7111053625 | K21: 7384538022 | L21: 7613095860 | M21: =SUM(M5:M20) -> 0 | N21: 0 | O21: 0 | P21: 0 | Q21: 0 | R21: 0 | S21: 0 | T21: 0 | U21: 0 | V21: 0 | W21: 0 | X21: 0
A23: Expenditure By Type
A24: Employee related costs | B24: 2 | C24: ='SA1'!C57 -> 952345628.9 | D24: ='SA1'!D57 -> 1242959768 | E24: ='SA1'!E57 -> 1424848869 | F24: 1538089743 | G24: 1563391355 | H24: 1563391355 | I24: ='SA1'!I57 -> 0 | J24: ='SA1'!J57 -> 1619699179 | K24: ='SA1'!K57 -> 1702303837 | L24: ='SA1'!L57 -> 1777205206
A25: Remuneration of councillors | C25: 44130680.67 | D25: 43759323.83 | E25: 51641247.13 | F25: 56332921.51 | G25: 56332921.51 | H25: 56332921.51 | J25: 59431217.94 | K25: 62046191.53 | L25: 64838270.15
A26: Debt impairment | B26: 3 | C26: 10345711.49 | D26: 588848798.7 | E26: 1044475891 | F26: 150000000 | G26: 150000000 | H26: 150000000 | J26: 300000000 | K26: 313200000 | L26: 327294000
A27: Depreciation & asset impairment | B27: 2 | C27: ='SA1'!C66 -> 454389102.6 | D27: ='SA1'!D66 -> 424311895.3 | E27: ='SA1'!E66 -> 380262219.5 | F27: 421872297.6 | G27: 420917987 | H27: 420917987 | I27: ='SA1'!I66 -> 0 | J27: ='SA1'!J66 -> 441964212.5 | K27: ='SA1'!K66 -> 465830280 | L27: ='SA1'!L66 -> 491450945.4
A28: Finance charges | C28: 54809930.9 | D28: 50463517.41 | E28: 42536964.33 | F28: 34724271.93 | G28: 34724271.93 | H28: 34724271.93 | J28: 94217139.02 | K28: 82398191.72 | L28: 70192547.65
A29: Bulk purchases - electricity | B29: 2 | C29: ='SA1'!C71 -> 1575444642 | D29: ='SA1'!D71 -> 2491126597 | E29: ='SA1'!E71 -> 2659404298 | F29: 2185393029 | G29: 2185393029 | H29: 2185393029 | I29: ='SA1'!I71 -> 0 | J29: ='SA1'!J71 -> 2400000000 | K29: ='SA1'!K71 -> 2505600000 | L29: ='SA1'!L71 -> 2618352000
A30: Inventory consumed | B30: 8 | C30: 613165458.4 | D30: ='SA1'!D284 -> 57161590.95 | E30: ='SA1'!E284 -> 58156549.8 | F30: 830520119.4 | G30: 837716932 | H30: 837716932 | I30: ='SA1'!I284 -> 0 | J30: ='SA1'!J284 -> 891421789.7 | K30: ='SA1'!K284 -> 922847854.5 | L30: ='SA1'!L284 -> 968507731.9
A31: Contracted services | C31: ='SA1'!C184 -> 574703312.4 | D31: ='SA1'!D184 -> 475123333.7 | E31: ='SA1'!E184 -> 550154398.9 | F31: 655391231 | G31: 731230418 | H31: 731230418 | I31: ='SA1'!I184 -> 0 | J31: ='SA1'!J184 -> 875762580.5 | K31: ='SA1'!K184 -> 824250352.1 | L31: ='SA1'!L184 -> 870980777.3
A32: Transfers and subsidies | C32: 26090874.31 | D32: ='SA1'!D76 -> 25306677.32 | E32: ='SA1'!E76 -> 16870304.99 | F32: 45862882.85 | G32: 61219951.94 | H32: 61219951.94 | I32: ='SA1'!I76 -> 0 | J32: ='SA1'!J76 -> 63469171.5 | K32: ='SA1'!K76 -> 66261815.05 | L32: ='SA1'!L76 -> 69243596.72
A33: Other expenditure | B33: 4, 5 | C33: 197669867.7 | D33: ='SA1'!D272 -> 218610329.4 | E33: ='SA1'!E272 -> 157534980 | F33: 200227522.5 | G33: 199595985.7 | H33: 199595985.7 | I33: ='SA1'!I272 -> 0 | J33: ='SA1'!J272 -> 230858794.2 | K33: ='SA1'!K272 -> 240732020.5 | L33: ='SA1'!L272 -> 264500317.8
A34: Losses | D34: 109086617 | E34: 17247758.21 | G34: 0 | H34: 0
A35: Total Expenditure | C35: =SUM(C24:C34) -> 4503095209 | D35: =SUM(D24:D34) -> 5726758448 | E35: 6403133482 | F35: 6118414019 | G35: 6240522852 | H35: 6240522852 | I35: 0 | J35: 6976824084 | K35: 7185470543 | L35: 7522565393 | M35: =SUM(M24:M34) -> 0 | N35: 0 | O35: 0 | P35: 0 | Q35: 0 | R35: 0 | S35: 0 | T35: 0 | U35: 0 | V35: 0 | W35: 0 | X35: 0
A37: Surplus/(Deficit) | C37: =C21-C35 -> 343440686.3 | D37: -208698727.8 | E37: -893759821.8 | F37: 300000018.7 | G37: 242632398.7 | H37: 242632398.7 | I37: 0 | J37: 134229540.5 | K37: 199067479.5 | L37: 90530466.98 | M37: =M21+M35 -> 0 | N37: 0 | O37: 0 | P37: 0 | Q37: 0 | R37: 0 | S37: 0 | T37: 0 | U37: 0 | V37: 0 | W37: 0 | X37: 0
A38: Transfers and subsidies - capital (monetary allocations) (National / Provincial and District) | J38: 446431108.9 | K38: 474180000 | L38: 487416000
A39: Transfers and subsidies - capital (monetary allocations) (National / Provincial Departmental Agencies, Households, Non-profit Institutions, Private Enterprises, Public Corporatons, Higher Educational Institutions) | B39: 6 | C39: 414431019.8 | D39: 431548629.4 | E39: 498745626.6 | F39: 380796576 | G39: 429670814.7 | H39: 429670814.7
A40: Transfers and subsidies - capital (in-kind - all)
A41: Surplus/(Deficit) after capital transfers & contributions | C41: =SUM(C37:C40) -> 757871706.1 | D41: 222849901.7 | E41: -395014195.2 | F41: 680796594.7 | G41: 672303213.4 | H41: 672303213.4 | I41: 0 | J41: 580660649.3 | K41: 673247479.5 | L41: 577946467
A42: Taxation
A43: Surplus/(Deficit) after taxation | C43: =C41-C42 -> 757871706.1 | D43: 222849901.7 | E43: -395014195.2 | F43: 680796594.7 | G43: 672303213.4 | H43: 672303213.4 | I43: 0 | J43: 580660649.3 | K43: 673247479.5 | L43: 577946467
A44: Attributable to minorities
A45: Surplus/(Deficit) attributable to municipality | C45: =SUM(C43:C44) -> 757871706.1 | D45: 222849901.7 | E45: -395014195.2 | F45: 680796594.7 | G45: 672303213.4 | H45: 672303213.4 | I45: 0 | J45: 580660649.3 | K45: 673247479.5 | L45: 577946467
A46: Share of surplus/ (deficit) of associate | B46: 7
A47: =result -> Surplus/(Deficit) for the year | C47: =SUM(C45:C46) -> 757871706.1 | D47: 222849901.7 | E47: -395014195.2 | F47: 680796594.7 | G47: 672303213.4 | H47: 672303213.4 | I47: 0 | J47: 580660649.3 | K47: 673247479.5 | L47: 577946467 | M47: =M25+M46 -> 0 | N47: 0 | O47: 0 | P47: 0 | Q47: 0 | R47: 0 | S47: 0 | T47: 0 | U47: 0 | V47: 0 | W47: 0 | X47: 0
A48: =head27a -> References
A49: 1. Classifications are revenue sources and expenditure type | J49: 680796594.7 | K49: 667290520.5 | L49: 786356640.6
A50: 2. Detail to be provided in Table SA1 | J50: 680796594.7 | K50: 665599913.8 | L50: 782349902.8
A51: 3. Previously described as 'bad or doubtful debts' - amounts shown should reflect the change in the provision for debt impairment
A52: 4. Expenditure type components previously shown under repairs and maintenance should be allocated back to the originating expenditure group/item; e.g. employee costs
A53: 5. Repairs & maintenance detailed in Table A9 and Table SA34c
A54: 6. Contributions are funds provided by external organisations to assist with infrastructure development; e.g. developer contributions (detail to be provided in Table SA1)
A55: 7. Equity method ( Includes Joint Ventures)
A56: 8. All materials not part of 'bulk' e.g road making materials, pipe, cable etc.
A57: check balance | C57: =C45-'A3-FinPerf V'!C21 -> 175077372.3 | D57: =D45-'A3-FinPerf V'!D21 -> 1.18992167e+10 | E57: =E45-'A3-FinPerf V'!E21 -> 1.966953278e-06 | F57: =F45-'A3-FinPerf V'!F21 -> -6.675720215e-06 | G57: =G45-'A3-FinPerf V'!G21 -> -20.93089247 | H57: =H45-'A3-FinPerf V'!H21 -> -20.93089247 | J57: =J45-'A3-FinPerf V'!I21 -> -1507924.588 | K57: =K45-'A3-FinPerf V'!J21 -> -3394632.253 | L57: =L45-'A3-FinPerf V'!K21 -> -6351711.168
A59: Total revenue | C59: =C21+SUM(C38:C40) -> 5260966915 | D59: 5949608350 | E59: 6008119286 | F59: 6799210613 | G59: 6912826065 | H59: 6912826065 | I59: 0 | J59: 7557484734 | K59: 7858718022 | L59: 8100511860

Sheet A5A
A1: =muni&" - "&Approve5 -> KZN225 Msunduzi - Table A5 Consolidated Budgeted Capital Expenditure by vote, functional classification and funding
A2: =Vdesc -> Vote Description | B2: =head27 -> Ref | C2: =head1b -> 2018/19 | D2: =head1A -> 2019/20 | E2: =Head1 -> 2020/21 | F2: =Head2 -> Current Year 2021/22 | J2: =Head3 -> 2022/23 Medium Term Revenue & Expenditure Framework | N2: ="Multi-year appropriation for "&Head9& " in the "&Head2A&" Annual Budget" -> Multi-year appropriation for Budget Year 2022/23 in the 2021/22 Annual Budget | R2: ="Multi-year appropriation for "&RIGHT(Head10,7)& " in the "&Head2A&" Annual Budget" -> Multi-year appropriation for 2023/24 in the 2021/22 Annual Budget | V2: New multi-year appropriations (funds for new and existing projects)
A3: R thousand | B3: 1 | C3: =Head5 -> Audited Outcome | D3: =Head5 -> Audited Outcome | E3: =Head5 -> Audited Outcome | F3: =Head6 -> Original Budget | G3: =Head7 -> Adjusted Budget | H3: =Head8 -> Full Year Forecast | I3: =Head5b -> Pre-audit outcome | J3: =Head9 -> Budget Year 2022/23 | K3: =Head10 -> Budget Year +1 2023/24 | L3: =Head11 -> Budget Year +2 2024/25 | N3: ="Appropriation for "&RIGHT(Head9,7) -> Appropriation for 2022/23 | O3: ="Adjustments in "&Head2A -> Adjustments in 2021/22 | P3: ="Downward adjustments for "&RIGHT(Head9,7) -> Downward adjustments for 2022/23 | Q3: Appropriation carried forward | R3: ="Appropriation for "&RIGHT(Head9,7) -> Appropriation for 2022/23 | S3: ="Adjustments in "&Head2A -> Adjustments in 2021/22 | T3: ="Downward adjustments for "&RIGHT(Head9,7) -> Downward adjustments for 2022/23 | U3: Appropriation carried forward | V3: =Head9 -> Budget Year 2022/23 | W3: =Head10 -> Budget Year +1 2023/24 | X3: =Head11 -> Budget Year +2 2024/25
A4: Capital expenditure - Municipal Vote
A5: Multi-year expenditure appropriation | B5: 2
A6: ='Org structure'!A2 -> Vote 1 - City Manager | C6: =SUM(C7:C16) -> 10000 | D6: =SUM(D7:D16) -> 646307 | E6: 0 | F6: 9040000 | G6: 9040000 | H6: 9040000 | I6: =SUM(I7:I16) -> 9040000 | J6: 6640000 | K6: 1750000 | L6: 3300000 | N6: =SUM(N7:N16) -> 0 | O6: 0 | P6: 0 | Q6: 0 | R6: 0 | S6: 0 | T6: 0 | U6: 0 | V6: =SUM(V7:V16) -> 0 | W6: =SUM(W7:W16) -> 0 | X6: =SUM(X7:X16) -> 3300000
A7: ='Org structure'!E3 -> 1.1 - Internal Audit and Compliance | F7: 510000 | G7: 410000 | H7: 410000 | I7: 410000 | J7: 620000 | K7: 0 | L7: =X7 -> 0 | Q7: =SUM(N7:P7) -> 0 | U7: =SUM(R7:T7) -> 0
A8: ='Org structure'!E4 -> 1.2 - Office of the City Manager | C8: 10000 | F8: 1700000 | G8: 1800000 | H8: 1800000 | I8: 1800000 | J8: 1200000 | K8: 1000000 | L8: =X8 -> 1000000 | Q8: =SUM(N8:P8) -> 0 | U8: =SUM(R8:T8) -> 0 | X8: 1000000
A9: ='Org structure'!E5 -> 1.3 - Political Support | D9: 646307 | F9: 4940000 | G9: 4940000 | H9: 4940000 | I9: 4940000 | J9: 3170000 | K9: 750000 | L9: 2300000 | Q9: 0 | U9: 0 | X9: 2300000
A10: ='Org structure'!E6 -> 1.4 - Strategic Planning | F10: 1890000 | G10: 1890000 | H10: 1890000 | I10: 1890000 | J10: 1650000 | K10: 0 | L10: 0 | Q10: 0 | U10: 0
A11: ='Org structure'!E7 -> 0 | L11: =X11 -> 0 | Q11: 0 | U11: 0
A12: ='Org structure'!E8 -> 0 | J12: =Q12+V12 -> 0 | K12: =U12+W12 -> 0 | L12: 0 | Q12: 0 | U12: 0 | Y12: Water/Water Storage
A13: ='Org structure'!E9 -> 0 | J13: 0 | K13: 0 | L13: 0 | Q13: 0 | U13: 0
A14: ='Org structure'!E10 -> 0 | J14: 0 | K14: 0 | L14: 0 | Q14: 0 | U14: 0
A15: ='Org structure'!E11 -> 0 | J15: 0 | K15: 0 | L15: 0 | Q15: 0 | U15: 0
A16: ='Org structure'!E12 -> 0 | J16: 0 | K16: 0 | L16: 0 | Q16: 0 | U16: 0
A17: ='Org structure'!A3 -> Vote 2 - City Finance | C17: =SUM(C18:C27) -> 0 | D17: =SUM(D18:D27) -> 9184603 | E17: 1592912.04 | F17: 39856796.95 | G17: 43096797 | H17: 43096797 | I17: =SUM(I18:I27) -> 43096797 | J17: 78543437 | K17: 27045000 | L17: 41851601 | N17: =SUM(N18:N27) -> 0 | O17: 0 | P17: 0 | Q17: 0 | R17: 0 | S17: 0 | T17: 0 | U17: 0 | V17: 0 | W17: 0 | X17: 41851601
A18: ='Org structure'!E14 -> 2.1 - Asset Management | F18: 4864855.4 | G18: 5294855 | H18: 5294855 | I18: 5294855 | J18: 23260000 | K18: 100000 | L18: =X18 -> 13740000 | Q18: =SUM(N18:P18) -> 0 | U18: 0 | X18: 13740000
A19: ='Org structure'!E15 -> 2.2 - Budget and Treasury Management | D19: 9184603 | E19: 1336280.74 | F19: 31362168.94 | G19: 24012169 | H19: 24012169 | I19: 24012169 | J19: 47282664 | K19: 25000000 | L19: 26111601 | Q19: 0 | U19: 0 | X19: 26111601
A20: ='Org structure'!E16 -> 2.3 - Expenditure Management | F20: 163000 | G20: 183000 | H20: 183000 | I20: 183000 | J20: 154000 | K20: 0 | L20: 45000 | Q20: 0 | U20: 0 | X20: 45000
A21: ='Org structure'!E17 -> 2.4 - Revenue Management | F21: 2055000 | G21: 12395000 | H21: 12395000 | I21: 12395000 | J21: 4880000 | K21: 1395000 | L21: 1705000 | Q21: 0 | U21: 0 | X21: 1705000
A22: ='Org structure'!E18 -> 2.5 - Supply Chain Management | E22: 256631.3 | F22: 1411772.61 | G22: 1211773 | H22: 1211773 | I22: 1211773 | J22: 2966773 | K22: 550000 | L22: 250000 | Q22: 0 | U22: 0 | X22: 250000
A23: ='Org structure'!E19 -> 0 | K23: 0 | L23: 0 | Q23: 0 | U23: 0
A24: ='Org structure'!E20 -> 0 | K24: 0 | L24: 0 | Q24: 0 | U24: 0
A25: ='Org structure'!E21 -> 0 | K25: 0 | L25: 0 | Q25: 0 | U25: 0
A26: ='Org structure'!E22 -> 0 | K26: 0 | L26: 0 | Q26: 0 | U26: 0
A27: ='Org structure'!E23 -> 0 | K27: 0 | L27: 0 | Q27: 0 | U27: 0
A28: ='Org structure'!A4 -> Vote 3 - Community Services and Social Equity | C28: =SUM(C29:C38) -> 35939310 | D28: =SUM(D29:D38) -> 12745198 | E28: 24381249.32 | F28: 50556700 | G28: 56476421.5 | H28: 56476421.5 | I28: =SUM(I29:I38) -> 56476421.5 | J28: 62551050 | K28: 8950000 | L28: 8475000 | N28: =SUM(N29:N38) -> 0 | O28: 0 | P28: 0 | Q28: 0 | R28: 0 | S28: 0 | T28: 0 | U28: 0 | V28: 0 | W28: 0 | X28: 8475000
A29: ='Org structure'!E25 -> 3.1 - Area Based Management | C29: 0 | D29: 260083 | F29: 2459000 | G29: 2042100 | H29: 2042100 | I29: 2042100 | J29: 2776000 | K29: 0 | L29: =X29 -> 0 | Q29: =SUM(N29:P29) -> 0 | U29: 0
A30: ='Org structure'!E26 -> 3.2 - Public Safety, Emergency Services and Enforcement | C30: 4241000 | D30: 1175649 | F30: 2500000 | G30: 2500000 | H30: 2500000 | I30: 2500000 | J30: 16800000 | K30: 8950000 | L30: 8475000 | Q30: 0 | U30: 0 | X30: 8475000
A31: ='Org structure'!E27 -> 3.3 - Recreation and Facilities | C31: 31612609 | D31: 3374495 | E31: 12466354.57 | F31: 41097700 | G31: 34850540.5 | H31: 34850540.5 | I31: 34850540.5 | J31: 25825050 | K31: 0 | L31: 0 | Q31: 0 | U31: =SUM(R31:T31) -> 0
A32: ='Org structure'!E28 -> 3.4 - Waste Management | C32: 85701 | D32: 7934971 | E32: 11914894.75 | F32: 4500000 | G32: 17083781 | H32: 17083781 | I32: 17083781 | J32: 17150000 | K32: 0 | L32: 0 | Q32: 0 | U32: 0
A33: ='Org structure'!E29 -> 0 | K33: 0 | L33: 0 | Q33: 0 | U33: 0
A34: ='Org structure'!E30 -> 0 | J34: =Q34+V34 -> 0 | K34: =U34+W34 -> 0 | L34: 0 | Q34: 0 | U34: 0
A35: ='Org structure'!E31 -> 0 | J35: 0 | K35: 0 | L35: 0 | Q35: 0 | U35: 0
A36: ='Org structure'!E32 -> 0 | J36: 0 | K36: 0 | L36: 0 | Q36: 0 | U36: 0
A37: ='Org structure'!E33 -> 0 | J37: 0 | K37: 0 | L37: 0 | Q37: 0 | U37: 0
A38: ='Org structure'!E34 -> 0 | J38: 0 | K38: 0 | L38: 0 | Q38: 0 | U38: 0
A39: ='Org structure'!A5 -> Vote 4 - Corporate Services | C39: =SUM(C40:C49) -> 2587789 | D39: =SUM(D40:D49) -> -6912874 | E39: 971615.63 | F39: 4457625 | G39: 9457625 | H39: 9457625 | I39: =SUM(I40:I49) -> 9457625 | J39: 9309500 | K39: 6650000 | L39: 6528000 | N39: =SUM(N40:N49) -> 0 | O39: 0 | P39: 0 | Q39: 0 | R39: 0 | S39: 0 | T39: 0 | U39: 0 | V39: 0 | W39: 0 | X39: 6528000
A40: ='Org structure'!E36 -> 4.1 - Human Resources Management | D40: 153990 | F40: 470100 | G40: 484698 | H40: 484698 | I40: 484698 | J40: 1577500 | K40: 0 | L40: =X40 -> 78000 | Q40: =SUM(N40:P40) -> 0 | U40: 0 | X40: 78000
A41: ='Org structure'!E37 -> 4.2 - Information Technology | C41: 2587789 | D41: -7251520 | E41: 971615.63 | F41: 1946144 | G41: 6935962 | H41: 6935962 | I41: 6935962 | J41: 6885000 | K41: 6610000 | L41: 6430000 | Q41: 0 | U41: 0 | X41: 6430000
A42: ='Org structure'!E38 -> 4.3 - Legal Services | D42: 0 | G42: 18000 | H42: 18000 | I42: 18000 | J42: 100000 | K42: 0 | L42: 0 | Q42: 0 | U42: 0
A43: ='Org structure'!E39 -> 4.4 - Secretariat and Auxiliary Services | D43: 184656 | F43: 1975381 | G43: 1952965 | H43: 1952965 | I43: 1952965 | J43: 747000 | K43: 40000 | L43: 20000 | Q43: 0 | U43: 0 | X43: 20000
A44: ='Org structure'!E40 -> 4.5 - General Manager: Corporate Service | F44: 66000 | G44: 66000 | H44: 66000 | I44: 66000 | K44: 0 | L44: 0 | Q44: 0 | U44: 0
A45: ='Org structure'!E41 -> 0 | K45: 0 | L45: 0 | Q45: 0 | U45: 0
A46: ='Org structure'!E42 -> 0 | K46: 0 | L46: 0 | Q46: 0 | U46: 0
A47: ='Org structure'!E43 -> 0 | K47: 0 | L47: 0 | Q47: 0 | U47: 0
A48: ='Org structure'!E44 -> 0 | K48: 0 | L48: 0 | Q48: 0 | U48: 0
A49: ='Org structure'!E45 -> 0 | K49: 0 | L49: 0 | Q49: 0 | U49: 0
A50: ='Org structure'!A6 -> Vote 5 - Infrastructure Services | C50: =SUM(C51:C60) -> 29245686 | D50: =SUM(D51:D60) -> 354424144.1 | E50: 451396897 | F50: 346647960 | G50: 398111045.2 | H50: 398111045.2 | I50: =SUM(I51:I60) -> 398111045.2 | J50: 585949200 | K50: 515530000 | L50: 368606000 | N50: =SUM(N51:N60) -> 0 | O50: 0 | P50: 0 | Q50: 0 | R50: 0 | S50: 0 | T50: 0 | U50: 0 | V50: 0 | W50: 0 | X50: 368606000
A51: ='Org structure'!E47 -> 5.1 - Electricity | C51: 7811932 | D51: 33332616 | E51: 46850530.93 | F51: 130755234 | G51: 132178461 | H51: 132178461 | I51: 132178461 | J51: 242154000 | K51: 168100000 | L51: =X51 -> 19404000 | Q51: =SUM(N51:P51) -> 0 | U51: 0 | X51: 19404000
A52: ='Org structure'!E48 -> 5.2 - Project Management Office | F52: 40095 | G52: 40095 | H52: 40095 | I52: 40095 | K52: 0 | L52: 0 | Q52: 0 | U52: 0
A53: ='Org structure'!E49 -> 5.3 - Roads and Transportation | C53: 19991754 | D53: 297722791.1 | E53: 250393320 | F53: 78220000 | G53: 162873359.2 | H53: 162873359.2 | I53: 162873359.2 | J53: 52943160 | K53: 79405206.7 | L53: 278797000 | Q53: 0 | U53: 0 | X53: 278797000
A54: ='Org structure'!E50 -> 5.4 - Water and Sanitation | C54: 1442000 | D54: 23368737 | E54: 154153046.1 | F54: 137596631 | G54: 102983130 | H54: 102983130 | I54: 102983130 | J54: 290852040 | K54: 268024793.3 | L54: 70405000 | Q54: 0 | U54: 0 | X54: 70405000
A55: ='Org structure'!E51 -> General Manager: Infrastructure | F55: 36000 | G55: 36000 | H55: 36000 | I55: 36000 | K55: 0 | L55: 0 | Q55: 0 | U55: 0
A56: ='Org structure'!E52 -> 0 | K56: 0 | L56: 0 | Q56: 0 | U56: 0
A57: ='Org structure'!E53 -> 0 | K57: 0 | L57: 0 | Q57: 0 | U57: 0
A58: ='Org structure'!E54 -> 0 | K58: 0 | L58: 0 | Q58: 0 | U58: 0
A59: ='Org structure'!E55 -> 0 | K59: 0 | L59: 0 | Q59: 0 | U59: 0
A60: ='Org structure'!E56 -> 0 | K60: 0 | L60: 0 | Q60: 0 | U60: 0
A61: ='Org structure'!A7 -> Vote 6 - Sustainable Development and City Enterprises | C61: =SUM(C62:C71) -> 75459271 | D61: =SUM(D62:D71) -> 109767844.1 | E61: 180965008.9 | F61: 125742545 | G61: 139025080.3 | H61: 139025080.3 | I61: =SUM(I62:I71) -> 139025080.3 | J61: 154656931.9 | K61: 157500000 | L61: 158500000 | N61: =SUM(N62:N71) -> 0 | O61: 0 | P61: 0 | Q61: 0 | R61: 0 | S61: 0 | T61: 0 | U61: 0 | V61: 0 | W61: 0 | X61: 158500000
A62: ='Org structure'!E58 -> 6.1 - City Entities | C62: 4173693 | D62: 8711868.09 | E62: 2315510.77 | F62: 3330600 | G62: 5768330.77 | H62: 5768330.77 | I62: 5768330.77 | J62: 8125000 | K62: 0 | L62: =X62 -> 0 | Q62: =SUM(N62:P62) -> 0 | U62: 0
A63: ='Org structure'!E59 -> 6.2 - Development Services | D63: 10337001 | E63: 16004175.65 | F63: 34000000 | G63: 40186731.53 | H63: 40186731.53 | I63: 40186731.53 | J63: 42178000 | K63: 35000000 | L63: 35000000 | Q63: 0 | U63: 0 | X63: 35000000
A64: ='Org structure'!E60 -> 6.3 - Human Settlement Development | C64: 42805253 | D64: 66874142 | E64: 62960515.34 | F64: 88411945 | G64: 91041945 | H64: 91041945 | I64: 91041945 | J64: 100705858.9 | K64: 122500000 | L64: 123500000 | Q64: 0 | U64: 0 | X64: 123500000
A65: ='Org structure'!E61 -> 6.4 - Town Planning | C65: 28480325 | D65: 23844833 | E65: 99684807.15 | G65: 2028073 | H65: 2028073 | I65: 2028073 | J65: 3648073 | K65: 0 | L65: 0 | Q65: 0 | U65: 0
A66: ='Org structure'!E62 -> 6.5 - General Manager: Sustainable Development and City Enterprises | G66: 0 | J66: =Q66+V66 -> 0 | K66: 0 | L66: 0 | Q66: 0 | U66: 0
A67: ='Org structure'!E63 -> 0 | J67: 0 | K67: =U67+W67 -> 0 | L67: 0 | Q67: 0 | U67: 0
A68: ='Org structure'!E64 -> 0 | J68: 0 | K68: 0 | L68: 0 | Q68: 0 | U68: 0
A69: ='Org structure'!E65 -> 0 | J69: 0 | K69: 0 | L69: 0 | Q69: 0 | U69: 0
A70: ='Org structure'!E66 -> 0 | J70: 0 | K70: 0 | L70: 0 | Q70: 0 | U70: 0 | Y70: 73818182.08
A71: ='Org structure'!E67 -> 0 | J71: 0 | K71: 0 | L71: 0 | Q71: 0 | U71: 0
A72: ='Org structure'!A8 -> Vote 7 - [NAME OF VOTE 7] | C72: =SUM(C73:C82) -> 0 | D72: 0 | E72: 0 | F72: 0 | G72: 0 | H72: 0 | I72: 0 | J72: 0 | K72: 0 | L72: 0 | N72: =SUM(N73:N82) -> 0 | O72: 0 | P72: 0 | Q72: 0 | R72: 0 | S72: 0 | T72: 0 | U72: 0 | V72: 0 | W72: 0 | X72: 0
A73: ='Org structure'!E69 -> 7.1 - [Name of sub-vote] | J73: =Q73+V73 -> 0 | K73: =U73+W73 -> 0 | L73: =X73 -> 0 | Q73: =SUM(N73:P73) -> 0 | U73: =SUM(R73:T73) -> 0
A74: ='Org structure'!E70 -> 0 | J74: 0 | K74: 0 | L74: 0 | Q74: 0 | U74: 0
A75: ='Org structure'!E71 -> 0 | J75: 0 | K75: 0 | L75: 0 | Q75: 0 | U75: 0
A76: ='Org structure'!E72 -> 0 | J76: 0 | K76: 0 | L76: 0 | Q76: 0 | U76: 0
A77: ='Org structure'!E73 -> 0 | J77: 0 | K77: 0 | L77: 0 | Q77: 0 | U77: 0
A78: ='Org structure'!E74 -> 0 | J78: 0 | K78: 0 | L78: 0 | Q78: 0 | U78: 0
A79: ='Org structure'!E75 -> 0 | J79: 0 | K79: 0 | L79: 0 | Q79: 0 | U79: 0
A80: ='Org structure'!E76 -> 0 | J80: 0 | K80: 0 | L80: 0 | Q80: 0 | U80: 0
A81: ='Org structure'!E77 -> 0 | J81: 0 | K81: 0 | L81: 0 | Q81: 0 | U81: 0
A82: ='Org structure'!E78 -> 0 | J82: 0 | K82: 0 | L82: 0 | Q82: 0 | U82: 0
A83: ='Org structure'!A9 -> Vote 8 - [NAME OF VOTE 8] | C83: =SUM(C84:C93) -> 0 | D83: 0 | E83: 0 | F83: 0 | G83: 0 | H83: 0 | I83: 0 | J83: 0 | K83: 0 | L83: 0 | N83: =SUM(N84:N93) -> 0 | O83: 0 | P83: 0 | Q83: 0 | R83: 0 | S83: 0 | T83: 0 | U83: 0 | V83: 0 | W83: 0 | X83: 0
A84: ='Org structure'!E80 -> 8.1 - [Name of sub-vote] | J84: =Q84+V84 -> 0 | K84: =U84+W84 -> 0 | L84: =X84 -> 0 | Q84: =SUM(N84:P84) -> 0 | U84: 0
A85: ='Org structure'!E81 -> 0 | J85: 0 | K85: 0 | L85: 0 | Q85: 0 | U85: 0
A86: ='Org structure'!E82 -> 0 | J86: 0 | K86: 0 | L86: 0 | Q86: 0 | U86: 0
A87: ='Org structure'!E83 -> 0 | J87: 0 | K87: 0 | L87: 0 | Q87: 0 | U87: 0
A88: ='Org structure'!E84 -> 0 | J88: 0 | K88: 0 | L88: 0 | Q88: 0 | U88: 0
A89: ='Org structure'!E85 -> 0 | J89: 0 | K89: 0 | L89: 0 | Q89: 0 | U89: 0
A90: ='Org structure'!E86 -> 0 | J90: 0 | K90: 0 | L90: 0 | Q90: 0 | U90: 0
A91: ='Org structure'!E87 -> 0 | J91: 0 | K91: 0 | L91: 0 | Q91: 0 | U91: 0
A92: ='Org structure'!E88 -> 0 | J92: 0 | K92: 0 | L92: 0 | Q92: 0 | U92: 0
A93: ='Org structure'!E89 -> 0 | J93: 0 | K93: 0 | L93: 0 | Q93: 0 | U93: 0
A94: ='Org structure'!A10 -> Vote 9 - [NAME OF VOTE 9] | C94: =SUM(C95:C104) -> 0 | D94: =SUM(D95:D104) -> 0 | E94: 0 | F94: 0 | G94: 0 | H94: 0 | I94: 0 | J94: 0 | K94: 0 | L94: 0 | N94: =SUM(N95:N104) -> 0 | O94: 0 | P94: 0 | Q94: 0 | R94: 0 | S94: 0 | T94: 0 | U94: 0 | V94: 0 | W94: 0 | X94: 0
A95: ='Org structure'!E91 -> 9.1 - [Name of sub-vote] | J95: =Q95+V95 -> 0 | K95: =U95+W95 -> 0 | L95: =X95 -> 0 | Q95: =SUM(N95:P95) -> 0 | U95: 0
A96: ='Org structure'!E92 -> 0 | J96: 0 | K96: 0 | L96: 0 | Q96: 0 | U96: 0
A97: ='Org structure'!E93 -> 0 | J97: 0 | K97: 0 | L97: 0 | Q97: 0 | U97: 0
A98: ='Org structure'!E94 -> 0 | J98: 0 | K98: 0 | L98: 0 | Q98: 0 | U98: 0
A99: ='Org structure'!E95 -> 0 | J99: 0 | K99: 0 | L99: 0 | Q99: 0 | U99: 0
A100: ='Org structure'!E96 -> 0 | J100: 0 | K100: 0 | L100: 0 | Q100: 0 | U100: 0
A101: ='Org structure'!E97 -> 0 | J101: 0 | K101: 0 | L101: 0 | Q101: 0 | U101: 0
A102: ='Org structure'!E98 -> 0 | J102: 0 | K102: 0 | L102: 0 | Q102: 0 | U102: 0
A103: ='Org structure'!E99 -> 0 | J103: 0 | K103: 0 | L103: 0 | Q103: 0 | U103: 0
A104: ='Org structure'!E100 -> 0 | J104: 0 | K104: 0 | L104: 0 | Q104: 0 | U104: 0
A105: ='Org structure'!A11 -> Vote 10 - [NAME OF VOTE 10] | C105: =SUM(C106:C115) -> 0 | D105: =SUM(D106:D115) -> 0 | E105: 0 | F105: 0 | G105: 0 | H105: 0 | I105: 0 | J105: 0 | K105: 0 | L105: 0 | N105: =SUM(N106:N115) -> 0 | O105: 0 | P105: 0 | Q105: 0 | R105: 0 | S105: 0 | T105: 0 | U105: 0 | V105: 0 | W105: 0 | X105: 0
A106: ='Org structure'!E102 -> 10.1 - [Name of sub-vote] | J106: =Q106+V106 -> 0 | K106: =U106+W106 -> 0 | L106: =X106 -> 0 | Q106: =SUM(N106:P106) -> 0 | U106: 0
A107: ='Org structure'!E103 -> 0 | J107: 0 | K107: 0 | L107: 0 | Q107: 0 | U107: 0
A108: ='Org structure'!E104 -> 0 | J108: 0 | K108: 0 | L108: 0 | Q108: 0 | U108: 0
A109: ='Org structure'!E105 -> 0 | J109: 0 | K109: 0 | L109: 0 | Q109: 0 | U109: 0
A110: ='Org structure'!E106 -> 0 | J110: 0 | K110: 0 | L110: 0 | Q110: 0 | U110: 0
A111: ='Org structure'!E107 -> 0 | J111: 0 | K111: 0 | L111: 0 | Q111: 0 | U111: 0
A112: ='Org structure'!E108 -> 0 | J112: 0 | K112: 0 | L112: 0 | Q112: 0 | U112: 0
A113: ='Org structure'!E109 -> 0 | J113: 0 | K113: 0 | L113: 0 | Q113: 0 | U113: 0
A114: ='Org structure'!E110 -> 0 | J114: 0 | K114: 0 | L114: 0 | Q114: 0 | U114: 0
A115: ='Org structure'!E111 -> 0 | J115: 0 | K115: 0 | L115: 0 | Q115: 0 | U115: 0
A116: ='Org structure'!A12 -> Vote 11 - [NAME OF VOTE 11] | C116: =SUM(C117:C126) -> 0 | D116: 0 | E116: 0 | F116: 0 | G116: 0 | H116: 0 | I116: 0 | J116: 0 | K116: 0 | L116: 0 | N116: =SUM(N117:N126) -> 0 | O116: 0 | P116: 0 | Q116: 0 | R116: 0 | S116: 0 | T116: 0 | U116: 0 | V116: 0 | W116: 0 | X116: 0
A117: ='Org structure'!E113 -> 11.1 - [Name of sub-vote] | J117: =Q117+V117 -> 0 | K117: =U117+W117 -> 0 | L117: =X117 -> 0 | Q117: =SUM(N117:P117) -> 0 | U117: 0
A118: ='Org structure'!E114 -> 0 | J118: 0 | K118: 0 | L118: 0 | Q118: 0 | U118: 0
A119: ='Org structure'!E115 -> 0 | J119: 0 | K119: 0 | L119: 0 | Q119: 0 | U119: 0
A120: ='Org structure'!E116 -> 0 | J120: 0 | K120: 0 | L120: 0 | Q120: 0 | U120: 0
A121: ='Org structure'!E117 -> 0 | J121: 0 | K121: 0 | L121: 0 | Q121: 0 | U121: 0
A122: ='Org structure'!E118 -> 0 | J122: 0 | K122: 0 | L122: 0 | Q122: 0 | U122: 0
A123: ='Org structure'!E119 -> 0 | J123: 0 | K123: 0 | L123: 0 | Q123: 0 | U123: 0
A124: ='Org structure'!E120 -> 0 | J124: 0 | K124: 0 | L124: 0 | Q124: 0 | U124: 0
A125: ='Org structure'!E121 -> 0 | J125: 0 | K125: 0 | L125: 0 | Q125: 0 | U125: 0
A126: ='Org structure'!E122 -> 0 | J126: 0 | K126: 0 | L126: 0 | Q126: 0 | U126: 0
A127: ='Org structure'!A13 -> Vote 12 - [NAME OF VOTE 12] | C127: =SUM(C128:C137) -> 0 | D127: 0 | E127: 0 | F127: 0 | G127: 0 | H127: 0 | I127: 0 | J127: 0 | K127: 0 | L127: 0 | N127: =SUM(N128:N137) -> 0 | O127: 0 | P127: 0 | Q127: 0 | R127: 0 | S127: 0 | T127: 0 | U127: 0 | V127: 0 | W127: 0 | X127: 0
A128: ='Org structure'!E124 -> 12.1 - [Name of sub-vote] | J128: =Q128+V128 -> 0 | K128: =U128+W128 -> 0 | L128: =X128 -> 0 | Q128: =SUM(N128:P128) -> 0 | U128: 0
A129: ='Org structure'!E125 -> 0 | J129: 0 | K129: 0 | L129: 0 | Q129: 0 | U129: 0
A130: ='Org structure'!E126 -> 0 | J130: 0 | K130: 0 | L130: 0 | Q130: 0 | U130: 0
A131: ='Org structure'!E127 -> 0 | J131: 0 | K131: 0 | L131: 0 | Q131: 0 | U131: 0
A132: ='Org structure'!E128 -> 0 | J132: 0 | K132: 0 | L132: 0 | Q132: 0 | U132: 0
A133: ='Org structure'!E129 -> 0 | J133: =Q133+V133 -> 0 | K133: 0 | L133: 0 | Q133: 0 | U133: 0
A134: ='Org structure'!E130 -> 0 | J134: 0 | K134: 0 | L134: 0 | Q134: 0 | U134: 0
A135: ='Org structure'!E131 -> 0 | J135: 0 | K135: 0 | L135: 0 | Q135: 0 | U135: 0
A136: ='Org structure'!E132 -> 0 | J136: 0 | K136: 0 | L136: 0 | Q136: 0 | U136: =SUM(R136:T136) -> 0
A137: ='Org structure'!E133 -> 0 | J137: 0 | K137: 0 | L137: 0 | Q137: 0 | U137: 0
A138: ='Org structure'!A14 -> Vote 13 - [NAME OF VOTE 13] | C138: =SUM(C139:C148) -> 0 | D138: 0 | E138: 0 | F138: 0 | G138: 0 | H138: 0 | I138: 0 | J138: 0 | K138: 0 | L138: 0 | N138: =SUM(N139:N148) -> 0 | O138: 0 | P138: 0 | Q138: 0 | R138: 0 | S138: 0 | T138: 0 | U138: 0 | V138: 0 | W138: 0 | X138: 0
A139: ='Org structure'!E135 -> 13.1 - [Name of sub-vote] | J139: =Q139+V139 -> 0 | K139: =U139+W139 -> 0 | L139: =X139 -> 0 | Q139: =SUM(N139:P139) -> 0 | U139: 0
A140: ='Org structure'!E136 -> 0 | J140: 0 | K140: 0 | L140: 0 | Q140: 0 | U140: 0
A141: ='Org structure'!E137 -> 0 | J141: 0 | K141: 0 | L141: 0 | Q141: 0 | U141: 0
A142: ='Org structure'!E138 -> 0 | J142: 0 | K142: 0 | L142: 0 | Q142: 0 | U142: 0
A143: ='Org structure'!E139 -> 0 | J143: 0 | K143: 0 | L143: 0 | Q143: 0 | U143: 0
A144: ='Org structure'!E140 -> 0 | J144: 0 | K144: 0 | L144: 0 | Q144: 0 | U144: 0
A145: ='Org structure'!E141 -> 0 | J145: 0 | K145: 0 | L145: 0 | Q145: 0 | U145: 0
A146: ='Org structure'!E142 -> 0 | J146: 0 | K146: 0 | L146: 0 | Q146: 0 | U146: 0
A147: ='Org structure'!E143 -> 0 | J147: 0 | K147: 0 | L147: 0 | Q147: 0 | U147: 0
A148: ='Org structure'!E144 -> 0 | J148: 0 | K148: 0 | L148: 0 | Q148: 0 | U148: 0
A149: ='Org structure'!A15 -> Vote 14 - [NAME OF VOTE 14] | C149: =SUM(C150:C159) -> 0 | D149: 0 | E149: 0 | F149: 0 | G149: 0 | H149: 0 | I149: 0 | J149: 0 | K149: 0 | L149: 0 | N149: =SUM(N150:N159) -> 0 | O149: 0 | P149: 0 | Q149: 0 | R149: 0 | S149: 0 | T149: 0 | U149: 0 | V149: 0 | W149: 0 | X149: 0
A150: ='Org structure'!E146 -> 14.1 - [Name of sub-vote] | J150: =Q150+V150 -> 0 | K150: =U150+W150 -> 0 | L150: =X150 -> 0 | Q150: =SUM(N150:P150) -> 0 | U150: 0
A151: ='Org structure'!E147 -> 0 | J151: 0 | K151: 0 | L151: 0 | Q151: 0 | U151: 0
A152: ='Org structure'!E148 -> 0 | J152: 0 | K152: 0 | L152: 0 | Q152: 0 | U152: 0
A153: ='Org structure'!E149 -> 0 | J153: 0 | K153: 0 | L153: 0 | Q153: 0 | U153: 0
A154: ='Org structure'!E150 -> 0 | J154: 0 | K154: 0 | L154: 0 | Q154: 0 | U154: 0
A155: ='Org structure'!E151 -> 0 | J155: 0 | K155: 0 | L155: 0 | Q155: 0 | U155: 0
A156: ='Org structure'!E152 -> 0 | J156: 0 | K156: 0 | L156: 0 | Q156: 0 | U156: 0
A157: ='Org structure'!E153 -> 0 | J157: 0 | K157: 0 | L157: 0 | Q157: 0 | U157: 0
A158: ='Org structure'!E154 -> 0 | J158: 0 | K158: 0 | L158: 0 | Q158: 0 | U158: 0
A159: ='Org structure'!E155 -> 0 | J159: 0 | K159: 0 | L159: 0 | Q159: 0 | U159: 0
A160: ='Org structure'!A16 -> Vote 15 - [NAME OF VOTE 15] | C160: =SUM(C161:C170) -> 0 | D160: 0 | E160: 0 | F160: 0 | G160: 0 | H160: 0 | I160: 0 | J160: 0 | K160: 0 | L160: 0 | N160: =SUM(N161:N170) -> 0 | O160: 0 | P160: 0 | Q160: 0 | R160: 0 | S160: 0 | T160: 0 | U160: 0 | V160: 0 | W160: 0 | X160: 0
A161: ='Org structure'!E157 -> 15.1 - [Name of sub-vote] | J161: =Q161+V161 -> 0 | K161: =U161+W161 -> 0 | L161: =X161 -> 0 | Q161: =SUM(N161:P161) -> 0 | U161: 0
A162: ='Org structure'!E158 -> 0 | J162: 0 | K162: 0 | L162: 0 | Q162: 0 | U162: 0
A163: ='Org structure'!E159 -> 0 | J163: 0 | K163: 0 | L163: 0 | Q163: 0 | U163: 0
A164: ='Org structure'!E160 -> 0 | J164: 0 | K164: 0 | L164: 0 | Q164: 0 | U164: 0
A165: ='Org structure'!E161 -> 0 | J165: 0 | K165: 0 | L165: 0 | Q165: 0 | U165: 0
A166: ='Org structure'!E162 -> 0 | J166: 0 | K166: 0 | L166: 0 | Q166: 0 | U166: 0
A167: ='Org structure'!E163 -> 0 | J167: 0 | K167: 0 | L167: 0 | Q167: 0 | U167: 0
A168: ='Org structure'!E164 -> 0 | J168: 0 | K168: 0 | L168: 0 | Q168: 0 | U168: 0
A169: ='Org structure'!E165 -> 0 | J169: 0 | K169: 0 | L169: 0 | Q169: 0 | U169: 0
A170: ='Org structure'!E166 -> 0 | J170: 0 | K170: 0 | L170: 0 | Q170: 0 | U170: 0
A171: Capital multi-year expenditure sub-total | C171: =C6+C17+C28+C39+C50+C61+C72+C83+C94+C105+C116+C127+C138+C149+C160 -> 143242056 | D171: =D6+D17+D28+D39+D50+D61+D72+D83+D94+D105+D116+D127+D138+D149+D160 -> 479855222.2 | E171: 659307682.9 | F171: 576301627 | G171: 655206969 | H171: 655206969 | I171: 655206969 | J171: 897650118.9 | K171: 717425000 | L171: 587260601 | N171: =N6+N17+N28+N39+N50+N61+N72+N83+N94+N105+N116+N127+N138+N149+N160 -> 0 | O171: 0 | P171: 0 | Q171: 0 | R171: 0 | S171: 0 | U171: 0 | V171: =V6+V17+V28+V39+V50+V61+V72+V83+V94+V105+V116+V127+V138+V149+V160 -> 0 | W171: =W6+W17+W28+W39+W50+W61+W72+W83+W94+W105+W116+W127+W138+W149+W160 -> 0
A173: Capital expenditure - Municipal Vote
A174: Single-year expenditure appropriation | B174: 2
A175: =A6 -> Vote 1 - City Manager | C175: =SUM(C176:C185) -> 4313936 | D175: 0 | E175: 1409774.98 | F175: 0 | G175: 0 | H175: 0 | I175: 0 | J175: 0 | K175: 1500000 | L175: 0
A176: =A7 -> 1.1 - Internal Audit and Compliance | C176: 120000 | K176: 0
A177: 1.2 - Office of the City Manager | C177: 3913171 | E177: 274174.98 | K177: 0
A178: 1.3 - Political Support | C178: 280765 | E178: 1135600 | K178: 1500000
A179: 1.4 - Strategic Planning | K179: 0
A180: 0
A181: 0
A182: 0
A183: 0
A184: 0
A185: 0
A186: Vote 2 - City Finance | C186: =SUM(C187:C196) -> 17257057 | D186: 0 | E186: 6469188.79 | F186: 0 | G186: 0 | H186: 0 | I186: 0 | J186: 0 | K186: 15392485 | L186: 0
A187: 2.1 - Asset Management | C187: 5250000 | E187: 5396998.22 | K187: 13110000
A188: 2.2 - Budget and Treasury Management | C188: 8147057 | E188: 1047881.32 | K188: 1522485
A189: 2.3 - Expenditure Management | C189: 50000 | E189: 0 | K189: 45000
A190: 2.4 - Revenue Management | C190: 2050000 | E190: 0 | K190: 615000
A191: 2.5 - Supply Chain Management | C191: 1760000 | E191: 24309.25 | K191: 100000
A192: 0
A193: 0
A194: 0
A195: 0
A196: 0
A197: Vote 3 - Community Services and Social Equity | C197: =SUM(C198:C207) -> 15738155 | D197: 0 | E197: 13964306.88 | F197: 0 | G197: 0 | H197: 0 | I197: 0 | J197: 0 | K197: 1950000 | L197: 0
A198: 3.1 - Area Based Management | C198: 2349800 | K198: 0
A199: 3.2 - Public Safety, Emergency Services and Enforcement | C199: 2902083 | E199: -299343.43 | K199: 1950000
A200: 3.3 - Recreation and Facilities | C200: 9746908 | E200: 3926545.15 | K200: 0
A201: 3.4 - Waste Management | C201: 739364 | E201: 10337105.16 | K201: 0
... 140 more rows

Sheet A6-FinPos
A1: =muni&" - "&Approve6 -> KZN225 Msunduzi - Table A6 Consolidated Budgeted Financial Position
A2: =desc -> Description | B2: =head27 -> Ref | C2: =head1b -> 2018/19 | D2: =head1A -> 2019/20 | E2: =Head1 -> 2020/21 | F2: =Head2 -> Current Year 2021/22 | J2: =Head3 -> 2022/23 Medium Term Revenue & Expenditure Framework
A3: R thousand | C3: =Head5 -> Audited Outcome | D3: =Head5 -> Audited Outcome | E3: =Head5 -> Audited Outcome | F3: =Head6 -> Original Budget | G3: =Head7 -> Adjusted Budget | H3: =Head8 -> Full Year Forecast | I3: =Head5b -> Pre-audit outcome | J3: =Head9 -> Budget Year 2022/23 | K3: =Head10 -> Budget Year +1 2023/24 | L3: =Head11 -> Budget Year +2 2024/25
A4: ASSETS
A5: Current assets
A6: Cash | C6: 308195245 | D6: 518976967 | E6: 361320731 | F6: 355836461.2 | G6: 341936461.2 | H6: 341936461.2 | J6: 241237908 | K6: 104706522.4 | L6: 5933019.441
A7: Call investment deposits | B7: 1 | E7: 32311434 | F7: 0 | G7: 0 | H7: 0
A8: Consumer debtors | B8: 1 | C8: ='SA3'!C14 -> 424770387 | D8: ='SA3'!D14 -> 1703379038 | E8: ='SA3'!E14 -> 1176104174 | F8: 2549906678 | G8: 2549906678 | H8: 2549906678 | I8: ='SA3'!I14 -> 0 | J8: ='SA3'!J14 -> 2549906678 | K8: ='SA3'!K14 -> 2638074611 | L8: ='SA3'!L14 -> 2691659529
A9: Other debtors | C9: 5449597 | D9: 550039863.6 | E9: =545319677+19681707 -> 565001384 | F9: 729641518.6 | G9: 729641518.6 | H9: 729641518.6 | J9: 729641518.6 | K9: 729641518.6 | L9: 729641518.6
A10: Current portion of long-term receivables | C10: 0 | G10: 0 | H10: 0
A11: Inventory | B11: 2 | C11: 335344747 | D11: 340986532 | E11: 353716815 | F11: 173496047.1 | G11: 173496047.1 | H11: 173496047.1 | J11: 173496047.1 | K11: 173496047.1 | L11: 173496047.1
A12: Total current assets | C12: =SUM(C6:C11) -> 1073759976 | D12: 3113382401 | E12: 2488454538 | F12: 3808880705 | G12: 3794980705 | H12: 3794980705 | I12: 0 | J12: 3694282151 | K12: 3645918699 | L12: 3600730114
A14: Non current assets
A15: Long-term receivables | G15: 0 | H15: 0
A16: Investments | C16: 2642997 | D16: - | G16: 0 | H16: 0
A17: Investment property | C17: 779067512 | D17: 821671435 | E17: 892583607 | F17: 821671435 | G17: 821671435 | H17: 821671435 | J17: 821671435 | K17: 821671435 | L17: 821671435
A18: Investment in Associate | C18: 0 | G18: 0 | H18: 0
A19: Property, plant and equipment | B19: 3 | C19: 6645980240 | D19: 6588894508 | E19: 6781651843 | F19: 6755609329 | G19: 6834514672 | H19: 6834514672 | J19: 7195684086 | K19: 7421599291 | L19: 7463258947
A21: Biological | C21: 948425 | D21: 1070250 | F21: 1070250 | G21: 1070250 | H21: 1070250 | J21: 1070250 | K21: 1070250 | L21: 1070250
A22: Intangible | C22: 41057963 | D22: 30700413 | E22: 24463571 | F22: 30700413 | G22: 30700413 | H22: 30700413 | J22: 30700413 | K22: 30700413 | L22: 30700413
A23: Other non-current assets | C23: 353131260 | D23: 345024972 | E23: =272918984+96300000+743574 -> 369962558 | F23: 360375178.5 | G23: 360375178.5 | H23: 360375178.5 | J23: 360375178.5 | K23: 360375178.5 | L23: 360375178.5
A24: Total non current assets | C24: =SUM(C15:C19)+SUM(C21:C23) -> 7822828397 | D24: =SUM(D15:D19)+SUM(D21:D23) -> 7787361578 | E24: 8068661579 | F24: 7969426606 | G24: 8048331949 | H24: 8048331949 | I24: 0 | J24: 8409501363 | K24: 8635416568 | L24: 8677076224
A25: TOTAL ASSETS | C25: =C12+C24 -> 8896588373 | D25: =D12+D24 -> 1.090074398e+10 | E25: =E12+E24 -> 10557116117 | F25: =F12+F24 -> 1.177830731e+10 | G25: 1.184331265e+10 | H25: 1.184331265e+10 | I25: 0 | J25: 1.210378351e+10 | K25: 1.228133527e+10 | L25: 1.227780634e+10
A27: LIABILITIES
A28: Current liabilities
A29: Bank overdraft | B29: 1 | G29: 0 | H29: 0
A30: Borrowing | B30: 4 | C30: ='SA3'!C127 -> 114310751 | D30: ='SA3'!D127 -> 113418257.9 | E30: 81573484 | F30: 95346077.83 | G30: 95346077.83 | H30: 95346077.83 | I30: ='SA3'!I127 -> 0 | J30: 476393968.3 | K30: 449042829.9 | L30: 417352422
A31: Consumer deposits | C31: 107229302 | D31: 113838915 | E31: 128836470 | F31: 114344430.7 | G31: 114344430.7 | H31: 114344430.7 | J31: 114344430.7 | K31: 114344430.7 | L31: 114344430.7
A32: Trade and other payables | B32: 4 | C32: ='SA3'!C134 -> 1208618752 | D32: ='SA3'!D134 -> 1624206606 | E32: =21715043+1385627077+179373712+190638434 -> 1777354266 | F32: 945608981.8 | G32: 1124982694 | H32: 1124982694 | I32: ='SA3'!I134 -> 0 | J32: 945608981.8 | K32: 945608981.8 | L32: 945608981.8
A33: Provisions | C33: 46040040 | D33: 41864143 | E33: =10129381+39852001 -> 49981382 | F33: 140397811.8 | G33: 140397811.8 | H33: 140397811.8 | J33: 140397811.8 | K33: 140397811.8 | L33: 140397811.8
A34: Total current liabilities | C34: =SUM(C29:C33) -> 1476198845 | D34: 1893327922 | E34: 2037745602 | F34: 1295697302 | G34: 1475071014 | H34: 1475071014 | I34: 0 | J34: 1676745193 | K34: 1649394054 | L34: 1617703646
A36: Non current liabilities
A37: Borrowing | C37: ='SA3'!C139 -> 366291537 | D37: ='SA3'!D139 -> 285317995.6 | E37: 203744512 | F37: 377458040.8 | G37: 377458040.8 | H37: 377458040.8 | I37: ='SA3'!I139 -> 0 | J37: ='SA3'!J139 -> 0 | K37: ='SA3'!K139 -> 0 | L37: ='SA3'!L139 -> 0
A38: Provisions | C38: ='SA3'!C146 -> 624742898 | D38: ='SA3'!D146 -> 531179840 | E38: =55141588+555608000 -> 610749588 | F38: 809779414.9 | G38: 809779414.9 | H38: 809779414.9 | I38: ='SA3'!I146 -> 0 | J38: 809779414.9 | K38: 809779414.9 | L38: 809779414.9
A39: Total non current liabilities | C39: =SUM(C37:C38) -> 991034435 | D39: =SUM(D37:D38) -> 816497835.6 | E39: =SUM(E37:E38) -> 814494100 | F39: =SUM(F37:F38) -> 1187237456 | G39: 1187237456 | H39: 1187237456 | I39: 0 | J39: 809779414.9 | K39: =SUM(K37:K38) -> 809779414.9 | L39: 809779414.9
A40: TOTAL LIABILITIES | C40: =C34+C39 -> 2467233280 | D40: =D34+D39 -> 2709825758 | E40: =E34+E39 -> 2852239702 | F40: =F34+F39 -> 2482934758 | G40: 2662308470 | H40: 2662308470 | I40: 0 | J40: 2486524607 | K40: =K34+K39 -> 2459173469 | L40: 2427483061
A42: NET ASSETS | B42: 5 | C42: =C25-C40 -> 6429355093 | D42: 8190918221 | E42: 7704876415 | F42: 9295372552 | G42: 9181004183 | H42: 9181004183 | I42: 0 | J42: 9617258907 | K42: 9822161798 | L42: 9850323277
A44: COMMUNITY WEALTH/EQUITY
A45: Accumulated Surplus/(Deficit) | C45: 7479050486 | D45: 7748557372 | E45: 7513887393 | F45: 9066459294 | G45: 8952090925 | H45: 8952090925 | J45: 8355801663 | K45: 8476611105 | L45: 8600073596
A46: Reserves | B46: 4 | C46: ='SA3'!C165 -> 228913258 | D46: ='SA3'!D165 -> 190847169 | E46: =724892+95126533+95137597 -> 190989022 | F46: 228913258 | G46: 228913258 | H46: 228913258 | I46: ='SA3'!I165 -> 0 | J46: 1261457244 | K46: 1345550693 | L46: 1250249680
A48: TOTAL COMMUNITY WEALTH/EQUITY | B48: 5 | C48: =SUM(C45:C46) -> 7707963744 | D48: =SUM(D45:D46) -> 7939404541 | E48: 7704876415 | F48: 9295372552 | G48: 9181004183 | H48: 9181004183 | I48: 0 | J48: 9617258907 | K48: 9822161798 | L48: 9850323277
A49: =head27a -> References
A50: 1. Detail to be provided in Table SA3
A51: 2. Include completed low cost housing to be transferred to beneficiaries within 12 months | F51: =F48-F42 -> 0
A52: 3. Include 'Construction-work-in-progress' (disclosed separately in annual financial statements)
A53: 4. Detail to be provided in Table SA3. Includes reserves to be funded by statute.
A54: 5. Net assets must balance with Total Community Wealth/Equity | K54: =K53/2 -> 0
A55: check balance | C55: =IF((C42-C48)=0,0,"Unbalanced") -> Unbalanced | D55: =IF((D42-D48)=0,0,"Unbalanced") -> Unbalanced | E55: 0 | F55: Unbalanced | G55: Unbalanced | H55: Unbalanced | I55: 0 | J55: 0 | K55: 0 | L55: 0
J56: =J42-J48 -> 0 | K56: =K42-K48 -> 0 | L56: =L42-L48 -> 0

Sheet A5-Capex
A2: =Vdesc -> Vote Description | B2: =head27 -> Ref | C2: =head1b -> 2018/19 | D2: =head1A -> 2019/20 | E2: =Head1 -> 2020/21 | F2: =Head2 -> Current Year 2021/22 | J2: =Head3 -> 2022/23 Medium Term Revenue & Expenditure Framework
A3: R thousand | B3: 1 | C3: =Head5 -> Audited Outcome | D3: =Head5 -> Audited Outcome | E3: =Head5 -> Audited Outcome | F3: =Head6 -> Original Budget | G3: =Head7 -> Adjusted Budget | H3: =Head8 -> Full Year Forecast | I3: =Head5b -> Pre-audit outcome | J3: =Head9 -> Budget Year 2022/23 | K3: =Head10 -> Budget Year +1 2023/24 | L3: =Head11 -> Budget Year +2 2024/25
A4: Capital expenditure - Vote
A5: Multi-year expenditure to be appropriated | B5: 2
A6: =A5A!A6 -> Vote 1 - City Manager | C6: =A5A!C6 -> 10000 | D6: =A5A!D6 -> 646307 | E6: =A5A!E6 -> 0 | F6: =A5A!F6 -> 9040000 | G6: =A5A!G6 -> 9040000 | H6: =A5A!H6 -> 9040000 | I6: =A5A!I6 -> 9040000 | J6: =A5A!J6 -> 6640000 | K6: =A5A!K6 -> 1750000 | L6: =A5A!L6 -> 3300000
A7: =A5A!A17 -> Vote 2 - City Finance | C7: =A5A!C17 -> 0 | D7: =A5A!D17 -> 9184603 | E7: =A5A!E17 -> 1592912.04 | F7: =A5A!F17 -> 39856796.95 | G7: =A5A!G17 -> 43096797 | H7: =A5A!H17 -> 43096797 | I7: =A5A!I17 -> 43096797 | J7: =A5A!J17 -> 78543437 | K7: =A5A!K17 -> 27045000 | L7: =A5A!L17 -> 41851601
A8: =A5A!A28 -> Vote 3 - Community Services and Social Equity | C8: =A5A!C28 -> 35939310 | D8: =A5A!D28 -> 12745198 | E8: =A5A!E28 -> 24381249.32 | F8: =A5A!F28 -> 50556700 | G8: =A5A!G28 -> 56476421.5 | H8: =A5A!H28 -> 56476421.5 | I8: =A5A!I28 -> 56476421.5 | J8: =A5A!J28 -> 62551050 | K8: =A5A!K28 -> 8950000 | L8: =A5A!L28 -> 8475000
A9: =A5A!A39 -> Vote 4 - Corporate Services | C9: =A5A!C39 -> 2587789 | D9: =A5A!D39 -> -6912874 | E9: =A5A!E39 -> 971615.63 | F9: =A5A!F39 -> 4457625 | G9: =A5A!G39 -> 9457625 | H9: =A5A!H39 -> 9457625 | I9: =A5A!I39 -> 9457625 | J9: =A5A!J39 -> 9309500 | K9: =A5A!K39 -> 6650000 | L9: =A5A!L39 -> 6528000
A10: =A5A!A50 -> Vote 5 - Infrastructure Services | C10: =A5A!C50 -> 29245686 | D10: =A5A!D50 -> 354424144.1 | E10: =A5A!E50 -> 451396897 | F10: =A5A!F50 -> 346647960 | G10: =A5A!G50 -> 398111045.2 | H10: =A5A!H50 -> 398111045.2 | I10: =A5A!I50 -> 398111045.2 | J10: =A5A!J50 -> 585949200 | K10: =A5A!K50 -> 515530000 | L10: =A5A!L50 -> 368606000
A11: =A5A!A61 -> Vote 6 - Sustainable Development and City Enterprises | C11: =A5A!C61 -> 75459271 | D11: =A5A!D61 -> 109767844.1 | E11: =A5A!E61 -> 180965008.9 | F11: =A5A!F61 -> 125742545 | G11: =A5A!G61 -> 139025080.3 | H11: =A5A!H61 -> 139025080.3 | I11: =A5A!I61 -> 139025080.3 | J11: =A5A!J61 -> 154656931.9 | K11: =A5A!K61 -> 157500000 | L11: =A5A!L61 -> 158500000
A12: =A5A!A72 -> Vote 7 - [NAME OF VOTE 7] | C12: =A5A!C72 -> 0 | D12: =A5A!D72 -> 0 | E12: =A5A!E72 -> 0 | F12: =A5A!F72 -> 0 | G12: =A5A!G72 -> 0 | H12: =A5A!H72 -> 0 | I12: =A5A!I72 -> 0 | J12: =A5A!J72 -> 0 | K12: =A5A!K72 -> 0 | L12: =A5A!L72 -> 0
A13: =A5A!A83 -> Vote 8 - [NAME OF VOTE 8] | C13: =A5A!C83 -> 0 | D13: =A5A!D83 -> 0 | E13: =A5A!E83 -> 0 | F13: =A5A!F83 -> 0 | G13: =A5A!G83 -> 0 | H13: =A5A!H83 -> 0 | I13: =A5A!I83 -> 0 | J13: =A5A!J83 -> 0 | K13: =A5A!K83 -> 0 | L13: =A5A!L83 -> 0
A14: =A5A!A94 -> Vote 9 - [NAME OF VOTE 9] | C14: =A5A!C94 -> 0 | D14: =A5A!D94 -> 0 | E14: =A5A!E94 -> 0 | F14: =A5A!F94 -> 0 | G14: =A5A!G94 -> 0 | H14: =A5A!H94 -> 0 | I14: =A5A!I94 -> 0 | J14: =A5A!J94 -> 0 | K14: =A5A!K94 -> 0 | L14: =A5A!L94 -> 0
A15: =A5A!A105 -> Vote 10 - [NAME OF VOTE 10] | C15: =A5A!C105 -> 0 | D15: =A5A!D105 -> 0 | E15: =A5A!E105 -> 0 | F15: =A5A!F105 -> 0 | G15: =A5A!G105 -> 0 | H15: =A5A!H105 -> 0 | I15: =A5A!I105 -> 0 | J15: =A5A!J105 -> 0 | K15: =A5A!K105 -> 0 | L15: =A5A!L105 -> 0
A16: =A5A!A116 -> Vote 11 - [NAME OF VOTE 11] | C16: =A5A!C116 -> 0 | D16: =A5A!D116 -> 0 | E16: =A5A!E116 -> 0 | F16: =A5A!F116 -> 0 | G16: =A5A!G116 -> 0 | H16: =A5A!H116 -> 0 | I16: =A5A!I116 -> 0 | J16: =A5A!J116 -> 0 | K16: =A5A!K116 -> 0 | L16: =A5A!L116 -> 0
A17: =A5A!A127 -> Vote 12 - [NAME OF VOTE 12] | C17: =A5A!C127 -> 0 | D17: =A5A!D127 -> 0 | E17: =A5A!E127 -> 0 | F17: =A5A!F127 -> 0 | G17: =A5A!G127 -> 0 | H17: =A5A!H127 -> 0 | I17: =A5A!I127 -> 0 | J17: =A5A!J127 -> 0 | K17: =A5A!K127 -> 0 | L17: =A5A!L127 -> 0
A18: =A5A!A138 -> Vote 13 - [NAME OF VOTE 13] | C18: =A5A!C138 -> 0 | D18: =A5A!D138 -> 0 | E18: =A5A!E138 -> 0 | F18: =A5A!F138 -> 0 | G18: =A5A!G138 -> 0 | H18: =A5A!H138 -> 0 | I18: =A5A!I138 -> 0 | J18: =A5A!J138 -> 0 | K18: =A5A!K138 -> 0 | L18: =A5A!L138 -> 0
A19: =A5A!A149 -> Vote 14 - [NAME OF VOTE 14] | C19: =A5A!C149 -> 0 | D19: =A5A!D149 -> 0 | E19: =A5A!E149 -> 0 | F19: =A5A!F149 -> 0 | G19: =A5A!G149 -> 0 | H19: =A5A!H149 -> 0 | I19: =A5A!I149 -> 0 | J19: =A5A!J149 -> 0 | K19: =A5A!K149 -> 0 | L19: =A5A!L149 -> 0
A20: =A5A!A160 -> Vote 15 - [NAME OF VOTE 15] | C20: =A5A!C160 -> 0 | D20: =A5A!D160 -> 0 | E20: =A5A!E160 -> 0 | F20: =A5A!F160 -> 0 | G20: =A5A!G160 -> 0 | H20: =A5A!H160 -> 0 | I20: =A5A!I160 -> 0 | J20: =A5A!J160 -> 0 | K20: =A5A!K160 -> 0 | L20: =A5A!L160 -> 0
A21: Capital multi-year expenditure sub-total | B21: 7 | C21: =SUM(C6:C20) -> 143242056 | D21: =SUM(D6:D20) -> 479855222.2 | E21: 659307682.9 | F21: 576301627 | G21: 655206969 | H21: =SUM(H6:H20) -> 655206969 | I21: 655206969 | J21: 897650118.9 | K21: 717425000 | L21: 587260601
A23: Single-year expenditure to be appropriated | B23: 2
A24: =A6 -> Vote 1 - City Manager | C24: =A5A!C175 -> 4313936 | D24: =A5A!D175 -> 0 | E24: =A5A!E175 -> 1409774.98 | F24: =A5A!F175 -> 0 | G24: =A5A!G175 -> 0 | H24: =A5A!H175 -> 0 | I24: =A5A!I175 -> 0 | J24: =A5A!J175 -> 0 | K24: =A5A!K175 -> 1500000 | L24: =A5A!L175 -> 0
A25: =A7 -> Vote 2 - City Finance | C25: =A5A!C186 -> 17257057 | D25: =A5A!D186 -> 0 | E25: =A5A!E186 -> 6469188.79 | F25: =A5A!F186 -> 0 | G25: =A5A!G186 -> 0 | H25: =A5A!H186 -> 0 | I25: =A5A!I186 -> 0 | J25: =A5A!J186 -> 0 | K25: =A5A!K186 -> 15392485 | L25: =A5A!L186 -> 0
A26: Vote 3 - Community Services and Social Equity | C26: =A5A!C197 -> 15738155 | D26: =A5A!D197 -> 0 | E26: =A5A!E197 -> 13964306.88 | F26: =A5A!F197 -> 0 | G26: =A5A!G197 -> 0 | H26: =A5A!H197 -> 0 | I26: =A5A!I197 -> 0 | J26: =A5A!J197 -> 0 | K26: =A5A!K197 -> 1950000 | L26: =A5A!L197 -> 0
A27: Vote 4 - Corporate Services | C27: =A5A!C208 -> 875802 | D27: =A5A!D208 -> 0 | E27: =A5A!E208 -> 132691.03 | F27: =A5A!F208 -> 0 | G27: =A5A!G208 -> 0 | H27: =A5A!H208 -> 0 | I27: =A5A!I208 -> 0 | J27: =A5A!J208 -> 0 | K27: =A5A!K208 -> 128000 | L27: =A5A!L208 -> 0
A28: Vote 5 - Infrastructure Services | C28: =A5A!C219 -> 414791205 | D28: =A5A!D219 -> 0 | E28: =A5A!E219 -> 4248077.95 | F28: =A5A!F219 -> 0 | G28: =A5A!G219 -> 0 | H28: =A5A!H219 -> 0 | I28: =A5A!I219 -> 0 | J28: =A5A!J219 -> 0 | K28: =A5A!K219 -> 7400000 | L28: =A5A!L219 -> 0
A29: Vote 6 - Sustainable Development and City Enterprises | C29: =A5A!C230 -> 17268330 | D29: =A5A!D230 -> 0 | E29: =A5A!E230 -> 399547.54 | F29: =A5A!F230 -> 0 | G29: =A5A!G230 -> 0 | H29: =A5A!H230 -> 0 | I29: =A5A!I230 -> 0 | J29: =A5A!J230 -> 0 | K29: =A5A!K230 -> 1000000 | L29: =A5A!L230 -> 0
A30: Vote 7 - [NAME OF VOTE 7] | C30: =A5A!C241 -> 0 | D30: =A5A!D241 -> 0 | E30: =A5A!E241 -> 0 | F30: =A5A!F241 -> 0 | G30: =A5A!G241 -> 0 | H30: =A5A!H241 -> 0 | I30: =A5A!I241 -> 0 | J30: =A5A!J241 -> 0 | K30: =A5A!K241 -> 0 | L30: =A5A!L241 -> 0
A31: Vote 8 - [NAME OF VOTE 8] | C31: =A5A!C252 -> 0 | D31: =A5A!D252 -> 0 | E31: =A5A!E252 -> 0 | F31: =A5A!F252 -> 0 | G31: =A5A!G252 -> 0 | H31: =A5A!H252 -> 0 | I31: =A5A!I252 -> 0 | J31: =A5A!J252 -> 0 | K31: =A5A!K252 -> 0 | L31: =A5A!L252 -> 0
A32: Vote 9 - [NAME OF VOTE 9] | C32: =A5A!C263 -> 0 | D32: =A5A!D263 -> 0 | E32: =A5A!E263 -> 0 | F32: =A5A!F263 -> 0 | G32: =A5A!G263 -> 0 | H32: =A5A!H263 -> 0 | I32: =A5A!I263 -> 0 | J32: =A5A!J263 -> 0 | K32: =A5A!K263 -> 0 | L32: =A5A!L263 -> 0
A33: Vote 10 - [NAME OF VOTE 10] | C33: =A5A!C274 -> 0 | D33: =A5A!D274 -> 0 | E33: =A5A!E274 -> 0 | F33: =A5A!F274 -> 0 | G33: =A5A!G274 -> 0 | H33: =A5A!H274 -> 0 | I33: =A5A!I274 -> 0 | J33: =A5A!J274 -> 0 | K33: =A5A!K274 -> 0 | L33: =A5A!L274 -> 0
A34: Vote 11 - [NAME OF VOTE 11] | C34: =A5A!C285 -> 0 | D34: =A5A!D285 -> 0 | E34: =A5A!E285 -> 0 | F34: =A5A!F285 -> 0 | G34: =A5A!G285 -> 0 | H34: =A5A!H285 -> 0 | I34: =A5A!I285 -> 0 | J34: =A5A!J285 -> 0 | K34: =A5A!K285 -> 0 | L34: =A5A!L285 -> 0
A35: Vote 12 - [NAME OF VOTE 12] | C35: =A5A!C296 -> 0 | D35: =A5A!D296 -> 0 | E35: =A5A!E296 -> 0 | F35: =A5A!F296 -> 0 | G35: =A5A!G296 -> 0 | H35: =A5A!H296 -> 0 | I35: =A5A!I296 -> 0 | J35: =A5A!J296 -> 0 | K35: =A5A!K296 -> 0 | L35: =A5A!L296 -> 0
A36: Vote 13 - [NAME OF VOTE 13] | C36: =A5A!C307 -> 0 | D36: =A5A!D307 -> 0 | E36: =A5A!E307 -> 0 | F36: =A5A!F307 -> 0 | G36: =A5A!G307 -> 0 | H36: =A5A!H307 -> 0 | I36: =A5A!I307 -> 0 | J36: =A5A!J307 -> 0 | K36: =A5A!K307 -> 0 | L36: =A5A!L307 -> 0
A37: Vote 14 - [NAME OF VOTE 14] | C37: =A5A!C318 -> 0 | D37: =A5A!D318 -> 0 | E37: =A5A!E318 -> 0 | F37: =A5A!F318 -> 0 | G37: =A5A!G318 -> 0 | H37: =A5A!H318 -> 0 | I37: =A5A!I318 -> 0 | J37: =A5A!J318 -> 0 | K37: =A5A!K318 -> 0 | L37: =A5A!L318 -> 0
A38: =A20 -> Vote 15 - [NAME OF VOTE 15] | C38: =A5A!C329 -> 0 | D38: =A5A!D329 -> 0 | E38: =A5A!E329 -> 0 | F38: =A5A!F329 -> 0 | G38: =A5A!G329 -> 0 | H38: =A5A!H329 -> 0 | I38: =A5A!I329 -> 0 | J38: =A5A!J329 -> 0 | K38: =A5A!K329 -> 0 | L38: =A5A!L329 -> 0
A39: Capital single-year expenditure sub-total | C39: =SUM(C24:C38) -> 470244485 | D39: =SUM(D24:D38) -> 0 | E39: 26623587.17 | F39: 0 | G39: 0 | H39: 0 | I39: 0 | J39: 0 | K39: 27370485 | L39: 0
A40: Total Capital Expenditure - Vote | C40: =C39+C21 -> 613486541 | D40: =D39+D21 -> 479855222.2 | E40: 685931270.1 | F40: 576301627 | G40: 655206969 | H40: 655206969 | I40: 655206969 | J40: 897650118.9 | K40: 744795485 | L40: 587260601
A42: Capital Expenditure - Functional
A43: Governance and administration | C43: =SUM(C44:C46) -> 28132933 | D43: =SUM(D44:D46) -> 2918036 | E43: 10576182.47 | F43: 52295750.95 | G43: 60535751 | H43: 60535751 | I43: 60535751 | J43: 96442937 | K43: 54765485 | L43: 52979601
A44: Executive and council | C44: 3715815 | D44: 646307 | E44: 1409774.98 | F44: 6042000 | G44: 6042000 | H44: 6042000 | I44: 6042000 | J44: 3170000 | K44: 2250000 | L44: 2300000
A45: Finance and administration | C45: 24297118 | D45: 2271729 | E45: 9166407.49 | F45: 45843750.95 | G45: 54083751 | H45: 54083751 | I45: 54083751 | J45: 92652937 | K45: 52515485 | L45: 50679601
A46: Internal audit | C46: 120000 | F46: 410000 | G46: 410000 | H46: 410000 | I46: 410000 | J46: 620000
A47: Community and public safety | C47: =SUM(C48:C52) -> 94239595 | D47: =SUM(D48:D52) -> 1454997.71 | E47: 79498230.52 | F47: 133799245 | G47: 131339885.5 | H47: 131339885.5 | I47: 131339885.5 | J47: 144806908.9 | K47: 133100000 | L47: 130675000
A48: Community and social services | C48: 30651091 | E48: 14120515.58 | F48: 43382300 | G48: 38472940.5 | H48: 38472940.5 | I48: 38472940.5 | J48: 25252050
A49: Sport and recreation | C49: 11558226 | D49: 3374495 | E49: 2414731.14 | F49: 2475000 | G49: 725000 | H49: 725000 | I49: 725000 | J49: 3349000
A50: Public safety | C50: 2000000 | D50: -1919497.29 | E50: -299343.43 | F50: 1100000 | G50: 1100000 | H50: 1100000 | I50: 1100000 | J50: 15500000 | K50: 9600000 | L50: 7175000
A51: Housing | C51: 50030278 | E51: 63262327.23 | F51: 86841945 | G51: 91041945 | H51: 91041945 | I51: 91041945 | J51: 100705858.9 | K51: 123500000 | L51: 123500000
A52: Health | G52: 0
A53: Economic and environmental services | C53: =SUM(C54:C56) -> 181530343 | D53: =SUM(D54:D56) -> 321827707.1 | E53: 366180038.4 | F53: 115510000 | G53: 208378163.7 | H53: 208378163.7 | I53: 208378163.7 | J53: 100419233 | K53: 114905206.7 | L53: 313797000
A54: Planning and development | C54: 35975923 | D54: 23844833 | E54: 115786718.4 | F54: 35890000 | G54: 43406731.53 | H54: 43406731.53 | I54: 43406731.53 | J54: 46958000 | K54: 35000000 | L54: 35000000
A55: Road transport | C55: 143969445 | D55: 297722791.1 | E55: 250393320 | F55: 79620000 | G55: 164273359.2 | H55: 164273359.2 | I55: 164273359.2 | J55: 52943160 | K55: 79905206.7 | L55: 278797000
A56: Environmental protection | C56: 1584975 | D56: 260083 | G56: 698073 | H56: 698073 | I56: 698073 | J56: 518073
A57: Trading services | C57: =SUM(C58:C61) -> 177154337 | D57: =SUM(D58:D61) -> 153654178 | E57: 227503654.9 | F57: 272096631 | G57: 251490138 | H57: 251490138 | I57: 251490138 | J57: 549156040 | K57: 442024793.3 | L57: 89809000
A58: Energy sources | C58: 56636360 | D58: 47652373.97 | E58: 51098608.88 | F58: 130000000 | G58: 131423227 | H58: 131423227 | I58: 131423227 | J58: 241154000 | K58: 174000000 | L58: 19404000
A59: Water management | C59: 75391016 | D59: 74706096 | E59: 78159404.5 | F59: 77660964 | G59: 45181343 | H59: 45181343 | I59: 45181343 | J59: 196582915 | K59: 165062101.5 | L59: 30000000
A60: Waste water management | C60: 44301896 | D60: 23360737 | E60: 75993641.63 | F60: 59935667 | G60: 57801787 | H60: 57801787 | I60: 57801787 | J60: 94269125 | K60: 102962691.8 | L60: 40405000
A61: Waste management | C61: 825065 | D61: 7934971 | E61: 22251999.91 | F61: 4500000 | G61: 17083781 | H61: 17083781 | I61: 17083781 | J61: 17150000
A62: Other | C62: 5136425 | E62: 2173163.77 | F62: 2600000 | G62: 3463030.77 | H62: 3463030.77 | I62: 3463030.77 | J62: 6825000
A63: Total Capital Expenditure - Functional | B63: 3 | C63: =C43+C47+C53+C57+C62 -> 486193633 | D63: =D43+D47+D53+D57+D62 -> 479854918.8 | E63: 685931270.1 | F63: 576301627 | G63: 655206969 | H63: 655206969 | I63: 655206969 | J63: 897650118.9 | K63: 744795485 | L63: =L43+L47+L53+L57+L62 -> 587260601
A65: Funded by:
A66: National Government | C66: 293481109 | D66: 312943688 | E66: 397216558 | F66: 297296576 | G66: 332964083 | H66: 332964083 | I66: 332964083 | J66: 344634090 | K66: 350680000 | L66: 363916000
A67: Provincial Government | C67: 72548195 | D67: 76188437 | E67: 166778561.7 | F67: 83500000 | G67: 96706732 | H67: 96706732 | I67: 96706732 | J67: 101797018.9 | K67: 123500000 | L67: 123500000
A68: District Municipality
A69: ='A4-FinPerf RE'!A39 -> Transfers and subsidies - capital (monetary allocations) (National / Provincial Departmental Agencies, Households, Non-profit Institutions, Private Enterprises, Public Corporatons, Higher Educational Institutions)
A70: Transfers recognised - capital | B70: 4 | C70: =SUM(C66:C69) -> 366029304 | D70: 389132125 | E70: 563995119.7 | F70: 380796576 | G70: 429670815 | H70: 429670815 | I70: 429670815 | J70: 446431108.9 | K70: 474180000 | L70: 487416000
A72: Borrowing | B72: 6 | C72: 47052852 | D72: 4229818.17 | F72: 100000000 | G72: 100000000 | H72: 100000000 | I72: 100000000 | J72: 300000000 | K72: 200000000
A73: Internally generated funds | C73: 73111477 | D73: 86493279 | E73: 121936150.4 | F73: 95505050.95 | G73: 125536155 | H73: 125536155 | I73: 125536155 | J73: 151219010 | K73: 70615485 | L73: 99844601
A74: Total Capital Funding | B74: 7 | C74: =+C70+C72+C73 -> 486193633 | D74: =+D70+D72+D73 -> 479855222.2 | E74: 685931270.1 | F74: 576301627 | G74: 655206970 | H74: 655206970 | I74: 655206970 | J74: 897650118.9 | K74: 744795485 | L74: 587260601
A75: =head27a -> References
A76: 1. Municipalities may choose to appropriate for capital expenditure for three years or for one year (if one year appropriation projected expenditure required for yr2 and yr3).
A77: 2. Include capital component of PPP unitary payment. Note that capital transfers are only appropriated to municipalities for the budget year
A78: 3. Capital expenditure by functional classification must reconcile to the appropriations by vote
A79: 4. Must reconcile to supporting table SA20 and to Budgeted Financial Performance (revenue and expenditure)
A81: 6. Include finance leases and PPP capital funding component of unitary payment - total borrowing/repayments to reconcile to changes in Table SA17
A82: 7. Total Capital Funding must balance with Total Capital Expenditure
A83: 8. Include any capitalised interest (MFMA section 46) as part of relevant capital budget
A85: check balance | C85: =IF((C63-C74)=0,0,"Unbalanced") -> 0 | D85: =IF((D63-D74)=0,0,"Unbalanced") -> Unbalanced | E85: Unbalanced | F85: 0 | G85: Unbalanced | H85: Unbalanced | I85: Unbalanced | J85: 0 | K85: 0 | L85: 0

Sheet A7-CFlow
A1: =muni&" - "&Approve7 -> KZN225 Msunduzi - Table A7 Consolidated Budgeted Cash Flows
A2: =desc -> Description | B2: =head27 -> Ref | C2: =head1b -> 2018/19 | D2: =head1A -> 2019/20 | E2: =Head1 -> 2020/21 | F2: =Head2 -> Current Year 2021/22 | J2: =Head3 -> 2022/23 Medium Term Revenue & Expenditure Framework
A3: R thousand | C3: =Head5 -> Audited Outcome | D3: =Head5 -> Audited Outcome | E3: =Head5 -> Audited Outcome | F3: =Head6 -> Original Budget | G3: =Head7 -> Adjusted Budget | H3: =Head8 -> Full Year Forecast | I3: =Head5b -> Pre-audit outcome | J3: =Head9 -> Budget Year 2022/23 | K3: =Head10 -> Budget Year +1 2023/24 | L3: =Head11 -> Budget Year +2 2024/25
A4: CASH FLOW FROM OPERATING ACTIVITIES
A5: Receipts
A6: Property rates | C6: 869541960 | D6: 3896974347 | E6: 4078704928 | F6: 1228882075 | G6: 1228882075 | H6: 1228882075 | J6: =1427088861.3508*90% -> 1284379975 | K6: =1512714193.03185*90% -> 1361442774 | L6: =1603477044.61376*90% -> 1443129340
A7: Service charges | C7: 2608625965 | F7: 3495506596 | G7: 3495506596 | H7: 3495506596 | J7: =4367120704.79815*85% -> 3712052599 | K7: =4559274015.80927*85% -> 3875382913 | L7: =4764441346.52068*85% -> 4049775145
A8: Other revenue | C8: 1488 | F8: 187682425.7 | G8: 187682425.7 | H8: 187682425.7 | J8: ='A4-FinPerf RE'!J11+'A4-FinPerf RE'!J15+'A4-FinPerf RE'!J16+'A4-FinPerf RE'!J17+'A4-FinPerf RE'!J19 -> 218754140.2 | K8: ='A4-FinPerf RE'!K11+'A4-FinPerf RE'!K15+'A4-FinPerf RE'!K16+'A4-FinPerf RE'!K17+'A4-FinPerf RE'!K19 -> 228379322.4 | L8: ='A4-FinPerf RE'!L11+'A4-FinPerf RE'!L15+'A4-FinPerf RE'!L16+'A4-FinPerf RE'!L17+'A4-FinPerf RE'!L19 -> 238656391.9
A9: Transfers and Subsidies - Operational | B9: 1 | C9: 629285921.6 | D9: 1169508101 | E9: 1254551714 | F9: 661215834.8 | G9: 725957048.3 | H9: 725957048.3 | J9: 855842084.7 | K9: 828076101.9 | L9: 888579900.5
A10: Transfers and Subsidies - Capital | B10: 1 | C10: 411402673.4 | F10: 380796576 | G10: 429670815 | H10: 429670815 | J10: 446431108.9 | K10: 472680000 | L10: 485916000
A11: Interest | C11: 37482111 | D11: 45593331 | E11: 23017689 | F11: 229366140.9 | G11: 229366140.9 | H11: 229366140.9 | J11: ='A4-FinPerf RE'!J12+'A4-FinPerf RE'!J13 -> 242247833.8 | K11: ='A4-FinPerf RE'!K12+'A4-FinPerf RE'!K13 -> 256094389 | L11: ='A4-FinPerf RE'!L12+'A4-FinPerf RE'!L13 -> 117941176.5
A12: Dividends | C12: 0 | J12: ='SA30'!N14 -> 0 | K12: ='SA30'!O14 -> 0 | L12: ='SA30'!P14 -> 0
A13: Payments
A14: Suppliers and employees | C14: -4122108704 | D14: -4348241697 | E14: -4731611067 | F14: -5465954566 | G14: -5587940063 | H14: -5587940063 | J14: -6082541482 | K14: -6257780256 | L14: -6564384303
A15: Finance charges | C15: -47404408 | D15: -46314311 | E15: -36203064 | F15: -34724271.93 | G15: -34724271.93 | H15: -34724271.93 | J15: -94217139.02 | K15: -82398191.72 | L15: -70192547.65
A16: Transfers and Grants | B16: 1 | C16: -15819791 | F16: -45862882.85 | G16: -45862882.85 | H16: -45862882.85 | J16: -63469171.5 | K16: -66261815.05 | L16: -69243596.72
A17: NET CASH FROM/(USED) OPERATING ACTIVITIES | C17: =SUM(C6:C12)+SUM(C14:C16) -> 371007216 | D17: 717519771 | E17: 588460200 | F17: 636907927.5 | G17: 628537882.7 | H17: 628537882.7 | I17: 0 | J17: 519479949 | K17: 615615237.8 | L17: 520177505.9
A19: CASH FLOWS FROM INVESTING ACTIVITIES
A20: Receipts
A21: Proceeds on disposal of PPE | C21: 20102213
C22: 0
A23: Decrease (increase) in non-current receivables | C23: -613746
A24: Decrease (increase) in non-current investments | C24: -6155452 | D24: 3115088 | E24: 69164
A25: Payments
A26: Capital assets | C26: -493800926 | D26: -426252626 | E26: -632767342 | F26: -576301627 | G26: -655206970 | H26: -655206970 | J26: -897650118.9 | K26: -744795485 | L26: -587260601
A27: NET CASH FROM/(USED) INVESTING ACTIVITIES | C27: =+C21+C23+C24+C26 -> -480467911 | D27: =(+D21+D23+D24+D26) -> -423137538 | E27: =+E21+E23+E24+E26 -> -632698178 | F27: -576301627 | G27: -655206970 | H27: -655206970 | I27: 0 | J27: -897650118.9 | K27: -744795485 | L27: -587260601
A29: CASH FLOWS FROM FINANCING ACTIVITIES
A30: Receipts
A31: Short term loans | J31: ='SA30'!N26 -> 0 | K31: ='SA30'!O26 -> 0 | L31: ='SA30'!P26 -> 0
A32: Borrowing long term/refinancing | F32: 100000000 | G32: 100000000 | H32: 100000000 | J32: 300000000 | K32: 200000000 | L32: ='SA30'!P27 -> 0
A33: Increase (decrease) in consumer deposits | J33: ='SA30'!N28 -> 0 | K33: ='SA30'!O28 -> 0 | L33: ='SA30'!P28 -> 0
A34: Payments
A35: Repayment of borrowing | C35: -94966367 | D35: -83600511 | E35: -113418258 | F35: -91637534.15 | G35: -91637534.15 | H35: -91637534.15 | J35: -23606031.69 | K35: -27351138.42 | L35: -31690407.88
A36: NET CASH FROM/(USED) FINANCING ACTIVITIES | C36: =SUM(C31:C33)+C35 -> -94966367 | D36: =SUM(D31:D33)+D35 -> -83600511 | E36: -113418258 | F36: 8362465.853 | G36: 8362465.853 | H36: 8362465.853 | I36: 0 | J36: 276393968.3 | K36: 172648861.6 | L36: -31690407.88
A38: NET INCREASE/ (DECREASE) IN CASH HELD | C38: =C17+C27+C36 -> -204427062 | D38: =D17+D27+D36 -> 210781722 | E38: -157656236 | F38: 68968766.42 | G38: -18306621.43 | H38: -18306621.43 | I38: 0 | J38: -101776201.6 | K38: 43468614.37 | L38: -98773502.94
A39: Cash/cash equivalents at the year begin: | B39: 2 | C39: 512622307 | D39: 308195245 | E39: 518976967 | F39: 286867694.7 | G39: 361320731 | H39: 361320731 | J39: 343014109.6 | K39: =J40 -> 241237908 | L39: =K40 -> 284706522.4
A40: Cash/cash equivalents at the year end: | B40: 2 | C40: =C38+C39 -> 308195245 | D40: =D38+D39 -> 518976967 | E40: =E38+E39 -> 361320731 | F40: =F38+F39 -> 355836461.2 | G40: 343014109.6 | H40: 343014109.6 | I40: 0 | J40: 241237908 | K40: 284706522.4 | L40: 185933019.4
A41: =head27a -> References
A42: 1. Local/District municipalities to include transfers from/to District/Local Municipalities
A43: 2. Cash equivalents includes investments with maturities of 3 months or less
A44: 3. The MTREF is populated directly from SA30.
A45: Total receipts | C45: =SUM(C6:C12)+SUM(C21:C23) -> 4575828586 | D45: 5112075779 | E45: 5356274331 | F45: 6183449648 | G45: 6297065101 | H45: 6297065101 | I45: 0 | J45: 6759707742 | K45: 7022055500 | L45: 7223997954
A46: Total payments | C46: =SUM(C14:C16)+C26 -> -4679133829 | D46: =SUM(D14:D16)+D26 -> -4820808634 | E46: -5400581473 | F46: -6122843348 | G46: -6323734188 | H46: -6323734188 | I46: 0 | J46: -7137877912 | K46: -7151235748 | L46: -7291081049
C47: =C45+C46 -> -103305243 | D47: =D45+D46 -> 291267145 | E47: -44307142 | F47: 60606300.57 | G47: -26669087.28 | H47: -26669087.28 | I47: 0 | J47: -378170169.9 | K47: -129180247.2 | L47: -67083095.06
A48: Borrowings & investments & c.deposits | C48: =C24+C32+C33 -> -6155452 | D48: =D24+D32+D33 -> 3115088 | E48: 69164 | F48: 100000000 | G48: 100000000 | H48: 100000000 | I48: 0 | J48: 300000000 | K48: 200000000 | L48: 0
A49: =A35 -> Repayment of borrowing | C49: =C35 -> -94966367 | D49: =D35 -> -83600511 | E49: -113418258 | F49: -91637534.15 | G49: -91637534.15 | H49: -91637534.15 | I49: =I35 -> 0 | J49: -23606031.69 | K49: -27351138.42 | L49: -31690407.88
C50: =C47+C48+C49 -> -204427062 | D50: =D47+D48+D49 -> 210781722 | E50: -157656236 | F50: 68968766.42 | G50: -18306621.43 | H50: -18306621.43 | I50: 0 | J50: -101776201.6 | K50: 43468614.37 | L50: -98773502.94
C51: =C38-C50 -> 0 | D51: 0 | E51: 0 | F51: -2.384185791e-07 | G51: 0 | H51: 0 | I51: 0 | J51: -1.192092896e-07 | K51: 0 | L51: 0

Sheet A8-ResRecon
A1: =muni&" - "&Approve8 -> KZN225 Msunduzi - Table A8 Consolidated Cash backed reserves/accumulated surplus reconciliation
A2: =desc -> Description | B2: =head27 -> Ref | C2: =head1b -> 2018/19 | D2: =head1A -> 2019/20 | E2: =Head1 -> 2020/21 | F2: =Head2 -> Current Year 2021/22 | J2: =Head3 -> 2022/23 Medium Term Revenue & Expenditure Framework
A3: R thousand | C3: =Head5 -> Audited Outcome | D3: =Head5 -> Audited Outcome | E3: =Head5 -> Audited Outcome | F3: =Head6 -> Original Budget | G3: =Head7 -> Adjusted Budget | H3: =Head8 -> Full Year Forecast | I3: =Head5b -> Pre-audit outcome | J3: =Head9 -> Budget Year 2022/23 | K3: =Head10 -> Budget Year +1 2023/24 | L3: =Head11 -> Budget Year +2 2024/25
A4: Cash and investments available
A5: =LEFT('A7-CFlow'!A40,37) -> Cash/cash equivalents at the year end | B5: 1 | C5: ='A7-CFlow'!C40 -> 308195245 | D5: ='A7-CFlow'!D40 -> 518976967 | E5: ='A7-CFlow'!E40 -> 361320731 | F5: ='A7-CFlow'!F40 -> 355836461.2 | G5: ='A7-CFlow'!G40 -> 343014109.6 | H5: ='A7-CFlow'!H40 -> 343014109.6 | I5: ='A7-CFlow'!I40 -> 0 | J5: ='A7-CFlow'!J40 -> 241237908 | K5: ='A7-CFlow'!K40 -> 284706522.4 | L5: ='A7-CFlow'!L40 -> 185933019.4
A6: Other current investments > 90 days | C6: ='A6-FinPos'!C6+'A6-FinPos'!C7-'A6-FinPos'!C29-'A8-ResRecon'!C5 -> 0 | D6: ='A6-FinPos'!D6+'A6-FinPos'!D7-'A6-FinPos'!D29-'A8-ResRecon'!D5 -> 0 | E6: ='A6-FinPos'!E6+'A6-FinPos'!E7-'A6-FinPos'!E29-'A8-ResRecon'!E5 -> 32311434 | F6: ='A6-FinPos'!F6+'A6-FinPos'!F7-'A6-FinPos'!F29-'A8-ResRecon'!F5 -> 0 | G6: ='A6-FinPos'!G6+'A6-FinPos'!G7-'A6-FinPos'!G29-'A8-ResRecon'!G5 -> -1077648.409 | H6: ='A6-FinPos'!H6+'A6-FinPos'!H7-'A6-FinPos'!H29-'A8-ResRecon'!H5 -> -1077648.409 | I6: ='A6-FinPos'!I6+'A6-FinPos'!I7-'A6-FinPos'!I29-'A8-ResRecon'!I5 -> 0 | J6: ='A6-FinPos'!J6+'A6-FinPos'!J7-'A6-FinPos'!J29-'A8-ResRecon'!J5 -> 0 | K6: ='A6-FinPos'!K6+'A6-FinPos'!K7-'A6-FinPos'!K29-'A8-ResRecon'!K5 -> -180000000 | L6: ='A6-FinPos'!L6+'A6-FinPos'!L7-'A6-FinPos'!L29-'A8-ResRecon'!L5 -> -180000000
A7: ='A6-FinPos'!A14&" - "&'A6-FinPos'!A16 -> Non current assets - Investments | B7: 1 | C7: ='A6-FinPos'!C16 -> 2642997 | D7: ='A6-FinPos'!D16 -> - | E7: ='A6-FinPos'!E16 -> 0 | F7: ='A6-FinPos'!F16 -> 0 | G7: ='A6-FinPos'!G16 -> 0 | H7: ='A6-FinPos'!H16 -> 0 | I7: ='A6-FinPos'!I16 -> 0 | J7: ='A6-FinPos'!J16 -> 0 | K7: ='A6-FinPos'!K16 -> 0 | L7: ='A6-FinPos'!L16 -> 0
A8: Cash and investments available: | C8: =SUM(C5:C7) -> 310838242 | D8: =SUM(D5:D7) -> 518976967 | E8: 393632165 | F8: 355836461.2 | G8: 341936461.2 | H8: 341936461.2 | I8: 0 | J8: 241237908 | K8: 104706522.4 | L8: 5933019.441
A10: Application of cash and investments
A11: ='SA3'!A132 -> Unspent conditional transfers | C11: ='SA3'!C132 -> 103510102 | D11: ='SA3'!D132 -> 180851130 | E11: ='SA3'!E132 -> 0 | F11: ='SA3'!F132 -> 0 | G11: ='SA3'!G132 -> 0 | H11: ='SA3'!H132 -> 0 | I11: ='SA3'!I132 -> 0 | J11: ='SA3'!J132 -> 0 | K11: ='SA3'!K132 -> 0 | L11: ='SA3'!L132 -> 0
A12: Unspent borrowing | C12: ='SA17'!C67 -> 0 | D12: ='SA17'!D67 -> 0 | E12: ='SA17'!E67 -> 0 | F12: ='SA17'!F67 -> 0 | G12: ='SA17'!G67 -> 0 | H12: ='SA17'!H67 -> 0 | J12: ='SA17'!I67 -> 0 | K12: ='SA17'!J67 -> 0 | L12: ='SA17'!K67 -> 0
A13: Statutory requirements | B13: 2 | F13: -5950000 | G13: -5950000
A14: Other working capital requirements | B14: 3 | C14: =-C32 -> 606382681 | D14: =-D32 -> -583472816 | E14: -1518249000 | F14: =-F32 -> -2805963000 | G14: -2805963000 | H14: -2805963000 | I14: 0 | J14: -2741738000 | K14: -2814946000 | L14: -2924429000
A15: Other provisions | F15: 63000000 | G15: 63000000
A16: Long term investments committed | B16: 4 | C16: =C52 -> 0 | D16: =D52 -> 0 | E16: 0 | F16: 0 | G16: 0 | H16: 0 | I16: 0 | J16: 0 | K16: 0 | L16: 0
A17: Reserves to be backed by cash/investments | B17: 5
A18: ="Total "&A10&":" -> Total Application of cash and investments: | C18: =SUM(C11:C17) -> 709892783 | D18: =SUM(D11:D17) -> -402621686 | E18: -1518249000 | F18: -2748913000 | G18: -2748913000 | H18: -2805963000 | I18: 0 | J18: -2741738000 | K18: -2814946000 | L18: -2924429000
A19: Surplus(shortfall) | C19: =C8-C18 -> -399054541 | D19: =D8-D18 -> 921598653 | E19: 1911881165 | F19: 3104749461 | G19: 3090849461 | H19: 3147899461 | I19: 0 | J19: 2982975908 | K19: 2919652522 | L19: 2930362019
A20: =head27a -> References
A21: 1. Must reconcile with Budgeted Cash Flows
A22: 2. For example: VAT, taxation
A23: 3. Council approval for policy required - include sufficient working capital (e.g. allowing for a % of current debtors > 90 days as uncollectable)
A24: 4. For example: sinking fund requirements for borrowing
A25: 5. Council approval required for each reserve created and basis of cash backing of reserves
A28: Other working capital requirements
A29: Debtors | C29: =IF(ISERROR(ROUND(C35*C36,-3)),0,(ROUND(C35*C36,-3))) -> 354261000 | D29: =IF(ISERROR(ROUND(D35*D36,-3)),0,(ROUND(D35*D36,-3))) -> 1844953000 | E29: 1518249000 | F29: 2805963000 | G29: 2805963000 | H29: 2805963000 | I29: 0 | J29: 2741738000 | K29: 2814946000 | L29: 2924429000
A31: Creditors due | C31: ='SA3'!C130+'SA3'!C131 -> 960643681 | D31: ='SA3'!D130+'SA3'!D131 -> 1261480184 | E31: ='SA3'!E130+'SA3'!E131 -> 0 | F31: ='SA3'!F130+'SA3'!F131 -> 0 | G31: ='SA3'!G130+'SA3'!G131 -> 0 | H31: ='SA3'!H130+'SA3'!H131 -> 0 | I31: ='SA3'!I130+'SA3'!I131 -> 0 | J31: ='SA3'!J130+'SA3'!J131 -> 0 | K31: ='SA3'!K130+'SA3'!K131 -> 0 | L31: ='SA3'!L130+'SA3'!L131 -> 0
A32: Total | C32: =C29-C31 -> -606382681 | D32: =D29-D31 -> 583472816 | E32: 1518249000 | F32: 2805963000 | G32: 2805963000 | H32: 2805963000 | I32: 0 | J32: 2741738000 | K32: 2814946000 | L32: 2924429000
A34: Debtors collection assumptions
A35: Balance outstanding - debtors | C35: ='A6-FinPos'!C8+'A6-FinPos'!C9+'A6-FinPos'!C15 -> 430219984 | D35: ='A6-FinPos'!D8+'A6-FinPos'!D9+'A6-FinPos'!D15 -> 2253418902 | E35: ='A6-FinPos'!E8+'A6-FinPos'!E9+'A6-FinPos'!E15 -> 1741105558 | F35: ='A6-FinPos'!F8+'A6-FinPos'!F9+'A6-FinPos'!F15 -> 3279548196 | G35: ='A6-FinPos'!G8+'A6-FinPos'!G9+'A6-FinPos'!G15 -> 3279548196 | H35: ='A6-FinPos'!H8+'A6-FinPos'!H9+'A6-FinPos'!H15 -> 3279548196 | I35: ='A6-FinPos'!I8+'A6-FinPos'!I9+'A6-FinPos'!I15 -> 0 | J35: ='A6-FinPos'!J8+'A6-FinPos'!J9+'A6-FinPos'!J15 -> 3279548196 | K35: ='A6-FinPos'!K8+'A6-FinPos'!K9+'A6-FinPos'!K15 -> 3367716130 | L35: ='A6-FinPos'!L8+'A6-FinPos'!L9+'A6-FinPos'!L15 -> 3421301048
A36: Estimate of debtors collection rate | C36: =IF(ISERROR('SA10'!D10),0,('SA10'!D10)) -> 0.8234406825 | D36: =IF(ISERROR('SA10'!E10),0,('SA10'!E10)) -> 0.8187350899 | E36: =IF(ISERROR('SA10'!F10),0,('SA10'!F10)) -> 0.8720025607 | F36: =IF(ISERROR('SA10'!G10),0,('SA10'!G10)) -> 0.855594369 | G36: =IF(ISERROR('SA10'!H10),0,('SA10'!H10)) -> 0.855594369 | H36: =IF(ISERROR('SA10'!I10),0,('SA10'!I10)) -> 0.855594369 | I36: =IF(ISERROR('SA10'!J10),0,('SA10'!J10)) -> 0 | J36: =IF(ISERROR('SA10'!K10),0,('SA10'!K10)) -> 0.8360107603 | K36: =IF(ISERROR('SA10'!L10),0,('SA10'!L10)) -> 0.8358621389 | L36: =IF(ISERROR('SA10'!M10),0,('SA10'!M10)) -> 0.8547710661
K39: `
A40: =A16 -> Long term investments committed
A41: Balance (Insert description; eg sinking fund)
C52: =SUM(C41:C51) -> 0 | D52: =SUM(D41:D51) -> 0 | E52: 0 | F52: 0 | G52: 0 | H52: 0 | I52: 0 | J52: 0 | K52: 0 | L52: 0
A53: =A17 -> Reserves to be backed by cash/investments
A54: ='SA3'!A160 -> Housing Development Fund | C54: ='SA3'!C160 -> 90761936 | D54: ='SA3'!D160 -> 93528758 | E54: ='SA3'!E160 -> 0 | F54: ='SA3'!F160 -> 0 | G54: ='SA3'!G160 -> 0 | H54: ='SA3'!H160 -> 0 | I54: ='SA3'!I160 -> 0 | J54: ='SA3'!J160 -> 0 | K54: ='SA3'!K160 -> 0 | L54: ='SA3'!L160 -> 0
A55: ='SA3'!A161 -> Capital replacement
A56: ='SA3'!A162 -> Self-insurance
A57: Other (list)
C67: =SUM(C54:C65) -> 90761936 | D67: 93528758 | E67: 0 | F67: 0 | G67: 0 | H67: 0 | I67: 0 | J67: 0 | K67: 0 | L67: 0

Sheet A9-Asset
A1: =muni&" - "&Approve9 -> KZN225 Msunduzi - Table A9 Consolidated Asset Management
A2: =desc -> Description | B2: =head27 -> Ref | C2: =head1b -> 2018/19 | D2: =head1A -> 2019/20 | E2: =Head1 -> 2020/21 | F2: =Head2 -> Current Year 2021/22 | I2: =Head3 -> 2022/23 Medium Term Revenue & Expenditure Framework
A3: R thousand | C3: =Head5 -> Audited Outcome | D3: =Head5 -> Audited Outcome | E3: =Head5 -> Audited Outcome | F3: =Head6 -> Original Budget | G3: =Head7 -> Adjusted Budget | H3: =Head8 -> Full Year Forecast | I3: =Head9 -> Budget Year 2022/23 | J3: =Head10 -> Budget Year +1 2023/24 | K3: =Head11 -> Budget Year +2 2024/25
A4: CAPITAL EXPENDITURE
A5: Total New Assets | B5: 1 | C5: =C15+C18+C19+C22+C25+C26+SUM(C29:C35) -> 186096905.2 | D5: =D15+D18+D19+D22+D25+D26+SUM(D29:D35) -> 21108134.1 | E5: 407942774.9 | F5: 203181851.9 | G5: 282087194 | H5: 282087194 | I5: 314677522.4 | J5: 187425485 | K5: 346275740.4
A6: Roads Infrastructure | C6: =SA34a!C7 -> 15103038.98 | D6: =SA34a!D7 -> 0 | E6: =SA34a!E7 -> 165122921.7 | F6: =SA34a!F7 -> 24100000 | G6: =SA34a!G7 -> 24100000 | H6: =SA34a!H7 -> 24100000 | I6: =SA34a!I7 -> 76690357.9 | J6: =SA34a!J7 -> 0 | K6: =SA34a!K7 -> 50172360.84
A7: Storm water Infrastructure | C7: =SA34a!C12 -> 0 | D7: =SA34a!D12 -> 0 | E7: =SA34a!E12 -> 0 | F7: =SA34a!F12 -> 0 | G7: =SA34a!G12 -> 0 | H7: =SA34a!H12 -> 0 | I7: =SA34a!I12 -> 0 | J7: =SA34a!J12 -> 0 | K7: =SA34a!K12 -> 0
A8: Electrical Infrastructure | C8: =SA34a!C16 -> 67277868.22 | D8: =SA34a!D16 -> 0 | E8: =SA34a!E16 -> 4653205.64 | F8: =SA34a!F16 -> 7600000 | G8: =SA34a!G16 -> 7600000 | H8: =SA34a!H16 -> 7600000 | I8: =SA34a!I16 -> 24184511.21 | J8: =SA34a!J16 -> 0 | K8: =SA34a!K16 -> 15821989.31
A9: Water Supply Infrastructure | C9: =SA34a!C26 -> 0 | D9: =SA34a!D26 -> 0 | E9: =SA34a!E26 -> 74239163.4 | F9: =SA34a!F26 -> 0 | G9: =SA34a!G26 -> 0 | H9: =SA34a!H26 -> 0 | I9: =SA34a!I26 -> 0 | J9: =SA34a!J26 -> 0 | K9: =SA34a!K26 -> 0
A10: Sanitation Infrastructure | C10: =SA34a!C37 -> 0 | D10: =SA34a!D37 -> 0 | E10: =SA34a!E37 -> 44898478.72 | F10: =SA34a!F37 -> 0 | G10: =SA34a!G37 -> 0 | H10: =SA34a!H37 -> 0 | I10: =SA34a!I37 -> 0 | J10: =SA34a!J37 -> 0 | K10: =SA34a!K37 -> 0
A11: Solid Waste Infrastructure | C11: =SA34a!C44 -> 0 | D11: =SA34a!D44 -> 0 | E11: =SA34a!E44 -> 0 | F11: =SA34a!F44 -> 0 | G11: =SA34a!G44 -> 0 | H11: =SA34a!H44 -> 0 | I11: =SA34a!I44 -> 0 | J11: =SA34a!J44 -> 0 | K11: =SA34a!K44 -> 0
A12: Rail Infrastructure | C12: =SA34a!C52 -> 0 | D12: =SA34a!D52 -> 0 | E12: =SA34a!E52 -> 0 | F12: =SA34a!F52 -> 0 | G12: =SA34a!G52 -> 0 | H12: =SA34a!H52 -> 0 | I12: =SA34a!I52 -> 0 | J12: =SA34a!J52 -> 0 | K12: =SA34a!K52 -> 0
A13: Coastal Infrastructure | C13: =SA34a!C62 -> 0 | D13: =SA34a!D62 -> 0 | E13: =SA34a!E62 -> 0 | F13: =SA34a!F62 -> 0 | G13: =SA34a!G62 -> 0 | H13: =SA34a!H62 -> 0 | I13: =SA34a!I62 -> 0 | J13: =SA34a!J62 -> 0 | K13: =SA34a!K62 -> 0
A14: Information and Communication Infrastructure | C14: =SA34a!C68 -> 0 | D14: =SA34a!D68 -> 0 | E14: =SA34a!E68 -> 0 | F14: =SA34a!F68 -> 0 | G14: =SA34a!G68 -> 0 | H14: =SA34a!H68 -> 0 | I14: =SA34a!I68 -> 0 | J14: =SA34a!J68 -> 0 | K14: =SA34a!K68 -> 0
A15: Infrastructure | C15: =SUM(C6:C14) -> 82380907.2 | D15: =SUM(D6:D14) -> 0 | E15: 288913769.4 | F15: 31700000 | G15: 31700000 | H15: 31700000 | I15: 100874869.1 | J15: 0 | K15: 65994350.15
A16: Community Facilities | C16: =SA34a!C75 -> 336655.96 | D16: =SA34a!D75 -> 0 | E16: =SA34a!E75 -> 10563092.96 | F16: =SA34a!F75 -> 1800000 | G16: =SA34a!G75 -> 1800000 | H16: =SA34a!H75 -> 1800000 | I16: =SA34a!I75 -> 5727910.549 | J16: =SA34a!J75 -> 0 | K16: =SA34a!K75 -> 3747313.258
A17: Sport and Recreation Facilities | C17: =SA34a!C98 -> 0 | D17: =SA34a!D98 -> 0 | E17: =SA34a!E98 -> 2595862.83 | F17: =SA34a!F98 -> 0 | G17: =SA34a!G98 -> 0 | H17: =SA34a!H98 -> 0 | I17: =SA34a!I98 -> 0 | J17: =SA34a!J98 -> 0 | K17: =SA34a!K98 -> 0
A18: Community Assets | C18: =SUM(C16:C17) -> 336655.96 | D18: =SUM(D16:D17) -> 0 | E18: 13158955.79 | F18: 1800000 | G18: 1800000 | H18: 1800000 | I18: 5727910.549 | J18: 0 | K18: 3747313.258
A19: Heritage Assets | C19: =SA34a!C103 -> 18343511.91 | D19: =SA34a!D103 -> 9604587.45 | E19: =SA34a!E103 -> 0 | F19: =SA34a!F103 -> 0 | G19: =SA34a!G103 -> 0 | H19: =SA34a!H103 -> 0 | I19: =SA34a!I103 -> 0 | J19: =SA34a!J103 -> 0 | K19: =SA34a!K103 -> 0
A20: Revenue Generating | C20: =SA34a!C111 -> 0 | D20: =SA34a!D111 -> 0 | E20: =SA34a!E111 -> 0 | F20: =SA34a!F111 -> 0 | G20: =SA34a!G111 -> 0 | H20: =SA34a!H111 -> 0 | I20: =SA34a!I111 -> 0 | J20: =SA34a!J111 -> 0 | K20: =SA34a!K111 -> 0
A21: Non-revenue Generating | C21: =SA34a!C114 -> 0 | D21: =SA34a!D114 -> 0 | E21: =SA34a!E114 -> 0 | F21: =SA34a!F114 -> 0 | G21: =SA34a!G114 -> 0 | H21: =SA34a!H114 -> 0 | I21: =SA34a!I114 -> 0 | J21: =SA34a!J114 -> 0 | K21: =SA34a!K114 -> 0
A22: Investment properties | C22: =SUM(C20:C21) -> 0 | D22: =SUM(D20:D21) -> 0 | E22: 0 | F22: 0 | G22: 0 | H22: 0 | I22: 0 | J22: 0 | K22: 0
A23: Operational Buildings | C23: =SA34a!C119 -> 2885283.88 | D23: =SA34a!D119 -> 0 | E23: =SA34a!E119 -> 0 | F23: =SA34a!F119 -> 1100000 | G23: =SA34a!G119 -> 1100000 | H23: =SA34a!H119 -> 1100000 | I23: =SA34a!I119 -> 0 | J23: =SA34a!J119 -> 0 | K23: =SA34a!K119 -> 0
A24: Housing | C24: =SA34a!C131 -> 0 | D24: =SA34a!D131 -> 0 | E24: =SA34a!E131 -> 59046781.33 | F24: =SA34a!F131 -> 106241945 | G24: =SA34a!G131 -> 106241945 | H24: =SA34a!H131 -> 106241945 | I24: =SA34a!I131 -> 51032696.72 | J24: =SA34a!J131 -> 122000000 | K24: =SA34a!K131 -> 221178805
A25: Other Assets | C25: =SUM(C23:C24) -> 2885283.88 | D25: =SUM(D23:D24) -> 0 | E25: 59046781.33 | F25: 107341945 | G25: 107341945 | H25: 107341945 | I25: 51032696.72 | J25: 122000000 | K25: 221178805
A26: Biological or Cultivated Assets | C26: =SA34a!C136 -> 0 | D26: =SA34a!D136 -> 0 | E26: =SA34a!E136 -> 0 | F26: =SA34a!F136 -> 0 | G26: =SA34a!G136 -> 0 | H26: =SA34a!H136 -> 0 | I26: =SA34a!I136 -> 0 | J26: =SA34a!J136 -> 0 | K26: =SA34a!K136 -> 0
A27: Servitudes | C27: =SA34a!C140 -> 0 | D27: =SA34a!D140 -> 0 | E27: =SA34a!E140 -> 0 | F27: =SA34a!F140 -> 0 | G27: =SA34a!G140 -> 0 | H27: =SA34a!H140 -> 0 | I27: =SA34a!I140 -> 0 | J27: =SA34a!J140 -> 0 | K27: =SA34a!K140 -> 0
A28: Licences and Rights | C28: =SA34a!C141 -> 8968380.12 | D28: =SA34a!D141 -> 0 | E28: =SA34a!E141 -> 523018.19 | F28: =SA34a!F141 -> 0 | G28: =SA34a!G141 -> 0 | H28: =SA34a!H141 -> 0 | I28: =SA34a!I141 -> 16215000 | J28: =SA34a!J141 -> 15480000 | K28: =SA34a!K141 -> 14637611
A29: Intangible Assets | C29: =SUM(C27:C28) -> 8968380.12 | D29: =SUM(D27:D28) -> 0 | E29: 523018.19 | F29: 0 | G29: 0 | H29: 0 | I29: 16215000 | J29: 15480000 | K29: 14637611
A30: Computer Equipment | C30: =SA34a!C149 -> 34960244.87 | D30: =SA34a!D149 -> 0 | E30: =SA34a!E149 -> 5856387.15 | F30: =SA34a!F149 -> 5106690.34 | G30: =SA34a!G149 -> 24834032.35 | H30: =SA34a!H149 -> 24834032.35 | I30: =SA34a!I149 -> 25398745 | J30: =SA34a!J149 -> 3587988 | K30: =SA34a!K149 -> 3355841
A31: Furniture and Office Equipment | C31: =SA34a!C152 -> 4304516.88 | D31: =SA34a!D152 -> 1551738.66 | E31: =SA34a!E152 -> 170000 | F31: =SA34a!F152 -> 7196887.61 | G31: =SA34a!G152 -> 7196887.61 | H31: =SA34a!H152 -> 7196887.61 | I31: =SA34a!I152 -> 69842135 | J31: =SA34a!J152 -> 9902497 | K31: =SA34a!K152 -> 15548710
A32: Machinery and Equipment | C32: =SA34a!C155 -> 33839751.12 | D32: =SA34a!D155 -> 3956830.37 | E32: =SA34a!E155 -> 19751203.14 | F32: =SA34a!F155 -> 35881095 | G32: =SA34a!G155 -> 83224095 | H32: =SA34a!H155 -> 83224095 | I32: =SA34a!I155 -> 23598741 | J32: =SA34a!J155 -> 16755000 | K32: =SA34a!K155 -> 3125987
A33: Transport Assets | C33: =SA34a!C158 -> 77653.21 | D33: =SA34a!D158 -> 5994977.62 | E33: =SA34a!E158 -> 20522659.83 | F33: =SA34a!F158 -> 14155234 | G33: =SA34a!G158 -> 25990234 | H33: =SA34a!H158 -> 25990234 | I33: =SA34a!I158 -> 21987425 | J33: =SA34a!J158 -> 19700000 | K33: =SA34a!K158 -> 18687123
A34: Land | C34: =SA34a!C161 -> 0 | D34: =SA34a!D161 -> 0 | E34: =SA34a!E161 -> 0 | F34: =SA34a!F161 -> 0 | G34: =SA34a!G161 -> 0 | H34: =SA34a!H161 -> 0 | I34: =SA34a!I161 -> 0 | J34: =SA34a!J161 -> 0 | K34: =SA34a!K161 -> 0
A35: Zoo's, Marine and Non-biological Animals | C35: =SA34a!C164 -> 0 | D35: =SA34a!D164 -> 0 | E35: =SA34a!E164 -> 0 | F35: =SA34a!F164 -> 0 | G35: =SA34a!G164 -> 0 | H35: =SA34a!H164 -> 0 | I35: =SA34a!I164 -> 0 | J35: =SA34a!J164 -> 0 | K35: =SA34a!K164 -> 0
A37: Total Renewal of Existing Assets | B37: 2 | C37: =C47+C50+C51+C54+C57+C58+SUM(C61:C67) -> 251586368.5 | D37: =D47+D50+D51+D54+D57+D58+SUM(D61:D67) -> 203992313.9 | E37: 72703927.45 | F37: 251781525 | G37: 251781525 | H37: 251781525 | I37: 29308417 | J37: 52347206.7 | K37: 39339966 | L37: 251781525 | M37: 257590892.1 | N37: 241207291.7
A38: Roads Infrastructure | C38: =SA34b!C7 -> 32198255.8 | D38: =SA34b!D7 -> 0 | E38: =SA34b!E7 -> 50403832.5 | F38: =SA34b!F7 -> 41326894 | G38: =SA34b!G7 -> 41326894 | H38: =SA34b!H7 -> 41326894 | I38: =SA34b!I7 -> 25657412 | J38: =SA34b!J7 -> 46347206.7 | K38: =SA34b!K7 -> 33641251 | L38: 121338250 | M38: 164523190 | N38: 144231510
A39: Storm water Infrastructure | C39: =SA34b!C12 -> 0 | D39: =SA34b!D12 -> 0 | E39: =SA34b!E12 -> 0 | F39: =SA34b!F12 -> 0 | G39: =SA34b!G12 -> 0 | H39: =SA34b!H12 -> 0 | I39: =SA34b!I12 -> 0 | J39: =SA34b!J12 -> 0 | K39: =SA34b!K12 -> 0 | L39: =SUM(L37:L38) -> 373119775 | M39: 373119775 | N39: 373119775
A40: Electrical Infrastructure | C40: =SA34b!C16 -> 44447125.26 | D40: =SA34b!D16 -> 0 | E40: =SA34b!E16 -> 0 | F40: =SA34b!F16 -> 0 | G40: =SA34b!G16 -> 0 | H40: =SA34b!H16 -> 0 | I40: =SA34b!I16 -> 3651005 | J40: =SA34b!J16 -> 6000000 | K40: =SA34b!K16 -> 5698715
A41: Water Supply Infrastructure | C41: =SA34b!C26 -> 0 | D41: =SA34b!D26 -> 0 | E41: =SA34b!E26 -> 0 | F41: =SA34b!F26 -> 64261109 | G41: =SA34b!G26 -> 64261109 | H41: =SA34b!H26 -> 64261109 | I41: =SA34b!I26 -> 0 | J41: =SA34b!J26 -> 0 | K41: =SA34b!K26 -> 0 | L41: =L39-I101 -> -524530343.9
A42: Sanitation Infrastructure | C42: =SA34b!C37 -> 1197869.29 | D42: =SA34b!D37 -> 0 | E42: =SA34b!E37 -> 15866227.89 | F42: =SA34b!F37 -> 74185522 | G42: =SA34b!G37 -> 74185522 | H42: =SA34b!H37 -> 74185522 | I42: =SA34b!I37 -> 0 | J42: =SA34b!J37 -> 0 | K42: =SA34b!K37 -> 0
A43: Solid Waste Infrastructure | C43: =SA34b!C44 -> 19377263.52 | D43: =SA34b!D44 -> 0 | E43: =SA34b!E44 -> 0 | F43: =SA34b!F44 -> 2000000 | G43: =SA34b!G44 -> 2000000 | H43: =SA34b!H44 -> 2000000 | I43: =SA34b!I44 -> 0 | J43: =SA34b!J44 -> 0 | K43: =SA34b!K44 -> 0
A44: Rail Infrastructure | C44: =SA34b!C52 -> 0 | D44: =SA34b!D52 -> 0 | E44: =SA34b!E52 -> 0 | F44: =SA34b!F52 -> 0 | G44: =SA34b!G52 -> 0 | H44: =SA34b!H52 -> 0 | I44: =SA34b!I52 -> 0 | J44: =SA34b!J52 -> 0 | K44: =SA34b!K52 -> 0 | M44: =64-100 -> -36
A45: Coastal Infrastructure | C45: =SA34b!C62 -> 0 | D45: =SA34b!D62 -> 0 | E45: =SA34b!E62 -> 0 | F45: =SA34b!F62 -> 0 | G45: =SA34b!G62 -> 0 | H45: =SA34b!H62 -> 0 | I45: =SA34b!I62 -> 0 | J45: =SA34b!J62 -> 0 | K45: =SA34b!K62 -> 0
A46: Information and Communication Infrastructure | C46: =SA34b!C68 -> 0 | D46: =SA34b!D68 -> 0 | E46: =SA34b!E68 -> 0 | F46: =SA34b!F68 -> 0 | G46: =SA34b!G68 -> 0 | H46: =SA34b!H68 -> 0 | I46: =SA34b!I68 -> 0 | J46: =SA34b!J68 -> 0 | K46: =SA34b!K68 -> 0
A47: Infrastructure | C47: =SUM(C38:C46) -> 97220513.87 | D47: =SUM(D38:D46) -> 0 | E47: 66270060.39 | F47: 181773525 | G47: 181773525 | H47: 181773525 | I47: 29308417 | J47: 52347206.7 | K47: 39339966
A48: Community Facilities | C48: =SA34b!C75 -> 3705234.78 | D48: =SA34b!D75 -> 0 | E48: =SA34b!E75 -> 1178169.95 | F48: =SA34b!F75 -> 35808000 | G48: =SA34b!G75 -> 35808000 | H48: =SA34b!H75 -> 35808000 | I48: =SA34b!I75 -> 0 | J48: =SA34b!J75 -> 0 | K48: =SA34b!K75 -> 0
A49: Sport and Recreation Facilities | C49: =SA34b!C98 -> 24870985.83 | D49: =SA34b!D98 -> 0 | E49: =SA34b!E98 -> 4067886.72 | F49: =SA34b!F98 -> 0 | G49: =SA34b!G98 -> 0 | H49: =SA34b!H98 -> 0 | I49: =SA34b!I98 -> 0 | J49: =SA34b!J98 -> 0 | K49: =SA34b!K98 -> 0
A50: Community Assets | C50: =SUM(C48:C49) -> 28576220.61 | D50: =SUM(D48:D49) -> 0 | E50: 5246056.67 | F50: 35808000 | G50: 35808000 | H50: 35808000 | I50: 0 | J50: 0 | K50: 0
A51: Heritage Assets | C51: =SA34b!C103 -> 15407721.55 | D51: =SA34b!D103 -> 208367676 | E51: =SA34b!E103 -> 0 | F51: =SA34b!F103 -> 0 | G51: =SA34b!G103 -> 0 | H51: =SA34b!H103 -> 0 | I51: =SA34b!I103 -> 0 | J51: =SA34b!J103 -> 0 | K51: =SA34b!K103 -> 0
A52: Revenue Generating | C52: =SA34b!C111 -> 0 | D52: =SA34b!D111 -> 0 | E52: =SA34b!E111 -> 0 | F52: =SA34b!F111 -> 0 | G52: =SA34b!G111 -> 0 | H52: =SA34b!H111 -> 0 | I52: =SA34b!I111 -> 0 | J52: =SA34b!J111 -> 0 | K52: =SA34b!K111 -> 0
A53: Non-revenue Generating | C53: =SA34b!C114 -> 0 | D53: =SA34b!D114 -> 0 | E53: =SA34b!E114 -> 0 | F53: =SA34b!F114 -> 0 | G53: =SA34b!G114 -> 0 | H53: =SA34b!H114 -> 0 | I53: =SA34b!I114 -> 0 | J53: =SA34b!J114 -> 0 | K53: =SA34b!K114 -> 0
A54: Investment properties | C54: =SUM(C52:C53) -> 0 | D54: =SUM(D52:D53) -> 0 | E54: 0 | F54: 0 | G54: 0 | H54: 0 | I54: 0 | J54: 0 | K54: 0
A55: Operational Buildings | C55: =SA34b!C119 -> 0 | D55: =SA34b!D119 -> 0 | E55: =SA34b!E119 -> 1187810.39 | F55: =SA34b!F119 -> 1000000 | G55: =SA34b!G119 -> 1000000 | H55: =SA34b!H119 -> 1000000 | I55: =SA34b!I119 -> 0 | J55: =SA34b!J119 -> 0 | K55: =SA34b!K119 -> 0
A56: Housing | C56: =SA34b!C131 -> 0 | D56: =SA34b!D131 -> 0 | E56: =SA34b!E131 -> 0 | F56: =SA34b!F131 -> 1000000 | G56: =SA34b!G131 -> 1000000 | H56: =SA34b!H131 -> 1000000 | I56: =SA34b!I131 -> 0 | J56: =SA34b!J131 -> 0 | K56: =SA34b!K131 -> 0
A57: Other Assets | C57: =SUM(C55:C56) -> 0 | D57: =SUM(D55:D56) -> 0 | E57: 1187810.39 | F57: 2000000 | G57: 2000000 | H57: 2000000 | I57: 0 | J57: 0 | K57: 0
A58: Biological or Cultivated Assets | C58: =SA34b!C136 -> 0 | D58: =SA34b!D136 -> 0 | E58: =SA34b!E136 -> 0 | F58: =SA34b!F136 -> 0 | G58: =SA34b!G136 -> 0 | H58: =SA34b!H136 -> 0 | I58: =SA34b!I136 -> 0 | J58: =SA34b!J136 -> 0 | K58: =SA34b!K136 -> 0
A59: Servitudes | C59: =SA34b!C140 -> 0 | D59: =SA34b!D140 -> 0 | E59: =SA34b!E140 -> 0 | F59: =SA34b!F140 -> 0 | G59: =SA34b!G140 -> 0 | H59: =SA34b!H140 -> 0 | I59: =SA34b!I140 -> 0 | J59: =SA34b!J140 -> 0 | K59: =SA34b!K140 -> 0
A60: Licences and Rights | C60: =SA34b!C141 -> 0 | D60: =SA34b!D141 -> 0 | E60: =SA34b!E141 -> 0 | F60: =SA34b!F141 -> 32200000 | G60: =SA34b!G141 -> 32200000 | H60: =SA34b!H141 -> 32200000 | I60: =SA34b!I141 -> 0 | J60: =SA34b!J141 -> 0 | K60: =SA34b!K141 -> 0
A61: Intangible Assets | C61: =SUM(C59:C60) -> 0 | D61: =SUM(D59:D60) -> 0 | E61: 0 | F61: 32200000 | G61: 32200000 | H61: 32200000 | I61: 0 | J61: 0 | K61: 0
A62: Computer Equipment | C62: =SA34b!C149 -> 0 | D62: =SA34b!D149 -> 0 | E62: =SA34b!E149 -> 0 | F62: =SA34b!F149 -> 0 | G62: =SA34b!G149 -> 0 | H62: =SA34b!H149 -> 0 | I62: =SA34b!I149 -> 0 | J62: =SA34b!J149 -> 0 | K62: =SA34b!K149 -> 0
A63: Furniture and Office Equipment | C63: =SA34b!C152 -> 0 | D63: =SA34b!D152 -> 0 | E63: =SA34b!E152 -> 0 | F63: =SA34b!F152 -> 0 | G63: =SA34b!G152 -> 0 | H63: =SA34b!H152 -> 0 | I63: =SA34b!I152 -> 0 | J63: =SA34b!J152 -> 0 | K63: =SA34b!K152 -> 0
A64: Machinery and Equipment | C64: =SA34b!C155 -> 0 | D64: =SA34b!D155 -> 0 | E64: =SA34b!E155 -> 0 | F64: =SA34b!F155 -> 0 | G64: =SA34b!G155 -> 0 | H64: =SA34b!H155 -> 0 | I64: =SA34b!I155 -> 0 | J64: =SA34b!J155 -> 0 | K64: =SA34b!K155 -> 0
A65: Transport Assets | C65: =SA34b!C158 -> 110381912.5 | D65: =SA34b!D158 -> -4375362.12 | E65: =SA34b!E158 -> 0 | F65: =SA34b!F158 -> 0 | G65: =SA34b!G158 -> 0 | H65: =SA34b!H158 -> 0 | I65: =SA34b!I158 -> 0 | J65: =SA34b!J158 -> 0 | K65: =SA34b!K158 -> 0
A66: Land | C66: =SA34b!C161 -> 0 | D66: =SA34b!D161 -> 0 | E66: =SA34b!E161 -> 0 | F66: =SA34b!F161 -> 0 | G66: =SA34b!G161 -> 0 | H66: =SA34b!H161 -> 0 | I66: =SA34b!I161 -> 0 | J66: =SA34b!J161 -> 0 | K66: =SA34b!K161 -> 0
A67: Zoo's, Marine and Non-biological Animals | C67: =SA34b!C164 -> 0 | D67: =SA34b!D164 -> 0 | E67: =SA34b!E164 -> 0 | F67: =SA34b!F164 -> 0 | G67: =SA34b!G164 -> 0 | H67: =SA34b!H164 -> 0 | I67: =SA34b!I164 -> 0 | J67: =SA34b!J164 -> 0 | K67: =SA34b!K164 -> 0
A69: Total Upgrading of Existing Assets | B69: 6 | C69: =C79+C82+C83+C86+C89+C90+SUM(C93:C99) -> 175803267.3 | D69: =D79+D82+D83+D86+D89+D90+SUM(D93:D99) -> 254754774.2 | E69: 205284567.8 | F69: 121338250 | G69: 121338250 | H69: 121338250 | I69: 553664179.5 | J69: 505022793.3 | K69: 201644894.6
A70: Roads Infrastructure | C70: =SA34e!C7 -> 90517841.19 | D70: =SA34e!D7 -> 0 | E70: =SA34e!E7 -> 59061068.89 | F70: =SA34e!F7 -> 39149250 | G70: =SA34e!G7 -> 39149250 | H70: =SA34e!H7 -> 39149250 | I70: =SA34e!I7 -> 254123562 | J70: =SA34e!J7 -> 41058000 | K70: =SA34e!K7 -> 45035641
A71: Storm water Infrastructure | C71: =SA34e!C12 -> 0 | D71: =SA34e!D12 -> 0 | E71: =SA34e!E12 -> 0 | F71: =SA34e!F12 -> 0 | G71: =SA34e!G12 -> 0 | H71: =SA34e!H12 -> 0 | I71: =SA34e!I12 -> 0 | J71: =SA34e!J12 -> 0 | K71: =SA34e!K12 -> 0
A72: Electrical Infrastructure | C72: =SA34e!C16 -> 6325203.16 | D72: =SA34e!D16 -> 0 | E72: =SA34e!E16 -> 26990126.44 | F72: =SA34e!F16 -> 74000000 | G72: =SA34e!G16 -> 74000000 | H72: =SA34e!H16 -> 74000000 | I72: =SA34e!I16 -> 157200112 | J72: =SA34e!J16 -> 162100000 | K72: =SA34e!K16 -> 156609253.6
A73: Water Supply Infrastructure | C73: =SA34e!C26 -> 50483941.24 | D73: =SA34e!D26 -> 0 | E73: =SA34e!E26 -> 15228935.02 | F73: =SA34e!F26 -> 0 | G73: =SA34e!G26 -> 0 | H73: =SA34e!H26 -> 0 | I73: =SA34e!I26 -> 0 | J73: =SA34e!J26 -> 170062101.5 | K73: =SA34e!K26 -> 0
A74: Sanitation Infrastructure | C74: =SA34e!C37 -> 0 | D74: =SA34e!D37 -> 0 | E74: =SA34e!E37 -> 0 | F74: =SA34e!F37 -> 0 | G74: =SA34e!G37 -> 0 | H74: =SA34e!H37 -> 0 | I74: =SA34e!I37 -> 0 | J74: =SA34e!J37 -> 102962691.8 | K74: =SA34e!K37 -> 0
A75: Solid Waste Infrastructure | C75: =SA34e!C44 -> 4262949.49 | D75: =SA34e!D44 -> 0 | E75: =SA34e!E44 -> 1933511.82 | F75: =SA34e!F44 -> 2300000 | G75: =SA34e!G44 -> 2300000 | H75: =SA34e!H44 -> 2300000 | I75: =SA34e!I44 -> 0 | J75: =SA34e!J44 -> 0 | K75: =SA34e!K44 -> 0
A76: Rail Infrastructure | C76: =SA34e!C52 -> 0 | D76: =SA34e!D52 -> 0 | E76: =SA34e!E52 -> 0 | F76: =SA34e!F52 -> 0 | G76: =SA34e!G52 -> 0 | H76: =SA34e!H52 -> 0 | I76: =SA34e!I52 -> 0 | J76: =SA34e!J52 -> 0 | K76: =SA34e!K52 -> 0
A77: Coastal Infrastructure | C77: =SA34e!C62 -> 0 | D77: =SA34e!D62 -> 0 | E77: =SA34e!E62 -> 0 | F77: =SA34e!F62 -> 0 | G77: =SA34e!G62 -> 0 | H77: =SA34e!H62 -> 0 | I77: =SA34e!I62 -> 0 | J77: =SA34e!J62 -> 0 | K77: =SA34e!K62 -> 0
A78: Information and Communication Infrastructure | C78: =SA34e!C68 -> 0 | D78: =SA34e!D68 -> 0 | E78: =SA34e!E68 -> 0 | F78: =SA34e!F68 -> 0 | G78: =SA34e!G68 -> 0 | H78: =SA34e!H68 -> 0 | I78: =SA34e!I68 -> 0 | J78: =SA34e!J68 -> 0 | K78: =SA34e!K68 -> 0
A79: Infrastructure | C79: =SUM(C70:C78) -> 151589935.1 | D79: 0 | E79: 103213642.2 | F79: 115449250 | G79: 115449250 | H79: 115449250 | I79: 411323674 | J79: 476182793.3 | K79: 201644894.6
A80: Community Facilities | C80: =SA34e!C75 -> 149110.31 | D80: =SA34e!D75 -> 0 | E80: =SA34e!E75 -> 102070925.6 | F80: =SA34e!F75 -> 3500000 | G80: =SA34e!G75 -> 3500000 | H80: =SA34e!H75 -> 3500000 | I80: =SA34e!I75 -> 0 | J80: =SA34e!J75 -> 1540000 | K80: =SA34e!K75 -> 0
A81: Sport and Recreation Facilities | C81: =SA34e!C98 -> 1632721.64 | D81: =SA34e!D98 -> 0 | E81: =SA34e!E98 -> 0 | F81: =SA34e!F98 -> 0 | G81: =SA34e!G98 -> 0 | H81: =SA34e!H98 -> 0 | I81: =SA34e!I98 -> 0 | J81: =SA34e!J98 -> 0 | K81: =SA34e!K98 -> 0
A82: Community Assets | C82: =SUM(C80:C81) -> 1781831.95 | D82: 0 | E82: 102070925.6 | F82: 3500000 | G82: 3500000 | H82: 3500000 | I82: 0 | J82: 1540000 | K82: 0
A83: Heritage Assets | C83: =SA34e!C103 -> 8422674.74 | D83: =SA34e!D103 -> 201733761.1 | E83: =SA34e!E103 -> 0 | F83: =SA34e!F103 -> 0 | G83: =SA34e!G103 -> 0 | H83: =SA34e!H103 -> 0 | I83: =SA34e!I103 -> 0 | J83: =SA34e!J103 -> 0 | K83: =SA34e!K103 -> 0
A84: Revenue Generating | C84: =SA34e!C111 -> 0 | D84: =SA34e!D111 -> 0 | E84: =SA34e!E111 -> 0 | F84: =SA34e!F111 -> 0 | G84: =SA34e!G111 -> 0 | H84: =SA34e!H111 -> 0 | I84: =SA34e!I111 -> 0 | J84: =SA34e!J111 -> 27000000 | K84: =SA34e!K111 -> 0
A85: Non-revenue Generating | C85: =SA34e!C114 -> 0 | D85: =SA34e!D114 -> 0 | E85: =SA34e!E114 -> 0 | F85: =SA34e!F114 -> 0 | G85: =SA34e!G114 -> 0 | H85: =SA34e!H114 -> 0 | I85: =SA34e!I114 -> 0 | J85: =SA34e!J114 -> 0 | K85: =SA34e!K114 -> 0
A86: Investment properties | C86: =SUM(C84:C85) -> 0 | D86: 0 | E86: 0 | F86: 0 | G86: 0 | H86: 0 | I86: 0 | J86: 27000000 | K86: 0
A87: Operational Buildings | C87: =SA34e!C119 -> 0 | D87: =SA34e!D119 -> 0 | E87: =SA34e!E119 -> 0 | F87: =SA34e!F119 -> 2389000 | G87: =SA34e!G119 -> 2389000 | H87: =SA34e!H119 -> 2389000 | I87: =SA34e!I119 -> 0 | J87: =SA34e!J119 -> 0 | K87: =SA34e!K119 -> 0
A88: Housing | C88: =SA34e!C131 -> 0 | D88: =SA34e!D131 -> 0 | E88: =SA34e!E131 -> 0 | F88: =SA34e!F131 -> 0 | G88: =SA34e!G131 -> 0 | H88: =SA34e!H131 -> 0 | I88: =SA34e!I131 -> 0 | J88: =SA34e!J131 -> 0 | K88: =SA34e!K131 -> 0
A89: Other Assets | C89: =SUM(C87:C88) -> 0 | D89: 0 | E89: 0 | F89: 2389000 | G89: 2389000 | H89: 2389000 | I89: 0 | J89: 0 | K89: 0
A90: Biological or Cultivated Assets | C90: =SA34e!C136 -> 0 | D90: =SA34e!D136 -> 0 | E90: =SA34e!E136 -> 0 | F90: =SA34e!F136 -> 0 | G90: =SA34e!G136 -> 0 | H90: =SA34e!H136 -> 0 | I90: =SA34e!I136 -> 0 | J90: =SA34e!J136 -> 0 | K90: =SA34e!K136 -> 0
A91: Servitudes | C91: =SA34e!C140 -> 0 | D91: =SA34e!D140 -> 0 | E91: =SA34e!E140 -> 0 | F91: =SA34e!F140 -> 0 | G91: =SA34e!G140 -> 0 | H91: =SA34e!H140 -> 0 | I91: =SA34e!I140 -> 0 | J91: =SA34e!J140 -> 0 | K91: =SA34e!K140 -> 0
A92: Licences and Rights | C92: =SA34e!C141 -> 0 | D92: =SA34e!D141 -> 0 | E92: =SA34e!E141 -> 0 | F92: =SA34e!F141 -> 0 | G92: =SA34e!G141 -> 0 | H92: =SA34e!H141 -> 0 | I92: =SA34e!I141 -> 1975405.493 | J92: =SA34e!J141 -> 0 | K92: =SA34e!K141 -> 0
A93: Intangible Assets | C93: =SUM(C91:C92) -> 0 | D93: 0 | E93: 0 | F93: 0 | G93: 0 | H93: 0 | I93: 1975405.493 | J93: 0 | K93: 0
A94: Computer Equipment | C94: =SA34e!C149 -> 0 | D94: =SA34e!D149 -> 0 | E94: =SA34e!E149 -> 0 | F94: =SA34e!F149 -> 0 | G94: =SA34e!G149 -> 0 | H94: =SA34e!H149 -> 0 | I94: =SA34e!I149 -> 0 | J94: =SA34e!J149 -> 0 | K94: =SA34e!K149 -> 0
A95: Furniture and Office Equipment | C95: =SA34e!C152 -> 0 | D95: =SA34e!D152 -> 0 | E95: =SA34e!E152 -> 0 | F95: =SA34e!F152 -> 0 | G95: =SA34e!G152 -> 0 | H95: =SA34e!H152 -> 0 | I95: =SA34e!I152 -> 45000000 | J95: =SA34e!J152 -> 0 | K95: =SA34e!K152 -> 0
A96: Machinery and Equipment | C96: =SA34e!C155 -> 1388509.91 | D96: =SA34e!D155 -> 15562.55 | E96: =SA34e!E155 -> 0 | F96: =SA34e!F155 -> 0 | G96: =SA34e!G155 -> 0 | H96: =SA34e!H155 -> 0 | I96: =SA34e!I155 -> 0 | J96: =SA34e!J155 -> 300000 | K96: =SA34e!K155 -> 0
A97: Transport Assets | C97: =SA34e!C158 -> 0 | D97: =SA34e!D158 -> -6604571.5 | E97: =SA34e!E158 -> 0 | F97: =SA34e!F158 -> 0 | G97: =SA34e!G158 -> 0 | H97: =SA34e!H158 -> 0 | I97: =SA34e!I158 -> 95365100 | J97: =SA34e!J158 -> 0 | K97: =SA34e!K158 -> 0
A98: Land | C98: =SA34e!C161 -> 12620315.63 | D98: =SA34e!D161 -> 59610022.05 | E98: =SA34e!E161 -> 0 | F98: =SA34e!F161 -> 0 | G98: =SA34e!G161 -> 0 | H98: =SA34e!H161 -> 0 | I98: =SA34e!I161 -> 0 | J98: =SA34e!J161 -> 0 | K98: =SA34e!K161 -> 0
A99: Zoo's, Marine and Non-biological Animals | C99: =SA34e!C164 -> 0 | D99: =SA34e!D164 -> 0 | E99: =SA34e!E164 -> 0 | F99: =SA34e!F164 -> 0 | G99: =SA34e!G164 -> 0 | H99: =SA34e!H164 -> 0 | I99: =SA34e!I164 -> 0 | J99: =SA34e!J164 -> 0 | K99: =SA34e!K164 -> 0
A101: Total Capital Expenditure | B101: 4 | C101: =+C5+C37+C69 -> 613486541 | D101: =+D5+D37+D69 -> 479855222.2 | E101: 685931270.1 | F101: 576301627 | G101: 655206969 | H101: 655206969 | I101: 897650118.9 | J101: 744795485 | K101: 587260601
A102: Roads Infrastructure | C102: =+C6+C38+C70 -> 137819136 | D102: =+D6+D38+D70 -> 0 | E102: 274587823.1 | F102: 104576144 | G102: 104576144 | H102: 104576144 | I102: 356471331.9 | J102: 87405206.7 | K102: 128849252.8
A103: Storm water Infrastructure | C103: =+C7+C39+C71 -> 0 | D103: 0 | E103: 0 | F103: 0 | G103: 0 | H103: 0 | I103: 0 | J103: 0 | K103: 0
A104: Electrical Infrastructure | C104: 118050196.6 | D104: 0 | E104: 31643332.08 | F104: 81600000 | G104: 81600000 | H104: 81600000 | I104: 185035628.2 | J104: 168100000 | K104: 178129957.9
A105: Water Supply Infrastructure | C105: 50483941.24 | D105: 0 | E105: 89468098.42 | F105: 64261109 | G105: 64261109 | H105: 64261109 | I105: 0 | J105: 170062101.5 | K105: 0
A106: Sanitation Infrastructure | C106: 1197869.29 | D106: 0 | E106: 60764706.61 | F106: 74185522 | G106: 74185522 | H106: 74185522 | I106: 0 | J106: 102962691.8 | K106: 0
A107: Solid Waste Infrastructure | C107: 23640213.01 | D107: 0 | E107: 1933511.82 | F107: 4300000 | G107: 4300000 | H107: 4300000 | I107: 0 | J107: 0 | K107: 0
A108: Rail Infrastructure | C108: 0 | D108: 0 | E108: 0 | F108: 0 | G108: 0 | H108: 0 | I108: 0 | J108: 0 | K108: 0
A109: Coastal Infrastructure | C109: 0 | D109: 0 | E109: 0 | F109: 0 | G109: 0 | H109: 0 | I109: 0 | J109: 0 | K109: 0
A110: Information and Communication Infrastructure | C110: 0 | D110: 0 | E110: 0 | F110: 0 | G110: 0 | H110: 0 | I110: 0 | J110: 0 | K110: 0
A111: Infrastructure | C111: =SUM(C102:C110) -> 331191356.2 | D111: =SUM(D102:D110) -> 0 | E111: 458397472 | F111: 328922775 | G111: 328922775 | H111: 328922775 | I111: 541506960.1 | J111: 528530000 | K111: 306979210.7
A112: Community Facilities | C112: =+C16+C48+C80 -> 4191001.05 | D112: =+D16+D48+D80 -> 0 | E112: 113812188.5 | F112: 41108000 | G112: 41108000 | H112: 41108000 | I112: 5727910.549 | J112: 1540000 | K112: 3747313.258
A113: Sport and Recreation Facilities | C113: =+C17+C49+C81 -> 26503707.47 | D113: =+D17+D49+D81 -> 0 | E113: 6663749.55 | F113: 0 | G113: 0 | H113: 0 | I113: 0 | J113: 0 | K113: 0
A114: Community Assets | C114: =SUM(C112:C113) -> 30694708.52 | D114: =SUM(D112:D113) -> 0 | E114: 120475938.1 | F114: 41108000 | G114: 41108000 | H114: 41108000 | I114: 5727910.549 | J114: 1540000 | K114: 3747313.258
A115: Heritage Assets | C115: =+C19+C51+C83 -> 42173908.2 | D115: =+D19+D51+D83 -> 419706024.5 | E115: 0 | F115: 0 | G115: 0 | H115: 0 | I115: 0 | J115: 0 | K115: 0
A116: Revenue Generating | C116: =+C20+C52+C84 -> 0 | D116: =+D20+D52+D84 -> 0 | E116: 0 | F116: 0 | G116: 0 | H116: 0 | I116: 0 | J116: 27000000 | K116: 0
A117: Non-revenue Generating | C117: =+C21+C53+C85 -> 0 | D117: =+D21+D53+D85 -> 0 | E117: 0 | F117: 0 | G117: 0 | H117: 0 | I117: 0 | J117: 0 | K117: 0
A118: Investment properties | C118: =SUM(C116:C117) -> 0 | D118: =SUM(D116:D117) -> 0 | E118: 0 | F118: 0 | G118: 0 | H118: 0 | I118: 0 | J118: 27000000 | K118: 0
A119: Operational Buildings | C119: =+C23+C55+C87 -> 2885283.88 | D119: =+D23+D55+D87 -> 0 | E119: 1187810.39 | F119: 4489000 | G119: 4489000 | H119: 4489000 | I119: 0 | J119: 0 | K119: 0
A120: Housing | C120: =+C24+C56+C88 -> 0 | D120: =+D24+D56+D88 -> 0 | E120: 59046781.33 | F120: 107241945 | G120: 107241945 | H120: 107241945 | I120: 51032696.72 | J120: 122000000 | K120: 221178805
A121: Other Assets | C121: =SUM(C119:C120) -> 2885283.88 | D121: 0 | E121: 60234591.72 | F121: 111730945 | G121: 111730945 | H121: 111730945 | I121: 51032696.72 | J121: 122000000 | K121: 221178805
A122: Biological or Cultivated Assets | C122: =+C26+C58+C90 -> 0 | D122: =+D26+D58+D90 -> 0 | E122: 0 | F122: 0 | G122: 0 | H122: 0 | I122: 0 | J122: 0 | K122: 0
A123: Servitudes | C123: =+C27+C59+C91 -> 0 | D123: =+D27+D59+D91 -> 0 | E123: 0 | F123: 0 | G123: 0 | H123: 0 | I123: 0 | J123: 0 | K123: 0
A124: Licences and Rights | C124: =+C28+C60+C92 -> 8968380.12 | D124: =+D28+D60+D92 -> 0 | E124: 523018.19 | F124: 32200000 | G124: 32200000 | H124: 32200000 | I124: 18190405.49 | J124: 15480000 | K124: 14637611
A125: Intangible Assets | C125: =SUM(C123:C124) -> 8968380.12 | D125: =SUM(D123:D124) -> 0 | E125: 523018.19 | F125: 32200000 | G125: 32200000 | H125: 32200000 | I125: 18190405.49 | J125: 15480000 | K125: 14637611
A126: Computer Equipment | C126: =+C30+C62+C94 -> 34960244.87 | D126: =+D30+D62+D94 -> 0 | E126: 5856387.15 | F126: 5106690.34 | G126: 24834032.35 | H126: 24834032.35 | I126: 25398745 | J126: 3587988 | K126: 3355841 | M126: =G111+G114+G126+G127+G128+G129 -> 511276024
A127: Furniture and Office Equipment | C127: =+C31+C63+C95 -> 4304516.88 | D127: 1551738.66 | E127: 170000 | F127: 7196887.61 | G127: 7196887.61 | H127: 7196887.61 | I127: 114842135 | J127: 9902497 | K127: 15548710
A128: Machinery and Equipment | C128: 35228261.03 | D128: 3972392.92 | E128: 19751203.14 | F128: 35881095 | G128: 83224095 | H128: 83224095 | I128: 23598741 | J128: 17055000 | K128: 3125987
A129: Transport Assets | C129: 110459565.7 | D129: -4984956 | E129: 20522659.83 | F129: 14155234 | G129: 25990234 | H129: 25990234 | I129: 117352525 | J129: 19700000 | K129: 18687123
A130: Land | C130: 12620315.63 | D130: 59610022.05 | E130: 0 | F130: 0 | G130: 0 | H130: 0 | I130: 0 | J130: 0 | K130: 0
A131: Zoo's, Marine and Non-biological Animals | C131: 0 | D131: 0 | E131: 0 | F131: 0 | G131: 0 | H131: 0 | I131: 0 | J131: 0 | K131: 0
A132: TOTAL CAPITAL EXPENDITURE - Asset class | C132: =+C5+C37+C69 -> 613486541 | D132: =+D5+D37+D69 -> 479855222.2 | E132: 685931270.1 | F132: 576301627 | G132: 655206969 | H132: 655206969 | I132: 897650118.9 | J132: 744795485 | K132: 587260601
A134: ASSET REGISTER SUMMARY - PPE (WDV) | B134: 5 | C134: =C144+C147+C148+C151+C154+C155+C158+C159+C160+C161+C162+C163+C164 -> 7343364292 | D134: =D144+D147+D148+D151+D154+D155+D158+D159+D160+D161+D162+D163+D164 -> 8114943436 | E134: 7776759066 | F134: 8299932731 | G134: 7330583369 | H134: 7278296220 | I134: 7195684086 | J134: 7421599291 | K134: 7463258947
A135: Roads Infrastructure | C135: 1531463951 | D135: 1863936673 | E135: 1873107347 | F135: 2665950944 | G135: 2190328004 | H135: 2190328004 | I135: =2238420645.6918-L138 -> 1830420489 | J135: =2224838392.2218+M138 -> 2274654007 | K135: =2484163671.4718-N138 -> 1977562306
A136: Storm water Infrastructure | C136: 449250717.8 | D136: 500215336.2 | E136: 492666819.9 | F136: 171146519.2 | G136: 151399309.7 | H136: 151399309.7 | I136: 87082591.49 | J136: 89989077.27 | K136: 47480443.02
A137: Electrical Infrastructure | C137: 1151332432 | D137: 1281576239 | E137: 1173269272 | F137: 1319290256 | G137: 1043750674 | H137: 1043750674 | I137: 1018081787 | J137: 976609672.5 | K137: 1010735141
A138: Water Supply Infrastructure | C138: 601633420.9 | D138: 729287605.4 | E138: 732347420.9 | F138: 1207157612 | G138: 1136533878 | H138: 1136533878 | I138: 1223186204 | J138: 1253926642 | K138: 1341731262 | L138: 408000156.3 | M138: 49815614.99 | N138: 506601365.7
A139: Sanitation Infrastructure | C139: 341599834.2 | D139: 491269683.7 | E139: 489055780.7 | F139: 682631645.9 | G139: 588067715 | H139: 588067715 | I139: 600826029.8 | J139: 603388124.8 | K139: 622166143.5
A140: Solid Waste Infrastructure | C140: 12333619.9 | D140: 8203697.56 | E140: 7891309.98 | F140: 37297702.88 | G140: 82222177.23 | H140: 82222177.23 | I140: 85470274.23 | J140: 83291566.06 | K140: 86642973.12
A141: Rail Infrastructure | C141: 1273067.36 | D141: 1133767.16 | E141: 1018136.52 | F141: 1552439.07 | G141: 1373315.71 | H141: 1373315.71 | I141: 1254005.07 | J141: 1254005.1 | K141: 1134720.86
A142: Coastal Infrastructure | F142: 5366020.748 | G142: 4746879.111 | H142: 4746879.111 | I142: 4746879.111 | J142: 4746879.111 | K142: 4746879.111
A143: Information and Communication Infrastructure | F143: 5859000 | G143: 5182977.484 | H143: 5182977.484 | I143: 5182977.484 | J143: 5182977.484 | K143: 5182977.484
A144: Infrastructure | C144: =SUM(C135:C143) -> 4088887043 | D144: =SUM(D135:D143) -> 4875623002 | E144: 4769356087 | F144: 6096252140 | G144: 5203604929 | H144: 5203604929 | I144: 4856251237 | J144: 5293042951 | K144: 5097382846
A147: Community Assets | C147: 314213110.1 | D147: 448404541.3 | E147: 439697111.1 | F147: 36233641.81 | G147: 13785294.93 | H147: 13785294.93 | I147: 79588443.19 | J147: 77557602.47 | K147: 141209583.7
A148: Heritage Assets | C148: 226835645.5 | D148: 272674005.8 | E148: 271924972 | F148: 260307963.3 | G148: 206937599.7 | H148: 206937599.7 | I148: 206937599.7 | J148: 206937599.7 | K148: 206937599.7
A151: Investment properties | C151: 718291602.4 | D151: 702385000 | E151: 821671444.1 | F151: 756234992.1 | G151: 668979166.5 | H151: 668979166.5 | I151: 668979166.5 | J151: 668979166.5 | K151: 668979166.5
I152: 668979166.5
A154: Other Assets | C154: 223397036.6 | D154: 275725261.6 | E154: 269414591.8 | F154: 351457459.5 | G154: 579958799 | H154: 579958799 | I154: 617451810.3 | J154: 526791296.9 | K154: 587450315.5
A155: Biological or Cultivated Assets | C155: 64726278 | D155: 80648425 | E155: 74170250 | G155: 0 | H155: 0
A158: Intangible Assets | C158: 41752453.71 | D158: 40783433.79 | E158: 30700412.52 | F158: 27865742.94 | G158: 12462413 | H158: -39824735.73 | I158: -1082617.52 | J158: -54194696.97 | K158: -13363311.73
A159: Computer Equipment | C159: 37327698.13 | D159: 35928080.92 | E159: 28778537.85 | F159: 1288020.205 | G159: -24212897.46 | H159: -24212897.46 | I159: -28779613.69 | J159: -29765661.89 | K159: -30017167.46
A160: Furniture and Office Equipment | C160: 18393812.91 | D160: 17077132.76 | E160: 16196882.25 | F160: 16820364.75 | G160: 8059159.066 | H160: 8059159.066 | I160: 17596432.57 | J160: 14531619.13 | K160: 25042000.51
A161: Machinery and Equipment | C161: 53982696.84 | D161: 53218069.01 | E161: 53725800.87 | F161: 606200849.9 | G161: 506225238.5 | H161: 506225238.5 | I161: 568678244.6 | J161: 519098590.4 | K161: 572596212.5
A162: Transport Assets | C162: 99192279.93 | D162: 93488786.7 | E162: 85286830.94 | F162: 147271555.6 | G162: 203304264.9 | H162: 203304264.9 | I162: 210063384.2 | J162: 198620823.8 | K162: 207041701.8
A163: Land | C163: 1456364635 | D163: 1218987697 | E163: 915836146.2 | G163: -48520598.77 | H163: -48520598.77
A164: Zoo's, Marine and Non-biological Animals
A165: TOTAL ASSET REGISTER SUMMARY - PPE (WDV) | B165: 5 | C165: =C144+C147+C148+C151+C154+C155+C158+C159+C160+C161+C162+C163+C164 -> 7343364292 | D165: =D144+D147+D148+D151+D154+D155+D158+D159+D160+D161+D162+D163+D164 -> 8114943436 | E165: 7776759066 | F165: 8299932731 | G165: 7330583369 | H165: 7278296220 | I165: 7195684086 | J165: 7421599291 | K165: 7463258947
A167: EXPENDITURE OTHER ITEMS | C167: =SUM(C168:C169) -> 460955083 | D167: =SUM(D168:D169) -> 359722843.5 | E167: 491601785.3 | F167: 827208857.4 | G167: 741189546.7 | H167: 741189546.7 | I167: 1032931299 | J167: 1080955919 | K167: 1136638044
A168: Depreciation | B168: 7 | C168: =SA34d!C167 -> 460955083 | D168: =SA34d!D167 -> 302561252.5 | E168: =SA34d!E167 -> 380262219.5 | F168: =SA34d!F167 -> 421872297.6 | G168: =SA34d!G167 -> 420917987 | H168: =SA34d!H167 -> 420917987 | I168: =SA34d!I167 -> 441964212.5 | J168: =SA34d!J167 -> 465830280 | K168: =SA34d!K167 -> 491450945.4
A169: Repairs and Maintenance by Asset Class | B169: 3 | C169: =C179+C182+C183+C186+C189+C190+SUM(C193:C199) -> 0 | D169: =D179+D182+D183+D186+D189+D190+SUM(D193:D199) -> 57161591 | E169: 111339565.8 | F169: 405336559.7 | G169: 320271559.7 | H169: 320271559.7 | I169: 590967086.1 | J169: 615125638.6 | K169: 645187098.3
A170: Roads Infrastructure | C170: =SA34c!C7 -> 0 | D170: =SA34c!D7 -> 0 | E170: =SA34c!E7 -> 0 | F170: =SA34c!F7 -> 0 | G170: =SA34c!G7 -> 0 | H170: =SA34c!H7 -> 0 | I170: =SA34c!I7 -> 0 | J170: =SA34c!J7 -> 0 | K170: =SA34c!K7 -> 0
A171: Storm water Infrastructure | C171: =SA34c!C12 -> 0 | D171: =SA34c!D12 -> 0 | E171: =SA34c!E12 -> 0 | F171: =SA34c!F12 -> 0 | G171: =SA34c!G12 -> 0 | H171: =SA34c!H12 -> 0 | I171: =SA34c!I12 -> 0 | J171: =SA34c!J12 -> 0 | K171: =SA34c!K12 -> 0
A172: Electrical Infrastructure | C172: =SA34c!C16 -> 0 | D172: =SA34c!D16 -> 33758097.36 | E172: =SA34c!E16 -> 77522286.65 | F172: =SA34c!F16 -> 7348650 | G172: =SA34c!G16 -> 7348650 | H172: =SA34c!H16 -> 7348650 | I172: =SA34c!I16 -> 87166094.33 | J172: =SA34c!J16 -> 91134070.52 | K172: =SA34c!K16 -> 95235103.69
A173: Water Supply Infrastructure | C173: =SA34c!C26 -> 0 | D173: =SA34c!D26 -> 0 | E173: =SA34c!E26 -> 0 | F173: =SA34c!F26 -> 116809087.8 | G173: =SA34c!G26 -> 65770087.78 | H173: =SA34c!H26 -> 65770087.78 | I173: =SA34c!I26 -> 0 | J173: =SA34c!J26 -> 0 | K173: =SA34c!K26 -> 0
A174: Sanitation Infrastructure | C174: =SA34c!C37 -> 0 | D174: =SA34c!D37 -> 0 | E174: =SA34c!E37 -> 0 | F174: =SA34c!F37 -> 0 | G174: =SA34c!G37 -> 0 | H174: =SA34c!H37 -> 0 | I174: =SA34c!I37 -> 0 | J174: =SA34c!J37 -> 0 | K174: =SA34c!K37 -> 0
A175: Solid Waste Infrastructure | C175: =SA34c!C44 -> 0 | D175: =SA34c!D44 -> 0 | E175: =SA34c!E44 -> 0 | F175: =SA34c!F44 -> 0 | G175: =SA34c!G44 -> 0 | H175: =SA34c!H44 -> 0 | I175: =SA34c!I44 -> 33167008.33 | J175: =SA34c!J44 -> 34759024.73 | K175: =SA34c!K44 -> 36323180.85
A176: Rail Infrastructure | C176: =SA34c!C52 -> 0 | D176: =SA34c!D52 -> 0 | E176: =SA34c!E52 -> 0 | F176: =SA34c!F52 -> 0 | G176: =SA34c!G52 -> 0 | H176: =SA34c!H52 -> 0 | I176: =SA34c!I52 -> 46650436 | J176: =SA34c!J52 -> 48703055.18 | K176: =SA34c!K52 -> 50894692.67
A177: Coastal Infrastructure | C177: =SA34c!C62 -> 0 | D177: =SA34c!D62 -> 0 | E177: =SA34c!E62 -> 0 | F177: =SA34c!F62 -> 0 | G177: =SA34c!G62 -> 0 | H177: =SA34c!H62 -> 0 | I177: =SA34c!I62 -> 0 | J177: =SA34c!J62 -> 0 | K177: =SA34c!K62 -> 0
A178: Information and Communication Infrastructure | C178: =SA34c!C68 -> 0 | D178: =SA34c!D68 -> 0 | E178: =SA34c!E68 -> 0 | F178: =SA34c!F68 -> 0 | G178: =SA34c!G68 -> 0 | H178: =SA34c!H68 -> 0 | I178: =SA34c!I68 -> 0 | J178: =SA34c!J68 -> 0 | K178: =SA34c!K68 -> 0
A179: Infrastructure | C179: =SUM(C170:C178) -> 0 | D179: =SUM(D170:D178) -> 33758097.36 | E179: 77522286.65 | F179: 124157737.8 | G179: 73118737.78 | H179: 73118737.78 | I179: 166983538.7 | J179: 174596150.4 | K179: 182452977.2
A180: Community Facilities | C180: =SA34c!C75 -> 0 | D180: =SA34c!D75 -> 0 | E180: =SA34c!E75 -> 0 | F180: =SA34c!F75 -> 59000 | G180: =SA34c!G75 -> 59000 | H180: =SA34c!H75 -> 59000 | I180: =SA34c!I75 -> 33237008.33 | J180: =SA34c!J75 -> 34832104.73 | K180: =SA34c!K75 -> 36399549.45
A181: Sport and Recreation Facilities | C181: =SA34c!C98 -> 0 | D181: =SA34c!D98 -> 0 | E181: =SA34c!E98 -> 0 | F181: =SA34c!F98 -> 0 | G181: =SA34c!G98 -> 0 | H181: =SA34c!H98 -> 0 | I181: =SA34c!I98 -> 0 | J181: =SA34c!J98 -> 0 | K181: =SA34c!K98 -> 0
A182: Community Assets | C182: =SUM(C180:C181) -> 0 | D182: 0 | E182: 0 | F182: 59000 | G182: 59000 | H182: 59000 | I182: 33237008.33 | J182: 34832104.73 | K182: 36399549.45
A183: Heritage Assets | C183: =SA34c!C103 -> 0 | D183: =SA34c!D103 -> 0 | E183: =SA34c!E103 -> 0 | F183: =SA34c!F103 -> 0 | G183: =SA34c!G103 -> 0 | H183: =SA34c!H103 -> 0 | I183: =SA34c!I103 -> 0 | J183: =SA34c!J103 -> 0 | K183: =SA34c!K103 -> 0
A184: Revenue Generating | C184: =SA34c!C111 -> 0 | D184: =SA34c!D111 -> 0 | E184: =SA34c!E111 -> 0 | F184: =SA34c!F111 -> 0 | G184: =SA34c!G111 -> 0 | H184: =SA34c!H111 -> 0 | I184: =SA34c!I111 -> 0 | J184: =SA34c!J111 -> 0 | K184: =SA34c!K111 -> 0
A185: Non-revenue Generating | C185: =SA34c!C114 -> 0 | D185: =SA34c!D114 -> 0 | E185: =SA34c!E114 -> 0 | F185: =SA34c!F114 -> 0 | G185: =SA34c!G114 -> 0 | H185: =SA34c!H114 -> 0 | I185: =SA34c!I114 -> 0 | J185: =SA34c!J114 -> 0 | K185: =SA34c!K114 -> 0
A186: Investment properties | C186: =SUM(C184:C185) -> 0 | D186: 0 | E186: 0 | F186: 0 | G186: 0 | H186: 0 | I186: 0 | J186: 0 | K186: 0
A187: Operational Buildings | C187: =SA34c!C119 -> 0 | D187: =SA34c!D119 -> 14844653.41 | E187: =SA34c!E119 -> 14191124.89 | F187: =SA34c!F119 -> 126387783.7 | G187: =SA34c!G119 -> 126387783.7 | H187: =SA34c!H119 -> 126387783.7 | I187: =SA34c!I119 -> 266555729.1 | J187: =SA34c!J119 -> 287150391.8 | K187: =SA34c!K119 -> 301274108
A188: Housing | C188: =SA34c!C131 -> 0 | D188: =SA34c!D131 -> 0 | E188: =SA34c!E131 -> 0 | F188: =SA34c!F131 -> 0 | G188: =SA34c!G131 -> 0 | H188: =SA34c!H131 -> 0 | I188: =SA34c!I131 -> 0 | J188: =SA34c!J131 -> 0 | K188: =SA34c!K131 -> 0
A189: Other Assets | C189: =SUM(C187:C188) -> 0 | D189: 14844653.41 | E189: 14191124.89 | F189: 126387783.7 | G189: 126387783.7 | H189: 126387783.7 | I189: 266555729.1 | J189: 287150391.8 | K189: 301274108
A190: Biological or Cultivated Assets | C190: =SA34c!C136 -> 0 | D190: =SA34c!D136 -> 0 | E190: =SA34c!E136 -> 0 | F190: =SA34c!F136 -> 0 | G190: =SA34c!G136 -> 0 | H190: =SA34c!H136 -> 0 | I190: =SA34c!I136 -> 0 | J190: =SA34c!J136 -> 0 | K190: =SA34c!K136 -> 0
A191: Servitudes | C191: =SA34c!C140 -> 0 | D191: =SA34c!D140 -> 0 | E191: =SA34c!E140 -> 0 | F191: =SA34c!F140 -> 0 | G191: =SA34c!G140 -> 0 | H191: =SA34c!H140 -> 0 | I191: =SA34c!I140 -> 0 | J191: =SA34c!J140 -> 0 | K191: =SA34c!K140 -> 0
A192: Licences and Rights | C192: =SA34c!C141 -> 0 | D192: =SA34c!D141 -> 0 | E192: =SA34c!E141 -> 0 | F192: =SA34c!F141 -> 0 | G192: =SA34c!G141 -> 0 | H192: =SA34c!H141 -> 0 | I192: =SA34c!I141 -> 0 | J192: =SA34c!J141 -> 0 | K192: =SA34c!K141 -> 0
A193: Intangible Assets | C193: =SUM(C191:C192) -> 0 | D193: 0 | E193: 0 | F193: 0 | G193: 0 | H193: 0 | I193: 0 | J193: 0 | K193: 0
A194: Computer Equipment | C194: =SA34c!C149 -> 0 | D194: =SA34c!D149 -> 0 | E194: =SA34c!E149 -> 0 | F194: =SA34c!F149 -> 0 | G194: =SA34c!G149 -> 0 | H194: =SA34c!H149 -> 0 | I194: =SA34c!I149 -> 0 | J194: =SA34c!J149 -> 0 | K194: =SA34c!K149 -> 0
A195: Furniture and Office Equipment | C195: =SA34c!C152 -> 0 | D195: =SA34c!D152 -> 0 | E195: =SA34c!E152 -> 0 | F195: =SA34c!F152 -> 0 | G195: =SA34c!G152 -> 0 | H195: =SA34c!H152 -> 0 | I195: =SA34c!I152 -> 0 | J195: =SA34c!J152 -> 0 | K195: =SA34c!K152 -> 0
A196: Machinery and Equipment | C196: =SA34c!C155 -> 0 | D196: =SA34c!D155 -> 8558840.23 | E196: =SA34c!E155 -> 19626154.25 | F196: =SA34c!F155 -> 120352350.9 | G196: =SA34c!G155 -> 90579350.92 | H196: =SA34c!H155 -> 90579350.92 | I196: =SA34c!I155 -> 94231632.04 | J196: =SA34c!J155 -> 87564877.12 | K196: =SA34c!K155 -> 91550342
A197: Transport Assets | C197: =SA34c!C158 -> 0 | D197: =SA34c!D158 -> 0 | E197: =SA34c!E158 -> 0 | F197: =SA34c!F158 -> 34379687.34 | G197: =SA34c!G158 -> 30126687.34 | H197: =SA34c!H158 -> 30126687.34 | I197: =SA34c!I158 -> 29959178 | J197: =SA34c!J158 -> 30982114.52 | K197: =SA34c!K158 -> 33510121.59
A198: Land | C198: =SA34c!C161 -> 0 | D198: =SA34c!D161 -> 0 | E198: =SA34c!E161 -> 0 | F198: =SA34c!F161 -> 0 | G198: =SA34c!G161 -> 0 | H198: =SA34c!H161 -> 0 | I198: =SA34c!I161 -> 0 | J198: =SA34c!J161 -> 0 | K198: =SA34c!K161 -> 0
A199: Zoo's, Marine and Non-biological Animals | C199: =SA34c!C164 -> 0 | D199: =SA34c!D164 -> 0 | E199: =SA34c!E164 -> 0 | F199: =SA34c!F164 -> 0 | G199: =SA34c!G164 -> 0 | H199: =SA34c!H164 -> 0 | I199: =SA34c!I164 -> 0 | J199: =SA34c!J164 -> 0 | K199: =SA34c!K164 -> 0
A201: TOTAL EXPENDITURE OTHER ITEMS | C201: =SUM(C168:C169) -> 460955083 | D201: 359722843.5 | E201: 491601785.3 | F201: 827208857.4 | G201: 741189546.7 | H201: 741189546.7 | I201: 1032931299 | J201: 1080955919 | K201: 1136638044
A203: Renewal and upgrading of Existing Assets as % of total capex | C203: =IF(ISERROR((C37+C69)/C132),0,((C37+C69)/C132)) -> 0.6966569065 | D203: =IF(ISERROR((D37+D69)/D132),0,((D37+D69)/D132)) -> 0.9560114528 | E203: 0.4052716465 | F203: 0.6474383509 | G203: 0.569468569 | H203: 0.569468569 | I203: 0.6494430115 | J203: 0.7483530865 | K203: 0.410354211
A204: Renewal and upgrading of Existing Assets as % of deprecn | C204: =IF(ISERROR((C37+C69)/C168),0,((C37+C69)/C168)) -> 0.9271828246 | D204: =IF(ISERROR((D37+D69)/D168),0,((D37+D69)/D168)) -> 1.516212285 | E204: 0.7310442135 | F204: 0.8844377246 | G204: 0.8864429331 | H204: 0.8864429331 | I204: 1.319049326 | J204: 1.196508737 | K204: 0.4903538447
A205: R&M as a % of PPE | C205: =IF(ISERROR(ROUND(C169/'A6-FinPos'!C19,3)),0,(ROUND(C169/'A6-FinPos'!C19,3))) -> 0 | D205: =IF(ISERROR(ROUND(D169/'A6-FinPos'!D19,3)),0,(ROUND(D169/'A6-FinPos'!D19,3))) -> 0.009 | E205: =IF(ISERROR(ROUND(E169/'A6-FinPos'!E19,3)),0,(ROUND(E169/'A6-FinPos'!E19,3))) -> 0.016 | F205: =IF(ISERROR(ROUND(F169/'A6-FinPos'!F19,3)),0,(ROUND(F169/'A6-FinPos'!F19,3))) -> 0.06 | G205: =IF(ISERROR(ROUND(G169/'A6-FinPos'!G19,3)),0,(ROUND(G169/'A6-FinPos'!G19,3))) -> 0.047 | H205: =IF(ISERROR(ROUND(H169/'A6-FinPos'!H19,3)),0,(ROUND(H169/'A6-FinPos'!H19,3))) -> 0.047 | I205: =IF(ISERROR(ROUND(I169/'A6-FinPos'!J19,3)),0,(ROUND(I169/'A6-FinPos'!J19,3))) -> 0.082 | J205: =IF(ISERROR(ROUND(J169/'A6-FinPos'!K19,3)),0,(ROUND(J169/'A6-FinPos'!K19,3))) -> 0.083 | K205: =IF(ISERROR(ROUND(K169/'A6-FinPos'!L19,3)),0,(ROUND(K169/'A6-FinPos'!L19,3))) -> 0.086
A206: Renewal and upgrading and R&M as a % of PPE | C206: =IF(ISERROR(ROUND((C37+C69+C169)/C165,2)),0,(ROUND((C37+C69+C169)/C165,2))) -> 0.06 | D206: =IF(ISERROR(ROUND((D37+D69+D169)/D165,2)),0,(ROUND((D37+D69+D169)/D165,2))) -> 0.06 | E206: 0.05 | F206: 0.09 | G206: 0.09 | H206: 0.1 | I206: 0.16 | J206: 0.16 | K206: 0.12
A208: =head27a -> References
A209: 1. Detail of new assets provided in Table SA34a
A210: 2. Detail of renewal of existing assets provided in Table SA34b
A211: 3. Detail of Repairs and Maintenance by Asset Class provided in Table SA34c
A212: 4. Must reconcile to total capital expenditure on Budgeted Capital Expenditure
A213: 5. Must reconcile to 'Budgeted Financial Position' (written down value)
A214: 6. Detail of upgrading of existing assets provided in Table SA34e
A215: 7. Detail of depreciation provided in Table SA34d
... 1 more rows

Sheet A10-SerDel
A1: =muni&" - "&Approve10 -> KZN225 Msunduzi - Table A10 Consolidated basic service delivery measurement
A2: =desc -> Description | B2: =head27 -> Ref | C2: =head1b -> 2018/19 | D2: =head1A -> 2019/20 | E2: =Head1 -> 2020/21 | F2: =Head2 -> Current Year 2021/22 | I2: =Head3 -> 2022/23 Medium Term Revenue & Expenditure Framework
C3: =Head5A -> Outcome | D3: =Head5A -> Outcome | E3: =Head5A -> Outcome | F3: =Head6 -> Original Budget | G3: =Head7 -> Adjusted Budget | H3: =Head8 -> Full Year Forecast | I3: =Head9 -> Budget Year 2022/23 | J3: =Head10 -> Budget Year +1 2023/24 | K3: =Head11 -> Budget Year +2 2024/25
A4: Household service targets | B4: 1
A5: Water:
A6: Piped water inside dwelling | C6: ='SA9'!E67 -> 84782.196 | D6: ='SA9'!F67 -> 84782.196 | E6: ='SA9'!G67 -> 84782.196 | F6: ='SA9'!H67 -> 84782.196 | G6: ='SA9'!I67 -> 84782.196 | H6: ='SA9'!J67 -> 84782.196 | I6: ='SA9'!K67 -> 84782.196 | J6: ='SA9'!L67 -> 84782.196 | K6: ='SA9'!M67 -> 84782.196
A7: Piped water inside yard (but not in dwelling) | C7: ='SA9'!E68 -> 67480.5196 | D7: ='SA9'!F68 -> 67480.5196 | E7: ='SA9'!G68 -> 67480.5196 | F7: ='SA9'!H68 -> 67480.5196 | G7: ='SA9'!I68 -> 67480.5196 | H7: ='SA9'!J68 -> 67480.5196 | I7: ='SA9'!K68 -> 67480.5196 | J7: ='SA9'!L68 -> 67480.5196 | K7: ='SA9'!M68 -> 67480.5196
A8: Using public tap (at least min.service level) | B8: 2 | C8: ='SA9'!E69 -> 6654.3984 | D8: ='SA9'!F69 -> 6654.3984 | E8: ='SA9'!G69 -> 6654.3984 | F8: ='SA9'!H69 -> 6654.3984 | G8: ='SA9'!I69 -> 6654.3984 | H8: ='SA9'!J69 -> 6654.3984 | I8: ='SA9'!K69 -> 6654.3984 | J8: ='SA9'!L69 -> 6654.3984 | K8: ='SA9'!M69 -> 6654.3984
A9: Other water supply (at least min.service level) | B9: 4 | C9: ='SA9'!E70 -> 3196.1088 | D9: ='SA9'!F70 -> 3196.1088 | E9: ='SA9'!G70 -> 3196.1088 | F9: ='SA9'!H70 -> 3196.1088 | G9: ='SA9'!I70 -> 3196.1088 | H9: ='SA9'!J70 -> 3196.1088 | I9: ='SA9'!K70 -> 3196.1088 | J9: ='SA9'!L70 -> 3196.1088 | K9: ='SA9'!M70 -> 3196.1088
A10: Minimum Service Level and Above sub-total | C10: =SUM(C6:C9) -> 162113.2228 | D10: =SUM(D6:D9) -> 162113.2228 | E10: 162113.2228 | F10: 162113.2228 | G10: 162113.2228 | H10: 162113.2228 | I10: 162113.2228 | J10: 162113.2228 | K10: 162113.2228
A11: Using public tap (< min.service level) | B11: 3 | C11: ='SA9'!E72 -> 6654.3984 | D11: ='SA9'!F72 -> 6654.3984 | E11: ='SA9'!G72 -> 6654.3984 | F11: ='SA9'!H72 -> 6654.3984 | G11: ='SA9'!I72 -> 6654.3984 | H11: ='SA9'!J72 -> 6654.3984 | I11: ='SA9'!K72 -> 6654.3984 | J11: ='SA9'!L72 -> 6654.3984 | K11: ='SA9'!M72 -> 6654.3984
A12: Other water supply (< min.service level) | B12: =B9 -> 4 | C12: ='SA9'!E73 -> 1850.696 | D12: ='SA9'!F73 -> 1850.696 | E12: ='SA9'!G73 -> 1850.696 | F12: ='SA9'!H73 -> 1850.696 | G12: ='SA9'!I73 -> 1850.696 | H12: ='SA9'!J73 -> 1850.696 | I12: ='SA9'!K73 -> 1850.696 | J12: ='SA9'!L73 -> 1850.696 | K12: ='SA9'!M73 -> 1850.696
A13: No water supply | C13: ='SA9'!E74 -> 0 | D13: ='SA9'!F74 -> 0 | E13: ='SA9'!G74 -> 0 | F13: ='SA9'!H74 -> 0 | G13: ='SA9'!I74 -> 0 | H13: ='SA9'!J74 -> 0 | I13: ='SA9'!K74 -> 0 | J13: ='SA9'!L74 -> 0 | K13: ='SA9'!M74 -> 0
A14: Below Minimum Service Level sub-total | C14: =SUM(C11:C13) -> 8505.0944 | D14: =SUM(D11:D13) -> 8505.0944 | E14: 8505.0944 | F14: 8505.0944 | G14: 8505.0944 | H14: 8505.0944 | I14: 8505.0944 | J14: 8505.0944 | K14: 8505.0944
A15: Total number of households | B15: 5 | C15: =C10+C14 -> 170618.3172 | D15: =D10+D14 -> 170618.3172 | E15: 170618.3172 | F15: 170618.3172 | G15: 170618.3172 | H15: 170618.3172 | I15: 170618.3172 | J15: 170618.3172 | K15: 170618.3172
A16: Sanitation/sewerage:
A17: Flush toilet (connected to sewerage) | C17: ='SA9'!E78 -> 91589.0196 | D17: ='SA9'!F78 -> 91589.0196 | E17: ='SA9'!G78 -> 91589.0196 | F17: ='SA9'!H78 -> 91589.0196 | G17: ='SA9'!I78 -> 91589.0196 | H17: ='SA9'!J78 -> 91589.0196 | I17: ='SA9'!K78 -> 91589.0196 | J17: ='SA9'!L78 -> 91589.0196 | K17: ='SA9'!M78 -> 91589.0196
A18: Flush toilet (with septic tank) | C18: ='SA9'!E79 -> 8655.0876 | D18: ='SA9'!F79 -> 8655.0876 | E18: ='SA9'!G79 -> 8655.0876 | F18: ='SA9'!H79 -> 8655.0876 | G18: ='SA9'!I79 -> 8655.0876 | H18: ='SA9'!J79 -> 8655.0876 | I18: ='SA9'!K79 -> 8655.0876 | J18: ='SA9'!L79 -> 8655.0876 | K18: ='SA9'!M79 -> 8655.0876
A19: Chemical toilet | C19: ='SA9'!E80 -> 7361.8704 | D19: ='SA9'!F80 -> 7361.8704 | E19: ='SA9'!G80 -> 7361.8704 | F19: ='SA9'!H80 -> 7361.8704 | G19: ='SA9'!I80 -> 7361.8704 | H19: ='SA9'!J80 -> 7361.8704 | I19: ='SA9'!K80 -> 7361.8704 | J19: ='SA9'!L80 -> 7361.8704 | K19: ='SA9'!M80 -> 7361.8704
A20: Pit toilet (ventilated) | C20: ='SA9'!E81 -> 61827.8508 | D20: ='SA9'!F81 -> 61827.8508 | E20: ='SA9'!G81 -> 61827.8508 | F20: ='SA9'!H81 -> 61827.8508 | G20: ='SA9'!I81 -> 61827.8508 | H20: ='SA9'!J81 -> 61827.8508 | I20: ='SA9'!K81 -> 61827.8508 | J20: ='SA9'!L81 -> 61827.8508 | K20: ='SA9'!M81 -> 61827.8508
A21: Other toilet provisions (> min.service level) | C21: ='SA9'!E82 -> 0 | D21: ='SA9'!F82 -> 0 | E21: ='SA9'!G82 -> 0 | F21: ='SA9'!H82 -> 0 | G21: ='SA9'!I82 -> 0 | H21: ='SA9'!J82 -> 0 | I21: ='SA9'!K82 -> 0 | J21: ='SA9'!L82 -> 0 | K21: ='SA9'!M82 -> 0
A22: =$A$10 -> Minimum Service Level and Above sub-total | C22: =SUM(C17:C21) -> 169433.8284 | D22: =SUM(D17:D21) -> 169433.8284 | E22: 169433.8284 | F22: 169433.8284 | G22: 169433.8284 | H22: 169433.8284 | I22: 169433.8284 | J22: 169433.8284 | K22: 169433.8284
A23: Bucket toilet | C23: ='SA9'!E84 -> 0 | D23: ='SA9'!F84 -> 0 | E23: ='SA9'!G84 -> 0 | F23: ='SA9'!H84 -> 0 | G23: ='SA9'!I84 -> 0 | H23: ='SA9'!J84 -> 0 | I23: ='SA9'!K84 -> 0 | J23: ='SA9'!L84 -> 0 | K23: ='SA9'!M84 -> 0
A24: Other toilet provisions (< min.service level) | C24: ='SA9'!E85 -> 1184.4888 | D24: ='SA9'!F85 -> 1184.4888 | E24: ='SA9'!G85 -> 1184.4888 | F24: ='SA9'!H85 -> 1184.4888 | G24: ='SA9'!I85 -> 1184.4888 | H24: ='SA9'!J85 -> 1184.4888 | I24: ='SA9'!K85 -> 1184.4888 | J24: ='SA9'!L85 -> 1184.4888 | K24: ='SA9'!M85 -> 1184.4888
A25: No toilet provisions | C25: ='SA9'!E86 -> 0 | D25: ='SA9'!F86 -> 0 | E25: ='SA9'!G86 -> 0 | F25: ='SA9'!H86 -> 0 | G25: ='SA9'!I86 -> 0 | H25: ='SA9'!J86 -> 0 | I25: ='SA9'!K86 -> 0 | J25: ='SA9'!L86 -> 0 | K25: ='SA9'!M86 -> 0
A26: =$A$14 -> Below Minimum Service Level sub-total | C26: =SUM(C23:C25) -> 1184.4888 | D26: =SUM(D23:D25) -> 1184.4888 | E26: 1184.4888 | F26: 1184.4888 | G26: 1184.4888 | H26: 1184.4888 | I26: 1184.4888 | J26: 1184.4888 | K26: 1184.4888
A27: =$A$15 -> Total number of households | B27: =$B$15 -> 5 | C27: =C22+C26 -> 170618.3172 | D27: =D22+D26 -> 170618.3172 | E27: 170618.3172 | F27: 170618.3172 | G27: 170618.3172 | H27: 170618.3172 | I27: 170618.3172 | J27: 170618.3172 | K27: 170618.3172
A28: Energy:
A29: Electricity (at least min.service level) | C29: ='SA9'!E90 -> 135271.4032 | D29: ='SA9'!F90 -> 135271.4032 | E29: ='SA9'!G90 -> 135271.4032 | F29: ='SA9'!H90 -> 135271.4032 | G29: ='SA9'!I90 -> 135271.4032 | H29: ='SA9'!J90 -> 135271.4032 | I29: ='SA9'!K90 -> 135271.4032 | J29: ='SA9'!L90 -> 135271.4032 | K29: ='SA9'!M90 -> 135271.4032
A30: Electricity - prepaid (min.service level) | C30: ='SA9'!E91 -> 27346.914 | D30: ='SA9'!F91 -> 27346.914 | E30: ='SA9'!G91 -> 27346.914 | F30: ='SA9'!H91 -> 27346.914 | G30: ='SA9'!I91 -> 27346.914 | H30: ='SA9'!J91 -> 27346.914 | I30: ='SA9'!K91 -> 27346.914 | J30: ='SA9'!L91 -> 27346.914 | K30: ='SA9'!M91 -> 27346.914
A31: =$A$10 -> Minimum Service Level and Above sub-total | C31: =SUM(C29:C30) -> 162618.3172 | D31: =SUM(D29:D30) -> 162618.3172 | E31: 162618.3172 | F31: 162618.3172 | G31: 162618.3172 | H31: 162618.3172 | I31: 162618.3172 | J31: 162618.3172 | K31: 162618.3172
A32: Electricity (< min.service level) | C32: ='SA9'!E93 -> 0 | D32: ='SA9'!F93 -> 0 | E32: ='SA9'!G93 -> 0 | F32: ='SA9'!H93 -> 0 | G32: ='SA9'!I93 -> 0 | H32: ='SA9'!J93 -> 0 | I32: ='SA9'!K93 -> 0 | J32: ='SA9'!L93 -> 0 | K32: ='SA9'!M93 -> 0
A33: Electricity - prepaid (< min. service level) | C33: ='SA9'!E94 -> 0 | D33: ='SA9'!F94 -> 0 | E33: ='SA9'!G94 -> 0 | F33: ='SA9'!H94 -> 0 | G33: ='SA9'!I94 -> 0 | H33: ='SA9'!J94 -> 0 | I33: ='SA9'!K94 -> 0 | J33: ='SA9'!L94 -> 0 | K33: ='SA9'!M94 -> 0
A34: Other energy sources | C34: ='SA9'!E95 -> 8000 | D34: ='SA9'!F95 -> 8000 | E34: ='SA9'!G95 -> 8000 | F34: ='SA9'!H95 -> 8000 | G34: ='SA9'!I95 -> 8000 | H34: ='SA9'!J95 -> 8000 | I34: ='SA9'!K95 -> 8000 | J34: ='SA9'!L95 -> 8000 | K34: ='SA9'!M95 -> 8000
A35: =$A$14 -> Below Minimum Service Level sub-total | C35: =SUM(C32:C34) -> 8000 | D35: =SUM(D32:D34) -> 8000 | E35: 8000 | F35: 8000 | G35: 8000 | H35: 8000 | I35: 8000 | J35: 8000 | K35: 8000
A36: =$A$15 -> Total number of households | B36: =$B$15 -> 5 | C36: =C31+C35 -> 170618.3172 | D36: =D31+D35 -> 170618.3172 | E36: 170618.3172 | F36: 170618.3172 | G36: 170618.3172 | H36: 170618.3172 | I36: 170618.3172 | J36: 170618.3172 | K36: 170618.3172
A37: Refuse:
A38: Removed at least once a week | C38: ='SA9'!E99 -> 129848 | D38: ='SA9'!F99 -> 129848 | E38: ='SA9'!G99 -> 129848 | F38: ='SA9'!H99 -> 129848 | G38: ='SA9'!I99 -> 129848 | H38: ='SA9'!J99 -> 129848 | I38: ='SA9'!K99 -> 129848 | J38: ='SA9'!L99 -> 129848 | K38: ='SA9'!M99 -> 129848
A39: =$A$10 -> Minimum Service Level and Above sub-total | C39: =SUM(C38) -> 129848 | D39: =SUM(D38) -> 129848 | E39: 129848 | F39: 129848 | G39: 129848 | H39: 129848 | I39: 129848 | J39: 129848 | K39: 129848
A40: Removed less frequently than once a week | C40: ='SA9'!E101 -> 40770.3172 | D40: ='SA9'!F101 -> 40770.3172 | E40: ='SA9'!G101 -> 40770.3172 | F40: ='SA9'!H101 -> 40770.3172 | G40: ='SA9'!I101 -> 40770.3172 | H40: ='SA9'!J101 -> 40770.3172 | I40: ='SA9'!K101 -> 40770.3172 | J40: ='SA9'!L101 -> 40770.3172 | K40: ='SA9'!M101 -> 40770.3172
A41: Using communal refuse dump | C41: ='SA9'!E102 -> 0 | D41: ='SA9'!F102 -> 0 | E41: ='SA9'!G102 -> 0 | F41: ='SA9'!H102 -> 0 | G41: ='SA9'!I102 -> 0 | H41: ='SA9'!J102 -> 0 | I41: ='SA9'!K102 -> 0 | J41: ='SA9'!L102 -> 0 | K41: ='SA9'!M102 -> 0
A42: Using own refuse dump | C42: ='SA9'!E103 -> 0 | D42: ='SA9'!F103 -> 0 | E42: ='SA9'!G103 -> 0 | F42: ='SA9'!H103 -> 0 | G42: ='SA9'!I103 -> 0 | H42: ='SA9'!J103 -> 0 | I42: ='SA9'!K103 -> 0 | J42: ='SA9'!L103 -> 0 | K42: ='SA9'!M103 -> 0
A43: Other rubbish disposal | C43: ='SA9'!E104 -> 0 | D43: ='SA9'!F104 -> 0 | E43: ='SA9'!G104 -> 0 | F43: ='SA9'!H104 -> 0 | G43: ='SA9'!I104 -> 0 | H43: ='SA9'!J104 -> 0 | I43: ='SA9'!K104 -> 0 | J43: ='SA9'!L104 -> 0 | K43: ='SA9'!M104 -> 0
A44: No rubbish disposal | C44: ='SA9'!E105 -> 0 | D44: ='SA9'!F105 -> 0 | E44: ='SA9'!G105 -> 0 | F44: ='SA9'!H105 -> 0 | G44: ='SA9'!I105 -> 0 | H44: ='SA9'!J105 -> 0 | I44: ='SA9'!K105 -> 0 | J44: ='SA9'!L105 -> 0 | K44: ='SA9'!M105 -> 0
A45: =$A$14 -> Below Minimum Service Level sub-total | C45: =SUM(C40:C44) -> 40770.3172 | D45: 40770.3172 | E45: 40770.3172 | F45: 40770.3172 | G45: 40770.3172 | H45: 40770.3172 | I45: 40770.3172 | J45: 40770.3172 | K45: 40770.3172
A46: =$A$15 -> Total number of households | B46: =$B$15 -> 5 | C46: =C39+C45 -> 170618.3172 | D46: =D39+D45 -> 170618.3172 | E46: 170618.3172 | F46: 170618.3172 | G46: 170618.3172 | H46: 170618.3172 | I46: 170618.3172 | J46: 170618.3172 | K46: 170618.3172
A48: Households receiving Free Basic Service | B48: 7
A49: Water (6 kilolitres per household per month) | C49: ='SA9'!E263 -> 0 | D49: ='SA9'!F263 -> 0 | E49: ='SA9'!G263 -> 0 | F49: ='SA9'!H263 -> 0 | G49: ='SA9'!I263 -> 0 | H49: ='SA9'!J263 -> 0 | I49: ='SA9'!K263 -> 0 | J49: ='SA9'!L263 -> 0 | K49: ='SA9'!M263 -> 0
A50: Sanitation (free minimum level service) | C50: ='SA9'!E275 -> 0 | D50: ='SA9'!F275 -> 0 | E50: ='SA9'!G275 -> 0 | F50: ='SA9'!H275 -> 0 | G50: ='SA9'!I275 -> 0 | H50: ='SA9'!J275 -> 0 | I50: ='SA9'!K275 -> 0 | J50: ='SA9'!L275 -> 0 | K50: ='SA9'!M275 -> 0
A51: Electricity/other energy (50kwh per household per month) | C51: ='SA9'!E251 -> 0 | D51: ='SA9'!F251 -> 0 | E51: ='SA9'!G251 -> 0 | F51: ='SA9'!H251 -> 0 | G51: ='SA9'!I251 -> 0 | H51: ='SA9'!J251 -> 0 | I51: ='SA9'!K251 -> 0 | J51: ='SA9'!L251 -> 0 | K51: ='SA9'!M251 -> 0
A52: Refuse (removed at least once a week) | C52: ='SA9'!E287 -> 0 | D52: ='SA9'!F287 -> 0 | E52: ='SA9'!G287 -> 0 | F52: ='SA9'!H287 -> 0 | G52: ='SA9'!I287 -> 0 | H52: ='SA9'!J287 -> 0 | I52: ='SA9'!K287 -> 0 | J52: ='SA9'!L287 -> 0 | K52: ='SA9'!M287 -> 0
A54: Cost of Free Basic Services provided - Formal Settlements (R'000) | B54: 8
A55: Water (6 kilolitres per indigent household per month) | C55: ='SA1'!C20 -> 0 | D55: ='SA1'!D20 -> 0 | E55: ='SA1'!E20 -> 0 | F55: ='SA1'!F20 -> 190902259.7 | G55: ='SA1'!G20 -> 190902259.7 | H55: ='SA1'!H20 -> 190902259.7 | I55: ='SA1'!J20 -> 0 | J55: ='SA1'!K20 -> 0 | K55: ='SA1'!L20 -> 0
A56: Sanitation (free sanitation service to indigent households) | C56: ='SA1'!C26 -> 0 | D56: ='SA1'!D26 -> 0 | E56: ='SA1'!E26 -> 0 | F56: ='SA1'!F26 -> 13255972.54 | G56: ='SA1'!G26 -> 13255972.54 | H56: ='SA1'!H26 -> 13255972.54 | I56: ='SA1'!J26 -> 0 | J56: ='SA1'!K26 -> 0 | K56: ='SA1'!L26 -> 0
A57: Electricity/other energy (50kwh per indigent household per month) | C57: ='SA1'!C14 -> 0 | D57: ='SA1'!D14 -> 0 | E57: ='SA1'!E14 -> 0 | F57: ='SA1'!F14 -> 3562576.715 | G57: ='SA1'!G14 -> 3562576.715 | H57: ='SA1'!H14 -> 3562576.715 | I57: ='SA1'!J14 -> 0 | J57: ='SA1'!K14 -> 0 | K57: ='SA1'!L14 -> 0
A58: Refuse (removed once a week for indigent households) | C58: ='SA1'!C33 -> 0 | D58: ='SA1'!D33 -> 0 | E58: ='SA1'!E33 -> 0 | F58: ='SA1'!F33 -> 6977655.264 | G58: ='SA1'!G33 -> 6977655.264 | H58: ='SA1'!H33 -> 6977655.264 | I58: ='SA1'!J33 -> 0 | J58: ='SA1'!K33 -> 0 | K58: ='SA1'!L33 -> 0
A59: Cost of Free Basic Services provided - Informal Formal Settlements (R'000) | C59: ='SA9'!E260+'SA9'!E272+'SA9'!E284+'SA9'!E296 -> 1837233.571 | D59: ='SA9'!F260+'SA9'!F272+'SA9'!F284+'SA9'!F296 -> 0 | E59: ='SA9'!G260+'SA9'!G272+'SA9'!G284+'SA9'!G296 -> 0 | F59: ='SA9'!H260+'SA9'!H272+'SA9'!H284+'SA9'!H296 -> 0 | G59: ='SA9'!I260+'SA9'!I272+'SA9'!I284+'SA9'!I296 -> 0 | H59: ='SA9'!J260+'SA9'!J272+'SA9'!J284+'SA9'!J296 -> 0 | I59: ='SA9'!K260+'SA9'!K272+'SA9'!K284+'SA9'!K296 -> 228088786.1 | J59: ='SA9'!L260+'SA9'!L272+'SA9'!L284+'SA9'!L296 -> 242071343.7 | K59: ='SA9'!M260+'SA9'!M272+'SA9'!M284+'SA9'!M296 -> 256929502.1
A60: Total cost of FBS provided | C60: =SUM(C55:C59) -> 1837233.571 | D60: 0 | E60: 0 | F60: 214698464.2 | G60: 214698464.2 | H60: 214698464.2 | I60: 228088786.1 | J60: 242071343.7 | K60: 256929502.1
A62: Highest level of free service provided per household
A63: Property rates (R value threshold) | C63: 100000 | D63: 100000 | F63: 120000 | G63: 120000 | H63: 120000 | I63: 120000 | J63: 120000 | K63: 120000
A64: Water (kilolitres per household per month) | C64: 6 | D64: 6 | F64: 6 | G64: 6 | H64: 6 | I64: 6 | J64: 6 | K64: 6
A65: Sanitation (kilolitres per household per month) | C65: 0 | D65: 0 | F65: 0 | G65: 0 | H65: 0 | I65: 0 | J65: 0 | K65: 0
A66: Sanitation (Rand per household per month) | C66: 144.67 | D66: 153.3502 | F66: 162.551212 | G66: 162.551212 | H66: 162.551212 | I66: 162.551212 | J66: 162.551212 | K66: 162.551212
A67: Electricity (kwh per household per month) | C67: 70 | D67: 70 | F67: 70 | G67: 70 | H67: 70 | I67: 70 | J67: 70 | K67: 70
A68: Refuse (average litres per week) | C68: 200 | D68: 200 | F68: 200 | G68: 200 | H68: 200 | I68: 200 | J68: 200 | K68: 200
A69: Revenue cost of subsidised services provided (R'000) | B69: 9
A70: Property rates (tariff adjustment) ( impermissable values per section 17 of MPRA) | C70: 15000 | D70: 15000 | F70: 15000 | G70: 15000 | H70: 15000 | I70: 15000 | J70: 15000 | K70: 15000
A71: Property rates exemptions, reductions and rebates and impermissable values in excess of section 17 of MPRA) | C71: ='SA1'!C8 -> 411538371 | D71: ='SA1'!D8 -> 0 | E71: ='SA1'!E8 -> 0 | F71: ='SA1'!F8 -> 105662918 | G71: ='SA1'!G8 -> 105662918 | H71: ='SA1'!H8 -> 105662918 | I71: ='SA1'!J8 -> 109118805 | J71: ='SA1'!K8 -> 113920032.4 | K71: ='SA1'!L8 -> 119046433.9
A72: Water (in excess of 6 kilolitres per indigent household per month) | C72: ='SA1'!C19 -> 0 | D72: ='SA1'!D19 -> 0 | E72: ='SA1'!E19 -> 0 | F72: ='SA1'!F19 -> 0 | G72: ='SA1'!G19 -> 0 | H72: ='SA1'!H19 -> 0 | I72: ='SA1'!J19 -> 202356395.3 | J72: ='SA1'!K19 -> 214497779 | K72: ='SA1'!L19 -> 227367645.7
